Workbook

Sheet Výběr
A1: Modelové projekce budoucího počtu a struktury lékařů primární zdravotní péče a jejich kapacit Aplikace se základními výsledky na úrovni Česka a jednotlivých krajů Tato aplikace vznikla v rámci projektu TA ČR Omega (č. TD03000312) „Hodnocení a modelování dostupnosti primární zdravotní péče jako klíčového aspektu zdravotní péče v ČR“. Je určena k modelovému odhadu budoucího vývoje počtů lékařů (a jejich kapacit) podle věku a pohlaví na úrovni Česka a jednotlivých krajů na období 1. 1. 2017 až 1. 1. 2050 v rámci čtyř odborností primární zdravotní péče: Všeobecné praktické lékařství (001), Praktické lékařství pro děti a dorost (002), Zubní lékařství (014) a Ambulantní gynekologie (603) za předpokladu fixace parametrů uvedeného vývoje za období 2011–2016. Autoři: RNDr. Boris Burcin, Ph.D. a RNDr. Luděk Šídlo, Ph.D. Katedra demografie a geodemografie, Centrum populačního plánování a aplikované demografie Přírodovědecká fakulta Univerzity Karlovy, Praha Kontakt: boris.burcin@natur.cuni.cz, ludek.sidlo@natur.cuni.cz Datové zdroje: Počty lékařů smluvních PZS VZP ČR podle věku a pohlaví za období 2011–2016. Burcin, B., Z. Čermák, T. Kučera a L. Šídlo, 2014. Prognóza vývoje počtu obyvatel v krajích České republiky do roku 2065. Zpracováno pro Výzkumný ústav vodohospodářský T. G. Masaryka v Praze. Metodika: Šídlo, L., 2010. Současný stav a perspektivy vývoje počtu a struktury lékařů primární zdravotní péče v České republice. Dizertační práce (Ph.D.). Univerzita Karlova v Praze, katedra demografie a geodemografie, Praha, 2010, 307 s + CD-ROM s přílohami. Dostupné z https://is.cuni.cz/webapps/zzp/detail/92456/
A5: Výběr odbornosti a územní jednotky, spuštění výpočtu:
A6: Odbornost | B6: Územní jednotka
A7: Všeobecné praktické lékařství | B7: Česká republika
A8: Všeobecné praktické lékařství | B8: Hl. m. Praha
A9: Všeobecné praktické lékařství | B9: Středočeský kraj
A10: Všeobecné praktické lékařství | B10: Jihočeský kraj
A11: Všeobecné praktické lékařství | B11: Plzeňský kraj
A12: Všeobecné praktické lékařství | B12: Karlovarský kraj
A13: Všeobecné praktické lékařství | B13: Ústecký kraj
A14: Všeobecné praktické lékařství | B14: Liberecký kraj
A15: Všeobecné praktické lékařství | B15: Královéhradecký kraj
A16: Všeobecné praktické lékařství | B16: Pardubický kraj
A17: Všeobecné praktické lékařství | B17: Kraj Vysočina
A18: Všeobecné praktické lékařství | B18: Jihomoravský kraj
A19: Všeobecné praktické lékařství | B19: Olomoucký kraj
A20: Všeobecné praktické lékařství | B20: Zlínský kraj
A21: Všeobecné praktické lékařství | B21: Moravskoslezský kraj
A22: Praktické lékařství pro děti a dorost | B22: Česká republika
A23: Praktické lékařství pro děti a dorost | B23: Hl. m. Praha
A24: Praktické lékařství pro děti a dorost | B24: Středočeský kraj
A25: Praktické lékařství pro děti a dorost | B25: Jihočeský kraj
A26: Praktické lékařství pro děti a dorost | B26: Plzeňský kraj
A27: Praktické lékařství pro děti a dorost | B27: Karlovarský kraj
A28: Praktické lékařství pro děti a dorost | B28: Ústecký kraj
A29: Praktické lékařství pro děti a dorost | B29: Liberecký kraj
A30: Praktické lékařství pro děti a dorost | B30: Královéhradecký kraj
A31: Praktické lékařství pro děti a dorost | B31: Pardubický kraj
A32: Praktické lékařství pro děti a dorost | B32: Kraj Vysočina
A33: Praktické lékařství pro děti a dorost | B33: Jihomoravský kraj
A34: Praktické lékařství pro děti a dorost | B34: Olomoucký kraj
A35: Praktické lékařství pro děti a dorost | B35: Zlínský kraj
A36: Praktické lékařství pro děti a dorost | B36: Moravskoslezský kraj
A37: Zubní lékařství | B37: Česká republika
A38: Zubní lékařství | B38: Hl. m. Praha
A39: Zubní lékařství | B39: Středočeský kraj
A40: Zubní lékařství | B40: Jihočeský kraj
A41: Zubní lékařství | B41: Plzeňský kraj
A42: Zubní lékařství | B42: Karlovarský kraj
A43: Zubní lékařství | B43: Ústecký kraj
A44: Zubní lékařství | B44: Liberecký kraj
A45: Zubní lékařství | B45: Královéhradecký kraj
A46: Zubní lékařství | B46: Pardubický kraj
A47: Zubní lékařství | B47: Kraj Vysočina
A48: Zubní lékařství | B48: Jihomoravský kraj
A49: Zubní lékařství | B49: Olomoucký kraj
A50: Zubní lékařství | B50: Zlínský kraj
A51: Zubní lékařství | B51: Moravskoslezský kraj
A52: Ambulantní gynekologie | B52: Česká republika
A53: Ambulantní gynekologie | B53: Hl. m. Praha
A54: Ambulantní gynekologie | B54: Středočeský kraj
A55: Ambulantní gynekologie | B55: Jihočeský kraj
A56: Ambulantní gynekologie | B56: Plzeňský kraj
A57: Ambulantní gynekologie | B57: Karlovarský kraj
A58: Ambulantní gynekologie | B58: Ústecký kraj
A59: Ambulantní gynekologie | B59: Liberecký kraj
A60: Ambulantní gynekologie | B60: Královéhradecký kraj
A61: Ambulantní gynekologie | B61: Pardubický kraj
A62: Ambulantní gynekologie | B62: Kraj Vysočina
A63: Ambulantní gynekologie | B63: Jihomoravský kraj
A64: Ambulantní gynekologie | B64: Olomoucký kraj
A65: Ambulantní gynekologie | B65: Zlínský kraj
A66: Ambulantní gynekologie | B66: Moravskoslezský kraj

Sheet Vstupy (hidden)
CP1187: Celkem | CQ1187: 253 | CR1187: 544 | CS1187: 251 | CT1187: 543 | CU1187: 257 | CV1187: 540 | CW1187: 275 | CX1187: 537 | CY1187: 276 | CZ1187: 542 | DA1187: 280 | DB1187: 538 | DD1187: SUM | DE1187: =SUM(DE1115:DE1186) -> 0 | DF1187: 0 | DG1187: 0 | DH1187: 0 | DI1187: 0 | DJ1187: 0 | DK1187: 0 | DL1187: 0 | DM1187: 0 | DN1187: 0
A1189: Nově vstupující | R1189: Hraniční věk
A1190: VPL | B1190: VPL | C1190: VPL | E1190: PLDD | F1190: PLDD | G1190: PLDD | I1190: GYN | J1190: GYN | K1190: GYN | M1190: ZUB | N1190: ZUB | O1190: ZUB | R1190: VPL | S1190: VPL | U1190: PLDD | V1190: PLDD | X1190: GYN | Y1190: GYN | AA1190: ZUB | AB1190: ZUB
B1191: Muži | C1191: Ženy | F1191: Muži | G1191: Ženy | J1191: Muži | K1191: Ženy | N1191: Muži | O1191: Ženy | R1191: muži | S1191: 56 | U1191: muži | V1191: 56 | X1191: muži | Y1191: 56 | AA1191: muži | AB1191: 54
A1192: Česká republika | B1192: 43.2 | C1192: 102 | E1192: Česká republika | F1192: 5.6 | G1192: 38.4 | I1192: Česká republika | J1192: 11.4 | K1192: 28.4 | M1192: Česká republika | N1192: 98 | O1192: 155.2 | R1192: ženy | S1192: 53 | U1192: ženy | V1192: 53 | X1192: ženy | Y1192: 53 | AA1192: ženy | AB1192: 51
A1193: Hl. m. Praha | B1193: 8 | C1193: 22.4 | E1193: Hl. m. Praha | F1193: 2.4 | G1193: 4.4 | I1193: Hl. m. Praha | J1193: 3.2 | K1193: 16.2 | M1193: Hl. m. Praha | N1193: 21.2 | O1193: 36
A1194: Středočeský kraj | B1194: 5.8 | C1194: 12.6 | E1194: Středočeský kraj | F1194: 0.6 | G1194: 3.4 | I1194: Středočeský kraj | J1194: 4.2 | K1194: 2.8 | M1194: Středočeský kraj | N1194: 8.4 | O1194: 15 | R1194: Průměrná výše úvazku
A1195: Jihočeský kraj | B1195: 1.6 | C1195: 3.8 | E1195: Jihočeský kraj | F1195: 0 | G1195: 2.2 | I1195: Jihočeský kraj | J1195: -0.8 | K1195: 1.4 | M1195: Jihočeský kraj | N1195: 3.6 | O1195: 9.6 | R1195: VPL | S1195: VPL | T1195: VPL | V1195: PLDD | W1195: PLDD | X1195: PLDD | Z1195: GYN | AA1195: GYN | AB1195: GYN | AD1195: ZUB | AE1195: ZUB | AF1195: ZUB
A1196: Plzeňský kraj | B1196: 2.6 | C1196: 4.8 | E1196: Plzeňský kraj | F1196: 0.2 | G1196: 1.4 | I1196: Plzeňský kraj | J1196: 0.4 | K1196: 2.4 | M1196: Plzeňský kraj | N1196: 4.8 | O1196: 4.8 | R1196: Věk | S1196: Muži | T1196: Ženy | V1196: Věk | W1196: Muži | X1196: Ženy | Z1196: Věk | AA1196: Muži | AB1196: Ženy | AD1196: Věk | AE1196: Muži | AF1196: Ženy
A1197: Karlovarský kraj | B1197: 2 | C1197: 0.2 | E1197: Karlovarský kraj | F1197: 0 | G1197: 1 | I1197: Karlovarský kraj | J1197: 1.6 | K1197: 0.2 | M1197: Karlovarský kraj | N1197: 2.8 | O1197: 3 | R1197: 00–34 | S1197: 0.7132867133 | T1197: 0.6672380952 | V1197: 00–34 | W1197: 0.685 | X1197: 0.7042857143 | Z1197: 00–34 | AA1197: 0.4056060606 | AB1197: 0.3333962264 | AD1197: 00–34 | AE1197: 0.8054069767 | AF1197: 0.7762949956
A1198: Ústecký kraj | B1198: 4.2 | C1198: 4.8 | E1198: Ústecký kraj | F1198: 0 | G1198: 1.8 | I1198: Ústecký kraj | J1198: -1 | K1198: 1.2 | M1198: Ústecký kraj | N1198: 4.8 | O1198: 6.2 | R1198: 35–39 | S1198: 0.8386290323 | T1198: 0.7787545788 | V1198: 35–39 | W1198: 0.89 | X1198: 0.7508333333 | Z1198: 35–39 | AA1198: 0.3470940171 | AB1198: 0.445508982 | AD1198: 35–39 | AE1198: 0.8106574394 | AF1198: 0.7681481481
A1199: Liberecký kraj | B1199: 2.2 | C1199: 4 | E1199: Liberecký kraj | F1199: 0.6 | G1199: 1.8 | I1199: Liberecký kraj | J1199: 0 | K1199: -0.4 | M1199: Liberecký kraj | N1199: 4.4 | O1199: 7.8 | R1199: 40–44 | S1199: 0.8075845411 | T1199: 0.8454216867 | V1199: 40–44 | W1199: 0.8445833333 | X1199: 0.8593939394 | Z1199: 40–44 | AA1199: 0.4519047619 | AB1199: 0.51085 | AD1199: 40–44 | AE1199: 0.8067980296 | AF1199: 0.8272752809
A1200: Královéhradecký kraj | B1200: 0.8 | C1200: 4.4 | E1200: Královéhradecký kraj | F1200: 0.8 | G1200: 1.4 | I1200: Královéhradecký kraj | J1200: 1.6 | K1200: 0.8 | M1200: Královéhradecký kraj | N1200: 6 | O1200: 6.6 | R1200: 45–49 | S1200: 0.8593488372 | T1200: 0.8652380952 | V1200: 45–49 | W1200: 0.8171428571 | X1200: 0.92 | Z1200: 45–49 | AA1200: 0.4696103896 | AB1200: 0.6467701863 | AD1200: 45–49 | AE1200: 0.866627907 | AF1200: 0.8922311828
A1201: Pardubický kraj | B1201: 3.2 | C1201: 4 | E1201: Pardubický kraj | F1201: -0.8 | G1201: 3.2 | I1201: Pardubický kraj | J1201: 0.8 | K1201: 0 | M1201: Pardubický kraj | N1201: 3.4 | O1201: 4.2 | R1201: 50–54 | S1201: 0.8526587302 | T1201: 0.9078309859 | V1201: 50–54 | W1201: 0.7837735849 | X1201: 0.8924832215 | Z1201: 50–54 | AA1201: 0.5866079295 | AB1201: 0.6638211382 | AD1201: 50–54 | AE1201: 0.8585798817 | AF1201: 0.8986643836
A1202: Kraj Vysočina | B1202: 2.8 | C1202: 2.2 | E1202: Kraj Vysočina | F1202: 0.2 | G1202: 2.4 | I1202: Kraj Vysočina | J1202: 0.4 | K1202: 1.2 | M1202: Kraj Vysočina | N1202: 3.6 | O1202: 6.6 | R1202: 55–59 | S1202: 0.9007399103 | T1202: 0.9502631579 | V1202: 55–59 | W1202: 0.8797142857 | X1202: 0.9426829268 | Z1202: 55–59 | AA1202: 0.6470143885 | AB1202: 0.7082119205 | AD1202: 55–59 | AE1202: 0.9066233766 | AF1202: 0.9132331903
A1203: Jihomoravský kraj | B1203: 2.6 | C1203: 10.2 | E1203: Jihomoravský kraj | F1203: 0.4 | G1203: 4.2 | I1203: Jihomoravský kraj | J1203: 0.8 | K1203: 5.4 | M1203: Jihomoravský kraj | N1203: 14 | O1203: 24.4 | R1203: 60–64 | S1203: 0.8925636008 | T1203: 0.9318668596 | V1203: 60–64 | W1203: 0.832183908 | X1203: 0.9211677282 | Z1203: 60–64 | AA1203: 0.600495356 | AB1203: 0.7825490196 | AD1203: 60–64 | AE1203: 0.8931481481 | AF1203: 0.8923668122
A1204: Olomoucký kraj | B1204: 2 | C1204: 6.8 | E1204: Olomoucký kraj | F1204: 0.2 | G1204: 3.2 | I1204: Olomoucký kraj | J1204: 0.8 | K1204: -1.4 | M1204: Olomoucký kraj | N1204: 5.8 | O1204: 10 | R1204: 65–69 | S1204: 0.8291078067 | T1204: 0.8564589235 | V1204: 65–69 | W1204: 0.7488888889 | X1204: 0.8414230769 | Z1204: 65–69 | AA1204: 0.6136470588 | AB1204: 0.6415909091 | AD1204: 65–69 | AE1204: 0.8698755187 | AF1204: 0.8237027708
A1205: Zlínský kraj | B1205: 2.2 | C1205: 7.6 | E1205: Zlínský kraj | F1205: 0 | G1205: 3 | I1205: Zlínský kraj | J1205: 0.6 | K1205: -0.4 | M1205: Zlínský kraj | N1205: 8.8 | O1205: 11.6 | R1205: 70+ | S1205: 0.7484722222 | T1205: 0.802192691 | V1205: 70+ | W1205: 0.8044444444 | X1205: 0.788 | Z1205: 70+ | AA1205: 0.5657983193 | AB1205: 0.5481632653 | AD1205: 70+ | AE1205: 0.7631843575 | AF1205: 0.7652736318
A1206: Moravskoslezský kraj | B1206: 6 | C1206: 16.2 | E1206: Moravskoslezský kraj | F1206: 1 | G1206: 5.2 | I1206: Moravskoslezský kraj | J1206: 2.2 | K1206: 2.2 | M1206: Moravskoslezský kraj | N1206: 10 | O1206: 12.6
A1209: Rozložení příchozích (v %) | R1209: Intenzita opuštění systému
A1210: VPL | B1210: VPL | C1210: VPL | E1210: PLDD | F1210: PLDD | G1210: PLDD | I1210: GYN | J1210: GYN | K1210: GYN | M1210: ZUB | N1210: ZUB | O1210: ZUB | R1210: VPL | S1210: VPL | T1210: VPL | V1210: PLDD | W1210: PLDD | X1210: PLDD | Z1210: GYN | AA1210: GYN | AB1210: GYN | AD1210: ZUB | AE1210: ZUB | AF1210: ZUB
A1211: Věk | B1211: 2017 | E1211: Věk | F1211: 2017 | I1211: Věk | J1211: 2017 | M1211: Věk | N1211: 2017 | R1211: Věk | S1211: Muži | V1211: Věk | W1211: Muži | Z1211: Věk | AA1211: Muži | AD1211: Věk | AE1211: Muži
B1212: Muži | C1212: Ženy | F1212: Muži | G1212: Ženy | J1212: Muži | K1212: Ženy | N1212: Muži | O1212: Ženy | S1212: Muži | T1212: Ženy | W1212: Muži | X1212: Ženy | AA1212: Muži | AB1212: Ženy | AE1212: Muži | AF1212: Ženy
A1213: 23 | B1213: 0 | C1213: 0 | E1213: 23 | F1213: 0 | G1213: 0 | I1213: 23 | J1213: 0 | K1213: 0 | M1213: 23 | N1213: 1.030927835 | O1213: 1.570680628 | R1213: 23 | S1213: 0 | T1213: 0 | V1213: 23 | W1213: 0 | X1213: 0 | Z1213: 23 | AA1213: 0 | AB1213: 0 | AD1213: 23 | AE1213: -0.03179075078 | AF1213: -0.03042201739
A1214: 24 | B1214: 0 | C1214: 0.1184834123 | E1214: 24 | F1214: 0 | G1214: 0.1184834123 | I1214: 24 | J1214: 0 | K1214: 0.1184834123 | M1214: 24 | N1214: 16.70103093 | O1214: 26.30890052 | R1214: 24 | S1214: 0 | T1214: 0 | V1214: 24 | W1214: 0 | X1214: 0 | Z1214: 24 | AA1214: 0 | AB1214: 0 | AD1214: 24 | AE1214: -0.03144077315 | AF1214: -0.03011420344
A1215: 25 | B1215: 0.9966777409 | C1215: 1.777251185 | E1215: 25 | F1215: 0.9966777409 | G1215: 1.777251185 | I1215: 25 | J1215: 0.9966777409 | K1215: 1.777251185 | M1215: 25 | N1215: 25.56701031 | O1215: 31.67539267 | R1215: 25 | S1215: 0 | T1215: 0 | V1215: 25 | W1215: 0 | X1215: 0 | Z1215: 25 | AA1215: 0 | AB1215: 0 | AD1215: 25 | AE1215: -0.03106757538 | AF1215: -0.02978137529
A1216: 26 | B1216: 3.65448505 | C1216: 4.146919431 | E1216: 26 | F1216: 3.65448505 | G1216: 4.146919431 | I1216: 26 | J1216: 3.65448505 | K1216: 4.146919431 | M1216: 26 | N1216: 15.67010309 | O1216: 18.84816754 | R1216: 26 | S1216: 0 | T1216: 0 | V1216: 26 | W1216: 0 | X1216: 0 | Z1216: 26 | AA1216: 0 | AB1216: 0 | AD1216: 26 | AE1216: -0.03066961684 | AF1216: -0.02942150018
A1217: 27 | B1217: 4.318936877 | C1217: 6.398104265 | E1217: 27 | F1217: 4.318936877 | G1217: 6.398104265 | I1217: 27 | J1217: 4.318936877 | K1217: 6.398104265 | M1217: 27 | N1217: 10.10309278 | O1217: 6.282722513 | R1217: 27 | S1217: 0 | T1217: 0 | V1217: 27 | W1217: 0 | X1217: 0 | Z1217: 27 | AA1217: 0 | AB1217: 0 | AD1217: 27 | AE1217: -0.03024525474 | AF1217: -0.02903238016
A1218: 28 | B1218: 2.990033223 | C1218: 4.857819905 | E1218: 28 | F1218: 2.990033223 | G1218: 4.857819905 | I1218: 28 | J1218: 2.990033223 | K1218: 4.857819905 | M1218: 28 | N1218: 5.567010309 | O1218: 2.748691099 | R1218: 28 | S1218: 0 | T1218: 0 | V1218: 28 | W1218: 0 | X1218: 0 | Z1218: 28 | AA1218: 0 | AB1218: 0 | AD1218: 28 | AE1218: -0.02979273725 | AF1218: -0.02861163867
A1219: 29 | B1219: 5.980066445 | C1219: 4.620853081 | E1219: 29 | F1219: 5.980066445 | G1219: 4.620853081 | I1219: 29 | J1219: 5.980066445 | K1219: 4.620853081 | M1219: 29 | N1219: 5.979381443 | O1219: 0.3926701571 | R1219: 29 | S1219: 0 | T1219: 0 | V1219: 29 | W1219: 0 | X1219: 0 | Z1219: 29 | AA1219: 0 | AB1219: 0 | AD1219: 29 | AE1219: -0.02931019634 | AF1219: -0.02815670603
A1220: 30 | B1220: 8.970099668 | C1220: 6.279620853 | E1220: 30 | F1220: 8.970099668 | G1220: 6.279620853 | I1220: 30 | J1220: 8.970099668 | K1220: 6.279620853 | M1220: 30 | N1220: 2.886597938 | O1220: -2.486910995 | R1220: 30 | S1220: -0.02496065381 | T1220: -0.07657196179 | V1220: 30 | W1220: -0.02496065381 | X1220: -0.07657196179 | Z1220: 30 | AA1220: -0.02496065381 | AB1220: -0.07657196179 | AD1220: 30 | AE1220: -0.02879564003 | AF1220: -0.02766480372
A1221: 31 | B1221: 6.976744186 | C1221: 5.213270142 | E1221: 31 | F1221: 6.976744186 | G1221: 5.213270142 | I1221: 31 | J1221: 6.976744186 | K1221: 5.213270142 | M1221: 31 | N1221: 2.474226804 | O1221: 0.6544502618 | R1221: 31 | S1221: -0.02465487586 | T1221: -0.07346741833 | V1221: 31 | W1221: -0.02465487586 | X1221: -0.07346741833 | Z1221: 31 | AA1221: -0.02465487586 | AB1221: -0.07346741833 | AD1221: 31 | AE1221: -0.02824694416 | AF1221: -0.02713292744
A1222: 32 | B1222: 5.980066445 | C1222: 5.568720379 | E1222: 32 | F1222: 5.980066445 | G1222: 5.568720379 | I1222: 32 | J1222: 5.980066445 | K1222: 5.568720379 | M1222: 32 | N1222: 1.855670103 | O1222: 2.617801047 | R1222: 32 | S1222: -0.02432363102 | T1222: -0.07033825922 | V1222: 32 | W1222: -0.02432363102 | X1222: -0.07033825922 | Z1222: 32 | AA1222: -0.02432363102 | AB1222: -0.07033825922 | AD1222: 32 | AE1222: -0.02766184368 | AF1222: -0.02655782874
A1223: 33 | B1223: 7.641196013 | C1223: 5.213270142 | E1223: 33 | F1223: 7.641196013 | G1223: 5.213270142 | I1223: 33 | J1223: 7.641196013 | K1223: 5.213270142 | M1223: 33 | N1223: 3.298969072 | O1223: 1.178010471 | R1223: 33 | S1223: -0.02396479824 | T1223: -0.06718428928 | V1223: 33 | W1223: -0.02396479824 | X1223: -0.06718428928 | Z1223: 33 | AA1223: -0.02396479824 | AB1223: -0.06718428928 | AD1223: 33 | AE1223: -0.02703792322 | AF1223: -0.0259359952
A1224: 34 | B1224: 5.315614618 | C1224: 5.450236967 | E1224: 34 | F1224: 5.315614618 | G1224: 5.450236967 | I1224: 34 | J1224: 5.315614618 | K1224: 5.450236967 | M1224: 34 | N1224: 1.649484536 | O1224: 0.2617801047 | R1224: 34 | S1224: -0.02357607986 | T1224: -0.06400531179 | V1224: 34 | W1224: -0.02357607986 | X1224: -0.06400531179 | Z1224: 34 | AA1224: -0.02357607986 | AB1224: -0.06400531179 | AD1224: 34 | AE1224: -0.02637260717 | AF1224: -0.02526362895
A1225: 35 | B1225: 2.325581395 | C1225: 5.687203791 | E1225: 35 | F1225: 2.325581395 | G1225: 5.687203791 | I1225: 35 | J1225: 2.325581395 | K1225: 5.687203791 | M1225: 35 | N1225: 1.237113402 | O1225: 1.570680628 | R1225: 35 | S1225: -0.02315498683 | T1225: -0.06080112847 | V1225: 35 | W1225: -0.02315498683 | X1225: -0.06080112847 | Z1225: 35 | AA1225: -0.02315498683 | AB1225: -0.06080112847 | AD1225: 35 | AE1225: -0.02566314903 | AF1225: -0.0245366235
A1226: 36 | B1226: 4.318936877 | C1226: 7.582938389 | E1226: 36 | F1226: 4.318936877 | G1226: 7.582938389 | I1226: 36 | J1226: 4.318936877 | K1226: 7.582938389 | M1226: 36 | N1226: 0.618556701 | O1226: 1.047120419 | R1226: 36 | S1226: -0.02269882281 | T1226: -0.05757153945 | V1226: 36 | W1226: -0.02269882281 | X1226: -0.05757153945 | Z1226: 36 | AA1226: -0.02269882281 | AB1226: -0.05757153945 | AD1226: 36 | AE1226: -0.02490662009 | AF1226: -0.02375053865
A1227: 37 | B1227: 3.65448505 | C1227: 3.436018957 | E1227: 37 | F1227: 3.65448505 | G1227: 3.436018957 | I1227: 37 | J1227: 3.65448505 | K1227: 3.436018957 | M1227: 37 | N1227: 2.06185567 | O1227: 1.178010471 | R1227: 37 | S1227: -0.02220466689 | T1227: -0.05431634331 | V1227: 37 | W1227: -0.02220466689 | X1227: -0.05431634331 | Z1227: 37 | AA1227: -0.02220466689 | AB1227: -0.05431634331 | AD1227: 37 | AE1227: -0.02409989731 | AF1227: -0.02290057336
A1228: 38 | B1228: 3.322259136 | C1228: 5.924170616 | E1228: 38 | F1228: 3.322259136 | G1228: 5.924170616 | I1228: 38 | J1228: 3.322259136 | K1228: 5.924170616 | M1228: 38 | N1228: 0.824742268 | O1228: 0.7853403141 | R1228: 38 | S1228: -0.02166935489 | T1228: -0.051035337 | V1228: 38 | W1228: -0.02166935489 | X1228: -0.051035337 | Z1228: 38 | AA1228: -0.02166935489 | AB1228: -0.051035337 | AD1228: 38 | AE1228: -0.02323965045 | AF1228: -0.02198153645
A1229: 39 | B1229: 3.322259136 | C1229: 4.857819905 | E1229: 39 | F1229: 3.322259136 | G1229: 4.857819905 | I1229: 39 | J1229: 3.322259136 | K1229: 4.857819905 | M1229: 39 | N1229: 0.412371134 | O1229: 0.7853403141 | R1229: 39 | S1229: -0.02108945911 | T1229: -0.04772831587 | V1229: 39 | W1229: -0.02108945911 | X1229: -0.04772831587 | Z1229: 39 | AA1229: -0.02108945911 | AB1229: -0.04772831587 | AD1229: 39 | AE1229: -0.02232232834 | AF1229: -0.02098781489
A1230: 40 | B1230: 5.647840532 | C1230: 3.317535545 | E1230: 40 | F1230: 5.647840532 | G1230: 3.317535545 | I1230: 40 | J1230: 5.647840532 | K1230: 3.317535545 | M1230: 40 | N1230: 0.412371134 | O1230: 0.9162303665 | R1230: 40 | S1230: -0.02046126635 | T1230: -0.04439507367 | V1230: 40 | W1230: -0.02046126635 | X1230: -0.04439507367 | Z1230: 40 | AA1230: -0.02046126635 | AB1230: -0.04439507367 | AD1230: 40 | AE1230: -0.02134414415 | AF1230: -0.0199133395
A1231: 41 | B1231: 2.657807309 | C1231: 4.028436019 | E1231: 41 | F1231: 2.657807309 | G1231: 4.028436019 | I1231: 41 | J1231: 2.657807309 | K1231: 4.028436019 | M1231: 41 | N1231: 0.206185567 | O1231: 1.570680628 | R1231: 41 | S1231: -0.01978075417 | T1231: -0.04103540248 | V1231: 41 | W1231: -0.01978075417 | X1231: -0.04103540248 | Z1231: 41 | AA1231: -0.01978075417 | AB1231: -0.04103540248 | AD1231: 41 | AE1231: -0.02030105985 | AF1231: -0.01875154789
A1232: 42 | B1232: 3.322259136 | C1232: 3.791469194 | E1232: 42 | F1232: 3.322259136 | G1232: 3.791469194 | I1232: 42 | J1232: 3.322259136 | K1232: 3.791469194 | M1232: 42 | N1232: 0.618556701 | O1232: 1.308900524 | R1232: 42 | S1232: -0.01904356511 | T1232: -0.03764909275 | V1232: 42 | W1232: -0.01904356511 | X1232: -0.03764909275 | Z1232: 42 | AA1232: -0.01904356511 | AB1232: -0.03764909275 | AD1232: 42 | AE1232: -0.01918876946 | AF1232: -0.0174953444
A1233: 43 | B1233: 1.328903654 | C1233: 2.488151659 | E1233: 43 | F1233: 1.328903654 | G1233: 2.488151659 | I1233: 43 | J1233: 1.328903654 | K1233: 2.488151659 | M1233: 43 | N1233: 0.618556701 | O1233: -0.1308900524 | R1233: 43 | S1233: -0.01824497882 | T1233: -0.03423593326 | V1233: 43 | W1233: -0.01824497882 | X1233: -0.03423593326 | Z1233: 43 | AA1233: -0.01824497882 | AB1233: -0.03423593326 | AD1233: 43 | AE1233: -0.01800268135 | AF1233: -0.01613705673
A1234: 44 | B1234: 3.322259136 | C1234: 1.895734597 | E1234: 44 | F1234: 3.322259136 | G1234: 1.895734597 | I1234: 44 | J1234: 3.322259136 | K1234: 1.895734597 | M1234: 44 | N1234: 0.412371134 | O1234: 1.178010471 | R1234: 44 | S1234: -0.01737988178 | T1234: -0.03079571113 | V1234: 44 | W1234: -0.01737988178 | X1234: -0.03079571113 | Z1234: 44 | AA1234: -0.01737988178 | AB1234: -0.03079571113 | AD1234: 44 | AE1234: -0.0167378992 | AF1234: -0.01466838911
A1235: 45 | B1235: 0.9966777409 | C1235: 2.369668246 | E1235: 45 | F1235: 0.9966777409 | G1235: 2.369668246 | I1235: 45 | J1235: 0.9966777409 | K1235: 2.369668246 | M1235: 45 | N1235: -1.030927835 | O1235: 0.5235602094 | R1235: 45 | S1235: -0.0164427346 | T1235: -0.02732821178 | V1235: 45 | W1235: -0.0164427346 | X1235: -0.02732821178 | Z1235: 45 | AA1235: -0.0164427346 | AB1235: -0.02732821178 | AD1235: 45 | AE1235: -0.01538920186 | AF1235: -0.01308037162
A1236: 46 | B1236: 1.993355482 | C1236: 0.9478672986 | E1236: 46 | F1236: 1.993355482 | G1236: 0.9478672986 | I1236: 46 | J1236: 1.993355482 | K1236: 0.9478672986 | M1236: 46 | N1236: 1.237113402 | O1236: -0.2617801047 | R1236: 46 | S1236: -0.01542753655 | T1236: -0.02383321893 | V1236: 46 | W1236: -0.01542753655 | X1236: -0.02383321893 | Z1236: 46 | AA1236: -0.01542753655 | AB1236: -0.02383321893 | AD1236: 46 | AE1236: -0.01395102177 | AF1236: -0.01136330541
A1237: 47 | B1237: 3.986710963 | C1237: 1.658767773 | E1237: 47 | F1237: 3.986710963 | G1237: 1.658767773 | I1237: 47 | J1237: 3.986710963 | K1237: 1.658767773 | M1237: 47 | N1237: 0.412371134 | O1237: 0.5235602094 | R1237: 47 | S1237: -0.0143277871 | T1237: -0.02031051459 | V1237: 47 | W1237: -0.0143277871 | X1237: -0.02031051459 | Z1237: 47 | AA1237: -0.0143277871 | AB1237: -0.02031051459 | AD1237: 47 | AE1237: -0.01241742196 | AF1237: -0.009506703454
A1238: 48 | B1238: 2.657807309 | C1238: 0.355450237 | E1238: 48 | F1238: 2.657807309 | G1238: 0.355450237 | I1238: 48 | J1238: 2.657807309 | K1238: 0.355450237 | M1238: 48 | N1238: 0.206185567 | O1238: -0.2617801047 | R1238: 48 | S1238: -0.01313644436 | T1238: -0.01675987903 | V1238: 48 | W1238: -0.01313644436 | X1238: -0.01675987903 | Z1238: 48 | AA1238: -0.01313644436 | AB1238: -0.01675987903 | AD1238: 48 | AE1238: -0.01078207158 | AF1238: -0.007499226515
A1239: 49 | B1239: 1.328903654 | C1239: 0.355450237 | E1239: 49 | F1239: 1.328903654 | G1239: 0.355450237 | I1239: 49 | J1239: 1.328903654 | K1239: 0.355450237 | M1239: 49 | N1239: -0.206185567 | O1239: 0.6544502618 | R1239: 49 | S1239: -0.0118458799 | T1239: -0.01318109079 | V1239: 49 | W1239: -0.0118458799 | X1239: -0.01318109079 | Z1239: 49 | AA1239: -0.0118458799 | AB1239: -0.01318109079 | AD1239: 49 | AE1239: -0.00903821971 | AF1239: -0.005328613882
A1240: 50 | B1240: 2.325581395 | C1240: 0.355450237 | E1240: 50 | F1240: 2.325581395 | G1240: 0.355450237 | I1240: 50 | J1240: 2.325581395 | K1240: 0.355450237 | M1240: 50 | N1240: 0.206185567 | O1240: 0 | R1240: 50 | S1240: -0.01044782999 | T1240: -0.009573926654 | V1240: 50 | W1240: -0.01044782999 | X1240: -0.009573926654 | Z1240: 50 | AA1240: -0.01044782999 | AB1240: -0.009573926654 | AD1240: 50 | AE1240: -0.007178667558 | AF1240: -0.002981608488
A1241: 51 | B1241: 0.3322259136 | C1241: -0.1184834123 | E1241: 51 | F1241: 0.3322259136 | G1241: -0.1184834123 | I1241: 51 | J1241: 0.3322259136 | K1241: -0.1184834123 | M1241: 51 | N1241: -0.412371134 | O1241: 0.1308900524 | R1241: 51 | S1241: -0.008933342637 | T1241: -0.005938161627 | V1241: 51 | W1241: -0.008933342637 | X1241: -0.005938161627 | Z1241: 51 | AA1241: -0.008933342637 | AB1241: -0.005938161627 | AD1241: 51 | AE1241: -0.005195738691 | AF1241: -0.0004438759447
A1242: 52 | B1242: -1.328903654 | C1242: 0.2369668246 | E1242: 52 | F1242: -1.328903654 | G1242: 0.2369668246 | I1242: 52 | J1242: -1.328903654 | K1242: 0.2369668246 | M1242: 52 | N1242: 0.412371134 | O1242: 0 | R1242: 52 | S1242: -0.007292720281 | T1242: -0.002273568936 | V1242: 52 | W1242: -0.007292720281 | X1242: -0.002273568936 | Z1242: 52 | AA1242: -0.007292720281 | AB1242: -0.002273568936 | AD1242: 52 | AE1242: -0.003081247365 | AF1242: 0.002300083008
A1243: 53 | B1243: 0.3322259136 | C1243: 1.184834123 | E1243: 53 | F1243: 0.3322259136 | G1243: 1.184834123 | I1243: 53 | J1243: 0.3322259136 | K1243: 1.184834123 | M1243: 53 | N1243: 0 | O1243: 0 | R1243: 53 | S1243: -0.005515457688 | T1243: 0.00142007999 | V1243: 53 | W1243: -0.005515457688 | X1243: 0.00142007999 | Z1243: 53 | AA1243: -0.005515457688 | AB1243: 0.00142007999 | AD1243: 53 | AE1243: -0.0008264647354 | AF1243: 0.005267027162
A1244: 54 | B1244: 2.657807309 | C1244: 0 | E1244: 54 | F1244: 2.657807309 | G1244: 0 | I1244: 54 | J1244: 2.657807309 | K1244: 0 | M1244: 54 | N1244: 0 | O1244: 0 | R1244: 54 | S1244: -0.003590174693 | T1244: 0.005143015536 | V1244: 54 | W1244: -0.003590174693 | X1244: 0.005143015536 | Z1244: 54 | AA1244: -0.003590174693 | AB1244: 0.005143015536 | AD1244: 54 | AE1244: 0.001577917181 | AF1244: 0.008475077196
A1245: 55 | B1245: -0.9966777409 | C1245: 0 | E1245: 55 | F1245: -0.9966777409 | G1245: 0 | I1245: 55 | J1245: -0.9966777409 | K1245: 0 | M1245: 55 | N1245: 0 | O1245: 0 | R1245: 55 | S1245: -0.001504543327 | T1245: 0.008895469913 | V1245: 55 | W1245: -0.001504543327 | X1245: 0.008895469913 | Z1245: 55 | AA1245: -0.001504543327 | AB1245: 0.008895469913 | AD1245: 55 | AE1245: 0.00414182393 | AF1245: 0.01194382635
A1246: 56 | B1246: -0.3322259136 | C1246: 0 | E1246: 56 | F1246: -0.3322259136 | G1246: 0 | I1246: 56 | J1246: -0.3322259136 | K1246: 0 | M1246: 56 | N1246: 0 | O1246: 0 | R1246: 56 | S1246: 0.0007547911239 | T1246: 0.01267767717 | V1246: 56 | W1246: 0.0007547911239 | X1246: 0.01267767717 | Z1246: 56 | AA1246: 0.0007547911239 | AB1246: 0.01267767717 | AD1246: 56 | AE1246: 0.006875839592 | AF1246: 0.01569446009
A1247: 57 | B1247: 0 | C1247: 0 | E1247: 57 | F1247: 0 | G1247: 0 | I1247: 57 | J1247: 0 | K1247: 0 | M1247: 57 | N1247: 0 | O1247: 0 | R1247: 57 | S1247: 0.003202295626 | T1247: 0.01648987322 | V1247: 57 | W1247: 0.003202295626 | X1247: 0.01648987322 | Z1247: 57 | AA1247: 0.003202295626 | AB1247: 0.01648987322 | AD1247: 57 | AE1247: 0.009791250474 | AF1247: 0.01974988549
A1248: 58 | B1248: 0 | C1248: 0 | E1248: 58 | F1248: 0 | G1248: 0 | I1248: 58 | J1248: 0 | K1248: 0 | M1248: 58 | N1248: 0 | O1248: 0 | R1248: 58 | S1248: 0.005853642038 | T1248: 0.02033229585 | V1248: 58 | W1248: 0.005853642038 | X1248: 0.02033229585 | Z1248: 58 | AA1248: 0.005853642038 | AB1248: 0.02033229585 | AD1248: 58 | AE1248: 0.01290009171 | AF1248: 0.02413487116
A1249: 59 | B1249: 0 | C1249: 0 | E1249: 59 | F1249: 0 | G1249: 0 | I1249: 59 | J1249: 0 | K1249: 0 | M1249: 59 | N1249: 0 | O1249: 0 | R1249: 59 | S1249: 0.008725807457 | T1249: 0.0242051847 | V1249: 59 | W1249: 0.008725807457 | X1249: 0.0242051847 | Z1249: 59 | AA1249: 0.008725807457 | AB1249: 0.0242051847 | AD1249: 59 | AE1249: 0.01621519691 | AF1249: 0.0288761985
A1250: 60 | B1250: 0 | C1250: 0 | E1250: 60 | F1250: 0 | G1250: 0 | I1250: 60 | J1250: 0 | K1250: 0 | M1250: 60 | N1250: 0 | O1250: 0 | R1250: 60 | S1250: 0.01183718293 | T1250: 0.02810878135 | V1250: 60 | W1250: 0.01183718293 | X1250: 0.02810878135 | Z1250: 60 | AA1250: 0.01183718293 | AB1250: 0.02810878135 | AD1250: 60 | AE1250: 0.01975025121 | AF1250: 0.03400282528
A1251: 61 | B1251: 0 | C1251: 0 | E1251: 61 | F1251: 0 | G1251: 0 | I1251: 61 | J1251: 0 | K1251: 0 | M1251: 61 | N1251: 0 | O1251: 0 | R1251: 61 | S1251: 0.01520769121 | T1251: 0.03204332928 | V1251: 61 | W1251: 0.01520769121 | X1251: 0.03204332928 | Z1251: 61 | AA1251: 0.01520769121 | AB1251: 0.03204332928 | AD1251: 61 | AE1251: 0.02351984766 | AF1251: 0.03954606247
A1252: 62 | B1252: 0 | C1252: 0 | E1252: 62 | F1252: 0 | G1252: 0 | I1252: 62 | J1252: 0 | K1252: 0 | M1252: 62 | N1252: 0 | O1252: 0 | R1252: 62 | S1252: 0.01885891434 | T1252: 0.0360090739 | V1252: 62 | W1252: 0.01885891434 | X1252: 0.0360090739 | Z1252: 62 | AA1252: 0.01885891434 | AB1252: 0.0360090739 | AD1252: 62 | AE1252: 0.02753954758 | AF1252: 0.04553976554
A1253: 63 | B1253: 0 | C1253: 0 | E1253: 63 | F1253: 0 | G1253: 0 | I1253: 63 | J1253: 0 | K1253: 0 | M1253: 63 | N1253: 0 | O1253: 0 | R1253: 63 | S1253: 0.02281423182 | T1253: 0.04000626256 | V1253: 63 | W1253: 0.02281423182 | X1253: 0.04000626256 | Z1253: 63 | AA1253: 0.02281423182 | AB1253: 0.04000626256 | AD1253: 63 | AE1253: 0.03182594472 | AF1253: 0.05202054116
A1254: 64 | B1254: 0 | C1254: 0 | E1254: 64 | F1254: 0 | G1254: 0 | I1254: 64 | J1254: 0 | K1254: 0 | M1254: 64 | N1254: 0 | O1254: 0 | R1254: 64 | S1254: 0.02709897033 | T1254: 0.04403514458 | V1254: 64 | W1254: 0.02709897033 | X1254: 0.04403514458 | Z1254: 64 | AA1254: 0.02709897033 | AB1254: 0.04403514458 | AD1254: 64 | AE1254: 0.03639673377 | AF1254: 0.05902797082
A1255: 65 | B1255: 0 | C1255: 0 | E1255: 65 | F1255: 0 | G1255: 0 | I1255: 65 | J1255: 0 | K1255: 0 | M1255: 65 | N1255: 0 | O1255: 0 | R1255: 65 | S1255: 0.03174056591 | T1255: 0.04809597125 | V1255: 65 | W1255: 0.03174056591 | X1255: 0.04809597125 | Z1255: 65 | AA1255: 0.03174056591 | AB1255: 0.04809597125 | AD1255: 65 | AE1255: 0.04127078344 | AF1255: 0.06660485255
A1256: 66 | B1256: 0 | C1256: 0 | E1256: 66 | F1256: 0 | G1256: 0 | I1256: 66 | J1256: 0 | K1256: 0 | M1256: 66 | N1256: 0 | O1256: 0 | R1256: 66 | S1256: 0.03676873962 | T1256: 0.05218899587 | V1256: 66 | W1256: 0.03676873962 | X1256: 0.05218899587 | Z1256: 66 | AA1256: 0.03676873962 | AB1256: 0.05218899587 | AD1256: 66 | AE1256: 0.04646821434 | AF1256: 0.07479746233
A1257: 67 | B1257: 0 | C1257: 0 | E1257: 67 | F1257: 0 | G1257: 0 | I1257: 67 | J1257: 0 | K1257: 0 | M1257: 67 | N1257: 0 | O1257: 0 | R1257: 67 | S1257: 0.04221568785 | T1257: 0.05631447371 | V1257: 67 | W1257: 0.04221568785 | X1257: 0.05631447371 | Z1257: 67 | AA1257: 0.04221568785 | AB1257: 0.05631447371 | AD1257: 67 | AE1257: 0.052010482 | AF1257: 0.08365583671
A1258: 68 | B1258: 0 | C1258: 0 | E1258: 68 | F1258: 0 | G1258: 0 | I1258: 68 | J1258: 0 | K1258: 0 | M1258: 68 | N1258: 0 | O1258: 0 | R1258: 68 | S1258: 0.04811628849 | T1258: 0.06047266212 | V1258: 68 | W1258: 0.04811628849 | X1258: 0.06047266212 | Z1258: 68 | AA1258: 0.04811628849 | AB1258: 0.06047266212 | AD1258: 68 | AE1258: 0.0579204655 | AF1258: 0.09323407841
A1259: 69 | B1259: 0 | C1259: 0 | E1259: 69 | F1259: 0 | G1259: 0 | I1259: 69 | J1259: 0 | K1259: 0 | M1259: 69 | N1259: 0 | O1259: 0 | R1259: 69 | S1259: 0.05450832427 | T1259: 0.06466382043 | V1259: 69 | W1259: 0.05450832427 | X1259: 0.06466382043 | Z1259: 69 | AA1259: 0.05450832427 | AB1259: 0.06466382043 | AD1259: 69 | AE1259: 0.06422256188 | AF1259: 0.1035906868
A1260: 70 | B1260: 0 | C1260: 0 | E1260: 70 | F1260: 0 | G1260: 0 | I1260: 70 | J1260: 0 | K1260: 0 | M1260: 70 | N1260: 0 | O1260: 0 | R1260: 70 | S1260: 0.06143272466 | T1260: 0.06888821007 | V1260: 70 | W1260: 0.06143272466 | X1260: 0.06888821007 | Z1260: 70 | AA1260: 0.06143272466 | AB1260: 0.06888821007 | AD1260: 70 | AE1260: 0.07094278688 | AF1260: 0.114788915
A1261: 71 | B1261: 0 | C1261: 0 | E1261: 71 | F1261: 0 | G1261: 0 | I1261: 71 | J1261: 0 | K1261: 0 | M1261: 71 | N1261: 0 | O1261: 0 | R1261: 71 | S1261: 0.06893382797 | T1261: 0.07314609454 | V1261: 71 | W1261: 0.06893382797 | X1261: 0.07314609454 | Z1261: 71 | AA1261: 0.06893382797 | AB1261: 0.07314609454 | AD1261: 71 | AE1261: 0.07810888229 | AF1261: 0.1268971566
A1262: 72 | B1262: 0 | C1262: 0 | E1262: 72 | F1262: 0 | G1262: 0 | I1262: 72 | J1262: 0 | K1262: 0 | M1262: 72 | N1262: 0 | O1262: 0 | R1262: 72 | S1262: 0.07705966526 | T1262: 0.07743773939 | V1262: 72 | W1262: 0.07705966526 | X1262: 0.07743773939 | Z1262: 72 | AA1262: 0.07705966526 | AB1262: 0.07743773939 | AD1262: 72 | AE1262: 0.08575043052 | AF1262: 0.1399893628
A1263: 73 | B1263: 0 | C1263: 0 | E1263: 73 | F1263: 0 | G1263: 0 | I1263: 73 | J1263: 0 | K1263: 0 | M1263: 73 | N1263: 0 | O1263: 0 | R1263: 73 | S1263: 0.08586226788 | T1263: 0.08176341232 | V1263: 73 | W1263: 0.08586226788 | X1263: 0.08176341232 | Z1263: 73 | AA1263: 0.08586226788 | AB1263: 0.08176341232 | AD1263: 73 | AE1263: 0.09389897671 | AF1263: 0.1541454946
A1264: 74 | B1264: 0 | C1264: 0 | E1264: 74 | F1264: 0 | G1264: 0 | I1264: 74 | J1264: 0 | K1264: 0 | M1264: 74 | N1264: 0 | O1264: 0 | R1264: 74 | S1264: 0.09539800063 | T1264: 0.08612338314 | V1264: 74 | W1264: 0.09539800063 | X1264: 0.08612338314 | Z1264: 74 | AA1264: 0.09539800063 | AB1264: 0.08612338314 | AD1264: 74 | AE1264: 0.1025881589 | AF1264: 0.169452011
A1265: 75 | B1265: 0 | C1265: 0 | E1265: 75 | F1265: 0 | G1265: 0 | I1265: 75 | J1265: 0 | K1265: 0 | M1265: 75 | N1265: 0 | O1265: 0 | R1265: 75 | S1265: 0.1057279227 | T1265: 0.09051792378 | V1265: 75 | W1265: 0.1057279227 | X1265: 0.09051792378 | Z1265: 75 | AA1265: 0.1057279227 | AB1265: 0.09051792378 | AD1265: 75 | AE1265: 0.111853847 | AF1265: 0.1860023968
A1266: 76 | B1266: 0 | C1266: 0 | E1266: 76 | F1266: 0 | G1266: 0 | I1266: 76 | J1266: 0 | K1266: 0 | M1266: 76 | N1266: 0 | O1266: 0 | R1266: 76 | S1266: 0.1169181787 | T1266: 0.09494730835 | V1266: 76 | W1266: 0.1169181787 | X1266: 0.09494730835 | Z1266: 76 | AA1266: 0.1169181787 | AB1266: 0.09494730835 | AD1266: 76 | AE1266: 0.1217342907 | AF1266: 0.2038977339
A1267: 77 | B1267: 0 | C1267: 0 | E1267: 77 | F1267: 0 | G1267: 0 | I1267: 77 | J1267: 0 | K1267: 0 | M1267: 77 | N1267: 0 | O1267: 0 | R1267: 77 | S1267: 0.129040422 | T1267: 0.09941181313 | V1267: 77 | W1267: 0.129040422 | X1267: 0.09941181313 | Z1267: 77 | AA1267: 0.129040422 | AB1267: 0.09941181313 | AD1267: 77 | AE1267: 0.1322702776 | AF1267: 0.2232473184
A1268: 78 | B1268: 0 | C1268: 0 | E1268: 78 | F1268: 0 | G1268: 0 | I1268: 78 | J1268: 0 | K1268: 0 | M1268: 78 | N1268: 0 | O1268: 0 | R1268: 78 | S1268: 0.1421722737 | T1268: 0.1039117166 | V1268: 78 | W1268: 0.1421722737 | X1268: 0.1039117166 | Z1268: 78 | AA1268: 0.1421722737 | AB1268: 0.1039117166 | AD1268: 78 | AE1268: 0.1435053013 | AF1268: 0.2441693285
A1269: 79 | B1269: 0 | C1269: 0 | E1269: 79 | F1269: 0 | G1269: 0 | I1269: 79 | J1269: 0 | K1269: 0 | M1269: 79 | N1269: 0 | O1269: 0 | R1269: 79 | S1269: 0.1563978198 | T1269: 0.1084472994 | V1269: 79 | W1269: 0.1563978198 | X1269: 0.1084472994 | Z1269: 79 | AA1269: 0.1563978198 | AB1269: 0.1084472994 | AD1269: 79 | AE1269: 0.1554857413 | AF1269: 0.2667915456
A1270: 80 | B1270: 0 | C1270: 0 | E1270: 80 | F1270: 0 | G1270: 0 | I1270: 80 | J1270: 0 | K1270: 0 | M1270: 80 | N1270: 0 | O1270: 0 | R1270: 80 | S1270: 0.1718081491 | T1270: 0.1130188444 | V1270: 80 | W1270: 0.1718081491 | X1270: 0.1130188444 | Z1270: 80 | AA1270: 0.1718081491 | AB1270: 0.1130188444 | AD1270: 80 | AE1270: 0.168261054 | AF1270: 0.2912521356
A1271: 81 | B1271: 0 | C1271: 0 | E1271: 81 | F1271: 0 | G1271: 0 | I1271: 81 | J1271: 0 | K1271: 0 | M1271: 81 | N1271: 0 | O1271: 0 | R1271: 81 | S1271: 0.1885019372 | T1271: 0.1176266368 | V1271: 81 | W1271: 0.1885019372 | X1271: 0.1176266368 | Z1271: 81 | AA1271: 0.1885019372 | AB1271: 0.1176266368 | AD1271: 81 | AE1271: 0.1818839773 | AF1271: 0.3177004921
A1272: 82 | B1272: 0 | C1272: 0 | E1272: 82 | F1272: 0 | G1272: 0 | I1272: 82 | J1272: 0 | K1272: 0 | M1272: 82 | N1272: 0 | O1272: 0 | R1272: 82 | S1272: 0.2065860775 | T1272: 0.122270964 | V1272: 82 | W1272: 0.2065860775 | X1272: 0.122270964 | Z1272: 82 | AA1272: 0.2065860775 | AB1272: 0.122270964 | AD1272: 82 | AE1272: 0.1964107481 | AF1272: 0.346298149
A1273: 83 | B1273: 0 | C1273: 0 | E1273: 83 | F1273: 0 | G1273: 0 | I1273: 83 | J1273: 0 | K1273: 0 | M1273: 83 | N1273: 0 | O1273: 0 | R1273: 83 | S1273: 0.2261763666 | T1273: 0.1269521156 | V1273: 83 | W1273: 0.2261763666 | X1273: 0.1269521156 | Z1273: 83 | AA1273: 0.2261763666 | AB1273: 0.1269521156 | AD1273: 83 | AE1273: 0.2119013344 | AF1273: 0.3772197672
A1274: 84 | B1274: 0 | C1274: 0 | E1274: 84 | F1274: 0 | G1274: 0 | I1274: 84 | J1274: 0 | K1274: 0 | M1274: 84 | N1274: 0 | O1274: 0 | R1274: 84 | S1274: 0.2473982449 | T1274: 0.1316703837 | V1274: 84 | W1274: 0.2473982449 | X1274: 0.1316703837 | Z1274: 84 | AA1274: 0.2473982449 | AB1274: 0.1316703837 | AD1274: 84 | AE1274: 0.2284196831 | AF1274: 0.410654201
A1275: 85 | B1275: 0 | C1275: 0 | E1275: 85 | F1275: 0 | G1275: 0 | I1275: 85 | J1275: 0 | K1275: 0 | M1275: 85 | N1275: 0 | O1275: 0 | R1275: 85 | S1275: 0.2703876003 | T1275: 0.1364260626 | V1275: 85 | W1275: 0.2703876003 | X1275: 0.1364260626 | Z1275: 85 | AA1275: 0.2703876003 | AB1275: 0.1364260626 | AD1275: 85 | AE1275: 0.2460339836 | AF1275: 0.4468056522
A1276: 86 | B1276: 0 | C1276: 0 | E1276: 86 | F1276: 0 | G1276: 0 | I1276: 86 | J1276: 0 | K1276: 0 | M1276: 86 | N1276: 0 | O1276: 0 | R1276: 86 | S1276: 0.2952916383 | T1276: 0.1412194488 | V1276: 86 | W1276: 0.2952916383 | X1276: 0.1412194488 | Z1276: 86 | AA1276: 0.2952916383 | AB1276: 0.1412194488 | AD1276: 86 | AE1276: 0.2648169497 | AF1276: 0.4858949165
A1277: 87 | B1277: 0 | C1277: 0 | E1277: 87 | F1277: 0 | G1277: 0 | I1277: 87 | J1277: 0 | K1277: 0 | M1277: 87 | N1277: 0 | O1277: 0 | R1277: 87 | S1277: 0.3222698243 | T1277: 0.1460508413 | V1277: 87 | W1277: 0.3222698243 | X1277: 0.1460508413 | Z1277: 87 | AA1277: 0.3222698243 | AB1277: 0.1460508413 | AD1277: 87 | AE1277: 0.2848461194 | AF1277: 0.5281607326
A1278: 88 | B1278: 0 | C1278: 0 | E1278: 88 | F1278: 0 | G1278: 0 | I1278: 88 | J1278: 0 | K1278: 0 | M1278: 88 | N1278: 0 | O1278: 0 | R1278: 88 | S1278: 0.3514949049 | T1278: 0.1509205415 | V1278: 88 | W1278: 0.3514949049 | X1278: 0.1509205415 | Z1278: 88 | AA1278: 0.3514949049 | AB1278: 0.1509205415 | AD1278: 88 | AE1278: 0.3062041753 | AF1278: 0.5738612397
A1279: 89 | B1279: 0 | C1279: 0 | E1279: 89 | F1279: 0 | G1279: 0 | I1279: 89 | J1279: 0 | K1279: 0 | M1279: 89 | N1279: 0 | O1279: 0 | R1279: 89 | S1279: 0.3831540144 | T1279: 0.1558288532 | V1279: 89 | W1279: 0.3831540144 | X1279: 0.1558288532 | Z1279: 89 | AA1279: 0.3831540144 | AB1279: 0.1558288532 | AD1279: 89 | AE1279: 0.3289792858 | AF1279: 0.6232755549
A1280: 90 | B1280: 0 | C1280: 0 | E1280: 90 | F1280: 0 | G1280: 0 | I1280: 90 | J1280: 0 | K1280: 0 | M1280: 90 | N1280: 0 | O1280: 0 | R1280: 90 | S1280: 0.4174498721 | T1280: 0.1607760824 | V1280: 90 | W1280: 0.4174498721 | X1280: 0.1607760824 | Z1280: 90 | AA1280: 0.4174498721 | AB1280: 0.1607760824 | AD1280: 90 | AE1280: 0.3532654689 | AF1280: 0.6767054771
A1281: 91 | B1281: 0 | C1281: 0 | E1281: 91 | F1281: 0 | G1281: 0 | I1281: 91 | J1281: 0 | K1281: 0 | M1281: 91 | N1281: 0 | O1281: 0 | R1281: 91 | S1281: 0.4546020812 | T1281: 0.1657625378 | V1281: 91 | W1281: 0.4546020812 | X1281: 0.1657625378 | Z1281: 91 | AA1281: 0.4546020812 | AB1281: 0.1657625378 | AD1281: 91 | AE1281: 0.3791629805 | AF1281: 0.7344773309
A1282: 92 | B1282: 0 | C1282: 0 | E1282: 92 | F1282: 0 | G1282: 0 | I1282: 92 | J1282: 0 | K1282: 0 | M1282: 92 | N1282: 0 | O1282: 0 | R1282: 92 | S1282: 0.4948485349 | T1282: 0.1707885304 | V1282: 92 | W1282: 0.4948485349 | X1282: 0.1707885304 | Z1282: 92 | AA1282: 0.4948485349 | AB1282: 0.1707885304 | AD1282: 92 | AE1282: 0.4067787284 | AF1282: 0.7969439592
A1283: 93 | B1283: 0 | C1283: 0 | E1283: 93 | F1283: 0 | G1283: 0 | I1283: 93 | J1283: 0 | K1283: 0 | M1283: 93 | N1283: 0 | O1283: 0 | R1283: 93 | S1283: 0.5384469391 | T1283: 0.1758543736 | V1283: 93 | W1283: 0.5384469391 | X1283: 0.1758543736 | Z1283: 93 | AA1283: 0.5384469391 | AB1283: 0.1758543736 | AD1283: 93 | AE1283: 0.4362267133 | AF1283: 0.8644868783
A1284: 94 | B1284: 0 | C1284: 0 | E1284: 94 | F1284: 0 | G1284: 0 | I1284: 94 | J1284: 0 | K1284: 0 | M1284: 94 | N1284: 0 | O1284: 0 | R1284: 94 | S1284: 1 | T1284: 1 | V1284: 94 | W1284: 1 | X1284: 1 | Z1284: 94 | AA1284: 1 | AB1284: 1 | AD1284: 94 | AE1284: 1 | AF1284: 1
A1287: Vstupní věková struktura | CQ1287: 9 | CS1287: 88 | CU1287: 167 | CW1287: 246 | CY1287: 325 | DA1287: 404 | DC1287: 483 | DE1287: 562 | DG1287: 641 | DI1287: 720 | DK1287: 799 | DM1287: 878 | DO1287: 957 | DQ1287: 1036 | DS1287: 1115
B1288: Česká republika | D1288: Hl. m. Praha | F1288: Středočeský | H1288: Jihočeský | J1288: Plzeňský | L1288: Karlovarský | N1288: Ústecký | P1288: Liberecký | R1288: Královéhradecký | T1288: Pardubický | V1288: Vysočina | X1288: Jihomoravský | Z1288: Olomoucký | AB1288: Zlínský | AD1288: Moravskoslezský | AG1288: Česká republika | AI1288: Hl. m. Praha | AK1288: Středočeský | AM1288: Jihočeský | AO1288: Plzeňský | AQ1288: Karlovarský | AS1288: Ústecký | AU1288: Liberecký | AW1288: Královéhradecký | AY1288: Pardubický | BA1288: Vysočina | BC1288: Jihomoravský | BE1288: Olomoucký | BG1288: Zlínský | BI1288: Moravskoslezský | BL1288: Česká republika | BN1288: Hl. m. Praha | BP1288: Středočeský | BR1288: Jihočeský | BT1288: Plzeňský | BV1288: Karlovarský | BX1288: Ústecký | BZ1288: Liberecký | CB1288: Královéhradecký | CD1288: Pardubický | CF1288: Vysočina | CH1288: Jihomoravský | CJ1288: Olomoucký | CL1288: Zlínský | CN1288: Moravskoslezský | CQ1288: Česká republika | CS1288: Hl. m. Praha | CU1288: Středočeský | CW1288: Jihočeský | CY1288: Plzeňský | DA1288: Karlovarský | DC1288: Ústecký | DE1288: Liberecký | DG1288: Královéhradecký | DI1288: Pardubický | DK1288: Vysočina | DM1288: Jihomoravský | DO1288: Olomoucký | DQ1288: Zlínský | DS1288: Moravskoslezský
A1289: VPL | B1289: VPL | C1289: VPL | D1289: VPL | E1289: VPL | F1289: VPL | G1289: VPL | H1289: VPL | I1289: VPL | J1289: VPL | K1289: VPL | L1289: VPL | M1289: VPL | N1289: VPL | O1289: VPL | P1289: VPL | Q1289: VPL | R1289: VPL | S1289: VPL | T1289: VPL | U1289: VPL | V1289: VPL | W1289: VPL | X1289: VPL | Y1289: VPL | Z1289: VPL | AA1289: VPL | AB1289: VPL | AC1289: VPL | AD1289: VPL | AE1289: VPL | AF1289: PLDD | AG1289: PLDD | AH1289: PLDD | AI1289: PLDD | AJ1289: PLDD | AK1289: PLDD | AL1289: PLDD | AM1289: PLDD | AN1289: PLDD | AO1289: PLDD | AP1289: PLDD | AQ1289: PLDD | AR1289: PLDD | AS1289: PLDD | AT1289: PLDD | AU1289: PLDD | AV1289: PLDD | AW1289: PLDD | AX1289: PLDD | AY1289: PLDD | AZ1289: PLDD | BA1289: PLDD | BB1289: PLDD | BC1289: PLDD | BD1289: PLDD | BE1289: PLDD | BF1289: PLDD | BG1289: PLDD | BH1289: PLDD | BI1289: PLDD | BJ1289: PLDD | BK1289: GYN | BL1289: GYN | BM1289: GYN | BN1289: GYN | BO1289: GYN | BP1289: GYN | BQ1289: GYN | BR1289: GYN | BS1289: GYN | BT1289: GYN | BU1289: GYN | BV1289: GYN | BW1289: GYN | BX1289: GYN | BY1289: GYN | BZ1289: GYN | CA1289: GYN | CB1289: GYN | CC1289: GYN | CD1289: GYN | CE1289: GYN | CF1289: GYN | CG1289: GYN | CH1289: GYN | CI1289: GYN | CJ1289: GYN | CK1289: GYN | CL1289: GYN | CM1289: GYN | CN1289: GYN | CO1289: GYN | CP1289: ZUB | CQ1289: ZUB | CR1289: ZUB | CS1289: ZUB | CT1289: ZUB | CU1289: ZUB | CV1289: ZUB | CW1289: ZUB | CX1289: ZUB | CY1289: ZUB | CZ1289: ZUB | DA1289: ZUB | DB1289: ZUB | DC1289: ZUB | DD1289: ZUB | DE1289: ZUB | DF1289: ZUB | DG1289: ZUB | DH1289: ZUB | DI1289: ZUB | DJ1289: ZUB | DK1289: ZUB | DL1289: ZUB | DM1289: ZUB | DN1289: ZUB | DO1289: ZUB | DP1289: ZUB | DQ1289: ZUB | DR1289: ZUB | DS1289: ZUB | DT1289: ZUB
A1290: Věk | B1290: 2017-01-01 | D1290: 2017-01-01 | F1290: 2017-01-01 | H1290: 2017-01-01 | J1290: 2017-01-01 | L1290: 2017-01-01 | N1290: 2017-01-01 | P1290: 2017-01-01 | R1290: 2017-01-01 | T1290: 2017-01-01 | V1290: 2017-01-01 | X1290: 2017-01-01 | Z1290: 2017-01-01 | AB1290: 2017-01-01 | AD1290: 2017-01-01 | AF1290: Věk | AG1290: 2017-01-01 | AI1290: 2017-01-01 | AK1290: 2017-01-01 | AM1290: 2017-01-01 | AO1290: 2017-01-01 | AQ1290: 2017-01-01 | AS1290: 2017-01-01 | AU1290: 2017-01-01 | AW1290: 2017-01-01 | AY1290: 2017-01-01 | BA1290: 2017-01-01 | BC1290: 2017-01-01 | BE1290: 2017-01-01 | BG1290: 2017-01-01 | BI1290: 2017-01-01 | BK1290: Věk | BL1290: 2017-01-01 | BN1290: 2017-01-01 | BP1290: 2017-01-01 | BR1290: 2017-01-01 | BT1290: 2017-01-01 | BV1290: 2017-01-01 | BX1290: 2017-01-01 | BZ1290: 2017-01-01 | CB1290: 2017-01-01 | CD1290: 2017-01-01 | CF1290: 2017-01-01 | CH1290: 2017-01-01 | CJ1290: 2017-01-01 | CL1290: 2017-01-01 | CN1290: 2017-01-01 | CP1290: Věk | CQ1290: 2017-01-01 | CS1290: 2017-01-01 | CU1290: 2017-01-01 | CW1290: 2017-01-01 | CY1290: 2017-01-01 | DA1290: 2017-01-01 | DC1290: 2017-01-01 | DE1290: 2017-01-01 | DG1290: 2017-01-01 | DI1290: 2017-01-01 | DK1290: 2017-01-01 | DM1290: 2017-01-01 | DO1290: 2017-01-01 | DQ1290: 2017-01-01 | DS1290: 2017-01-01
B1291: Muži | C1291: Ženy | D1291: Muži | E1291: Ženy | F1291: Muži | G1291: Ženy | H1291: Muži | I1291: Ženy | J1291: Muži | K1291: Ženy | L1291: Muži | M1291: Ženy | N1291: Muži | O1291: Ženy | P1291: Muži | Q1291: Ženy | R1291: Muži | S1291: Ženy | T1291: Muži | U1291: Ženy | V1291: Muži | W1291: Ženy | X1291: Muži | Y1291: Ženy | Z1291: Muži | AA1291: Ženy | AB1291: Muži | AC1291: Ženy | AD1291: Muži | AE1291: Ženy | AG1291: Muži | AH1291: Ženy | AI1291: Muži | AJ1291: Ženy | AK1291: Muži | AL1291: Ženy | AM1291: Muži | AN1291: Ženy | AO1291: Muži | AP1291: Ženy | AQ1291: Muži | AR1291: Ženy | AS1291: Muži | AT1291: Ženy | AU1291: Muži | AV1291: Ženy | AW1291: Muži | AX1291: Ženy | AY1291: Muži | AZ1291: Ženy | BA1291: Muži | BB1291: Ženy | BC1291: Muži | BD1291: Ženy | BE1291: Muži | BF1291: Ženy | BG1291: Muži | BH1291: Ženy | BI1291: Muži | BJ1291: Ženy | BL1291: Muži | BM1291: Ženy | BN1291: Muži | BO1291: Ženy | BP1291: Muži | BQ1291: Ženy | BR1291: Muži | BS1291: Ženy | BT1291: Muži | BU1291: Ženy | BV1291: Muži | BW1291: Ženy | BX1291: Muži | BY1291: Ženy | BZ1291: Muži | CA1291: Ženy | CB1291: Muži | CC1291: Ženy | CD1291: Muži | CE1291: Ženy | CF1291: Muži | CG1291: Ženy | CH1291: Muži | CI1291: Ženy | CJ1291: Muži | CK1291: Ženy | CL1291: Muži | CM1291: Ženy | CN1291: Muži | CO1291: Ženy | CQ1291: Muži | CR1291: Ženy | CS1291: Muži | CT1291: Ženy | CU1291: Muži | CV1291: Ženy | CW1291: Muži | CX1291: Ženy | CY1291: Muži | CZ1291: Ženy | DA1291: Muži | DB1291: Ženy | DC1291: Muži | DD1291: Ženy | DE1291: Muži | DF1291: Ženy | DG1291: Muži | DH1291: Ženy | DI1291: Muži | DJ1291: Ženy | DK1291: Muži | DL1291: Ženy | DM1291: Muži | DN1291: Ženy | DO1291: Muži | DP1291: Ženy | DQ1291: Muži | DR1291: Ženy | DS1291: Muži | DT1291: Ženy
A1292: 23 | B1292: 0 | C1292: 0 | D1292: 0 | E1292: 0 | F1292: 0 | G1292: 0 | H1292: 0 | I1292: 0 | J1292: 0 | K1292: 0 | L1292: 0 | M1292: 0 | N1292: 0 | O1292: 0 | P1292: 0 | Q1292: 0 | R1292: 0 | S1292: 0 | T1292: 0 | U1292: 0 | V1292: 0 | W1292: 0 | X1292: 0 | Y1292: 0 | Z1292: 0 | AA1292: 0 | AB1292: 0 | AC1292: 0 | AD1292: 0 | AE1292: 0 | AF1292: 23 | AG1292: 0 | AH1292: 0 | AI1292: 0 | AJ1292: 0 | AK1292: 0 | AL1292: 0 | AM1292: 0 | AN1292: 0 | AO1292: 0 | AP1292: 0 | AQ1292: 0 | AR1292: 0 | AS1292: 0 | AT1292: 0 | AU1292: 0 | AV1292: 0 | AW1292: 0 | AX1292: 0 | AY1292: 0 | AZ1292: 0 | BA1292: 0 | BB1292: 0 | BC1292: 0 | BD1292: 0 | BE1292: 0 | BF1292: 0 | BG1292: 0 | BH1292: 0 | BI1292: 0 | BJ1292: 0 | BK1292: 23 | BL1292: 0 | BM1292: 0 | BN1292: 0 | BO1292: 0 | BP1292: 0 | BQ1292: 0 | BR1292: 0 | BS1292: 0 | BT1292: 0 | BU1292: 0 | BV1292: 0 | BW1292: 0 | BX1292: 0 | BY1292: 0 | BZ1292: 0 | CA1292: 0 | CB1292: 0 | CC1292: 0 | CD1292: 0 | CE1292: 0 | CF1292: 0 | CG1292: 0 | CH1292: 0 | CI1292: 0 | CJ1292: 0 | CK1292: 0 | CL1292: 0 | CM1292: 0 | CN1292: 0 | CO1292: 0 | CP1292: 23 | CQ1292: 3 | CR1292: 2 | CS1292: 2 | CT1292: 0 | CU1292: 0 | CV1292: 0 | CW1292: 0 | CX1292: 0 | CY1292: 0 | CZ1292: 0 | DA1292: 0 | DB1292: 0 | DC1292: 0 | DD1292: 0 | DE1292: 0 | DF1292: 0 | DG1292: 0 | DH1292: 1 | DI1292: 0 | DJ1292: 0 | DK1292: 0 | DL1292: 0 | DM1292: 0 | DN1292: 0 | DO1292: 1 | DP1292: 0 | DQ1292: 0 | DR1292: 1 | DS1292: 0 | DT1292: 0
A1293: 24 | B1293: 0 | C1293: 1 | D1293: 0 | E1293: 0 | F1293: 0 | G1293: 0 | H1293: 0 | I1293: 0 | J1293: 0 | K1293: 0 | L1293: 0 | M1293: 0 | N1293: 0 | O1293: 0 | P1293: 0 | Q1293: 0 | R1293: 0 | S1293: 0 | T1293: 0 | U1293: 0 | V1293: 0 | W1293: 0 | X1293: 0 | Y1293: 1 | Z1293: 0 | AA1293: 0 | AB1293: 0 | AC1293: 0 | AD1293: 0 | AE1293: 0 | AF1293: 24 | AG1293: 0 | AH1293: 0 | AI1293: 0 | AJ1293: 0 | AK1293: 0 | AL1293: 0 | AM1293: 0 | AN1293: 0 | AO1293: 0 | AP1293: 0 | AQ1293: 0 | AR1293: 0 | AS1293: 0 | AT1293: 0 | AU1293: 0 | AV1293: 0 | AW1293: 0 | AX1293: 0 | AY1293: 0 | AZ1293: 0 | BA1293: 0 | BB1293: 0 | BC1293: 0 | BD1293: 0 | BE1293: 0 | BF1293: 0 | BG1293: 0 | BH1293: 0 | BI1293: 0 | BJ1293: 0 | BK1293: 24 | BL1293: 0 | BM1293: 0 | BN1293: 0 | BO1293: 0 | BP1293: 0 | BQ1293: 0 | BR1293: 0 | BS1293: 0 | BT1293: 0 | BU1293: 0 | BV1293: 0 | BW1293: 0 | BX1293: 0 | BY1293: 0 | BZ1293: 0 | CA1293: 0 | CB1293: 0 | CC1293: 0 | CD1293: 0 | CE1293: 0 | CF1293: 0 | CG1293: 0 | CH1293: 0 | CI1293: 0 | CJ1293: 0 | CK1293: 0 | CL1293: 0 | CM1293: 0 | CN1293: 0 | CO1293: 0 | CP1293: 24 | CQ1293: 18 | CR1293: 38 | CS1293: 0 | CT1293: 9 | CU1293: 2 | CV1293: 3 | CW1293: 0 | CX1293: 1 | CY1293: 2 | CZ1293: 1 | DA1293: 0 | DB1293: 1 | DC1293: 1 | DD1293: 1 | DE1293: 2 | DF1293: 1 | DG1293: 3 | DH1293: 2 | DI1293: 1 | DJ1293: 0 | DK1293: 0 | DL1293: 2 | DM1293: 2 | DN1293: 8 | DO1293: 3 | DP1293: 3 | DQ1293: 0 | DR1293: 1 | DS1293: 2 | DT1293: 5
A1294: 25 | B1294: 1 | C1294: 1 | D1294: 0 | E1294: 0 | F1294: 0 | G1294: 0 | H1294: 0 | I1294: 0 | J1294: 0 | K1294: 0 | L1294: 0 | M1294: 0 | N1294: 0 | O1294: 0 | P1294: 0 | Q1294: 0 | R1294: 0 | S1294: 0 | T1294: 0 | U1294: 0 | V1294: 0 | W1294: 0 | X1294: 0 | Y1294: 0 | Z1294: 0 | AA1294: 0 | AB1294: 0 | AC1294: 0 | AD1294: 1 | AE1294: 1 | AF1294: 25 | AG1294: 0 | AH1294: 1 | AI1294: 0 | AJ1294: 0 | AK1294: 0 | AL1294: 0 | AM1294: 0 | AN1294: 0 | AO1294: 0 | AP1294: 0 | AQ1294: 0 | AR1294: 0 | AS1294: 0 | AT1294: 0 | AU1294: 0 | AV1294: 0 | AW1294: 0 | AX1294: 0 | AY1294: 0 | AZ1294: 0 | BA1294: 0 | BB1294: 0 | BC1294: 0 | BD1294: 0 | BE1294: 0 | BF1294: 1 | BG1294: 0 | BH1294: 0 | BI1294: 0 | BJ1294: 0 | BK1294: 25 | BL1294: 0 | BM1294: 3 | BN1294: 0 | BO1294: 3 | BP1294: 0 | BQ1294: 0 | BR1294: 0 | BS1294: 0 | BT1294: 0 | BU1294: 0 | BV1294: 0 | BW1294: 0 | BX1294: 0 | BY1294: 0 | BZ1294: 0 | CA1294: 0 | CB1294: 0 | CC1294: 0 | CD1294: 0 | CE1294: 0 | CF1294: 0 | CG1294: 0 | CH1294: 0 | CI1294: 0 | CJ1294: 0 | CK1294: 0 | CL1294: 0 | CM1294: 0 | CN1294: 0 | CO1294: 0 | CP1294: 25 | CQ1294: 49 | CR1294: 102 | CS1294: 11 | CT1294: 15 | CU1294: 1 | CV1294: 6 | CW1294: 3 | CX1294: 2 | CY1294: 4 | CZ1294: 7 | DA1294: 1 | DB1294: 1 | DC1294: 2 | DD1294: 5 | DE1294: 0 | DF1294: 5 | DG1294: 4 | DH1294: 6 | DI1294: 3 | DJ1294: 5 | DK1294: 2 | DL1294: 3 | DM1294: 9 | DN1294: 22 | DO1294: 3 | DP1294: 13 | DQ1294: 4 | DR1294: 3 | DS1294: 2 | DT1294: 9
A1295: 26 | B1295: 2 | C1295: 5 | D1295: 1 | E1295: 0 | F1295: 0 | G1295: 0 | H1295: 0 | I1295: 0 | J1295: 0 | K1295: 1 | L1295: 0 | M1295: 0 | N1295: 0 | O1295: 0 | P1295: 0 | Q1295: 0 | R1295: 0 | S1295: 0 | T1295: 0 | U1295: 0 | V1295: 0 | W1295: 0 | X1295: 0 | Y1295: 1 | Z1295: 0 | AA1295: 1 | AB1295: 0 | AC1295: 1 | AD1295: 1 | AE1295: 1 | AF1295: 26 | AG1295: 0 | AH1295: 7 | AI1295: 0 | AJ1295: 1 | AK1295: 0 | AL1295: 0 | AM1295: 0 | AN1295: 0 | AO1295: 0 | AP1295: 0 | AQ1295: 0 | AR1295: 0 | AS1295: 0 | AT1295: 0 | AU1295: 0 | AV1295: 0 | AW1295: 0 | AX1295: 0 | AY1295: 0 | AZ1295: 0 | BA1295: 0 | BB1295: 0 | BC1295: 0 | BD1295: 0 | BE1295: 0 | BF1295: 2 | BG1295: 0 | BH1295: 3 | BI1295: 0 | BJ1295: 1 | BK1295: 26 | BL1295: 0 | BM1295: 1 | BN1295: 0 | BO1295: 1 | BP1295: 0 | BQ1295: 0 | BR1295: 0 | BS1295: 0 | BT1295: 0 | BU1295: 0 | BV1295: 0 | BW1295: 0 | BX1295: 0 | BY1295: 0 | BZ1295: 0 | CA1295: 0 | CB1295: 0 | CC1295: 0 | CD1295: 0 | CE1295: 0 | CF1295: 0 | CG1295: 0 | CH1295: 0 | CI1295: 0 | CJ1295: 0 | CK1295: 0 | CL1295: 0 | CM1295: 0 | CN1295: 0 | CO1295: 0 | CP1295: 26 | CQ1295: 55 | CR1295: 122 | CS1295: 9 | CT1295: 19 | CU1295: 4 | CV1295: 8 | CW1295: 2 | CX1295: 11 | CY1295: 3 | CZ1295: 3 | DA1295: 1 | DB1295: 2 | DC1295: 2 | DD1295: 2 | DE1295: 2 | DF1295: 3 | DG1295: 3 | DH1295: 6 | DI1295: 3 | DJ1295: 3 | DK1295: 2 | DL1295: 11 | DM1295: 5 | DN1295: 22 | DO1295: 7 | DP1295: 16 | DQ1295: 7 | DR1295: 6 | DS1295: 8 | DT1295: 13
A1296: 27 | B1296: 4 | C1296: 13 | D1296: 0 | E1296: 3 | F1296: 0 | G1296: 0 | H1296: 1 | I1296: 1 | J1296: 0 | K1296: 1 | L1296: 1 | M1296: 0 | N1296: 1 | O1296: 0 | P1296: 0 | Q1296: 0 | R1296: 1 | S1296: 0 | T1296: 0 | U1296: 0 | V1296: 0 | W1296: 0 | X1296: 0 | Y1296: 1 | Z1296: 0 | AA1296: 2 | AB1296: 0 | AC1296: 2 | AD1296: 0 | AE1296: 3 | AF1296: 27 | AG1296: 0 | AH1296: 2 | AI1296: 0 | AJ1296: 0 | AK1296: 0 | AL1296: 0 | AM1296: 0 | AN1296: 0 | AO1296: 0 | AP1296: 0 | AQ1296: 0 | AR1296: 0 | AS1296: 0 | AT1296: 0 | AU1296: 0 | AV1296: 0 | AW1296: 0 | AX1296: 0 | AY1296: 0 | AZ1296: 0 | BA1296: 0 | BB1296: 0 | BC1296: 0 | BD1296: 0 | BE1296: 0 | BF1296: 1 | BG1296: 0 | BH1296: 0 | BI1296: 0 | BJ1296: 1 | BK1296: 27 | BL1296: 0 | BM1296: 6 | BN1296: 0 | BO1296: 1 | BP1296: 0 | BQ1296: 2 | BR1296: 0 | BS1296: 1 | BT1296: 0 | BU1296: 0 | BV1296: 0 | BW1296: 0 | BX1296: 0 | BY1296: 1 | BZ1296: 0 | CA1296: 0 | CB1296: 0 | CC1296: 0 | CD1296: 0 | CE1296: 0 | CF1296: 0 | CG1296: 0 | CH1296: 0 | CI1296: 1 | CJ1296: 0 | CK1296: 0 | CL1296: 0 | CM1296: 0 | CN1296: 0 | CO1296: 0 | CP1296: 27 | CQ1296: 80 | CR1296: 122 | CS1296: 16 | CT1296: 33 | CU1296: 5 | CV1296: 6 | CW1296: 6 | CX1296: 7 | CY1296: 2 | CZ1296: 8 | DA1296: 1 | DB1296: 1 | DC1296: 3 | DD1296: 5 | DE1296: 1 | DF1296: 3 | DG1296: 9 | DH1296: 6 | DI1296: 3 | DJ1296: 6 | DK1296: 3 | DL1296: 1 | DM1296: 12 | DN1296: 19 | DO1296: 3 | DP1296: 7 | DQ1296: 10 | DR1296: 7 | DS1296: 8 | DT1296: 14
A1297: 28 | B1297: 4 | C1297: 18 | D1297: 1 | E1297: 1 | F1297: 0 | G1297: 3 | H1297: 0 | I1297: 0 | J1297: 0 | K1297: 0 | L1297: 0 | M1297: 0 | N1297: 0 | O1297: 2 | P1297: 1 | Q1297: 1 | R1297: 0 | S1297: 1 | T1297: 0 | U1297: 0 | V1297: 0 | W1297: 0 | X1297: 0 | Y1297: 1 | Z1297: 0 | AA1297: 3 | AB1297: 0 | AC1297: 2 | AD1297: 2 | AE1297: 4 | AF1297: 28 | AG1297: 0 | AH1297: 1 | AI1297: 0 | AJ1297: 0 | AK1297: 0 | AL1297: 0 | AM1297: 0 | AN1297: 0 | AO1297: 0 | AP1297: 0 | AQ1297: 0 | AR1297: 0 | AS1297: 0 | AT1297: 0 | AU1297: 0 | AV1297: 0 | AW1297: 0 | AX1297: 0 | AY1297: 0 | AZ1297: 0 | BA1297: 0 | BB1297: 0 | BC1297: 0 | BD1297: 0 | BE1297: 0 | BF1297: 1 | BG1297: 0 | BH1297: 0 | BI1297: 0 | BJ1297: 0 | BK1297: 28 | BL1297: 1 | BM1297: 7 | BN1297: 0 | BO1297: 5 | BP1297: 0 | BQ1297: 0 | BR1297: 0 | BS1297: 1 | BT1297: 0 | BU1297: 0 | BV1297: 0 | BW1297: 0 | BX1297: 0 | BY1297: 0 | BZ1297: 0 | CA1297: 0 | CB1297: 0 | CC1297: 0 | CD1297: 1 | CE1297: 0 | CF1297: 0 | CG1297: 1 | CH1297: 0 | CI1297: 0 | CJ1297: 0 | CK1297: 0 | CL1297: 0 | CM1297: 0 | CN1297: 0 | CO1297: 0 | CP1297: 28 | CQ1297: 58 | CR1297: 146 | CS1297: 15 | CT1297: 37 | CU1297: 3 | CV1297: 7 | CW1297: 0 | CX1297: 8 | CY1297: 2 | CZ1297: 3 | DA1297: 0 | DB1297: 2 | DC1297: 3 | DD1297: 5 | DE1297: 4 | DF1297: 6 | DG1297: 3 | DH1297: 9 | DI1297: 3 | DJ1297: 6 | DK1297: 1 | DL1297: 6 | DM1297: 7 | DN1297: 26 | DO1297: 4 | DP1297: 4 | DQ1297: 7 | DR1297: 11 | DS1297: 8 | DT1297: 18
A1298: 29 | B1298: 10 | C1298: 36 | D1298: 0 | E1298: 5 | F1298: 3 | G1298: 1 | H1298: 0 | I1298: 3 | J1298: 0 | K1298: 2 | L1298: 0 | M1298: 0 | N1298: 0 | O1298: 2 | P1298: 0 | Q1298: 0 | R1298: 2 | S1298: 1 | T1298: 0 | U1298: 2 | V1298: 1 | W1298: 1 | X1298: 1 | Y1298: 5 | Z1298: 2 | AA1298: 7 | AB1298: 0 | AC1298: 3 | AD1298: 2 | AE1298: 4 | AF1298: 29 | AG1298: 0 | AH1298: 4 | AI1298: 0 | AJ1298: 0 | AK1298: 0 | AL1298: 1 | AM1298: 0 | AN1298: 0 | AO1298: 0 | AP1298: 0 | AQ1298: 0 | AR1298: 0 | AS1298: 0 | AT1298: 1 | AU1298: 0 | AV1298: 0 | AW1298: 0 | AX1298: 0 | AY1298: 0 | AZ1298: 1 | BA1298: 0 | BB1298: 0 | BC1298: 0 | BD1298: 0 | BE1298: 0 | BF1298: 1 | BG1298: 0 | BH1298: 0 | BI1298: 0 | BJ1298: 0 | BK1298: 29 | BL1298: 1 | BM1298: 6 | BN1298: 0 | BO1298: 1 | BP1298: 0 | BQ1298: 4 | BR1298: 0 | BS1298: 0 | BT1298: 0 | BU1298: 0 | BV1298: 0 | BW1298: 0 | BX1298: 0 | BY1298: 0 | BZ1298: 0 | CA1298: 0 | CB1298: 0 | CC1298: 0 | CD1298: 0 | CE1298: 0 | CF1298: 1 | CG1298: 0 | CH1298: 0 | CI1298: 1 | CJ1298: 0 | CK1298: 0 | CL1298: 0 | CM1298: 0 | CN1298: 0 | CO1298: 0 | CP1298: 29 | CQ1298: 66 | CR1298: 118 | CS1298: 16 | CT1298: 33 | CU1298: 2 | CV1298: 11 | CW1298: 3 | CX1298: 6 | CY1298: 3 | CZ1298: 5 | DA1298: 2 | DB1298: 4 | DC1298: 2 | DD1298: 4 | DE1298: 4 | DF1298: 6 | DG1298: 6 | DH1298: 2 | DI1298: 2 | DJ1298: 5 | DK1298: 2 | DL1298: 5 | DM1298: 10 | DN1298: 11 | DO1298: 2 | DP1298: 9 | DQ1298: 3 | DR1298: 6 | DS1298: 10 | DT1298: 13
A1299: 30 | B1299: 13 | C1299: 37 | D1299: 1 | E1299: 9 | F1299: 1 | G1299: 3 | H1299: 0 | I1299: 1 | J1299: 0 | K1299: 3 | L1299: 1 | M1299: 0 | N1299: 1 | O1299: 1 | P1299: 0 | Q1299: 1 | R1299: 0 | S1299: 2 | T1299: 1 | U1299: 2 | V1299: 1 | W1299: 3 | X1299: 2 | Y1299: 4 | Z1299: 3 | AA1299: 4 | AB1299: 1 | AC1299: 0 | AD1299: 1 | AE1299: 6 | AF1299: 30 | AG1299: 0 | AH1299: 1 | AI1299: 0 | AJ1299: 0 | AK1299: 0 | AL1299: 1 | AM1299: 0 | AN1299: 0 | AO1299: 0 | AP1299: 0 | AQ1299: 0 | AR1299: 0 | AS1299: 0 | AT1299: 0 | AU1299: 0 | AV1299: 0 | AW1299: 0 | AX1299: 0 | AY1299: 0 | AZ1299: 0 | BA1299: 0 | BB1299: 0 | BC1299: 0 | BD1299: 0 | BE1299: 0 | BF1299: 0 | BG1299: 0 | BH1299: 0 | BI1299: 0 | BJ1299: 0 | BK1299: 30 | BL1299: 6 | BM1299: 6 | BN1299: 2 | BO1299: 1 | BP1299: 1 | BQ1299: 3 | BR1299: 1 | BS1299: 0 | BT1299: 0 | BU1299: 0 | BV1299: 0 | BW1299: 0 | BX1299: 1 | BY1299: 0 | BZ1299: 0 | CA1299: 0 | CB1299: 0 | CC1299: 0 | CD1299: 0 | CE1299: 0 | CF1299: 0 | CG1299: 0 | CH1299: 1 | CI1299: 2 | CJ1299: 0 | CK1299: 0 | CL1299: 0 | CM1299: 0 | CN1299: 0 | CO1299: 0 | CP1299: 30 | CQ1299: 77 | CR1299: 136 | CS1299: 18 | CT1299: 34 | CU1299: 8 | CV1299: 15 | CW1299: 5 | CX1299: 5 | CY1299: 4 | CZ1299: 4 | DA1299: 1 | DB1299: 0 | DC1299: 3 | DD1299: 5 | DE1299: 3 | DF1299: 6 | DG1299: 1 | DH1299: 9 | DI1299: 4 | DJ1299: 5 | DK1299: 4 | DL1299: 7 | DM1299: 13 | DN1299: 17 | DO1299: 5 | DP1299: 8 | DQ1299: 3 | DR1299: 8 | DS1299: 7 | DT1299: 15
A1300: 31 | B1300: 17 | C1300: 32 | D1300: 2 | E1300: 8 | F1300: 3 | G1300: 3 | H1300: 2 | I1300: 1 | J1300: 0 | K1300: 2 | L1300: 0 | M1300: 0 | N1300: 1 | O1300: 0 | P1300: 1 | Q1300: 2 | R1300: 1 | S1300: 3 | T1300: 0 | U1300: 1 | V1300: 2 | W1300: 0 | X1300: 2 | Y1300: 3 | Z1300: 1 | AA1300: 1 | AB1300: 0 | AC1300: 3 | AD1300: 3 | AE1300: 6 | AF1300: 31 | AG1300: 0 | AH1300: 11 | AI1300: 0 | AJ1300: 2 | AK1300: 0 | AL1300: 3 | AM1300: 0 | AN1300: 1 | AO1300: 0 | AP1300: 2 | AQ1300: 0 | AR1300: 0 | AS1300: 0 | AT1300: 0 | AU1300: 0 | AV1300: 1 | AW1300: 0 | AX1300: 0 | AY1300: 0 | AZ1300: 0 | BA1300: 0 | BB1300: 1 | BC1300: 0 | BD1300: 0 | BE1300: 0 | BF1300: 0 | BG1300: 0 | BH1300: 0 | BI1300: 0 | BJ1300: 1 | BK1300: 31 | BL1300: 6 | BM1300: 20 | BN1300: 1 | BO1300: 5 | BP1300: 2 | BQ1300: 6 | BR1300: 1 | BS1300: 1 | BT1300: 0 | BU1300: 0 | BV1300: 0 | BW1300: 0 | BX1300: 0 | BY1300: 1 | BZ1300: 2 | CA1300: 0 | CB1300: 0 | CC1300: 0 | CD1300: 0 | CE1300: 2 | CF1300: 0 | CG1300: 0 | CH1300: 0 | CI1300: 5 | CJ1300: 1 | CK1300: 0 | CL1300: 0 | CM1300: 0 | CN1300: 0 | CO1300: 2 | CP1300: 31 | CQ1300: 71 | CR1300: 124 | CS1300: 13 | CT1300: 29 | CU1300: 11 | CV1300: 12 | CW1300: 0 | CX1300: 7 | CY1300: 4 | CZ1300: 2 | DA1300: 3 | DB1300: 3 | DC1300: 3 | DD1300: 5 | DE1300: 1 | DF1300: 1 | DG1300: 5 | DH1300: 7 | DI1300: 1 | DJ1300: 4 | DK1300: 2 | DL1300: 7 | DM1300: 12 | DN1300: 20 | DO1300: 11 | DP1300: 12 | DQ1300: 4 | DR1300: 9 | DS1300: 5 | DT1300: 11
A1301: 32 | B1301: 22 | C1301: 58 | D1301: 1 | E1301: 16 | F1301: 4 | G1301: 10 | H1301: 0 | I1301: 1 | J1301: 1 | K1301: 5 | L1301: 0 | M1301: 2 | N1301: 2 | O1301: 0 | P1301: 0 | Q1301: 0 | R1301: 0 | S1301: 0 | T1301: 2 | U1301: 4 | V1301: 1 | W1301: 1 | X1301: 5 | Y1301: 4 | Z1301: 0 | AA1301: 6 | AB1301: 1 | AC1301: 3 | AD1301: 5 | AE1301: 7 | AF1301: 32 | AG1301: 2 | AH1301: 11 | AI1301: 1 | AJ1301: 1 | AK1301: 0 | AL1301: 2 | AM1301: 0 | AN1301: 1 | AO1301: 0 | AP1301: 1 | AQ1301: 0 | AR1301: 0 | AS1301: 0 | AT1301: 0 | AU1301: 1 | AV1301: 0 | AW1301: 0 | AX1301: 0 | AY1301: 0 | AZ1301: 1 | BA1301: 0 | BB1301: 1 | BC1301: 0 | BD1301: 1 | BE1301: 0 | BF1301: 0 | BG1301: 0 | BH1301: 2 | BI1301: 0 | BJ1301: 1 | BK1301: 32 | BL1301: 8 | BM1301: 26 | BN1301: 3 | BO1301: 4 | BP1301: 4 | BQ1301: 2 | BR1301: 0 | BS1301: 2 | BT1301: 0 | BU1301: 1 | BV1301: 0 | BW1301: 0 | BX1301: 0 | BY1301: 1 | BZ1301: 0 | CA1301: 3 | CB1301: 2 | CC1301: 1 | CD1301: 0 | CE1301: 0 | CF1301: 0 | CG1301: 1 | CH1301: 0 | CI1301: 7 | CJ1301: 0 | CK1301: 1 | CL1301: 0 | CM1301: 0 | CN1301: 0 | CO1301: 3 | CP1301: 32 | CQ1301: 54 | CR1301: 107 | CS1301: 13 | CT1301: 26 | CU1301: 4 | CV1301: 9 | CW1301: 1 | CX1301: 7 | CY1301: 5 | CZ1301: 1 | DA1301: 2 | DB1301: 3 | DC1301: 2 | DD1301: 0 | DE1301: 2 | DF1301: 4 | DG1301: 2 | DH1301: 1 | DI1301: 3 | DJ1301: 8 | DK1301: 2 | DL1301: 5 | DM1301: 6 | DN1301: 13 | DO1301: 6 | DP1301: 10 | DQ1301: 4 | DR1301: 14 | DS1301: 3 | DT1301: 10
A1302: 33 | B1302: 22 | C1302: 64 | D1302: 8 | E1302: 9 | F1302: 1 | G1302: 6 | H1302: 2 | I1302: 7 | J1302: 1 | K1302: 1 | L1302: 0 | M1302: 2 | N1302: 1 | O1302: 1 | P1302: 0 | Q1302: 1 | R1302: 0 | S1302: 1 | T1302: 3 | U1302: 5 | V1302: 0 | W1302: 0 | X1302: 1 | Y1302: 9 | Z1302: 1 | AA1302: 7 | AB1302: 2 | AC1302: 1 | AD1302: 2 | AE1302: 14 | AF1302: 33 | AG1302: 2 | AH1302: 10 | AI1302: 0 | AJ1302: 2 | AK1302: 1 | AL1302: 2 | AM1302: 0 | AN1302: 0 | AO1302: 0 | AP1302: 0 | AQ1302: 0 | AR1302: 1 | AS1302: 0 | AT1302: 0 | AU1302: 0 | AV1302: 0 | AW1302: 0 | AX1302: 0 | AY1302: 0 | AZ1302: 0 | BA1302: 0 | BB1302: 0 | BC1302: 1 | BD1302: 3 | BE1302: 0 | BF1302: 0 | BG1302: 0 | BH1302: 0 | BI1302: 0 | BJ1302: 2 | BK1302: 33 | BL1302: 11 | BM1302: 28 | BN1302: 3 | BO1302: 10 | BP1302: 0 | BQ1302: 5 | BR1302: 1 | BS1302: 2 | BT1302: 0 | BU1302: 1 | BV1302: 1 | BW1302: 0 | BX1302: 0 | BY1302: 1 | BZ1302: 0 | CA1302: 0 | CB1302: 0 | CC1302: 1 | CD1302: 1 | CE1302: 0 | CF1302: 0 | CG1302: 2 | CH1302: 4 | CI1302: 4 | CJ1302: 0 | CK1302: 1 | CL1302: 0 | CM1302: 0 | CN1302: 1 | CO1302: 2 | CP1302: 33 | CQ1302: 64 | CR1302: 87 | CS1302: 19 | CT1302: 17 | CU1302: 1 | CV1302: 6 | CW1302: 4 | CX1302: 3 | CY1302: 7 | CZ1302: 2 | DA1302: 2 | DB1302: 1 | DC1302: 2 | DD1302: 4 | DE1302: 3 | DF1302: 2 | DG1302: 3 | DH1302: 6 | DI1302: 2 | DJ1302: 3 | DK1302: 1 | DL1302: 1 | DM1302: 8 | DN1302: 15 | DO1302: 1 | DP1302: 13 | DQ1302: 4 | DR1302: 7 | DS1302: 8 | DT1302: 9
A1303: 34 | B1303: 34 | C1303: 62 | D1303: 4 | E1303: 7 | F1303: 2 | G1303: 8 | H1303: 3 | I1303: 4 | J1303: 0 | K1303: 3 | L1303: 1 | M1303: 1 | N1303: 1 | O1303: 3 | P1303: 1 | Q1303: 3 | R1303: 2 | S1303: 3 | T1303: 3 | U1303: 2 | V1303: 2 | W1303: 1 | X1303: 5 | Y1303: 10 | Z1303: 6 | AA1303: 5 | AB1303: 0 | AC1303: 2 | AD1303: 4 | AE1303: 11 | AF1303: 34 | AG1303: 5 | AH1303: 11 | AI1303: 1 | AJ1303: 2 | AK1303: 0 | AL1303: 0 | AM1303: 0 | AN1303: 1 | AO1303: 0 | AP1303: 0 | AQ1303: 0 | AR1303: 1 | AS1303: 0 | AT1303: 0 | AU1303: 0 | AV1303: 0 | AW1303: 2 | AX1303: 1 | AY1303: 0 | AZ1303: 0 | BA1303: 0 | BB1303: 0 | BC1303: 0 | BD1303: 3 | BE1303: 0 | BF1303: 1 | BG1303: 0 | BH1303: 0 | BI1303: 2 | BJ1303: 2 | BK1303: 34 | BL1303: 12 | BM1303: 29 | BN1303: 6 | BO1303: 8 | BP1303: 1 | BQ1303: 3 | BR1303: 0 | BS1303: 2 | BT1303: 1 | BU1303: 3 | BV1303: 0 | BW1303: 1 | BX1303: 1 | BY1303: 3 | BZ1303: 0 | CA1303: 1 | CB1303: 0 | CC1303: 0 | CD1303: 0 | CE1303: 0 | CF1303: 0 | CG1303: 0 | CH1303: 0 | CI1303: 4 | CJ1303: 2 | CK1303: 2 | CL1303: 0 | CM1303: 0 | CN1303: 1 | CO1303: 2 | CP1303: 34 | CQ1303: 65 | CR1303: 74 | CS1303: 9 | CT1303: 20 | CU1303: 2 | CV1303: 4 | CW1303: 1 | CX1303: 6 | CY1303: 5 | CZ1303: 6 | DA1303: 0 | DB1303: 1 | DC1303: 0 | DD1303: 3 | DE1303: 8 | DF1303: 0 | DG1303: 3 | DH1303: 4 | DI1303: 3 | DJ1303: 2 | DK1303: 4 | DL1303: 5 | DM1303: 8 | DN1303: 8 | DO1303: 5 | DP1303: 7 | DQ1303: 8 | DR1303: 3 | DS1303: 9 | DT1303: 8
A1304: 35 | B1304: 19 | C1304: 44 | D1304: 4 | E1304: 8 | F1304: 4 | G1304: 4 | H1304: 0 | I1304: 1 | J1304: 2 | K1304: 1 | L1304: 1 | M1304: 3 | N1304: 1 | O1304: 5 | P1304: 1 | Q1304: 3 | R1304: 1 | S1304: 2 | T1304: 0 | U1304: 0 | V1304: 1 | W1304: 1 | X1304: 1 | Y1304: 6 | Z1304: 0 | AA1304: 3 | AB1304: 0 | AC1304: 2 | AD1304: 4 | AE1304: 8 | AF1304: 35 | AG1304: 3 | AH1304: 9 | AI1304: 0 | AJ1304: 1 | AK1304: 0 | AL1304: 1 | AM1304: 0 | AN1304: 0 | AO1304: 0 | AP1304: 0 | AQ1304: 0 | AR1304: 0 | AS1304: 0 | AT1304: 3 | AU1304: 0 | AV1304: 0 | AW1304: 1 | AX1304: 1 | AY1304: 0 | AZ1304: 0 | BA1304: 0 | BB1304: 0 | BC1304: 1 | BD1304: 1 | BE1304: 0 | BF1304: 0 | BG1304: 0 | BH1304: 0 | BI1304: 1 | BJ1304: 2 | BK1304: 35 | BL1304: 13 | BM1304: 35 | BN1304: 7 | BO1304: 13 | BP1304: 1 | BQ1304: 4 | BR1304: 0 | BS1304: 2 | BT1304: 1 | BU1304: 1 | BV1304: 0 | BW1304: 1 | BX1304: 0 | BY1304: 3 | BZ1304: 0 | CA1304: 2 | CB1304: 1 | CC1304: 0 | CD1304: 0 | CE1304: 1 | CF1304: 0 | CG1304: 0 | CH1304: 0 | CI1304: 4 | CJ1304: 0 | CK1304: 1 | CL1304: 1 | CM1304: 0 | CN1304: 2 | CO1304: 4 | CP1304: 35 | CQ1304: 61 | CR1304: 73 | CS1304: 9 | CT1304: 20 | CU1304: 2 | CV1304: 6 | CW1304: 4 | CX1304: 7 | CY1304: 7 | CZ1304: 3 | DA1304: 1 | DB1304: 2 | DC1304: 4 | DD1304: 3 | DE1304: 2 | DF1304: 3 | DG1304: 2 | DH1304: 6 | DI1304: 1 | DJ1304: 1 | DK1304: 1 | DL1304: 2 | DM1304: 11 | DN1304: 9 | DO1304: 3 | DP1304: 5 | DQ1304: 7 | DR1304: 4 | DS1304: 8 | DT1304: 5
A1305: 36 | B1305: 22 | C1305: 48 | D1305: 6 | E1305: 10 | F1305: 1 | G1305: 4 | H1305: 0 | I1305: 1 | J1305: 1 | K1305: 2 | L1305: 0 | M1305: 0 | N1305: 0 | O1305: 5 | P1305: 1 | Q1305: 3 | R1305: 4 | S1305: 3 | T1305: 0 | U1305: 2 | V1305: 1 | W1305: 1 | X1305: 1 | Y1305: 6 | Z1305: 0 | AA1305: 5 | AB1305: 3 | AC1305: 2 | AD1305: 4 | AE1305: 6 | AF1305: 36 | AG1305: 3 | AH1305: 17 | AI1305: 1 | AJ1305: 2 | AK1305: 1 | AL1305: 3 | AM1305: 1 | AN1305: 0 | AO1305: 0 | AP1305: 1 | AQ1305: 0 | AR1305: 0 | AS1305: 0 | AT1305: 1 | AU1305: 0 | AV1305: 0 | AW1305: 0 | AX1305: 3 | AY1305: 0 | AZ1305: 1 | BA1305: 0 | BB1305: 0 | BC1305: 0 | BD1305: 4 | BE1305: 0 | BF1305: 0 | BG1305: 0 | BH1305: 1 | BI1305: 0 | BJ1305: 1 | BK1305: 36 | BL1305: 10 | BM1305: 22 | BN1305: 1 | BO1305: 9 | BP1305: 2 | BQ1305: 2 | BR1305: 1 | BS1305: 0 | BT1305: 0 | BU1305: 0 | BV1305: 0 | BW1305: 2 | BX1305: 1 | BY1305: 2 | BZ1305: 0 | CA1305: 1 | CB1305: 1 | CC1305: 0 | CD1305: 0 | CE1305: 0 | CF1305: 0 | CG1305: 1 | CH1305: 4 | CI1305: 1 | CJ1305: 1 | CK1305: 1 | CL1305: 1 | CM1305: 1 | CN1305: 2 | CO1305: 3 | CP1305: 36 | CQ1305: 48 | CR1305: 73 | CS1305: 12 | CT1305: 18 | CU1305: 3 | CV1305: 7 | CW1305: 3 | CX1305: 1 | CY1305: 5 | CZ1305: 1 | DA1305: 1 | DB1305: 3 | DC1305: 1 | DD1305: 3 | DE1305: 3 | DF1305: 4 | DG1305: 2 | DH1305: 4 | DI1305: 0 | DJ1305: 3 | DK1305: 1 | DL1305: 4 | DM1305: 7 | DN1305: 8 | DO1305: 5 | DP1305: 4 | DQ1305: 1 | DR1305: 2 | DS1305: 6 | DT1305: 12
A1306: 37 | B1306: 25 | C1306: 59 | D1306: 2 | E1306: 9 | F1306: 2 | G1306: 6 | H1306: 2 | I1306: 5 | J1306: 3 | K1306: 4 | L1306: 1 | M1306: 1 | N1306: 2 | O1306: 2 | P1306: 0 | Q1306: 4 | R1306: 0 | S1306: 5 | T1306: 2 | U1306: 0 | V1306: 0 | W1306: 4 | X1306: 6 | Y1306: 7 | Z1306: 3 | AA1306: 4 | AB1306: 1 | AC1306: 4 | AD1306: 2 | AE1306: 4 | AF1306: 37 | AG1306: 1 | AH1306: 21 | AI1306: 0 | AJ1306: 1 | AK1306: 0 | AL1306: 2 | AM1306: 1 | AN1306: 2 | AO1306: 0 | AP1306: 1 | AQ1306: 0 | AR1306: 1 | AS1306: 0 | AT1306: 1 | AU1306: 0 | AV1306: 0 | AW1306: 0 | AX1306: 3 | AY1306: 0 | AZ1306: 3 | BA1306: 0 | BB1306: 2 | BC1306: 0 | BD1306: 0 | BE1306: 0 | BF1306: 2 | BG1306: 0 | BH1306: 1 | BI1306: 0 | BJ1306: 3 | BK1306: 37 | BL1306: 20 | BM1306: 24 | BN1306: 3 | BO1306: 6 | BP1306: 3 | BQ1306: 5 | BR1306: 1 | BS1306: 0 | BT1306: 1 | BU1306: 2 | BV1306: 1 | BW1306: 1 | BX1306: 1 | BY1306: 3 | BZ1306: 0 | CA1306: 0 | CB1306: 2 | CC1306: 0 | CD1306: 0 | CE1306: 0 | CF1306: 1 | CG1306: 0 | CH1306: 2 | CI1306: 8 | CJ1306: 3 | CK1306: 2 | CL1306: 3 | CM1306: 0 | CN1306: 1 | CO1306: 1 | CP1306: 37 | CQ1306: 67 | CR1306: 83 | CS1306: 20 | CT1306: 26 | CU1306: 4 | CV1306: 15 | CW1306: 1 | CX1306: 2 | CY1306: 8 | CZ1306: 4 | DA1306: 0 | DB1306: 1 | DC1306: 2 | DD1306: 3 | DE1306: 4 | DF1306: 2 | DG1306: 5 | DH1306: 6 | DI1306: 1 | DJ1306: 2 | DK1306: 1 | DL1306: 4 | DM1306: 9 | DN1306: 4 | DO1306: 1 | DP1306: 4 | DQ1306: 5 | DR1306: 4 | DS1306: 10 | DT1306: 10
A1307: 38 | B1307: 19 | C1307: 54 | D1307: 5 | E1307: 15 | F1307: 1 | G1307: 9 | H1307: 2 | I1307: 3 | J1307: 0 | K1307: 3 | L1307: 1 | M1307: 0 | N1307: 0 | O1307: 2 | P1307: 0 | Q1307: 5 | R1307: 0 | S1307: 1 | T1307: 0 | U1307: 2 | V1307: 1 | W1307: 3 | X1307: 2 | Y1307: 4 | Z1307: 2 | AA1307: 1 | AB1307: 1 | AC1307: 3 | AD1307: 5 | AE1307: 5 | AF1307: 38 | AG1307: 3 | AH1307: 11 | AI1307: 2 | AJ1307: 1 | AK1307: 0 | AL1307: 2 | AM1307: 0 | AN1307: 1 | AO1307: 0 | AP1307: 0 | AQ1307: 0 | AR1307: 0 | AS1307: 0 | AT1307: 1 | AU1307: 0 | AV1307: 0 | AW1307: 0 | AX1307: 0 | AY1307: 0 | AZ1307: 0 | BA1307: 0 | BB1307: 0 | BC1307: 0 | BD1307: 0 | BE1307: 0 | BF1307: 3 | BG1307: 0 | BH1307: 2 | BI1307: 1 | BJ1307: 1 | BK1307: 38 | BL1307: 12 | BM1307: 30 | BN1307: 2 | BO1307: 8 | BP1307: 0 | BQ1307: 3 | BR1307: 1 | BS1307: 3 | BT1307: 0 | BU1307: 1 | BV1307: 1 | BW1307: 0 | BX1307: 0 | BY1307: 1 | BZ1307: 1 | CA1307: 1 | CB1307: 0 | CC1307: 2 | CD1307: 0 | CE1307: 1 | CF1307: 1 | CG1307: 2 | CH1307: 3 | CI1307: 5 | CJ1307: 1 | CK1307: 1 | CL1307: 0 | CM1307: 1 | CN1307: 2 | CO1307: 1 | CP1307: 38 | CQ1307: 57 | CR1307: 63 | CS1307: 14 | CT1307: 17 | CU1307: 7 | CV1307: 6 | CW1307: 3 | CX1307: 3 | CY1307: 5 | CZ1307: 5 | DA1307: 4 | DB1307: 0 | DC1307: 1 | DD1307: 3 | DE1307: 3 | DF1307: 4 | DG1307: 6 | DH1307: 3 | DI1307: 3 | DJ1307: 1 | DK1307: 3 | DL1307: 3 | DM1307: 6 | DN1307: 5 | DO1307: 0 | DP1307: 4 | DQ1307: 2 | DR1307: 6 | DS1307: 4 | DT1307: 4
A1308: 39 | B1308: 29 | C1308: 57 | D1308: 6 | E1308: 14 | F1308: 2 | G1308: 3 | H1308: 1 | I1308: 5 | J1308: 1 | K1308: 3 | L1308: 2 | M1308: 0 | N1308: 0 | O1308: 5 | P1308: 2 | Q1308: 1 | R1308: 0 | S1308: 1 | T1308: 4 | U1308: 1 | V1308: 2 | W1308: 0 | X1308: 1 | Y1308: 4 | Z1308: 2 | AA1308: 6 | AB1308: 4 | AC1308: 3 | AD1308: 3 | AE1308: 11 | AF1308: 39 | AG1308: 1 | AH1308: 19 | AI1308: 0 | AJ1308: 6 | AK1308: 0 | AL1308: 3 | AM1308: 0 | AN1308: 1 | AO1308: 0 | AP1308: 1 | AQ1308: 0 | AR1308: 1 | AS1308: 0 | AT1308: 1 | AU1308: 0 | AV1308: 1 | AW1308: 0 | AX1308: 0 | AY1308: 0 | AZ1308: 0 | BA1308: 0 | BB1308: 0 | BC1308: 1 | BD1308: 1 | BE1308: 0 | BF1308: 1 | BG1308: 0 | BH1308: 0 | BI1308: 0 | BJ1308: 3 | BK1308: 39 | BL1308: 17 | BM1308: 29 | BN1308: 4 | BO1308: 8 | BP1308: 1 | BQ1308: 2 | BR1308: 2 | BS1308: 0 | BT1308: 1 | BU1308: 2 | BV1308: 0 | BW1308: 0 | BX1308: 2 | BY1308: 2 | BZ1308: 0 | CA1308: 0 | CB1308: 1 | CC1308: 3 | CD1308: 0 | CE1308: 0 | CF1308: 0 | CG1308: 1 | CH1308: 3 | CI1308: 3 | CJ1308: 0 | CK1308: 1 | CL1308: 1 | CM1308: 2 | CN1308: 3 | CO1308: 7 | CP1308: 39 | CQ1308: 37 | CR1308: 51 | CS1308: 5 | CT1308: 16 | CU1308: 7 | CV1308: 4 | CW1308: 2 | CX1308: 1 | CY1308: 1 | CZ1308: 2 | DA1308: 0 | DB1308: 0 | DC1308: 2 | DD1308: 0 | DE1308: 2 | DF1308: 4 | DG1308: 1 | DH1308: 1 | DI1308: 1 | DJ1308: 2 | DK1308: 1 | DL1308: 0 | DM1308: 4 | DN1308: 8 | DO1308: 8 | DP1308: 5 | DQ1308: 3 | DR1308: 5 | DS1308: 2 | DT1308: 3
A1309: 40 | B1309: 32 | C1309: 59 | D1309: 3 | E1309: 19 | F1309: 4 | G1309: 6 | H1309: 4 | I1309: 5 | J1309: 1 | K1309: 2 | L1309: 1 | M1309: 1 | N1309: 2 | O1309: 4 | P1309: 0 | Q1309: 2 | R1309: 6 | S1309: 1 | T1309: 3 | U1309: 1 | V1309: 1 | W1309: 3 | X1309: 2 | Y1309: 5 | Z1309: 2 | AA1309: 1 | AB1309: 4 | AC1309: 1 | AD1309: 0 | AE1309: 8 | AF1309: 40 | AG1309: 1 | AH1309: 16 | AI1309: 1 | AJ1309: 0 | AK1309: 0 | AL1309: 4 | AM1309: 0 | AN1309: 1 | AO1309: 0 | AP1309: 1 | AQ1309: 0 | AR1309: 0 | AS1309: 0 | AT1309: 2 | AU1309: 0 | AV1309: 1 | AW1309: 0 | AX1309: 2 | AY1309: 0 | AZ1309: 2 | BA1309: 0 | BB1309: 1 | BC1309: 0 | BD1309: 1 | BE1309: 0 | BF1309: 0 | BG1309: 0 | BH1309: 1 | BI1309: 0 | BJ1309: 0 | BK1309: 40 | BL1309: 17 | BM1309: 32 | BN1309: 4 | BO1309: 9 | BP1309: 2 | BQ1309: 2 | BR1309: 0 | BS1309: 3 | BT1309: 0 | BU1309: 1 | BV1309: 0 | BW1309: 0 | BX1309: 2 | BY1309: 1 | BZ1309: 1 | CA1309: 0 | CB1309: 1 | CC1309: 1 | CD1309: 1 | CE1309: 2 | CF1309: 0 | CG1309: 3 | CH1309: 3 | CI1309: 4 | CJ1309: 2 | CK1309: 3 | CL1309: 1 | CM1309: 3 | CN1309: 2 | CO1309: 3 | CP1309: 40 | CQ1309: 53 | CR1309: 51 | CS1309: 14 | CT1309: 15 | CU1309: 4 | CV1309: 4 | CW1309: 2 | CX1309: 1 | CY1309: 4 | CZ1309: 4 | DA1309: 0 | DB1309: 0 | DC1309: 3 | DD1309: 2 | DE1309: 1 | DF1309: 3 | DG1309: 3 | DH1309: 3 | DI1309: 3 | DJ1309: 3 | DK1309: 3 | DL1309: 1 | DM1309: 6 | DN1309: 8 | DO1309: 6 | DP1309: 2 | DQ1309: 3 | DR1309: 0 | DS1309: 3 | DT1309: 7
A1310: 41 | B1310: 27 | C1310: 69 | D1310: 1 | E1310: 13 | F1310: 4 | G1310: 6 | H1310: 1 | I1310: 1 | J1310: 1 | K1310: 5 | L1310: 0 | M1310: 1 | N1310: 3 | O1310: 6 | P1310: 1 | Q1310: 5 | R1310: 2 | S1310: 6 | T1310: 1 | U1310: 3 | V1310: 2 | W1310: 3 | X1310: 4 | Y1310: 8 | Z1310: 1 | AA1310: 0 | AB1310: 2 | AC1310: 3 | AD1310: 4 | AE1310: 9 | AF1310: 41 | AG1310: 4 | AH1310: 22 | AI1310: 0 | AJ1310: 3 | AK1310: 0 | AL1310: 3 | AM1310: 0 | AN1310: 1 | AO1310: 0 | AP1310: 2 | AQ1310: 0 | AR1310: 3 | AS1310: 1 | AT1310: 1 | AU1310: 0 | AV1310: 0 | AW1310: 0 | AX1310: 1 | AY1310: 0 | AZ1310: 1 | BA1310: 0 | BB1310: 2 | BC1310: 1 | BD1310: 2 | BE1310: 1 | BF1310: 1 | BG1310: 0 | BH1310: 2 | BI1310: 1 | BJ1310: 1 | BK1310: 41 | BL1310: 18 | BM1310: 36 | BN1310: 3 | BO1310: 14 | BP1310: 1 | BQ1310: 2 | BR1310: 2 | BS1310: 1 | BT1310: 0 | BU1310: 3 | BV1310: 0 | BW1310: 0 | BX1310: 1 | BY1310: 0 | BZ1310: 0 | CA1310: 1 | CB1310: 3 | CC1310: 5 | CD1310: 1 | CE1310: 1 | CF1310: 0 | CG1310: 1 | CH1310: 3 | CI1310: 4 | CJ1310: 2 | CK1310: 3 | CL1310: 0 | CM1310: 0 | CN1310: 2 | CO1310: 3 | CP1310: 41 | CQ1310: 45 | CR1310: 56 | CS1310: 8 | CT1310: 10 | CU1310: 3 | CV1310: 7 | CW1310: 4 | CX1310: 2 | CY1310: 2 | CZ1310: 4 | DA1310: 2 | DB1310: 2 | DC1310: 2 | DD1310: 6 | DE1310: 1 | DF1310: 1 | DG1310: 3 | DH1310: 1 | DI1310: 2 | DJ1310: 2 | DK1310: 4 | DL1310: 2 | DM1310: 4 | DN1310: 5 | DO1310: 6 | DP1310: 4 | DQ1310: 2 | DR1310: 6 | DS1310: 6 | DT1310: 5
A1311: 42 | B1311: 36 | C1311: 78 | D1311: 2 | E1311: 9 | F1311: 5 | G1311: 12 | H1311: 6 | I1311: 2 | J1311: 1 | K1311: 5 | L1311: 3 | M1311: 0 | N1311: 2 | O1311: 7 | P1311: 0 | Q1311: 1 | R1311: 2 | S1311: 5 | T1311: 4 | U1311: 4 | V1311: 1 | W1311: 2 | X1311: 3 | Y1311: 10 | Z1311: 2 | AA1311: 2 | AB1311: 2 | AC1311: 4 | AD1311: 4 | AE1311: 16 | AF1311: 42 | AG1311: 4 | AH1311: 22 | AI1311: 1 | AJ1311: 2 | AK1311: 0 | AL1311: 2 | AM1311: 0 | AN1311: 5 | AO1311: 0 | AP1311: 1 | AQ1311: 0 | AR1311: 0 | AS1311: 0 | AT1311: 2 | AU1311: 1 | AV1311: 2 | AW1311: 2 | AX1311: 0 | AY1311: 0 | AZ1311: 2 | BA1311: 0 | BB1311: 0 | BC1311: 0 | BD1311: 2 | BE1311: 0 | BF1311: 1 | BG1311: 0 | BH1311: 1 | BI1311: 0 | BJ1311: 2 | BK1311: 42 | BL1311: 15 | BM1311: 31 | BN1311: 3 | BO1311: 5 | BP1311: 4 | BQ1311: 4 | BR1311: 0 | BS1311: 5 | BT1311: 0 | BU1311: 2 | BV1311: 0 | BW1311: 1 | BX1311: 2 | BY1311: 0 | BZ1311: 0 | CA1311: 1 | CB1311: 0 | CC1311: 1 | CD1311: 1 | CE1311: 1 | CF1311: 1 | CG1311: 2 | CH1311: 1 | CI1311: 4 | CJ1311: 1 | CK1311: 2 | CL1311: 0 | CM1311: 2 | CN1311: 2 | CO1311: 3 | CP1311: 42 | CQ1311: 35 | CR1311: 62 | CS1311: 9 | CT1311: 9 | CU1311: 1 | CV1311: 4 | CW1311: 0 | CX1311: 4 | CY1311: 3 | CZ1311: 7 | DA1311: 1 | DB1311: 1 | DC1311: 1 | DD1311: 2 | DE1311: 0 | DF1311: 1 | DG1311: 4 | DH1311: 1 | DI1311: 3 | DJ1311: 2 | DK1311: 0 | DL1311: 0 | DM1311: 4 | DN1311: 10 | DO1311: 1 | DP1311: 5 | DQ1311: 6 | DR1311: 7 | DS1311: 4 | DT1311: 10
A1312: 43 | B1312: 25 | C1312: 74 | D1312: 3 | E1312: 19 | F1312: 2 | G1312: 12 | H1312: 1 | I1312: 2 | J1312: 3 | K1312: 4 | L1312: 1 | M1312: 1 | N1312: 1 | O1312: 4 | P1312: 0 | Q1312: 2 | R1312: 3 | S1312: 5 | T1312: 0 | U1312: 1 | V1312: 2 | W1312: 2 | X1312: 2 | Y1312: 9 | Z1312: 1 | AA1312: 3 | AB1312: 1 | AC1312: 3 | AD1312: 5 | AE1312: 8 | AF1312: 43 | AG1312: 6 | AH1312: 37 | AI1312: 0 | AJ1312: 6 | AK1312: 1 | AL1312: 6 | AM1312: 0 | AN1312: 1 | AO1312: 0 | AP1312: 0 | AQ1312: 0 | AR1312: 0 | AS1312: 0 | AT1312: 5 | AU1312: 1 | AV1312: 3 | AW1312: 0 | AX1312: 1 | AY1312: 0 | AZ1312: 5 | BA1312: 0 | BB1312: 0 | BC1312: 3 | BD1312: 3 | BE1312: 0 | BF1312: 0 | BG1312: 0 | BH1312: 1 | BI1312: 1 | BJ1312: 6 | BK1312: 43 | BL1312: 21 | BM1312: 25 | BN1312: 2 | BO1312: 11 | BP1312: 1 | BQ1312: 4 | BR1312: 3 | BS1312: 2 | BT1312: 1 | BU1312: 3 | BV1312: 0 | BW1312: 1 | BX1312: 1 | BY1312: 1 | BZ1312: 0 | CA1312: 0 | CB1312: 1 | CC1312: 0 | CD1312: 0 | CE1312: 0 | CF1312: 1 | CG1312: 0 | CH1312: 4 | CI1312: 3 | CJ1312: 1 | CK1312: 0 | CL1312: 2 | CM1312: 0 | CN1312: 4 | CO1312: 2 | CP1312: 43 | CQ1312: 31 | CR1312: 62 | CS1312: 8 | CT1312: 9 | CU1312: 1 | CV1312: 4 | CW1312: 2 | CX1312: 1 | CY1312: 3 | CZ1312: 1 | DA1312: 1 | DB1312: 0 | DC1312: 4 | DD1312: 5 | DE1312: 0 | DF1312: 0 | DG1312: 2 | DH1312: 6 | DI1312: 2 | DJ1312: 3 | DK1312: 0 | DL1312: 2 | DM1312: 2 | DN1312: 8 | DO1312: 1 | DP1312: 4 | DQ1312: 2 | DR1312: 8 | DS1312: 4 | DT1312: 11
A1313: 44 | B1313: 46 | C1313: 87 | D1313: 4 | E1313: 18 | F1313: 5 | G1313: 15 | H1313: 1 | I1313: 1 | J1313: 2 | K1313: 6 | L1313: 5 | M1313: 3 | N1313: 7 | O1313: 7 | P1313: 0 | Q1313: 5 | R1313: 4 | S1313: 3 | T1313: 7 | U1313: 2 | V1313: 1 | W1313: 2 | X1313: 4 | Y1313: 8 | Z1313: 2 | AA1313: 5 | AB1313: 1 | AC1313: 3 | AD1313: 4 | AE1313: 9 | AF1313: 44 | AG1313: 2 | AH1313: 25 | AI1313: 0 | AJ1313: 5 | AK1313: 0 | AL1313: 5 | AM1313: 0 | AN1313: 2 | AO1313: 0 | AP1313: 1 | AQ1313: 0 | AR1313: 0 | AS1313: 0 | AT1313: 2 | AU1313: 0 | AV1313: 2 | AW1313: 0 | AX1313: 0 | AY1313: 0 | AZ1313: 2 | BA1313: 1 | BB1313: 0 | BC1313: 0 | BD1313: 0 | BE1313: 0 | BF1313: 0 | BG1313: 1 | BH1313: 1 | BI1313: 0 | BJ1313: 5 | BK1313: 44 | BL1313: 20 | BM1313: 21 | BN1313: 5 | BO1313: 4 | BP1313: 3 | BQ1313: 3 | BR1313: 1 | BS1313: 0 | BT1313: 0 | BU1313: 2 | BV1313: 1 | BW1313: 0 | BX1313: 1 | BY1313: 1 | BZ1313: 1 | CA1313: 0 | CB1313: 1 | CC1313: 2 | CD1313: 1 | CE1313: 1 | CF1313: 1 | CG1313: 1 | CH1313: 2 | CI1313: 4 | CJ1313: 1 | CK1313: 1 | CL1313: 0 | CM1313: 1 | CN1313: 4 | CO1313: 1 | CP1313: 44 | CQ1313: 37 | CR1313: 70 | CS1313: 8 | CT1313: 17 | CU1313: 4 | CV1313: 10 | CW1313: 1 | CX1313: 5 | CY1313: 2 | CZ1313: 3 | DA1313: 2 | DB1313: 0 | DC1313: 3 | DD1313: 3 | DE1313: 1 | DF1313: 0 | DG1313: 1 | DH1313: 3 | DI1313: 2 | DJ1313: 2 | DK1313: 1 | DL1313: 3 | DM1313: 1 | DN1313: 8 | DO1313: 4 | DP1313: 3 | DQ1313: 4 | DR1313: 7 | DS1313: 5 | DT1313: 7
A1314: 45 | B1314: 44 | C1314: 93 | D1314: 6 | E1314: 19 | F1314: 7 | G1314: 12 | H1314: 3 | I1314: 6 | J1314: 2 | K1314: 4 | L1314: 3 | M1314: 1 | N1314: 2 | O1314: 5 | P1314: 3 | Q1314: 4 | R1314: 2 | S1314: 2 | T1314: 2 | U1314: 5 | V1314: 3 | W1314: 1 | X1314: 4 | Y1314: 9 | Z1314: 4 | AA1314: 5 | AB1314: 0 | AC1314: 9 | AD1314: 6 | AE1314: 12 | AF1314: 45 | AG1314: 6 | AH1314: 27 | AI1314: 1 | AJ1314: 3 | AK1314: 0 | AL1314: 5 | AM1314: 0 | AN1314: 0 | AO1314: 1 | AP1314: 3 | AQ1314: 1 | AR1314: 0 | AS1314: 0 | AT1314: 2 | AU1314: 0 | AV1314: 0 | AW1314: 0 | AX1314: 2 | AY1314: 0 | AZ1314: 2 | BA1314: 0 | BB1314: 1 | BC1314: 1 | BD1314: 4 | BE1314: 1 | BF1314: 0 | BG1314: 0 | BH1314: 2 | BI1314: 1 | BJ1314: 3 | BK1314: 45 | BL1314: 24 | BM1314: 32 | BN1314: 7 | BO1314: 7 | BP1314: 3 | BQ1314: 4 | BR1314: 3 | BS1314: 2 | BT1314: 0 | BU1314: 3 | BV1314: 0 | BW1314: 1 | BX1314: 1 | BY1314: 0 | BZ1314: 1 | CA1314: 3 | CB1314: 1 | CC1314: 2 | CD1314: 0 | CE1314: 0 | CF1314: 5 | CG1314: 1 | CH1314: 1 | CI1314: 4 | CJ1314: 1 | CK1314: 0 | CL1314: 2 | CM1314: 3 | CN1314: 1 | CO1314: 2 | CP1314: 45 | CQ1314: 29 | CR1314: 94 | CS1314: 8 | CT1314: 23 | CU1314: 1 | CV1314: 12 | CW1314: 2 | CX1314: 5 | CY1314: 1 | CZ1314: 6 | DA1314: 3 | DB1314: 2 | DC1314: 3 | DD1314: 4 | DE1314: 0 | DF1314: 3 | DG1314: 1 | DH1314: 2 | DI1314: 1 | DJ1314: 3 | DK1314: 1 | DL1314: 6 | DM1314: 4 | DN1314: 9 | DO1314: 1 | DP1314: 7 | DQ1314: 1 | DR1314: 3 | DS1314: 3 | DT1314: 11
A1315: 46 | B1315: 34 | C1315: 85 | D1315: 9 | E1315: 9 | F1315: 2 | G1315: 13 | H1315: 5 | I1315: 2 | J1315: 0 | K1315: 4 | L1315: 1 | M1315: 3 | N1315: 1 | O1315: 6 | P1315: 3 | Q1315: 3 | R1315: 0 | S1315: 8 | T1315: 5 | U1315: 0 | V1315: 1 | W1315: 4 | X1315: 5 | Y1315: 7 | Z1315: 1 | AA1315: 5 | AB1315: 0 | AC1315: 11 | AD1315: 1 | AE1315: 10 | AF1315: 46 | AG1315: 12 | AH1315: 43 | AI1315: 0 | AJ1315: 5 | AK1315: 1 | AL1315: 2 | AM1315: 2 | AN1315: 4 | AO1315: 1 | AP1315: 3 | AQ1315: 0 | AR1315: 1 | AS1315: 1 | AT1315: 4 | AU1315: 0 | AV1315: 0 | AW1315: 1 | AX1315: 4 | AY1315: 0 | AZ1315: 4 | BA1315: 2 | BB1315: 1 | BC1315: 0 | BD1315: 6 | BE1315: 1 | BF1315: 1 | BG1315: 2 | BH1315: 1 | BI1315: 1 | BJ1315: 7 | BK1315: 46 | BL1315: 41 | BM1315: 34 | BN1315: 3 | BO1315: 12 | BP1315: 3 | BQ1315: 2 | BR1315: 0 | BS1315: 1 | BT1315: 4 | BU1315: 3 | BV1315: 2 | BW1315: 0 | BX1315: 4 | BY1315: 1 | BZ1315: 2 | CA1315: 2 | CB1315: 1 | CC1315: 1 | CD1315: 2 | CE1315: 3 | CF1315: 1 | CG1315: 2 | CH1315: 3 | CI1315: 2 | CJ1315: 8 | CK1315: 3 | CL1315: 4 | CM1315: 1 | CN1315: 8 | CO1315: 2 | CP1315: 46 | CQ1315: 27 | CR1315: 93 | CS1315: 5 | CT1315: 13 | CU1315: 4 | CV1315: 11 | CW1315: 0 | CX1315: 7 | CY1315: 3 | CZ1315: 8 | DA1315: 0 | DB1315: 2 | DC1315: 0 | DD1315: 5 | DE1315: 0 | DF1315: 5 | DG1315: 1 | DH1315: 7 | DI1315: 2 | DJ1315: 5 | DK1315: 0 | DL1315: 2 | DM1315: 1 | DN1315: 13 | DO1315: 2 | DP1315: 4 | DQ1315: 5 | DR1315: 3 | DS1315: 4 | DT1315: 9
A1316: 47 | B1316: 35 | C1316: 90 | D1316: 5 | E1316: 14 | F1316: 4 | G1316: 6 | H1316: 1 | I1316: 6 | J1316: 1 | K1316: 3 | L1316: 1 | M1316: 1 | N1316: 4 | O1316: 5 | P1316: 2 | Q1316: 4 | R1316: 3 | S1316: 7 | T1316: 3 | U1316: 7 | V1316: 1 | W1316: 2 | X1316: 2 | Y1316: 12 | Z1316: 5 | AA1316: 6 | AB1316: 2 | AC1316: 5 | AD1316: 1 | AE1316: 12 | AF1316: 47 | AG1316: 5 | AH1316: 33 | AI1316: 1 | AJ1316: 1 | AK1316: 1 | AL1316: 3 | AM1316: 0 | AN1316: 0 | AO1316: 0 | AP1316: 0 | AQ1316: 0 | AR1316: 2 | AS1316: 0 | AT1316: 4 | AU1316: 1 | AV1316: 1 | AW1316: 0 | AX1316: 1 | AY1316: 1 | AZ1316: 1 | BA1316: 0 | BB1316: 0 | BC1316: 1 | BD1316: 3 | BE1316: 0 | BF1316: 6 | BG1316: 0 | BH1316: 4 | BI1316: 0 | BJ1316: 7 | BK1316: 47 | BL1316: 33 | BM1316: 21 | BN1316: 6 | BO1316: 5 | BP1316: 3 | BQ1316: 1 | BR1316: 1 | BS1316: 1 | BT1316: 1 | BU1316: 1 | BV1316: 2 | BW1316: 1 | BX1316: 2 | BY1316: 2 | BZ1316: 1 | CA1316: 2 | CB1316: 4 | CC1316: 1 | CD1316: 3 | CE1316: 0 | CF1316: 1 | CG1316: 1 | CH1316: 3 | CI1316: 4 | CJ1316: 2 | CK1316: 1 | CL1316: 0 | CM1316: 0 | CN1316: 8 | CO1316: 1 | CP1316: 47 | CQ1316: 38 | CR1316: 81 | CS1316: 7 | CT1316: 16 | CU1316: 2 | CV1316: 13 | CW1316: 3 | CX1316: 4 | CY1316: 2 | CZ1316: 7 | DA1316: 1 | DB1316: 2 | DC1316: 2 | DD1316: 6 | DE1316: 2 | DF1316: 4 | DG1316: 1 | DH1316: 5 | DI1316: 0 | DJ1316: 4 | DK1316: 2 | DL1316: 4 | DM1316: 5 | DN1316: 4 | DO1316: 1 | DP1316: 2 | DQ1316: 4 | DR1316: 4 | DS1316: 8 | DT1316: 6
A1317: 48 | B1317: 35 | C1317: 76 | D1317: 6 | E1317: 15 | F1317: 5 | G1317: 15 | H1317: 0 | I1317: 2 | J1317: 2 | K1317: 5 | L1317: 0 | M1317: 0 | N1317: 3 | O1317: 7 | P1317: 5 | Q1317: 0 | R1317: 3 | S1317: 4 | T1317: 1 | U1317: 2 | V1317: 2 | W1317: 5 | X1317: 2 | Y1317: 9 | Z1317: 1 | AA1317: 7 | AB1317: 4 | AC1317: 3 | AD1317: 2 | AE1317: 5 | AF1317: 48 | AG1317: 9 | AH1317: 27 | AI1317: 1 | AJ1317: 4 | AK1317: 0 | AL1317: 0 | AM1317: 2 | AN1317: 1 | AO1317: 0 | AP1317: 3 | AQ1317: 1 | AR1317: 2 | AS1317: 2 | AT1317: 2 | AU1317: 0 | AV1317: 0 | AW1317: 0 | AX1317: 2 | AY1317: 1 | AZ1317: 1 | BA1317: 0 | BB1317: 1 | BC1317: 0 | BD1317: 4 | BE1317: 0 | BF1317: 3 | BG1317: 1 | BH1317: 2 | BI1317: 1 | BJ1317: 2 | BK1317: 48 | BL1317: 32 | BM1317: 26 | BN1317: 5 | BO1317: 7 | BP1317: 1 | BQ1317: 2 | BR1317: 1 | BS1317: 2 | BT1317: 1 | BU1317: 1 | BV1317: 3 | BW1317: 0 | BX1317: 1 | BY1317: 4 | BZ1317: 1 | CA1317: 1 | CB1317: 2 | CC1317: 0 | CD1317: 2 | CE1317: 0 | CF1317: 0 | CG1317: 1 | CH1317: 5 | CI1317: 4 | CJ1317: 2 | CK1317: 2 | CL1317: 2 | CM1317: 3 | CN1317: 6 | CO1317: 0 | CP1317: 48 | CQ1317: 37 | CR1317: 63 | CS1317: 5 | CT1317: 13 | CU1317: 1 | CV1317: 5 | CW1317: 3 | CX1317: 2 | CY1317: 5 | CZ1317: 6 | DA1317: 1 | DB1317: 1 | DC1317: 3 | DD1317: 6 | DE1317: 1 | DF1317: 3 | DG1317: 2 | DH1317: 2 | DI1317: 3 | DJ1317: 2 | DK1317: 0 | DL1317: 1 | DM1317: 7 | DN1317: 7 | DO1317: 3 | DP1317: 6 | DQ1317: 1 | DR1317: 3 | DS1317: 2 | DT1317: 6
A1318: 49 | B1318: 49 | C1318: 65 | D1318: 5 | E1318: 8 | F1318: 3 | G1318: 7 | H1318: 4 | I1318: 2 | J1318: 5 | K1318: 5 | L1318: 2 | M1318: 2 | N1318: 4 | O1318: 9 | P1318: 0 | Q1318: 4 | R1318: 3 | S1318: 2 | T1318: 2 | U1318: 6 | V1318: 2 | W1318: 4 | X1318: 8 | Y1318: 2 | Z1318: 5 | AA1318: 1 | AB1318: 0 | AC1318: 3 | AD1318: 7 | AE1318: 10 | AF1318: 49 | AG1318: 3 | AH1318: 34 | AI1318: 0 | AJ1318: 5 | AK1318: 1 | AL1318: 2 | AM1318: 0 | AN1318: 3 | AO1318: 0 | AP1318: 2 | AQ1318: 0 | AR1318: 2 | AS1318: 0 | AT1318: 2 | AU1318: 1 | AV1318: 1 | AW1318: 0 | AX1318: 4 | AY1318: 0 | AZ1318: 3 | BA1318: 0 | BB1318: 2 | BC1318: 0 | BD1318: 1 | BE1318: 0 | BF1318: 1 | BG1318: 1 | BH1318: 2 | BI1318: 0 | BJ1318: 5 | BK1318: 49 | BL1318: 28 | BM1318: 18 | BN1318: 4 | BO1318: 7 | BP1318: 5 | BQ1318: 0 | BR1318: 2 | BS1318: 0 | BT1318: 1 | BU1318: 0 | BV1318: 1 | BW1318: 2 | BX1318: 3 | BY1318: 1 | BZ1318: 0 | CA1318: 1 | CB1318: 0 | CC1318: 0 | CD1318: 2 | CE1318: 1 | CF1318: 2 | CG1318: 0 | CH1318: 3 | CI1318: 4 | CJ1318: 2 | CK1318: 1 | CL1318: 1 | CM1318: 0 | CN1318: 3 | CO1318: 1 | CP1318: 49 | CQ1318: 32 | CR1318: 59 | CS1318: 3 | CT1318: 7 | CU1318: 4 | CV1318: 7 | CW1318: 0 | CX1318: 5 | CY1318: 3 | CZ1318: 4 | DA1318: 2 | DB1318: 1 | DC1318: 3 | DD1318: 7 | DE1318: 0 | DF1318: 2 | DG1318: 3 | DH1318: 7 | DI1318: 0 | DJ1318: 3 | DK1318: 1 | DL1318: 3 | DM1318: 4 | DN1318: 3 | DO1318: 5 | DP1318: 2 | DQ1318: 0 | DR1318: 2 | DS1318: 5 | DT1318: 6
A1319: 50 | B1319: 49 | C1319: 71 | D1319: 4 | E1319: 17 | F1319: 2 | G1319: 10 | H1319: 2 | I1319: 3 | J1319: 2 | K1319: 1 | L1319: 0 | M1319: 2 | N1319: 6 | O1319: 5 | P1319: 3 | Q1319: 4 | R1319: 3 | S1319: 0 | T1319: 6 | U1319: 3 | V1319: 3 | W1319: 1 | X1319: 8 | Y1319: 8 | Z1319: 4 | AA1319: 1 | AB1319: 1 | AC1319: 5 | AD1319: 6 | AE1319: 13 | AF1319: 50 | AG1319: 3 | AH1319: 38 | AI1319: 0 | AJ1319: 3 | AK1319: 0 | AL1319: 4 | AM1319: 0 | AN1319: 1 | AO1319: 2 | AP1319: 4 | AQ1319: 0 | AR1319: 2 | AS1319: 0 | AT1319: 4 | AU1319: 0 | AV1319: 1 | AW1319: 0 | AX1319: 2 | AY1319: 1 | AZ1319: 2 | BA1319: 0 | BB1319: 0 | BC1319: 0 | BD1319: 3 | BE1319: 0 | BF1319: 5 | BG1319: 0 | BH1319: 2 | BI1319: 0 | BJ1319: 5 | BK1319: 50 | BL1319: 26 | BM1319: 23 | BN1319: 4 | BO1319: 4 | BP1319: 2 | BQ1319: 0 | BR1319: 1 | BS1319: 1 | BT1319: 1 | BU1319: 0 | BV1319: 0 | BW1319: 2 | BX1319: 2 | BY1319: 5 | BZ1319: 0 | CA1319: 0 | CB1319: 4 | CC1319: 1 | CD1319: 2 | CE1319: 2 | CF1319: 3 | CG1319: 0 | CH1319: 1 | CI1319: 4 | CJ1319: 2 | CK1319: 0 | CL1319: 0 | CM1319: 1 | CN1319: 4 | CO1319: 3 | CP1319: 50 | CQ1319: 31 | CR1319: 67 | CS1319: 9 | CT1319: 15 | CU1319: 5 | CV1319: 8 | CW1319: 3 | CX1319: 3 | CY1319: 0 | CZ1319: 6 | DA1319: 0 | DB1319: 3 | DC1319: 2 | DD1319: 3 | DE1319: 1 | DF1319: 1 | DG1319: 2 | DH1319: 6 | DI1319: 2 | DJ1319: 3 | DK1319: 1 | DL1319: 2 | DM1319: 1 | DN1319: 5 | DO1319: 2 | DP1319: 3 | DQ1319: 1 | DR1319: 4 | DS1319: 3 | DT1319: 5
A1320: 51 | B1320: 39 | C1320: 61 | D1320: 10 | E1320: 9 | F1320: 3 | G1320: 9 | H1320: 2 | I1320: 0 | J1320: 2 | K1320: 2 | L1320: 1 | M1320: 0 | N1320: 1 | O1320: 5 | P1320: 2 | Q1320: 2 | R1320: 4 | S1320: 2 | T1320: 1 | U1320: 2 | V1320: 1 | W1320: 2 | X1320: 6 | Y1320: 7 | Z1320: 2 | AA1320: 7 | AB1320: 2 | AC1320: 5 | AD1320: 2 | AE1320: 9 | AF1320: 51 | AG1320: 8 | AH1320: 43 | AI1320: 1 | AJ1320: 5 | AK1320: 0 | AL1320: 4 | AM1320: 1 | AN1320: 0 | AO1320: 0 | AP1320: 3 | AQ1320: 1 | AR1320: 1 | AS1320: 0 | AT1320: 3 | AU1320: 1 | AV1320: 4 | AW1320: 2 | AX1320: 1 | AY1320: 0 | AZ1320: 2 | BA1320: 1 | BB1320: 4 | BC1320: 0 | BD1320: 2 | BE1320: 0 | BF1320: 2 | BG1320: 1 | BH1320: 5 | BI1320: 0 | BJ1320: 7 | BK1320: 51 | BL1320: 33 | BM1320: 13 | BN1320: 8 | BO1320: 0 | BP1320: 2 | BQ1320: 2 | BR1320: 1 | BS1320: 0 | BT1320: 4 | BU1320: 2 | BV1320: 0 | BW1320: 0 | BX1320: 2 | BY1320: 1 | BZ1320: 1 | CA1320: 0 | CB1320: 0 | CC1320: 0 | CD1320: 3 | CE1320: 2 | CF1320: 2 | CG1320: 1 | CH1320: 2 | CI1320: 1 | CJ1320: 2 | CK1320: 1 | CL1320: 5 | CM1320: 1 | CN1320: 4 | CO1320: 2 | CP1320: 51 | CQ1320: 28 | CR1320: 67 | CS1320: 6 | CT1320: 10 | CU1320: 3 | CV1320: 7 | CW1320: 0 | CX1320: 5 | CY1320: 3 | CZ1320: 3 | DA1320: 1 | DB1320: 4 | DC1320: 2 | DD1320: 5 | DE1320: 2 | DF1320: 2 | DG1320: 3 | DH1320: 5 | DI1320: 1 | DJ1320: 2 | DK1320: 1 | DL1320: 6 | DM1320: 1 | DN1320: 6 | DO1320: 4 | DP1320: 2 | DQ1320: 1 | DR1320: 3 | DS1320: 2 | DT1320: 7
A1321: 52 | B1321: 50 | C1321: 54 | D1321: 3 | E1321: 9 | F1321: 7 | G1321: 6 | H1321: 4 | I1321: 4 | J1321: 0 | K1321: 0 | L1321: 4 | M1321: 1 | N1321: 5 | O1321: 1 | P1321: 1 | Q1321: 5 | R1321: 1 | S1321: 1 | T1321: 5 | U1321: 4 | V1321: 4 | W1321: 1 | X1321: 5 | Y1321: 6 | Z1321: 4 | AA1321: 3 | AB1321: 3 | AC1321: 4 | AD1321: 6 | AE1321: 9 | AF1321: 52 | AG1321: 9 | AH1321: 56 | AI1321: 2 | AJ1321: 7 | AK1321: 2 | AL1321: 4 | AM1321: 0 | AN1321: 4 | AO1321: 0 | AP1321: 5 | AQ1321: 0 | AR1321: 1 | AS1321: 0 | AT1321: 5 | AU1321: 0 | AV1321: 4 | AW1321: 0 | AX1321: 3 | AY1321: 0 | AZ1321: 2 | BA1321: 0 | BB1321: 0 | BC1321: 2 | BD1321: 10 | BE1321: 2 | BF1321: 1 | BG1321: 0 | BH1321: 4 | BI1321: 1 | BJ1321: 6 | BK1321: 52 | BL1321: 29 | BM1321: 22 | BN1321: 6 | BO1321: 7 | BP1321: 3 | BQ1321: 1 | BR1321: 1 | BS1321: 0 | BT1321: 4 | BU1321: 1 | BV1321: 0 | BW1321: 1 | BX1321: 1 | BY1321: 2 | BZ1321: 3 | CA1321: 0 | CB1321: 1 | CC1321: 2 | CD1321: 1 | CE1321: 0 | CF1321: 2 | CG1321: 2 | CH1321: 1 | CI1321: 2 | CJ1321: 2 | CK1321: 1 | CL1321: 3 | CM1321: 1 | CN1321: 2 | CO1321: 3 | CP1321: 52 | CQ1321: 40 | CR1321: 67 | CS1321: 10 | CT1321: 15 | CU1321: 3 | CV1321: 8 | CW1321: 1 | CX1321: 2 | CY1321: 3 | CZ1321: 5 | DA1321: 1 | DB1321: 2 | DC1321: 4 | DD1321: 7 | DE1321: 1 | DF1321: 1 | DG1321: 3 | DH1321: 6 | DI1321: 4 | DJ1321: 6 | DK1321: 2 | DL1321: 3 | DM1321: 5 | DN1321: 4 | DO1321: 1 | DP1321: 1 | DQ1321: 1 | DR1321: 2 | DS1321: 3 | DT1321: 5
A1322: 53 | B1322: 44 | C1322: 60 | D1322: 7 | E1322: 7 | F1322: 3 | G1322: 9 | H1322: 4 | I1322: 3 | J1322: 5 | K1322: 5 | L1322: 0 | M1322: 2 | N1322: 2 | O1322: 4 | P1322: 4 | Q1322: 2 | R1322: 3 | S1322: 3 | T1322: 3 | U1322: 0 | V1322: 0 | W1322: 2 | X1322: 4 | Y1322: 5 | Z1322: 5 | AA1322: 9 | AB1322: 2 | AC1322: 3 | AD1322: 4 | AE1322: 8 | AF1322: 53 | AG1322: 12 | AH1322: 61 | AI1322: 1 | AJ1322: 9 | AK1322: 1 | AL1322: 7 | AM1322: 0 | AN1322: 4 | AO1322: 0 | AP1322: 1 | AQ1322: 0 | AR1322: 1 | AS1322: 2 | AT1322: 4 | AU1322: 2 | AV1322: 2 | AW1322: 1 | AX1322: 1 | AY1322: 1 | AZ1322: 1 | BA1322: 2 | BB1322: 5 | BC1322: 2 | BD1322: 12 | BE1322: 0 | BF1322: 5 | BG1322: 0 | BH1322: 5 | BI1322: 0 | BJ1322: 4 | BK1322: 53 | BL1322: 29 | BM1322: 15 | BN1322: 7 | BO1322: 1 | BP1322: 6 | BQ1322: 2 | BR1322: 2 | BS1322: 2 | BT1322: 3 | BU1322: 0 | BV1322: 0 | BW1322: 1 | BX1322: 2 | BY1322: 1 | BZ1322: 1 | CA1322: 1 | CB1322: 2 | CC1322: 0 | CD1322: 1 | CE1322: 1 | CF1322: 1 | CG1322: 2 | CH1322: 2 | CI1322: 1 | CJ1322: 0 | CK1322: 1 | CL1322: 1 | CM1322: 3 | CN1322: 4 | CO1322: 1 | CP1322: 53 | CQ1322: 36 | CR1322: 62 | CS1322: 5 | CT1322: 11 | CU1322: 4 | CV1322: 7 | CW1322: 1 | CX1322: 1 | CY1322: 3 | CZ1322: 5 | DA1322: 1 | DB1322: 0 | DC1322: 1 | DD1322: 5 | DE1322: 1 | DF1322: 1 | DG1322: 4 | DH1322: 7 | DI1322: 2 | DJ1322: 5 | DK1322: 1 | DL1322: 3 | DM1322: 5 | DN1322: 7 | DO1322: 2 | DP1322: 3 | DQ1322: 4 | DR1322: 5 | DS1322: 2 | DT1322: 2
A1323: 54 | B1323: 51 | C1323: 68 | D1323: 5 | E1323: 10 | F1323: 5 | G1323: 8 | H1323: 6 | I1323: 2 | J1323: 4 | K1323: 5 | L1323: 1 | M1323: 3 | N1323: 2 | O1323: 3 | P1323: 1 | Q1323: 2 | R1323: 1 | S1323: 6 | T1323: 2 | U1323: 5 | V1323: 5 | W1323: 2 | X1323: 3 | Y1323: 10 | Z1323: 5 | AA1323: 1 | AB1323: 4 | AC1323: 4 | AD1323: 7 | AE1323: 7 | AF1323: 54 | AG1323: 4 | AH1323: 57 | AI1323: 0 | AJ1323: 5 | AK1323: 0 | AL1323: 6 | AM1323: 1 | AN1323: 4 | AO1323: 0 | AP1323: 3 | AQ1323: 1 | AR1323: 2 | AS1323: 2 | AT1323: 1 | AU1323: 0 | AV1323: 2 | AW1323: 0 | AX1323: 1 | AY1323: 0 | AZ1323: 5 | BA1323: 0 | BB1323: 3 | BC1323: 0 | BD1323: 9 | BE1323: 0 | BF1323: 8 | BG1323: 0 | BH1323: 2 | BI1323: 0 | BJ1323: 6 | BK1323: 54 | BL1323: 28 | BM1323: 14 | BN1323: 5 | BO1323: 4 | BP1323: 4 | BQ1323: 1 | BR1323: 3 | BS1323: 2 | BT1323: 0 | BU1323: 2 | BV1323: 0 | BW1323: 0 | BX1323: 2 | BY1323: 0 | BZ1323: 2 | CA1323: 0 | CB1323: 2 | CC1323: 1 | CD1323: 0 | CE1323: 1 | CF1323: 1 | CG1323: 1 | CH1323: 3 | CI1323: 2 | CJ1323: 4 | CK1323: 0 | CL1323: 0 | CM1323: 0 | CN1323: 3 | CO1323: 0 | CP1323: 54 | CQ1323: 30 | CR1323: 42 | CS1323: 6 | CT1323: 3 | CU1323: 3 | CV1323: 4 | CW1323: 2 | CX1323: 8 | CY1323: 3 | CZ1323: 4 | DA1323: 1 | DB1323: 2 | DC1323: 2 | DD1323: 3 | DE1323: 3 | DF1323: 2 | DG1323: 2 | DH1323: 3 | DI1323: 0 | DJ1323: 3 | DK1323: 3 | DL1323: 2 | DM1323: 2 | DN1323: 3 | DO1323: 0 | DP1323: 3 | DQ1323: 2 | DR1323: 1 | DS1323: 1 | DT1323: 1
A1324: 55 | B1324: 49 | C1324: 96 | D1324: 6 | E1324: 16 | F1324: 5 | G1324: 7 | H1324: 4 | I1324: 8 | J1324: 2 | K1324: 5 | L1324: 1 | M1324: 4 | N1324: 3 | O1324: 4 | P1324: 6 | Q1324: 4 | R1324: 2 | S1324: 2 | T1324: 3 | U1324: 4 | V1324: 2 | W1324: 3 | X1324: 2 | Y1324: 8 | Z1324: 2 | AA1324: 9 | AB1324: 6 | AC1324: 12 | AD1324: 5 | AE1324: 11 | AF1324: 55 | AG1324: 15 | AH1324: 60 | AI1324: 2 | AJ1324: 5 | AK1324: 0 | AL1324: 7 | AM1324: 1 | AN1324: 4 | AO1324: 0 | AP1324: 3 | AQ1324: 1 | AR1324: 1 | AS1324: 1 | AT1324: 5 | AU1324: 2 | AV1324: 1 | AW1324: 0 | AX1324: 4 | AY1324: 1 | AZ1324: 2 | BA1324: 1 | BB1324: 6 | BC1324: 2 | BD1324: 7 | BE1324: 0 | BF1324: 4 | BG1324: 2 | BH1324: 2 | BI1324: 2 | BJ1324: 9 | BK1324: 55 | BL1324: 31 | BM1324: 29 | BN1324: 5 | BO1324: 10 | BP1324: 4 | BQ1324: 3 | BR1324: 2 | BS1324: 2 | BT1324: 0 | BU1324: 0 | BV1324: 2 | BW1324: 0 | BX1324: 5 | BY1324: 2 | BZ1324: 0 | CA1324: 1 | CB1324: 3 | CC1324: 1 | CD1324: 1 | CE1324: 0 | CF1324: 1 | CG1324: 0 | CH1324: 7 | CI1324: 3 | CJ1324: 2 | CK1324: 4 | CL1324: 2 | CM1324: 2 | CN1324: 0 | CO1324: 3 | CP1324: 55 | CQ1324: 25 | CR1324: 47 | CS1324: 5 | CT1324: 9 | CU1324: 6 | CV1324: 8 | CW1324: 0 | CX1324: 1 | CY1324: 1 | CZ1324: 3 | DA1324: 0 | DB1324: 0 | DC1324: 2 | DD1324: 2 | DE1324: 0 | DF1324: 3 | DG1324: 4 | DH1324: 6 | DI1324: 0 | DJ1324: 4 | DK1324: 0 | DL1324: 2 | DM1324: 1 | DN1324: 5 | DO1324: 2 | DP1324: 1 | DQ1324: 1 | DR1324: 0 | DS1324: 3 | DT1324: 3
A1325: 56 | B1325: 71 | C1325: 107 | D1325: 7 | E1325: 15 | F1325: 5 | G1325: 9 | H1325: 9 | I1325: 7 | J1325: 3 | K1325: 5 | L1325: 4 | M1325: 0 | N1325: 4 | O1325: 7 | P1325: 2 | Q1325: 4 | R1325: 5 | S1325: 3 | T1325: 3 | U1325: 3 | V1325: 6 | W1325: 3 | X1325: 8 | Y1325: 22 | Z1325: 4 | AA1325: 7 | AB1325: 4 | AC1325: 5 | AD1325: 7 | AE1325: 17 | AF1325: 56 | AG1325: 15 | AH1325: 63 | AI1325: 3 | AJ1325: 7 | AK1325: 2 | AL1325: 5 | AM1325: 0 | AN1325: 5 | AO1325: 1 | AP1325: 4 | AQ1325: 0 | AR1325: 0 | AS1325: 2 | AT1325: 7 | AU1325: 0 | AV1325: 5 | AW1325: 0 | AX1325: 5 | AY1325: 0 | AZ1325: 2 | BA1325: 1 | BB1325: 2 | BC1325: 2 | BD1325: 5 | BE1325: 1 | BF1325: 2 | BG1325: 1 | BH1325: 6 | BI1325: 2 | BJ1325: 8 | BK1325: 56 | BL1325: 41 | BM1325: 27 | BN1325: 10 | BO1325: 6 | BP1325: 4 | BQ1325: 3 | BR1325: 3 | BS1325: 3 | BT1325: 1 | BU1325: 1 | BV1325: 2 | BW1325: 0 | BX1325: 4 | BY1325: 2 | BZ1325: 1 | CA1325: 0 | CB1325: 2 | CC1325: 1 | CD1325: 3 | CE1325: 1 | CF1325: 1 | CG1325: 1 | CH1325: 0 | CI1325: 3 | CJ1325: 4 | CK1325: 3 | CL1325: 5 | CM1325: 2 | CN1325: 4 | CO1325: 3 | CP1325: 56 | CQ1325: 27 | CR1325: 53 | CS1325: 3 | CT1325: 11 | CU1325: 2 | CV1325: 5 | CW1325: 3 | CX1325: 5 | CY1325: 2 | CZ1325: 2 | DA1325: 2 | DB1325: 3 | DC1325: 1 | DD1325: 5 | DE1325: 1 | DF1325: 3 | DG1325: 1 | DH1325: 4 | DI1325: 3 | DJ1325: 2 | DK1325: 1 | DL1325: 1 | DM1325: 4 | DN1325: 2 | DO1325: 3 | DP1325: 2 | DQ1325: 1 | DR1325: 4 | DS1325: 0 | DT1325: 4
A1326: 57 | B1326: 71 | C1326: 144 | D1326: 8 | E1326: 25 | F1326: 3 | G1326: 18 | H1326: 6 | I1326: 8 | J1326: 4 | K1326: 2 | L1326: 7 | M1326: 1 | N1326: 4 | O1326: 6 | P1326: 0 | Q1326: 1 | R1326: 10 | S1326: 10 | T1326: 8 | U1326: 7 | V1326: 2 | W1326: 6 | X1326: 6 | Y1326: 22 | Z1326: 3 | AA1326: 15 | AB1326: 3 | AC1326: 8 | AD1326: 7 | AE1326: 17 | AF1326: 57 | AG1326: 12 | AH1326: 70 | AI1326: 0 | AJ1326: 10 | AK1326: 4 | AL1326: 14 | AM1326: 1 | AN1326: 8 | AO1326: 1 | AP1326: 1 | AQ1326: 0 | AR1326: 1 | AS1326: 0 | AT1326: 1 | AU1326: 0 | AV1326: 3 | AW1326: 2 | AX1326: 2 | AY1326: 0 | AZ1326: 6 | BA1326: 2 | BB1326: 5 | BC1326: 0 | BD1326: 5 | BE1326: 1 | BF1326: 5 | BG1326: 1 | BH1326: 4 | BI1326: 0 | BJ1326: 7 | BK1326: 57 | BL1326: 48 | BM1326: 18 | BN1326: 6 | BO1326: 3 | BP1326: 4 | BQ1326: 2 | BR1326: 0 | BS1326: 1 | BT1326: 5 | BU1326: 3 | BV1326: 1 | BW1326: 0 | BX1326: 3 | BY1326: 2 | BZ1326: 2 | CA1326: 1 | CB1326: 1 | CC1326: 1 | CD1326: 2 | CE1326: 0 | CF1326: 0 | CG1326: 0 | CH1326: 6 | CI1326: 3 | CJ1326: 4 | CK1326: 0 | CL1326: 5 | CM1326: 1 | CN1326: 10 | CO1326: 1 | CP1326: 57 | CQ1326: 33 | CR1326: 78 | CS1326: 8 | CT1326: 15 | CU1326: 2 | CV1326: 10 | CW1326: 3 | CX1326: 6 | CY1326: 3 | CZ1326: 5 | DA1326: 0 | DB1326: 4 | DC1326: 1 | DD1326: 4 | DE1326: 3 | DF1326: 1 | DG1326: 3 | DH1326: 5 | DI1326: 0 | DJ1326: 1 | DK1326: 2 | DL1326: 4 | DM1326: 4 | DN1326: 4 | DO1326: 2 | DP1326: 5 | DQ1326: 0 | DR1326: 3 | DS1326: 2 | DT1326: 11
A1327: 58 | B1327: 77 | C1327: 147 | D1327: 10 | E1327: 23 | F1327: 8 | G1327: 6 | H1327: 6 | I1327: 12 | J1327: 6 | K1327: 7 | L1327: 2 | M1327: 4 | N1327: 2 | O1327: 5 | P1327: 1 | Q1327: 7 | R1327: 6 | S1327: 5 | T1327: 5 | U1327: 6 | V1327: 2 | W1327: 7 | X1327: 9 | Y1327: 21 | Z1327: 5 | AA1327: 9 | AB1327: 3 | AC1327: 9 | AD1327: 13 | AE1327: 26 | AF1327: 58 | AG1327: 16 | AH1327: 88 | AI1327: 2 | AJ1327: 6 | AK1327: 3 | AL1327: 13 | AM1327: 1 | AN1327: 5 | AO1327: 1 | AP1327: 3 | AQ1327: 1 | AR1327: 1 | AS1327: 2 | AT1327: 4 | AU1327: 0 | AV1327: 1 | AW1327: 0 | AX1327: 7 | AY1327: 1 | AZ1327: 5 | BA1327: 2 | BB1327: 3 | BC1327: 2 | BD1327: 13 | BE1327: 1 | BF1327: 4 | BG1327: 1 | BH1327: 11 | BI1327: 0 | BJ1327: 12 | BK1327: 58 | BL1327: 43 | BM1327: 30 | BN1327: 5 | BO1327: 3 | BP1327: 5 | BQ1327: 4 | BR1327: 2 | BS1327: 2 | BT1327: 0 | BU1327: 2 | BV1327: 4 | BW1327: 1 | BX1327: 1 | BY1327: 3 | BZ1327: 2 | CA1327: 4 | CB1327: 4 | CC1327: 0 | CD1327: 5 | CE1327: 0 | CF1327: 3 | CG1327: 1 | CH1327: 8 | CI1327: 5 | CJ1327: 2 | CK1327: 1 | CL1327: 1 | CM1327: 0 | CN1327: 2 | CO1327: 4 | CP1327: 58 | CQ1327: 48 | CR1327: 153 | CS1327: 7 | CT1327: 22 | CU1327: 2 | CV1327: 15 | CW1327: 1 | CX1327: 7 | CY1327: 0 | CZ1327: 12 | DA1327: 2 | DB1327: 4 | DC1327: 3 | DD1327: 9 | DE1327: 4 | DF1327: 5 | DG1327: 7 | DH1327: 6 | DI1327: 4 | DJ1327: 5 | DK1327: 2 | DL1327: 7 | DM1327: 5 | DN1327: 22 | DO1327: 7 | DP1327: 7 | DQ1327: 0 | DR1327: 11 | DS1327: 4 | DT1327: 21
A1328: 59 | B1328: 98 | C1328: 165 | D1328: 6 | E1328: 27 | F1328: 7 | G1328: 16 | H1328: 9 | I1328: 6 | J1328: 4 | K1328: 3 | L1328: 2 | M1328: 3 | N1328: 3 | O1328: 5 | P1328: 4 | Q1328: 8 | R1328: 10 | S1328: 6 | T1328: 6 | U1328: 7 | V1328: 2 | W1328: 11 | X1328: 12 | Y1328: 28 | Z1328: 11 | AA1328: 12 | AB1328: 3 | AC1328: 17 | AD1328: 20 | AE1328: 18 | AF1328: 59 | AG1328: 12 | AH1328: 91 | AI1328: 1 | AJ1328: 6 | AK1328: 1 | AL1328: 8 | AM1328: 2 | AN1328: 7 | AO1328: 1 | AP1328: 9 | AQ1328: 1 | AR1328: 2 | AS1328: 1 | AT1328: 5 | AU1328: 1 | AV1328: 6 | AW1328: 0 | AX1328: 5 | AY1328: 0 | AZ1328: 5 | BA1328: 1 | BB1328: 4 | BC1328: 1 | BD1328: 10 | BE1328: 1 | BF1328: 5 | BG1328: 0 | BH1328: 4 | BI1328: 1 | BJ1328: 15 | BK1328: 59 | BL1328: 35 | BM1328: 26 | BN1328: 9 | BO1328: 6 | BP1328: 2 | BQ1328: 2 | BR1328: 1 | BS1328: 1 | BT1328: 3 | BU1328: 1 | BV1328: 1 | BW1328: 0 | BX1328: 3 | BY1328: 1 | BZ1328: 0 | CA1328: 2 | CB1328: 0 | CC1328: 1 | CD1328: 1 | CE1328: 1 | CF1328: 2 | CG1328: 1 | CH1328: 5 | CI1328: 7 | CJ1328: 1 | CK1328: 0 | CL1328: 1 | CM1328: 2 | CN1328: 6 | CO1328: 1 | CP1328: 59 | CQ1328: 50 | CR1328: 188 | CS1328: 10 | CT1328: 27 | CU1328: 2 | CV1328: 25 | CW1328: 4 | CX1328: 15 | CY1328: 0 | CZ1328: 16 | DA1328: 1 | DB1328: 4 | DC1328: 3 | DD1328: 11 | DE1328: 1 | DF1328: 6 | DG1328: 2 | DH1328: 10 | DI1328: 5 | DJ1328: 7 | DK1328: 3 | DL1328: 11 | DM1328: 8 | DN1328: 21 | DO1328: 3 | DP1328: 12 | DQ1328: 5 | DR1328: 11 | DS1328: 4 | DT1328: 13
A1329: 60 | B1329: 89 | C1329: 168 | D1329: 8 | E1329: 24 | F1329: 7 | G1329: 15 | H1329: 2 | I1329: 7 | J1329: 2 | K1329: 10 | L1329: 1 | M1329: 1 | N1329: 7 | O1329: 10 | P1329: 5 | Q1329: 3 | R1329: 9 | S1329: 11 | T1329: 7 | U1329: 6 | V1329: 5 | W1329: 11 | X1329: 12 | Y1329: 33 | Z1329: 7 | AA1329: 9 | AB1329: 4 | AC1329: 11 | AD1329: 14 | AE1329: 17 | AF1329: 60 | AG1329: 13 | AH1329: 81 | AI1329: 1 | AJ1329: 9 | AK1329: 4 | AL1329: 10 | AM1329: 1 | AN1329: 5 | AO1329: 0 | AP1329: 5 | AQ1329: 0 | AR1329: 5 | AS1329: 1 | AT1329: 3 | AU1329: 0 | AV1329: 2 | AW1329: 0 | AX1329: 4 | AY1329: 2 | AZ1329: 2 | BA1329: 0 | BB1329: 5 | BC1329: 1 | BD1329: 11 | BE1329: 1 | BF1329: 11 | BG1329: 0 | BH1329: 4 | BI1329: 2 | BJ1329: 5 | BK1329: 60 | BL1329: 37 | BM1329: 16 | BN1329: 8 | BO1329: 2 | BP1329: 5 | BQ1329: 3 | BR1329: 6 | BS1329: 1 | BT1329: 0 | BU1329: 0 | BV1329: 1 | BW1329: 1 | BX1329: 2 | BY1329: 1 | BZ1329: 0 | CA1329: 0 | CB1329: 2 | CC1329: 0 | CD1329: 1 | CE1329: 1 | CF1329: 0 | CG1329: 0 | CH1329: 4 | CI1329: 3 | CJ1329: 4 | CK1329: 0 | CL1329: 1 | CM1329: 2 | CN1329: 4 | CO1329: 2 | CP1329: 60 | CQ1329: 63 | CR1329: 208 | CS1329: 5 | CT1329: 21 | CU1329: 8 | CV1329: 28 | CW1329: 10 | CX1329: 14 | CY1329: 3 | CZ1329: 12 | DA1329: 1 | DB1329: 4 | DC1329: 6 | DD1329: 13 | DE1329: 2 | DF1329: 7 | DG1329: 2 | DH1329: 13 | DI1329: 6 | DJ1329: 10 | DK1329: 3 | DL1329: 9 | DM1329: 7 | DN1329: 25 | DO1329: 2 | DP1329: 18 | DQ1329: 3 | DR1329: 11 | DS1329: 5 | DT1329: 25
A1330: 61 | B1330: 93 | C1330: 175 | D1330: 8 | E1330: 26 | F1330: 14 | G1330: 15 | H1330: 10 | I1330: 11 | J1330: 7 | K1330: 8 | L1330: 3 | M1330: 3 | N1330: 10 | O1330: 19 | P1330: 3 | Q1330: 6 | R1330: 4 | S1330: 8 | T1330: 6 | U1330: 7 | V1330: 5 | W1330: 12 | X1330: 8 | Y1330: 29 | Z1330: 3 | AA1330: 10 | AB1330: 8 | AC1330: 4 | AD1330: 7 | AE1330: 17 | AF1330: 61 | AG1330: 16 | AH1330: 111 | AI1330: 3 | AJ1330: 18 | AK1330: 1 | AL1330: 12 | AM1330: 0 | AN1330: 3 | AO1330: 1 | AP1330: 6 | AQ1330: 0 | AR1330: 3 | AS1330: 1 | AT1330: 7 | AU1330: 1 | AV1330: 4 | AW1330: 1 | AX1330: 8 | AY1330: 0 | AZ1330: 3 | BA1330: 2 | BB1330: 8 | BC1330: 3 | BD1330: 16 | BE1330: 1 | BF1330: 8 | BG1330: 1 | BH1330: 3 | BI1330: 1 | BJ1330: 12 | BK1330: 61 | BL1330: 52 | BM1330: 17 | BN1330: 11 | BO1330: 4 | BP1330: 5 | BQ1330: 3 | BR1330: 4 | BS1330: 1 | BT1330: 4 | BU1330: 0 | BV1330: 4 | BW1330: 1 | BX1330: 2 | BY1330: 0 | BZ1330: 1 | CA1330: 0 | CB1330: 3 | CC1330: 1 | CD1330: 1 | CE1330: 0 | CF1330: 4 | CG1330: 2 | CH1330: 6 | CI1330: 2 | CJ1330: 4 | CK1330: 0 | CL1330: 1 | CM1330: 1 | CN1330: 4 | CO1330: 2 | CP1330: 61 | CQ1330: 70 | CR1330: 220 | CS1330: 7 | CT1330: 29 | CU1330: 4 | CV1330: 25 | CW1330: 3 | CX1330: 8 | CY1330: 5 | CZ1330: 20 | DA1330: 3 | DB1330: 4 | DC1330: 7 | DD1330: 17 | DE1330: 6 | DF1330: 7 | DG1330: 1 | DH1330: 13 | DI1330: 2 | DJ1330: 9 | DK1330: 5 | DL1330: 7 | DM1330: 11 | DN1330: 33 | DO1330: 8 | DP1330: 9 | DQ1330: 4 | DR1330: 11 | DS1330: 4 | DT1330: 30
A1331: 62 | B1331: 105 | C1331: 154 | D1331: 10 | E1331: 25 | F1331: 9 | G1331: 19 | H1331: 12 | I1331: 9 | J1331: 5 | K1331: 13 | L1331: 3 | M1331: 4 | N1331: 5 | O1331: 12 | P1331: 3 | Q1331: 9 | R1331: 8 | S1331: 6 | T1331: 6 | U1331: 1 | V1331: 8 | W1331: 7 | X1331: 12 | Y1331: 24 | Z1331: 8 | AA1331: 8 | AB1331: 5 | AC1331: 6 | AD1331: 11 | AE1331: 11 | AF1331: 62 | AG1331: 16 | AH1331: 95 | AI1331: 0 | AJ1331: 18 | AK1331: 2 | AL1331: 11 | AM1331: 0 | AN1331: 5 | AO1331: 0 | AP1331: 2 | AQ1331: 0 | AR1331: 2 | AS1331: 1 | AT1331: 7 | AU1331: 3 | AV1331: 5 | AW1331: 2 | AX1331: 5 | AY1331: 0 | AZ1331: 1 | BA1331: 1 | BB1331: 4 | BC1331: 2 | BD1331: 12 | BE1331: 3 | BF1331: 9 | BG1331: 1 | BH1331: 5 | BI1331: 1 | BJ1331: 9 | BK1331: 62 | BL1331: 41 | BM1331: 20 | BN1331: 14 | BO1331: 3 | BP1331: 3 | BQ1331: 2 | BR1331: 2 | BS1331: 0 | BT1331: 3 | BU1331: 2 | BV1331: 1 | BW1331: 1 | BX1331: 3 | BY1331: 3 | BZ1331: 2 | CA1331: 0 | CB1331: 1 | CC1331: 0 | CD1331: 1 | CE1331: 0 | CF1331: 3 | CG1331: 1 | CH1331: 4 | CI1331: 4 | CJ1331: 1 | CK1331: 2 | CL1331: 3 | CM1331: 1 | CN1331: 1 | CO1331: 1 | CP1331: 62 | CQ1331: 132 | CR1331: 270 | CS1331: 15 | CT1331: 44 | CU1331: 11 | CV1331: 19 | CW1331: 17 | CX1331: 24 | CY1331: 5 | CZ1331: 14 | DA1331: 7 | DB1331: 5 | DC1331: 14 | DD1331: 9 | DE1331: 9 | DF1331: 8 | DG1331: 1 | DH1331: 15 | DI1331: 1 | DJ1331: 12 | DK1331: 8 | DL1331: 18 | DM1331: 9 | DN1331: 49 | DO1331: 10 | DP1331: 22 | DQ1331: 11 | DR1331: 10 | DS1331: 16 | DT1331: 23
A1332: 63 | B1332: 96 | C1332: 128 | D1332: 9 | E1332: 28 | F1332: 9 | G1332: 13 | H1332: 6 | I1332: 6 | J1332: 7 | K1332: 6 | L1332: 3 | M1332: 1 | N1332: 10 | O1332: 6 | P1332: 4 | Q1332: 10 | R1332: 1 | S1332: 4 | T1332: 4 | U1332: 4 | V1332: 12 | W1332: 6 | X1332: 13 | Y1332: 18 | Z1332: 7 | AA1332: 5 | AB1332: 2 | AC1332: 6 | AD1332: 9 | AE1332: 15 | AF1332: 63 | AG1332: 14 | AH1332: 84 | AI1332: 1 | AJ1332: 14 | AK1332: 2 | AL1332: 11 | AM1332: 2 | AN1332: 1 | AO1332: 0 | AP1332: 2 | AQ1332: 0 | AR1332: 2 | AS1332: 2 | AT1332: 5 | AU1332: 1 | AV1332: 6 | AW1332: 0 | AX1332: 6 | AY1332: 2 | AZ1332: 5 | BA1332: 0 | BB1332: 7 | BC1332: 0 | BD1332: 8 | BE1332: 2 | BF1332: 7 | BG1332: 0 | BH1332: 1 | BI1332: 2 | BJ1332: 9 | BK1332: 63 | BL1332: 50 | BM1332: 14 | BN1332: 8 | BO1332: 3 | BP1332: 3 | BQ1332: 2 | BR1332: 4 | BS1332: 1 | BT1332: 3 | BU1332: 0 | BV1332: 2 | BW1332: 1 | BX1332: 3 | BY1332: 4 | BZ1332: 4 | CA1332: 0 | CB1332: 3 | CC1332: 0 | CD1332: 2 | CE1332: 1 | CF1332: 2 | CG1332: 0 | CH1332: 8 | CI1332: 1 | CJ1332: 3 | CK1332: 1 | CL1332: 4 | CM1332: 1 | CN1332: 5 | CO1332: 0 | CP1332: 63 | CQ1332: 138 | CR1332: 276 | CS1332: 25 | CT1332: 58 | CU1332: 9 | CV1332: 20 | CW1332: 11 | CX1332: 16 | CY1332: 3 | CZ1332: 16 | DA1332: 4 | DB1332: 11 | DC1332: 14 | DD1332: 15 | DE1332: 6 | DF1332: 10 | DG1332: 12 | DH1332: 12 | DI1332: 4 | DJ1332: 7 | DK1332: 6 | DL1332: 7 | DM1332: 13 | DN1332: 23 | DO1332: 11 | DP1332: 24 | DQ1332: 9 | DR1332: 21 | DS1332: 12 | DT1332: 36
A1333: 64 | B1333: 92 | C1333: 97 | D1333: 9 | E1333: 24 | F1333: 14 | G1333: 10 | H1333: 6 | I1333: 10 | J1333: 10 | K1333: 4 | L1333: 1 | M1333: 2 | N1333: 9 | O1333: 9 | P1333: 5 | Q1333: 3 | R1333: 3 | S1333: 5 | T1333: 6 | U1333: 1 | V1333: 3 | W1333: 2 | X1333: 10 | Y1333: 10 | Z1333: 2 | AA1333: 7 | AB1333: 5 | AC1333: 5 | AD1333: 12 | AE1333: 6 | AF1333: 64 | AG1333: 20 | AH1333: 70 | AI1333: 2 | AJ1333: 8 | AK1333: 5 | AL1333: 6 | AM1333: 3 | AN1333: 2 | AO1333: 0 | AP1333: 9 | AQ1333: 1 | AR1333: 0 | AS1333: 3 | AT1333: 3 | AU1333: 1 | AV1333: 3 | AW1333: 2 | AX1333: 3 | AY1333: 0 | AZ1333: 3 | BA1333: 0 | BB1333: 5 | BC1333: 2 | BD1333: 13 | BE1333: 0 | BF1333: 5 | BG1333: 0 | BH1333: 2 | BI1333: 1 | BJ1333: 8 | BK1333: 64 | BL1333: 48 | BM1333: 19 | BN1333: 9 | BO1333: 5 | BP1333: 3 | BQ1333: 2 | BR1333: 2 | BS1333: 0 | BT1333: 0 | BU1333: 0 | BV1333: 0 | BW1333: 0 | BX1333: 6 | BY1333: 2 | BZ1333: 0 | CA1333: 2 | CB1333: 4 | CC1333: 2 | CD1333: 2 | CE1333: 1 | CF1333: 3 | CG1333: 1 | CH1333: 6 | CI1333: 4 | CJ1333: 8 | CK1333: 0 | CL1333: 1 | CM1333: 0 | CN1333: 5 | CO1333: 0 | CP1333: 64 | CQ1333: 92 | CR1333: 188 | CS1333: 14 | CT1333: 45 | CU1333: 9 | CV1333: 22 | CW1333: 3 | CX1333: 4 | CY1333: 5 | CZ1333: 8 | DA1333: 2 | DB1333: 4 | DC1333: 4 | DD1333: 11 | DE1333: 6 | DF1333: 10 | DG1333: 6 | DH1333: 15 | DI1333: 4 | DJ1333: 11 | DK1333: 4 | DL1333: 11 | DM1333: 12 | DN1333: 19 | DO1333: 7 | DP1333: 7 | DQ1333: 4 | DR1333: 6 | DS1333: 13 | DT1333: 15
A1334: 65 | B1334: 71 | C1334: 85 | D1334: 10 | E1334: 15 | F1334: 6 | G1334: 12 | H1334: 3 | I1334: 5 | J1334: 3 | K1334: 4 | L1334: 2 | M1334: 3 | N1334: 8 | O1334: 6 | P1334: 4 | Q1334: 6 | R1334: 5 | S1334: 1 | T1334: 1 | U1334: 5 | V1334: 6 | W1334: 0 | X1334: 6 | Y1334: 13 | Z1334: 6 | AA1334: 7 | AB1334: 6 | AC1334: 2 | AD1334: 6 | AE1334: 6 | AF1334: 65 | AG1334: 13 | AH1334: 66 | AI1334: 0 | AJ1334: 7 | AK1334: 3 | AL1334: 12 | AM1334: 2 | AN1334: 8 | AO1334: 0 | AP1334: 4 | AQ1334: 1 | AR1334: 0 | AS1334: 2 | AT1334: 8 | AU1334: 0 | AV1334: 1 | AW1334: 2 | AX1334: 3 | AY1334: 0 | AZ1334: 2 | BA1334: 1 | BB1334: 4 | BC1334: 0 | BD1334: 3 | BE1334: 1 | BF1334: 4 | BG1334: 0 | BH1334: 5 | BI1334: 1 | BJ1334: 5 | BK1334: 65 | BL1334: 36 | BM1334: 19 | BN1334: 6 | BO1334: 3 | BP1334: 2 | BQ1334: 3 | BR1334: 3 | BS1334: 1 | BT1334: 1 | BU1334: 1 | BV1334: 0 | BW1334: 0 | BX1334: 4 | BY1334: 2 | BZ1334: 2 | CA1334: 1 | CB1334: 0 | CC1334: 0 | CD1334: 2 | CE1334: 0 | CF1334: 1 | CG1334: 0 | CH1334: 6 | CI1334: 5 | CJ1334: 3 | CK1334: 1 | CL1334: 2 | CM1334: 2 | CN1334: 4 | CO1334: 1 | CP1334: 65 | CQ1334: 68 | CR1334: 111 | CS1334: 10 | CT1334: 19 | CU1334: 7 | CV1334: 7 | CW1334: 3 | CX1334: 4 | CY1334: 5 | CZ1334: 7 | DA1334: 3 | DB1334: 7 | DC1334: 7 | DD1334: 5 | DE1334: 3 | DF1334: 5 | DG1334: 4 | DH1334: 2 | DI1334: 2 | DJ1334: 8 | DK1334: 3 | DL1334: 8 | DM1334: 6 | DN1334: 11 | DO1334: 5 | DP1334: 10 | DQ1334: 3 | DR1334: 5 | DS1334: 7 | DT1334: 13
A1335: 66 | B1335: 63 | C1335: 67 | D1335: 5 | E1335: 7 | F1335: 9 | G1335: 6 | H1335: 5 | I1335: 6 | J1335: 3 | K1335: 2 | L1335: 2 | M1335: 0 | N1335: 5 | O1335: 10 | P1335: 6 | Q1335: 7 | R1335: 8 | S1335: 3 | T1335: 1 | U1335: 2 | V1335: 1 | W1335: 4 | X1335: 8 | Y1335: 6 | Z1335: 6 | AA1335: 0 | AB1335: 3 | AC1335: 5 | AD1335: 3 | AE1335: 9 | AF1335: 66 | AG1335: 5 | AH1335: 67 | AI1335: 2 | AJ1335: 14 | AK1335: 1 | AL1335: 11 | AM1335: 0 | AN1335: 3 | AO1335: 0 | AP1335: 3 | AQ1335: 0 | AR1335: 2 | AS1335: 1 | AT1335: 5 | AU1335: 0 | AV1335: 2 | AW1335: 0 | AX1335: 4 | AY1335: 0 | AZ1335: 2 | BA1335: 0 | BB1335: 2 | BC1335: 1 | BD1335: 5 | BE1335: 0 | BF1335: 6 | BG1335: 0 | BH1335: 7 | BI1335: 0 | BJ1335: 1 | BK1335: 66 | BL1335: 31 | BM1335: 12 | BN1335: 4 | BO1335: 1 | BP1335: 3 | BQ1335: 3 | BR1335: 4 | BS1335: 1 | BT1335: 2 | BU1335: 0 | BV1335: 0 | BW1335: 0 | BX1335: 0 | BY1335: 2 | BZ1335: 1 | CA1335: 0 | CB1335: 2 | CC1335: 0 | CD1335: 0 | CE1335: 1 | CF1335: 2 | CG1335: 0 | CH1335: 5 | CI1335: 1 | CJ1335: 1 | CK1335: 2 | CL1335: 3 | CM1335: 0 | CN1335: 4 | CO1335: 1 | CP1335: 66 | CQ1335: 67 | CR1335: 97 | CS1335: 8 | CT1335: 15 | CU1335: 9 | CV1335: 11 | CW1335: 0 | CX1335: 5 | CY1335: 3 | CZ1335: 4 | DA1335: 2 | DB1335: 0 | DC1335: 8 | DD1335: 9 | DE1335: 2 | DF1335: 5 | DG1335: 2 | DH1335: 5 | DI1335: 2 | DJ1335: 7 | DK1335: 3 | DL1335: 4 | DM1335: 10 | DN1335: 8 | DO1335: 7 | DP1335: 7 | DQ1335: 2 | DR1335: 4 | DS1335: 9 | DT1335: 14
A1336: 67 | B1336: 39 | C1336: 47 | D1336: 7 | E1336: 14 | F1336: 5 | G1336: 7 | H1336: 5 | I1336: 0 | J1336: 1 | K1336: 2 | L1336: 0 | M1336: 1 | N1336: 3 | O1336: 3 | P1336: 0 | Q1336: 1 | R1336: 2 | S1336: 2 | T1336: 3 | U1336: 1 | V1336: 0 | W1336: 3 | X1336: 7 | Y1336: 5 | Z1336: 0 | AA1336: 2 | AB1336: 2 | AC1336: 5 | AD1336: 4 | AE1336: 3 | AF1336: 67 | AG1336: 17 | AH1336: 49 | AI1336: 0 | AJ1336: 12 | AK1336: 5 | AL1336: 6 | AM1336: 1 | AN1336: 2 | AO1336: 0 | AP1336: 2 | AQ1336: 3 | AR1336: 1 | AS1336: 4 | AT1336: 2 | AU1336: 0 | AV1336: 1 | AW1336: 0 | AX1336: 2 | AY1336: 0 | AZ1336: 1 | BA1336: 0 | BB1336: 2 | BC1336: 1 | BD1336: 10 | BE1336: 2 | BF1336: 5 | BG1336: 0 | BH1336: 1 | BI1336: 1 | BJ1336: 2 | BK1336: 67 | BL1336: 29 | BM1336: 16 | BN1336: 6 | BO1336: 2 | BP1336: 4 | BQ1336: 0 | BR1336: 1 | BS1336: 3 | BT1336: 0 | BU1336: 1 | BV1336: 2 | BW1336: 0 | BX1336: 0 | BY1336: 2 | BZ1336: 1 | CA1336: 0 | CB1336: 1 | CC1336: 1 | CD1336: 1 | CE1336: 0 | CF1336: 2 | CG1336: 1 | CH1336: 2 | CI1336: 4 | CJ1336: 5 | CK1336: 1 | CL1336: 2 | CM1336: 0 | CN1336: 3 | CO1336: 1 | CP1336: 67 | CQ1336: 60 | CR1336: 76 | CS1336: 10 | CT1336: 15 | CU1336: 11 | CV1336: 9 | CW1336: 5 | CX1336: 7 | CY1336: 2 | CZ1336: 1 | DA1336: 3 | DB1336: 2 | DC1336: 5 | DD1336: 5 | DE1336: 1 | DF1336: 2 | DG1336: 1 | DH1336: 3 | DI1336: 2 | DJ1336: 1 | DK1336: 2 | DL1336: 1 | DM1336: 5 | DN1336: 13 | DO1336: 3 | DP1336: 8 | DQ1336: 4 | DR1336: 0 | DS1336: 6 | DT1336: 10
A1337: 68 | B1337: 45 | C1337: 62 | D1337: 8 | E1337: 18 | F1337: 9 | G1337: 6 | H1337: 4 | I1337: 3 | J1337: 3 | K1337: 5 | L1337: 3 | M1337: 1 | N1337: 4 | O1337: 8 | P1337: 0 | Q1337: 0 | R1337: 2 | S1337: 1 | T1337: 0 | U1337: 1 | V1337: 3 | W1337: 0 | X1337: 2 | Y1337: 3 | Z1337: 3 | AA1337: 3 | AB1337: 1 | AC1337: 4 | AD1337: 3 | AE1337: 9 | AF1337: 68 | AG1337: 8 | AH1337: 38 | AI1337: 3 | AJ1337: 7 | AK1337: 1 | AL1337: 7 | AM1337: 0 | AN1337: 3 | AO1337: 0 | AP1337: 3 | AQ1337: 0 | AR1337: 2 | AS1337: 0 | AT1337: 3 | AU1337: 0 | AV1337: 2 | AW1337: 1 | AX1337: 3 | AY1337: 1 | AZ1337: 0 | BA1337: 0 | BB1337: 2 | BC1337: 0 | BD1337: 0 | BE1337: 0 | BF1337: 1 | BG1337: 1 | BH1337: 2 | BI1337: 1 | BJ1337: 3 | BK1337: 68 | BL1337: 17 | BM1337: 12 | BN1337: 4 | BO1337: 1 | BP1337: 2 | BQ1337: 2 | BR1337: 2 | BS1337: 1 | BT1337: 1 | BU1337: 2 | BV1337: 1 | BW1337: 0 | BX1337: 1 | BY1337: 0 | BZ1337: 2 | CA1337: 0 | CB1337: 0 | CC1337: 1 | CD1337: 0 | CE1337: 0 | CF1337: 1 | CG1337: 0 | CH1337: 2 | CI1337: 0 | CJ1337: 0 | CK1337: 0 | CL1337: 1 | CM1337: 0 | CN1337: 2 | CO1337: 5 | CP1337: 68 | CQ1337: 41 | CR1337: 77 | CS1337: 5 | CT1337: 16 | CU1337: 3 | CV1337: 6 | CW1337: 3 | CX1337: 2 | CY1337: 1 | CZ1337: 10 | DA1337: 1 | DB1337: 2 | DC1337: 2 | DD1337: 4 | DE1337: 2 | DF1337: 4 | DG1337: 3 | DH1337: 4 | DI1337: 2 | DJ1337: 4 | DK1337: 3 | DL1337: 4 | DM1337: 5 | DN1337: 3 | DO1337: 2 | DP1337: 8 | DQ1337: 3 | DR1337: 3 | DS1337: 6 | DT1337: 7
A1338: 69 | B1338: 46 | C1338: 77 | D1338: 8 | E1338: 22 | F1338: 7 | G1338: 6 | H1338: 4 | I1338: 4 | J1338: 1 | K1338: 6 | L1338: 3 | M1338: 2 | N1338: 2 | O1338: 5 | P1338: 2 | Q1338: 1 | R1338: 2 | S1338: 3 | T1338: 2 | U1338: 4 | V1338: 1 | W1338: 2 | X1338: 4 | Y1338: 7 | Z1338: 2 | AA1338: 3 | AB1338: 3 | AC1338: 4 | AD1338: 5 | AE1338: 8 | AF1338: 69 | AG1338: 6 | AH1338: 46 | AI1338: 1 | AJ1338: 8 | AK1338: 2 | AL1338: 4 | AM1338: 0 | AN1338: 1 | AO1338: 0 | AP1338: 1 | AQ1338: 0 | AR1338: 1 | AS1338: 0 | AT1338: 4 | AU1338: 2 | AV1338: 2 | AW1338: 1 | AX1338: 2 | AY1338: 0 | AZ1338: 2 | BA1338: 0 | BB1338: 4 | BC1338: 0 | BD1338: 6 | BE1338: 0 | BF1338: 3 | BG1338: 0 | BH1338: 1 | BI1338: 0 | BJ1338: 7 | BK1338: 69 | BL1338: 29 | BM1338: 9 | BN1338: 7 | BO1338: 2 | BP1338: 2 | BQ1338: 0 | BR1338: 2 | BS1338: 1 | BT1338: 1 | BU1338: 3 | BV1338: 2 | BW1338: 0 | BX1338: 2 | BY1338: 0 | BZ1338: 1 | CA1338: 2 | CB1338: 0 | CC1338: 1 | CD1338: 3 | CE1338: 0 | CF1338: 0 | CG1338: 0 | CH1338: 2 | CI1338: 0 | CJ1338: 2 | CK1338: 0 | CL1338: 1 | CM1338: 0 | CN1338: 4 | CO1338: 1 | CP1338: 69 | CQ1338: 38 | CR1338: 53 | CS1338: 7 | CT1338: 12 | CU1338: 1 | CV1338: 4 | CW1338: 4 | CX1338: 1 | CY1338: 3 | CZ1338: 3 | DA1338: 0 | DB1338: 0 | DC1338: 4 | DD1338: 4 | DE1338: 0 | DF1338: 1 | DG1338: 1 | DH1338: 4 | DI1338: 0 | DJ1338: 0 | DK1338: 3 | DL1338: 1 | DM1338: 1 | DN1338: 7 | DO1338: 1 | DP1338: 4 | DQ1338: 4 | DR1338: 1 | DS1338: 9 | DT1338: 11
A1339: 70 | B1339: 38 | C1339: 66 | D1339: 4 | E1339: 7 | F1339: 6 | G1339: 6 | H1339: 4 | I1339: 1 | J1339: 0 | K1339: 9 | L1339: 1 | M1339: 2 | N1339: 1 | O1339: 2 | P1339: 2 | Q1339: 2 | R1339: 5 | S1339: 6 | T1339: 3 | U1339: 0 | V1339: 3 | W1339: 4 | X1339: 2 | Y1339: 10 | Z1339: 3 | AA1339: 6 | AB1339: 1 | AC1339: 5 | AD1339: 3 | AE1339: 6 | AF1339: 70 | AG1339: 2 | AH1339: 28 | AI1339: 0 | AJ1339: 3 | AK1339: 0 | AL1339: 2 | AM1339: 1 | AN1339: 1 | AO1339: 1 | AP1339: 3 | AQ1339: 0 | AR1339: 1 | AS1339: 0 | AT1339: 3 | AU1339: 0 | AV1339: 1 | AW1339: 0 | AX1339: 0 | AY1339: 0 | AZ1339: 1 | BA1339: 0 | BB1339: 0 | BC1339: 0 | BD1339: 5 | BE1339: 0 | BF1339: 2 | BG1339: 0 | BH1339: 2 | BI1339: 0 | BJ1339: 4 | BK1339: 70 | BL1339: 22 | BM1339: 16 | BN1339: 8 | BO1339: 4 | BP1339: 0 | BQ1339: 2 | BR1339: 0 | BS1339: 0 | BT1339: 0 | BU1339: 1 | BV1339: 0 | BW1339: 0 | BX1339: 0 | BY1339: 1 | BZ1339: 0 | CA1339: 0 | CB1339: 4 | CC1339: 1 | CD1339: 0 | CE1339: 0 | CF1339: 0 | CG1339: 1 | CH1339: 4 | CI1339: 3 | CJ1339: 2 | CK1339: 0 | CL1339: 0 | CM1339: 1 | CN1339: 4 | CO1339: 2 | CP1339: 70 | CQ1339: 22 | CR1339: 57 | CS1339: 7 | CT1339: 9 | CU1339: 1 | CV1339: 4 | CW1339: 2 | CX1339: 2 | CY1339: 2 | CZ1339: 2 | DA1339: 1 | DB1339: 0 | DC1339: 2 | DD1339: 1 | DE1339: 0 | DF1339: 1 | DG1339: 1 | DH1339: 4 | DI1339: 0 | DJ1339: 1 | DK1339: 1 | DL1339: 4 | DM1339: 1 | DN1339: 10 | DO1339: 0 | DP1339: 4 | DQ1339: 0 | DR1339: 2 | DS1339: 5 | DT1339: 13
A1340: 71 | B1340: 39 | C1340: 43 | D1340: 4 | E1340: 11 | F1340: 5 | G1340: 5 | H1340: 2 | I1340: 5 | J1340: 2 | K1340: 3 | L1340: 1 | M1340: 1 | N1340: 5 | O1340: 7 | P1340: 0 | Q1340: 2 | R1340: 5 | S1340: 2 | T1340: 1 | U1340: 0 | V1340: 6 | W1340: 1 | X1340: 3 | Y1340: 2 | Z1340: 2 | AA1340: 1 | AB1340: 3 | AC1340: 0 | AD1340: 0 | AE1340: 3 | AF1340: 71 | AG1340: 2 | AH1340: 16 | AI1340: 0 | AJ1340: 2 | AK1340: 0 | AL1340: 4 | AM1340: 0 | AN1340: 0 | AO1340: 0 | AP1340: 0 | AQ1340: 0 | AR1340: 1 | AS1340: 0 | AT1340: 1 | AU1340: 0 | AV1340: 0 | AW1340: 0 | AX1340: 1 | AY1340: 0 | AZ1340: 1 | BA1340: 2 | BB1340: 0 | BC1340: 0 | BD1340: 3 | BE1340: 0 | BF1340: 2 | BG1340: 0 | BH1340: 0 | BI1340: 0 | BJ1340: 1 | BK1340: 71 | BL1340: 14 | BM1340: 20 | BN1340: 3 | BO1340: 7 | BP1340: 1 | BQ1340: 3 | BR1340: 0 | BS1340: 0 | BT1340: 2 | BU1340: 1 | BV1340: 0 | BW1340: 0 | BX1340: 2 | BY1340: 0 | BZ1340: 0 | CA1340: 1 | CB1340: 2 | CC1340: 1 | CD1340: 0 | CE1340: 1 | CF1340: 0 | CG1340: 0 | CH1340: 1 | CI1340: 2 | CJ1340: 0 | CK1340: 1 | CL1340: 0 | CM1340: 2 | CN1340: 3 | CO1340: 1 | CP1340: 71 | CQ1340: 22 | CR1340: 50 | CS1340: 4 | CT1340: 8 | CU1340: 4 | CV1340: 3 | CW1340: 0 | CX1340: 3 | CY1340: 2 | CZ1340: 3 | DA1340: 2 | DB1340: 0 | DC1340: 1 | DD1340: 3 | DE1340: 1 | DF1340: 1 | DG1340: 0 | DH1340: 0 | DI1340: 0 | DJ1340: 2 | DK1340: 2 | DL1340: 3 | DM1340: 1 | DN1340: 3 | DO1340: 0 | DP1340: 6 | DQ1340: 3 | DR1340: 3 | DS1340: 2 | DT1340: 12
A1341: 72 | B1341: 22 | C1341: 46 | D1341: 4 | E1341: 10 | F1341: 3 | G1341: 3 | H1341: 1 | I1341: 2 | J1341: 1 | K1341: 4 | L1341: 0 | M1341: 1 | N1341: 1 | O1341: 5 | P1341: 1 | Q1341: 1 | R1341: 1 | S1341: 6 | T1341: 0 | U1341: 0 | V1341: 1 | W1341: 0 | X1341: 4 | Y1341: 4 | Z1341: 1 | AA1341: 2 | AB1341: 2 | AC1341: 1 | AD1341: 2 | AE1341: 7 | AF1341: 72 | AG1341: 5 | AH1341: 15 | AI1341: 0 | AJ1341: 2 | AK1341: 1 | AL1341: 2 | AM1341: 0 | AN1341: 0 | AO1341: 1 | AP1341: 2 | AQ1341: 0 | AR1341: 1 | AS1341: 0 | AT1341: 1 | AU1341: 0 | AV1341: 0 | AW1341: 0 | AX1341: 0 | AY1341: 0 | AZ1341: 0 | BA1341: 0 | BB1341: 1 | BC1341: 2 | BD1341: 1 | BE1341: 0 | BF1341: 1 | BG1341: 0 | BH1341: 1 | BI1341: 1 | BJ1341: 3 | BK1341: 72 | BL1341: 16 | BM1341: 13 | BN1341: 4 | BO1341: 5 | BP1341: 1 | BQ1341: 1 | BR1341: 2 | BS1341: 1 | BT1341: 1 | BU1341: 0 | BV1341: 0 | BW1341: 0 | BX1341: 1 | BY1341: 1 | BZ1341: 0 | CA1341: 0 | CB1341: 1 | CC1341: 0 | CD1341: 2 | CE1341: 0 | CF1341: 0 | CG1341: 0 | CH1341: 1 | CI1341: 1 | CJ1341: 1 | CK1341: 0 | CL1341: 1 | CM1341: 1 | CN1341: 1 | CO1341: 3 | CP1341: 72 | CQ1341: 23 | CR1341: 33 | CS1341: 1 | CT1341: 8 | CU1341: 0 | CV1341: 0 | CW1341: 2 | CX1341: 2 | CY1341: 2 | CZ1341: 2 | DA1341: 0 | DB1341: 0 | DC1341: 1 | DD1341: 2 | DE1341: 0 | DF1341: 2 | DG1341: 2 | DH1341: 2 | DI1341: 3 | DJ1341: 0 | DK1341: 1 | DL1341: 3 | DM1341: 2 | DN1341: 5 | DO1341: 2 | DP1341: 1 | DQ1341: 0 | DR1341: 0 | DS1341: 7 | DT1341: 6
A1342: 73 | B1342: 18 | C1342: 32 | D1342: 2 | E1342: 5 | F1342: 2 | G1342: 6 | H1342: 0 | I1342: 1 | J1342: 0 | K1342: 4 | L1342: 0 | M1342: 2 | N1342: 3 | O1342: 4 | P1342: 2 | Q1342: 2 | R1342: 1 | S1342: 2 | T1342: 2 | U1342: 0 | V1342: 1 | W1342: 0 | X1342: 1 | Y1342: 1 | Z1342: 1 | AA1342: 3 | AB1342: 2 | AC1342: 0 | AD1342: 1 | AE1342: 2 | AF1342: 73 | AG1342: 4 | AH1342: 22 | AI1342: 0 | AJ1342: 6 | AK1342: 2 | AL1342: 1 | AM1342: 0 | AN1342: 0 | AO1342: 1 | AP1342: 1 | AQ1342: 0 | AR1342: 3 | AS1342: 0 | AT1342: 2 | AU1342: 0 | AV1342: 0 | AW1342: 0 | AX1342: 0 | AY1342: 0 | AZ1342: 3 | BA1342: 0 | BB1342: 0 | BC1342: 0 | BD1342: 1 | BE1342: 0 | BF1342: 0 | BG1342: 0 | BH1342: 1 | BI1342: 1 | BJ1342: 4 | BK1342: 73 | BL1342: 12 | BM1342: 11 | BN1342: 2 | BO1342: 5 | BP1342: 1 | BQ1342: 1 | BR1342: 0 | BS1342: 0 | BT1342: 3 | BU1342: 1 | BV1342: 1 | BW1342: 0 | BX1342: 1 | BY1342: 0 | BZ1342: 0 | CA1342: 0 | CB1342: 0 | CC1342: 0 | CD1342: 0 | CE1342: 0 | CF1342: 0 | CG1342: 1 | CH1342: 0 | CI1342: 0 | CJ1342: 2 | CK1342: 0 | CL1342: 1 | CM1342: 0 | CN1342: 1 | CO1342: 3 | CP1342: 73 | CQ1342: 27 | CR1342: 32 | CS1342: 8 | CT1342: 4 | CU1342: 2 | CV1342: 0 | CW1342: 1 | CX1342: 0 | CY1342: 0 | CZ1342: 1 | DA1342: 0 | DB1342: 3 | DC1342: 1 | DD1342: 5 | DE1342: 1 | DF1342: 0 | DG1342: 2 | DH1342: 4 | DI1342: 1 | DJ1342: 3 | DK1342: 1 | DL1342: 2 | DM1342: 6 | DN1342: 4 | DO1342: 1 | DP1342: 0 | DQ1342: 0 | DR1342: 2 | DS1342: 3 | DT1342: 4
A1343: 74 | B1343: 17 | C1343: 34 | D1343: 2 | E1343: 9 | F1343: 3 | G1343: 3 | H1343: 1 | I1343: 1 | J1343: 1 | K1343: 4 | L1343: 0 | M1343: 2 | N1343: 0 | O1343: 2 | P1343: 1 | Q1343: 0 | R1343: 1 | S1343: 2 | T1343: 2 | U1343: 0 | V1343: 0 | W1343: 2 | X1343: 3 | Y1343: 3 | Z1343: 0 | AA1343: 1 | AB1343: 2 | AC1343: 3 | AD1343: 1 | AE1343: 2 | AF1343: 74 | AG1343: 1 | AH1343: 18 | AI1343: 1 | AJ1343: 2 | AK1343: 0 | AL1343: 0 | AM1343: 0 | AN1343: 2 | AO1343: 0 | AP1343: 1 | AQ1343: 0 | AR1343: 0 | AS1343: 0 | AT1343: 1 | AU1343: 0 | AV1343: 1 | AW1343: 0 | AX1343: 0 | AY1343: 0 | AZ1343: 0 | BA1343: 0 | BB1343: 1 | BC1343: 0 | BD1343: 3 | BE1343: 0 | BF1343: 2 | BG1343: 0 | BH1343: 0 | BI1343: 0 | BJ1343: 5 | BK1343: 74 | BL1343: 8 | BM1343: 3 | BN1343: 2 | BO1343: 1 | BP1343: 0 | BQ1343: 0 | BR1343: 1 | BS1343: 0 | BT1343: 0 | BU1343: 1 | BV1343: 0 | BW1343: 0 | BX1343: 0 | BY1343: 0 | BZ1343: 1 | CA1343: 0 | CB1343: 0 | CC1343: 0 | CD1343: 0 | CE1343: 0 | CF1343: 0 | CG1343: 0 | CH1343: 0 | CI1343: 0 | CJ1343: 2 | CK1343: 0 | CL1343: 0 | CM1343: 0 | CN1343: 2 | CO1343: 1 | CP1343: 74 | CQ1343: 17 | CR1343: 19 | CS1343: 1 | CT1343: 6 | CU1343: 1 | CV1343: 1 | CW1343: 1 | CX1343: 1 | CY1343: 0 | CZ1343: 2 | DA1343: 0 | DB1343: 0 | DC1343: 1 | DD1343: 1 | DE1343: 1 | DF1343: 0 | DG1343: 1 | DH1343: 0 | DI1343: 2 | DJ1343: 1 | DK1343: 1 | DL1343: 1 | DM1343: 3 | DN1343: 0 | DO1343: 1 | DP1343: 1 | DQ1343: 2 | DR1343: 0 | DS1343: 2 | DT1343: 5
A1344: 75 | B1344: 13 | C1344: 34 | D1344: 0 | E1344: 10 | F1344: 2 | G1344: 4 | H1344: 1 | I1344: 2 | J1344: 0 | K1344: 1 | L1344: 0 | M1344: 3 | N1344: 2 | O1344: 2 | P1344: 0 | Q1344: 1 | R1344: 1 | S1344: 1 | T1344: 1 | U1344: 1 | V1344: 1 | W1344: 1 | X1344: 0 | Y1344: 3 | Z1344: 0 | AA1344: 0 | AB1344: 1 | AC1344: 0 | AD1344: 4 | AE1344: 5 | AF1344: 75 | AG1344: 1 | AH1344: 14 | AI1344: 1 | AJ1344: 4 | AK1344: 0 | AL1344: 1 | AM1344: 0 | AN1344: 0 | AO1344: 0 | AP1344: 1 | AQ1344: 0 | AR1344: 1 | AS1344: 0 | AT1344: 2 | AU1344: 0 | AV1344: 0 | AW1344: 0 | AX1344: 0 | AY1344: 0 | AZ1344: 0 | BA1344: 0 | BB1344: 1 | BC1344: 0 | BD1344: 1 | BE1344: 0 | BF1344: 0 | BG1344: 0 | BH1344: 1 | BI1344: 0 | BJ1344: 2 | BK1344: 75 | BL1344: 8 | BM1344: 6 | BN1344: 4 | BO1344: 3 | BP1344: 0 | BQ1344: 0 | BR1344: 0 | BS1344: 0 | BT1344: 0 | BU1344: 0 | BV1344: 0 | BW1344: 0 | BX1344: 2 | BY1344: 1 | BZ1344: 0 | CA1344: 0 | CB1344: 0 | CC1344: 0 | CD1344: 0 | CE1344: 1 | CF1344: 0 | CG1344: 1 | CH1344: 1 | CI1344: 0 | CJ1344: 0 | CK1344: 0 | CL1344: 0 | CM1344: 0 | CN1344: 1 | CO1344: 0 | CP1344: 75 | CQ1344: 15 | CR1344: 16 | CS1344: 5 | CT1344: 4 | CU1344: 0 | CV1344: 0 | CW1344: 1 | CX1344: 0 | CY1344: 0 | CZ1344: 1 | DA1344: 2 | DB1344: 0 | DC1344: 1 | DD1344: 1 | DE1344: 1 | DF1344: 0 | DG1344: 1 | DH1344: 1 | DI1344: 1 | DJ1344: 1 | DK1344: 0 | DL1344: 1 | DM1344: 1 | DN1344: 2 | DO1344: 0 | DP1344: 2 | DQ1344: 0 | DR1344: 1 | DS1344: 2 | DT1344: 2
A1345: 76 | B1345: 23 | C1345: 16 | D1345: 0 | E1345: 4 | F1345: 3 | G1345: 2 | H1345: 4 | I1345: 1 | J1345: 0 | K1345: 0 | L1345: 2 | M1345: 1 | N1345: 4 | O1345: 1 | P1345: 0 | Q1345: 0 | R1345: 2 | S1345: 0 | T1345: 0 | U1345: 0 | V1345: 1 | W1345: 0 | X1345: 0 | Y1345: 3 | Z1345: 2 | AA1345: 1 | AB1345: 2 | AC1345: 0 | AD1345: 3 | AE1345: 3 | AF1345: 76 | AG1345: 0 | AH1345: 4 | AI1345: 0 | AJ1345: 1 | AK1345: 0 | AL1345: 0 | AM1345: 0 | AN1345: 0 | AO1345: 0 | AP1345: 0 | AQ1345: 0 | AR1345: 0 | AS1345: 0 | AT1345: 1 | AU1345: 0 | AV1345: 0 | AW1345: 0 | AX1345: 1 | AY1345: 0 | AZ1345: 1 | BA1345: 0 | BB1345: 0 | BC1345: 0 | BD1345: 0 | BE1345: 0 | BF1345: 0 | BG1345: 0 | BH1345: 0 | BI1345: 0 | BJ1345: 0 | BK1345: 76 | BL1345: 7 | BM1345: 6 | BN1345: 3 | BO1345: 3 | BP1345: 2 | BQ1345: 0 | BR1345: 1 | BS1345: 0 | BT1345: 0 | BU1345: 0 | BV1345: 0 | BW1345: 0 | BX1345: 0 | BY1345: 0 | BZ1345: 0 | CA1345: 0 | CB1345: 0 | CC1345: 0 | CD1345: 0 | CE1345: 0 | CF1345: 1 | CG1345: 1 | CH1345: 0 | CI1345: 2 | CJ1345: 0 | CK1345: 0 | CL1345: 0 | CM1345: 0 | CN1345: 0 | CO1345: 0 | CP1345: 76 | CQ1345: 17 | CR1345: 10 | CS1345: 3 | CT1345: 1 | CU1345: 1 | CV1345: 0 | CW1345: 1 | CX1345: 0 | CY1345: 0 | CZ1345: 0 | DA1345: 1 | DB1345: 0 | DC1345: 2 | DD1345: 0 | DE1345: 2 | DF1345: 1 | DG1345: 0 | DH1345: 2 | DI1345: 1 | DJ1345: 1 | DK1345: 0 | DL1345: 0 | DM1345: 4 | DN1345: 2 | DO1345: 0 | DP1345: 1 | DQ1345: 1 | DR1345: 0 | DS1345: 1 | DT1345: 2
A1346: 77 | B1346: 7 | C1346: 10 | D1346: 0 | E1346: 3 | F1346: 1 | G1346: 2 | H1346: 0 | I1346: 0 | J1346: 1 | K1346: 1 | L1346: 1 | M1346: 1 | N1346: 0 | O1346: 0 | P1346: 2 | Q1346: 0 | R1346: 1 | S1346: 0 | T1346: 0 | U1346: 0 | V1346: 1 | W1346: 0 | X1346: 0 | Y1346: 1 | Z1346: 0 | AA1346: 0 | AB1346: 0 | AC1346: 1 | AD1346: 0 | AE1346: 1 | AF1346: 77 | AG1346: 1 | AH1346: 3 | AI1346: 0 | AJ1346: 1 | AK1346: 0 | AL1346: 1 | AM1346: 0 | AN1346: 0 | AO1346: 0 | AP1346: 1 | AQ1346: 0 | AR1346: 0 | AS1346: 0 | AT1346: 0 | AU1346: 1 | AV1346: 0 | AW1346: 0 | AX1346: 0 | AY1346: 0 | AZ1346: 0 | BA1346: 0 | BB1346: 0 | BC1346: 0 | BD1346: 0 | BE1346: 0 | BF1346: 0 | BG1346: 0 | BH1346: 0 | BI1346: 0 | BJ1346: 0 | BK1346: 77 | BL1346: 2 | BM1346: 5 | BN1346: 0 | BO1346: 1 | BP1346: 1 | BQ1346: 1 | BR1346: 0 | BS1346: 1 | BT1346: 0 | BU1346: 0 | BV1346: 0 | BW1346: 0 | BX1346: 0 | BY1346: 1 | BZ1346: 0 | CA1346: 0 | CB1346: 0 | CC1346: 0 | CD1346: 0 | CE1346: 0 | CF1346: 0 | CG1346: 0 | CH1346: 0 | CI1346: 0 | CJ1346: 1 | CK1346: 1 | CL1346: 0 | CM1346: 0 | CN1346: 0 | CO1346: 0 | CP1346: 77 | CQ1346: 10 | CR1346: 3 | CS1346: 3 | CT1346: 0 | CU1346: 0 | CV1346: 0 | CW1346: 0 | CX1346: 0 | CY1346: 1 | CZ1346: 1 | DA1346: 0 | DB1346: 0 | DC1346: 1 | DD1346: 1 | DE1346: 0 | DF1346: 0 | DG1346: 1 | DH1346: 0 | DI1346: 1 | DJ1346: 0 | DK1346: 0 | DL1346: 0 | DM1346: 1 | DN1346: 0 | DO1346: 1 | DP1346: 1 | DQ1346: 0 | DR1346: 0 | DS1346: 1 | DT1346: 0
A1347: 78 | B1347: 6 | C1347: 10 | D1347: 2 | E1347: 1 | F1347: 1 | G1347: 1 | H1347: 1 | I1347: 3 | J1347: 0 | K1347: 2 | L1347: 0 | M1347: 0 | N1347: 1 | O1347: 1 | P1347: 0 | Q1347: 0 | R1347: 1 | S1347: 0 | T1347: 0 | U1347: 0 | V1347: 0 | W1347: 0 | X1347: 0 | Y1347: 0 | Z1347: 0 | AA1347: 2 | AB1347: 0 | AC1347: 0 | AD1347: 0 | AE1347: 0 | AF1347: 78 | AG1347: 1 | AH1347: 4 | AI1347: 1 | AJ1347: 0 | AK1347: 0 | AL1347: 1 | AM1347: 0 | AN1347: 0 | AO1347: 0 | AP1347: 0 | AQ1347: 0 | AR1347: 0 | AS1347: 0 | AT1347: 0 | AU1347: 0 | AV1347: 0 | AW1347: 0 | AX1347: 0 | AY1347: 0 | AZ1347: 0 | BA1347: 0 | BB1347: 1 | BC1347: 0 | BD1347: 1 | BE1347: 0 | BF1347: 1 | BG1347: 0 | BH1347: 0 | BI1347: 0 | BJ1347: 0 | BK1347: 78 | BL1347: 3 | BM1347: 4 | BN1347: 1 | BO1347: 0 | BP1347: 0 | BQ1347: 1 | BR1347: 0 | BS1347: 0 | BT1347: 0 | BU1347: 0 | BV1347: 0 | BW1347: 0 | BX1347: 0 | BY1347: 0 | BZ1347: 0 | CA1347: 1 | CB1347: 0 | CC1347: 0 | CD1347: 0 | CE1347: 0 | CF1347: 0 | CG1347: 0 | CH1347: 0 | CI1347: 0 | CJ1347: 0 | CK1347: 1 | CL1347: 1 | CM1347: 0 | CN1347: 1 | CO1347: 1 | CP1347: 78 | CQ1347: 8 | CR1347: 3 | CS1347: 3 | CT1347: 2 | CU1347: 0 | CV1347: 0 | CW1347: 1 | CX1347: 0 | CY1347: 1 | CZ1347: 0 | DA1347: 0 | DB1347: 0 | DC1347: 1 | DD1347: 0 | DE1347: 1 | DF1347: 0 | DG1347: 0 | DH1347: 0 | DI1347: 0 | DJ1347: 0 | DK1347: 0 | DL1347: 0 | DM1347: 0 | DN1347: 0 | DO1347: 1 | DP1347: 0 | DQ1347: 0 | DR1347: 0 | DS1347: 1 | DT1347: 1
A1348: 79 | B1348: 9 | C1348: 10 | D1348: 4 | E1348: 2 | F1348: 0 | G1348: 1 | H1348: 1 | I1348: 1 | J1348: 0 | K1348: 0 | L1348: 0 | M1348: 1 | N1348: 1 | O1348: 1 | P1348: 0 | Q1348: 1 | R1348: 0 | S1348: 0 | T1348: 0 | U1348: 0 | V1348: 2 | W1348: 0 | X1348: 0 | Y1348: 1 | Z1348: 0 | AA1348: 0 | AB1348: 0 | AC1348: 0 | AD1348: 1 | AE1348: 2 | AF1348: 79 | AG1348: 0 | AH1348: 4 | AI1348: 0 | AJ1348: 2 | AK1348: 0 | AL1348: 1 | AM1348: 0 | AN1348: 0 | AO1348: 0 | AP1348: 0 | AQ1348: 0 | AR1348: 0 | AS1348: 0 | AT1348: 1 | AU1348: 0 | AV1348: 0 | AW1348: 0 | AX1348: 0 | AY1348: 0 | AZ1348: 0 | BA1348: 0 | BB1348: 0 | BC1348: 0 | BD1348: 0 | BE1348: 0 | BF1348: 0 | BG1348: 0 | BH1348: 0 | BI1348: 0 | BJ1348: 0 | BK1348: 79 | BL1348: 4 | BM1348: 2 | BN1348: 1 | BO1348: 0 | BP1348: 0 | BQ1348: 0 | BR1348: 0 | BS1348: 0 | BT1348: 0 | BU1348: 0 | BV1348: 0 | BW1348: 0 | BX1348: 0 | BY1348: 0 | BZ1348: 0 | CA1348: 0 | CB1348: 1 | CC1348: 1 | CD1348: 0 | CE1348: 0 | CF1348: 0 | CG1348: 0 | CH1348: 0 | CI1348: 0 | CJ1348: 1 | CK1348: 1 | CL1348: 0 | CM1348: 0 | CN1348: 1 | CO1348: 0 | CP1348: 79 | CQ1348: 1 | CR1348: 1 | CS1348: 0 | CT1348: 0 | CU1348: 0 | CV1348: 0 | CW1348: 0 | CX1348: 0 | CY1348: 0 | CZ1348: 0 | DA1348: 0 | DB1348: 0 | DC1348: 1 | DD1348: 0 | DE1348: 0 | DF1348: 0 | DG1348: 0 | DH1348: 1 | DI1348: 0 | DJ1348: 0 | DK1348: 0 | DL1348: 0 | DM1348: 0 | DN1348: 0 | DO1348: 0 | DP1348: 0 | DQ1348: 0 | DR1348: 0 | DS1348: 0 | DT1348: 0
A1349: 80 | B1349: 3 | C1349: 12 | D1349: 1 | E1349: 3 | F1349: 1 | G1349: 2 | H1349: 0 | I1349: 0 | J1349: 0 | K1349: 0 | L1349: 0 | M1349: 1 | N1349: 0 | O1349: 1 | P1349: 1 | Q1349: 0 | R1349: 0 | S1349: 0 | T1349: 0 | U1349: 1 | V1349: 0 | W1349: 0 | X1349: 0 | Y1349: 2 | Z1349: 0 | AA1349: 0 | AB1349: 0 | AC1349: 0 | AD1349: 0 | AE1349: 2 | AF1349: 80 | AG1349: 2 | AH1349: 4 | AI1349: 0 | AJ1349: 1 | AK1349: 0 | AL1349: 0 | AM1349: 1 | AN1349: 0 | AO1349: 0 | AP1349: 0 | AQ1349: 0 | AR1349: 0 | AS1349: 1 | AT1349: 0 | AU1349: 0 | AV1349: 1 | AW1349: 0 | AX1349: 0 | AY1349: 0 | AZ1349: 0 | BA1349: 0 | BB1349: 0 | BC1349: 0 | BD1349: 1 | BE1349: 0 | BF1349: 1 | BG1349: 0 | BH1349: 0 | BI1349: 0 | BJ1349: 0 | BK1349: 80 | BL1349: 2 | BM1349: 2 | BN1349: 0 | BO1349: 0 | BP1349: 0 | BQ1349: 0 | BR1349: 0 | BS1349: 0 | BT1349: 0 | BU1349: 0 | BV1349: 0 | BW1349: 0 | BX1349: 0 | BY1349: 0 | BZ1349: 0 | CA1349: 0 | CB1349: 0 | CC1349: 0 | CD1349: 0 | CE1349: 1 | CF1349: 0 | CG1349: 1 | CH1349: 1 | CI1349: 0 | CJ1349: 0 | CK1349: 0 | CL1349: 0 | CM1349: 0 | CN1349: 1 | CO1349: 0 | CP1349: 80 | CQ1349: 1 | CR1349: 2 | CS1349: 1 | CT1349: 1 | CU1349: 0 | CV1349: 0 | CW1349: 0 | CX1349: 0 | CY1349: 0 | CZ1349: 0 | DA1349: 0 | DB1349: 0 | DC1349: 0 | DD1349: 0 | DE1349: 0 | DF1349: 1 | DG1349: 0 | DH1349: 0 | DI1349: 0 | DJ1349: 0 | DK1349: 0 | DL1349: 0 | DM1349: 0 | DN1349: 0 | DO1349: 0 | DP1349: 0 | DQ1349: 0 | DR1349: 0 | DS1349: 0 | DT1349: 0
A1350: 81 | B1350: 8 | C1350: 1 | D1350: 1 | E1350: 1 | F1350: 0 | G1350: 0 | H1350: 0 | I1350: 0 | J1350: 0 | K1350: 0 | L1350: 0 | M1350: 0 | N1350: 0 | O1350: 0 | P1350: 0 | Q1350: 0 | R1350: 2 | S1350: 0 | T1350: 0 | U1350: 0 | V1350: 0 | W1350: 0 | X1350: 2 | Y1350: 0 | Z1350: 1 | AA1350: 0 | AB1350: 2 | AC1350: 0 | AD1350: 1 | AE1350: 0 | AF1350: 81 | AG1350: 0 | AH1350: 3 | AI1350: 0 | AJ1350: 1 | AK1350: 0 | AL1350: 0 | AM1350: 0 | AN1350: 0 | AO1350: 0 | AP1350: 0 | AQ1350: 0 | AR1350: 0 | AS1350: 0 | AT1350: 0 | AU1350: 0 | AV1350: 0 | AW1350: 0 | AX1350: 0 | AY1350: 0 | AZ1350: 0 | BA1350: 0 | BB1350: 0 | BC1350: 0 | BD1350: 2 | BE1350: 0 | BF1350: 0 | BG1350: 0 | BH1350: 0 | BI1350: 0 | BJ1350: 0 | BK1350: 81 | BL1350: 1 | BM1350: 2 | BN1350: 0 | BO1350: 1 | BP1350: 1 | BQ1350: 0 | BR1350: 0 | BS1350: 0 | BT1350: 0 | BU1350: 0 | BV1350: 0 | BW1350: 0 | BX1350: 0 | BY1350: 0 | BZ1350: 0 | CA1350: 0 | CB1350: 0 | CC1350: 0 | CD1350: 0 | CE1350: 0 | CF1350: 0 | CG1350: 0 | CH1350: 0 | CI1350: 0 | CJ1350: 0 | CK1350: 0 | CL1350: 0 | CM1350: 0 | CN1350: 0 | CO1350: 1 | CP1350: 81 | CQ1350: 3 | CR1350: 1 | CS1350: 0 | CT1350: 1 | CU1350: 0 | CV1350: 0 | CW1350: 0 | CX1350: 0 | CY1350: 0 | CZ1350: 0 | DA1350: 0 | DB1350: 0 | DC1350: 0 | DD1350: 0 | DE1350: 0 | DF1350: 0 | DG1350: 0 | DH1350: 0 | DI1350: 0 | DJ1350: 0 | DK1350: 0 | DL1350: 0 | DM1350: 2 | DN1350: 0 | DO1350: 1 | DP1350: 0 | DQ1350: 0 | DR1350: 0 | DS1350: 0 | DT1350: 0
A1351: 82 | B1351: 7 | C1351: 3 | D1351: 2 | E1351: 1 | F1351: 0 | G1351: 0 | H1351: 0 | I1351: 0 | J1351: 0 | K1351: 0 | L1351: 1 | M1351: 1 | N1351: 0 | O1351: 0 | P1351: 1 | Q1351: 0 | R1351: 0 | S1351: 0 | T1351: 1 | U1351: 0 | V1351: 0 | W1351: 0 | X1351: 0 | Y1351: 0 | Z1351: 0 | AA1351: 0 | AB1351: 1 | AC1351: 0 | AD1351: 1 | AE1351: 1 | AF1351: 82 | AG1351: 1 | AH1351: 1 | AI1351: 0 | AJ1351: 1 | AK1351: 0 | AL1351: 0 | AM1351: 0 | AN1351: 0 | AO1351: 0 | AP1351: 0 | AQ1351: 0 | AR1351: 0 | AS1351: 0 | AT1351: 0 | AU1351: 0 | AV1351: 0 | AW1351: 1 | AX1351: 0 | AY1351: 0 | AZ1351: 0 | BA1351: 0 | BB1351: 0 | BC1351: 0 | BD1351: 0 | BE1351: 0 | BF1351: 0 | BG1351: 0 | BH1351: 0 | BI1351: 0 | BJ1351: 0 | BK1351: 82 | BL1351: 4 | BM1351: 3 | BN1351: 2 | BO1351: 1 | BP1351: 0 | BQ1351: 0 | BR1351: 0 | BS1351: 1 | BT1351: 0 | BU1351: 0 | BV1351: 0 | BW1351: 0 | BX1351: 0 | BY1351: 1 | BZ1351: 0 | CA1351: 0 | CB1351: 1 | CC1351: 0 | CD1351: 0 | CE1351: 0 | CF1351: 0 | CG1351: 0 | CH1351: 0 | CI1351: 0 | CJ1351: 0 | CK1351: 0 | CL1351: 0 | CM1351: 0 | CN1351: 1 | CO1351: 0 | CP1351: 82 | CQ1351: 5 | CR1351: 1 | CS1351: 0 | CT1351: 1 | CU1351: 3 | CV1351: 0 | CW1351: 0 | CX1351: 0 | CY1351: 0 | CZ1351: 0 | DA1351: 0 | DB1351: 0 | DC1351: 0 | DD1351: 0 | DE1351: 0 | DF1351: 0 | DG1351: 0 | DH1351: 0 | DI1351: 0 | DJ1351: 0 | DK1351: 0 | DL1351: 0 | DM1351: 1 | DN1351: 0 | DO1351: 1 | DP1351: 0 | DQ1351: 0 | DR1351: 0 | DS1351: 0 | DT1351: 0
A1352: 83 | B1352: 4 | C1352: 0 | D1352: 0 | E1352: 0 | F1352: 0 | G1352: 0 | H1352: 0 | I1352: 0 | J1352: 0 | K1352: 0 | L1352: 0 | M1352: 0 | N1352: 3 | O1352: 0 | P1352: 0 | Q1352: 0 | R1352: 0 | S1352: 0 | T1352: 0 | U1352: 0 | V1352: 0 | W1352: 0 | X1352: 0 | Y1352: 0 | Z1352: 1 | AA1352: 0 | AB1352: 0 | AC1352: 0 | AD1352: 0 | AE1352: 0 | AF1352: 83 | AG1352: 0 | AH1352: 1 | AI1352: 0 | AJ1352: 0 | AK1352: 0 | AL1352: 0 | AM1352: 0 | AN1352: 0 | AO1352: 0 | AP1352: 0 | AQ1352: 0 | AR1352: 0 | AS1352: 0 | AT1352: 0 | AU1352: 0 | AV1352: 0 | AW1352: 0 | AX1352: 0 | AY1352: 0 | AZ1352: 0 | BA1352: 0 | BB1352: 1 | BC1352: 0 | BD1352: 0 | BE1352: 0 | BF1352: 0 | BG1352: 0 | BH1352: 0 | BI1352: 0 | BJ1352: 0 | BK1352: 83 | BL1352: 3 | BM1352: 0 | BN1352: 2 | BO1352: 0 | BP1352: 0 | BQ1352: 0 | BR1352: 0 | BS1352: 0 | BT1352: 0 | BU1352: 0 | BV1352: 0 | BW1352: 0 | BX1352: 0 | BY1352: 0 | BZ1352: 0 | CA1352: 0 | CB1352: 0 | CC1352: 0 | CD1352: 0 | CE1352: 0 | CF1352: 0 | CG1352: 0 | CH1352: 0 | CI1352: 0 | CJ1352: 0 | CK1352: 0 | CL1352: 0 | CM1352: 0 | CN1352: 1 | CO1352: 0 | CP1352: 83 | CQ1352: 5 | CR1352: 2 | CS1352: 0 | CT1352: 0 | CU1352: 0 | CV1352: 0 | CW1352: 0 | CX1352: 0 | CY1352: 1 | CZ1352: 1 | DA1352: 1 | DB1352: 0 | DC1352: 2 | DD1352: 0 | DE1352: 0 | DF1352: 0 | DG1352: 0 | DH1352: 0 | DI1352: 1 | DJ1352: 0 | DK1352: 0 | DL1352: 1 | DM1352: 0 | DN1352: 0 | DO1352: 0 | DP1352: 0 | DQ1352: 0 | DR1352: 0 | DS1352: 0 | DT1352: 0
A1353: 84 | B1353: 6 | C1353: 6 | D1353: 1 | E1353: 4 | F1353: 2 | G1353: 0 | H1353: 0 | I1353: 0 | J1353: 0 | K1353: 0 | L1353: 0 | M1353: 0 | N1353: 1 | O1353: 0 | P1353: 1 | Q1353: 0 | R1353: 0 | S1353: 0 | T1353: 0 | U1353: 1 | V1353: 0 | W1353: 0 | X1353: 0 | Y1353: 0 | Z1353: 1 | AA1353: 0 | AB1353: 1 | AC1353: 0 | AD1353: 0 | AE1353: 1 | AF1353: 84 | AG1353: 1 | AH1353: 1 | AI1353: 0 | AJ1353: 0 | AK1353: 1 | AL1353: 0 | AM1353: 0 | AN1353: 0 | AO1353: 0 | AP1353: 0 | AQ1353: 0 | AR1353: 0 | AS1353: 0 | AT1353: 0 | AU1353: 0 | AV1353: 0 | AW1353: 0 | AX1353: 1 | AY1353: 0 | AZ1353: 0 | BA1353: 0 | BB1353: 0 | BC1353: 0 | BD1353: 0 | BE1353: 0 | BF1353: 0 | BG1353: 0 | BH1353: 0 | BI1353: 0 | BJ1353: 0 | BK1353: 84 | BL1353: 0 | BM1353: 0 | BN1353: 0 | BO1353: 0 | BP1353: 0 | BQ1353: 0 | BR1353: 0 | BS1353: 0 | BT1353: 0 | BU1353: 0 | BV1353: 0 | BW1353: 0 | BX1353: 0 | BY1353: 0 | BZ1353: 0 | CA1353: 0 | CB1353: 0 | CC1353: 0 | CD1353: 0 | CE1353: 0 | CF1353: 0 | CG1353: 0 | CH1353: 0 | CI1353: 0 | CJ1353: 0 | CK1353: 0 | CL1353: 0 | CM1353: 0 | CN1353: 0 | CO1353: 0 | CP1353: 84 | CQ1353: 0 | CR1353: 0 | CS1353: 0 | CT1353: 0 | CU1353: 0 | CV1353: 0 | CW1353: 0 | CX1353: 0 | CY1353: 0 | CZ1353: 0 | DA1353: 0 | DB1353: 0 | DC1353: 0 | DD1353: 0 | DE1353: 0 | DF1353: 0 | DG1353: 0 | DH1353: 0 | DI1353: 0 | DJ1353: 0 | DK1353: 0 | DL1353: 0 | DM1353: 0 | DN1353: 0 | DO1353: 0 | DP1353: 0 | DQ1353: 0 | DR1353: 0 | DS1353: 0 | DT1353: 0
A1354: 85 | B1354: 4 | C1354: 1 | D1354: 3 | E1354: 0 | F1354: 0 | G1354: 0 | H1354: 0 | I1354: 0 | J1354: 0 | K1354: 0 | L1354: 0 | M1354: 0 | N1354: 0 | O1354: 0 | P1354: 0 | Q1354: 0 | R1354: 0 | S1354: 0 | T1354: 0 | U1354: 0 | V1354: 0 | W1354: 0 | X1354: 1 | Y1354: 0 | Z1354: 0 | AA1354: 0 | AB1354: 0 | AC1354: 0 | AD1354: 0 | AE1354: 1 | AF1354: 85 | AG1354: 2 | AH1354: 1 | AI1354: 0 | AJ1354: 0 | AK1354: 0 | AL1354: 0 | AM1354: 0 | AN1354: 0 | AO1354: 0 | AP1354: 0 | AQ1354: 1 | AR1354: 1 | AS1354: 0 | AT1354: 0 | AU1354: 0 | AV1354: 0 | AW1354: 0 | AX1354: 0 | AY1354: 0 | AZ1354: 0 | BA1354: 0 | BB1354: 0 | BC1354: 0 | BD1354: 0 | BE1354: 0 | BF1354: 0 | BG1354: 0 | BH1354: 0 | BI1354: 1 | BJ1354: 0 | BK1354: 85 | BL1354: 1 | BM1354: 0 | BN1354: 0 | BO1354: 0 | BP1354: 0 | BQ1354: 0 | BR1354: 0 | BS1354: 0 | BT1354: 0 | BU1354: 0 | BV1354: 0 | BW1354: 0 | BX1354: 0 | BY1354: 0 | BZ1354: 0 | CA1354: 0 | CB1354: 0 | CC1354: 0 | CD1354: 0 | CE1354: 0 | CF1354: 0 | CG1354: 0 | CH1354: 1 | CI1354: 0 | CJ1354: 0 | CK1354: 0 | CL1354: 0 | CM1354: 0 | CN1354: 0 | CO1354: 0 | CP1354: 85 | CQ1354: 3 | CR1354: 1 | CS1354: 1 | CT1354: 0 | CU1354: 0 | CV1354: 1 | CW1354: 0 | CX1354: 0 | CY1354: 1 | CZ1354: 0 | DA1354: 0 | DB1354: 0 | DC1354: 0 | DD1354: 0 | DE1354: 0 | DF1354: 0 | DG1354: 0 | DH1354: 0 | DI1354: 0 | DJ1354: 0 | DK1354: 0 | DL1354: 0 | DM1354: 0 | DN1354: 0 | DO1354: 0 | DP1354: 0 | DQ1354: 0 | DR1354: 0 | DS1354: 1 | DT1354: 0
A1355: 86 | B1355: 2 | C1355: 1 | D1355: 1 | E1355: 1 | F1355: 0 | G1355: 0 | H1355: 1 | I1355: 0 | J1355: 0 | K1355: 0 | L1355: 0 | M1355: 0 | N1355: 0 | O1355: 0 | P1355: 0 | Q1355: 0 | R1355: 0 | S1355: 0 | T1355: 0 | U1355: 0 | V1355: 0 | W1355: 0 | X1355: 0 | Y1355: 0 | Z1355: 0 | AA1355: 0 | AB1355: 0 | AC1355: 0 | AD1355: 0 | AE1355: 0 | AF1355: 86 | AG1355: 0 | AH1355: 0 | AI1355: 0 | AJ1355: 0 | AK1355: 0 | AL1355: 0 | AM1355: 0 | AN1355: 0 | AO1355: 0 | AP1355: 0 | AQ1355: 0 | AR1355: 0 | AS1355: 0 | AT1355: 0 | AU1355: 0 | AV1355: 0 | AW1355: 0 | AX1355: 0 | AY1355: 0 | AZ1355: 0 | BA1355: 0 | BB1355: 0 | BC1355: 0 | BD1355: 0 | BE1355: 0 | BF1355: 0 | BG1355: 0 | BH1355: 0 | BI1355: 0 | BJ1355: 0 | BK1355: 86 | BL1355: 1 | BM1355: 0 | BN1355: 0 | BO1355: 0 | BP1355: 1 | BQ1355: 0 | BR1355: 0 | BS1355: 0 | BT1355: 0 | BU1355: 0 | BV1355: 0 | BW1355: 0 | BX1355: 0 | BY1355: 0 | BZ1355: 0 | CA1355: 0 | CB1355: 0 | CC1355: 0 | CD1355: 0 | CE1355: 0 | CF1355: 0 | CG1355: 0 | CH1355: 0 | CI1355: 0 | CJ1355: 0 | CK1355: 0 | CL1355: 0 | CM1355: 0 | CN1355: 0 | CO1355: 0 | CP1355: 86 | CQ1355: 2 | CR1355: 0 | CS1355: 1 | CT1355: 0 | CU1355: 0 | CV1355: 0 | CW1355: 0 | CX1355: 0 | CY1355: 0 | CZ1355: 0 | DA1355: 0 | DB1355: 0 | DC1355: 0 | DD1355: 0 | DE1355: 0 | DF1355: 0 | DG1355: 0 | DH1355: 0 | DI1355: 0 | DJ1355: 0 | DK1355: 0 | DL1355: 0 | DM1355: 0 | DN1355: 0 | DO1355: 1 | DP1355: 0 | DQ1355: 0 | DR1355: 0 | DS1355: 0 | DT1355: 0
A1356: 87 | B1356: 2 | C1356: 2 | D1356: 0 | E1356: 1 | F1356: 0 | G1356: 0 | H1356: 2 | I1356: 0 | J1356: 0 | K1356: 1 | L1356: 0 | M1356: 0 | N1356: 0 | O1356: 0 | P1356: 0 | Q1356: 0 | R1356: 0 | S1356: 0 | T1356: 0 | U1356: 0 | V1356: 0 | W1356: 0 | X1356: 0 | Y1356: 0 | Z1356: 0 | AA1356: 0 | AB1356: 0 | AC1356: 0 | AD1356: 0 | AE1356: 0 | AF1356: 87 | AG1356: 0 | AH1356: 0 | AI1356: 0 | AJ1356: 0 | AK1356: 0 | AL1356: 0 | AM1356: 0 | AN1356: 0 | AO1356: 0 | AP1356: 0 | AQ1356: 0 | AR1356: 0 | AS1356: 0 | AT1356: 0 | AU1356: 0 | AV1356: 0 | AW1356: 0 | AX1356: 0 | AY1356: 0 | AZ1356: 0 | BA1356: 0 | BB1356: 0 | BC1356: 0 | BD1356: 0 | BE1356: 0 | BF1356: 0 | BG1356: 0 | BH1356: 0 | BI1356: 0 | BJ1356: 0 | BK1356: 87 | BL1356: 0 | BM1356: 0 | BN1356: 0 | BO1356: 0 | BP1356: 0 | BQ1356: 0 | BR1356: 0 | BS1356: 0 | BT1356: 0 | BU1356: 0 | BV1356: 0 | BW1356: 0 | BX1356: 0 | BY1356: 0 | BZ1356: 0 | CA1356: 0 | CB1356: 0 | CC1356: 0 | CD1356: 0 | CE1356: 0 | CF1356: 0 | CG1356: 0 | CH1356: 0 | CI1356: 0 | CJ1356: 0 | CK1356: 0 | CL1356: 0 | CM1356: 0 | CN1356: 0 | CO1356: 0 | CP1356: 87 | CQ1356: 0 | CR1356: 0 | CS1356: 0 | CT1356: 0 | CU1356: 0 | CV1356: 0 | CW1356: 0 | CX1356: 0 | CY1356: 0 | CZ1356: 0 | DA1356: 0 | DB1356: 0 | DC1356: 0 | DD1356: 0 | DE1356: 0 | DF1356: 0 | DG1356: 0 | DH1356: 0 | DI1356: 0 | DJ1356: 0 | DK1356: 0 | DL1356: 0 | DM1356: 0 | DN1356: 0 | DO1356: 0 | DP1356: 0 | DQ1356: 0 | DR1356: 0 | DS1356: 0 | DT1356: 0
A1357: 88 | B1357: 1 | C1357: 2 | D1357: 0 | E1357: 2 | F1357: 0 | G1357: 0 | H1357: 0 | I1357: 0 | J1357: 0 | K1357: 0 | L1357: 1 | M1357: 0 | N1357: 0 | O1357: 0 | P1357: 0 | Q1357: 0 | R1357: 0 | S1357: 0 | T1357: 0 | U1357: 0 | V1357: 0 | W1357: 0 | X1357: 0 | Y1357: 0 | Z1357: 0 | AA1357: 0 | AB1357: 0 | AC1357: 0 | AD1357: 0 | AE1357: 0 | AF1357: 88 | AG1357: 0 | AH1357: 0 | AI1357: 0 | AJ1357: 0 | AK1357: 0 | AL1357: 0 | AM1357: 0 | AN1357: 0 | AO1357: 0 | AP1357: 0 | AQ1357: 0 | AR1357: 0 | AS1357: 0 | AT1357: 0 | AU1357: 0 | AV1357: 0 | AW1357: 0 | AX1357: 0 | AY1357: 0 | AZ1357: 0 | BA1357: 0 | BB1357: 0 | BC1357: 0 | BD1357: 0 | BE1357: 0 | BF1357: 0 | BG1357: 0 | BH1357: 0 | BI1357: 0 | BJ1357: 0 | BK1357: 88 | BL1357: 0 | BM1357: 0 | BN1357: 0 | BO1357: 0 | BP1357: 0 | BQ1357: 0 | BR1357: 0 | BS1357: 0 | BT1357: 0 | BU1357: 0 | BV1357: 0 | BW1357: 0 | BX1357: 0 | BY1357: 0 | BZ1357: 0 | CA1357: 0 | CB1357: 0 | CC1357: 0 | CD1357: 0 | CE1357: 0 | CF1357: 0 | CG1357: 0 | CH1357: 0 | CI1357: 0 | CJ1357: 0 | CK1357: 0 | CL1357: 0 | CM1357: 0 | CN1357: 0 | CO1357: 0 | CP1357: 88 | CQ1357: 0 | CR1357: 0 | CS1357: 0 | CT1357: 0 | CU1357: 0 | CV1357: 0 | CW1357: 0 | CX1357: 0 | CY1357: 0 | CZ1357: 0 | DA1357: 0 | DB1357: 0 | DC1357: 0 | DD1357: 0 | DE1357: 0 | DF1357: 0 | DG1357: 0 | DH1357: 0 | DI1357: 0 | DJ1357: 0 | DK1357: 0 | DL1357: 0 | DM1357: 0 | DN1357: 0 | DO1357: 0 | DP1357: 0 | DQ1357: 0 | DR1357: 0 | DS1357: 0 | DT1357: 0
A1358: 89 | B1358: 0 | C1358: 0 | D1358: 0 | E1358: 0 | F1358: 0 | G1358: 0 | H1358: 0 | I1358: 0 | J1358: 0 | K1358: 0 | L1358: 0 | M1358: 0 | N1358: 0 | O1358: 0 | P1358: 0 | Q1358: 0 | R1358: 0 | S1358: 0 | T1358: 0 | U1358: 0 | V1358: 0 | W1358: 0 | X1358: 0 | Y1358: 0 | Z1358: 0 | AA1358: 0 | AB1358: 0 | AC1358: 0 | AD1358: 0 | AE1358: 0 | AF1358: 89 | AG1358: 0 | AH1358: 0 | AI1358: 0 | AJ1358: 0 | AK1358: 0 | AL1358: 0 | AM1358: 0 | AN1358: 0 | AO1358: 0 | AP1358: 0 | AQ1358: 0 | AR1358: 0 | AS1358: 0 | AT1358: 0 | AU1358: 0 | AV1358: 0 | AW1358: 0 | AX1358: 0 | AY1358: 0 | AZ1358: 0 | BA1358: 0 | BB1358: 0 | BC1358: 0 | BD1358: 0 | BE1358: 0 | BF1358: 0 | BG1358: 0 | BH1358: 0 | BI1358: 0 | BJ1358: 0 | BK1358: 89 | BL1358: 2 | BM1358: 0 | BN1358: 0 | BO1358: 0 | BP1358: 0 | BQ1358: 0 | BR1358: 1 | BS1358: 0 | BT1358: 0 | BU1358: 0 | BV1358: 0 | BW1358: 0 | BX1358: 0 | BY1358: 0 | BZ1358: 0 | CA1358: 0 | CB1358: 0 | CC1358: 0 | CD1358: 0 | CE1358: 0 | CF1358: 0 | CG1358: 0 | CH1358: 1 | CI1358: 0 | CJ1358: 0 | CK1358: 0 | CL1358: 0 | CM1358: 0 | CN1358: 0 | CO1358: 0 | CP1358: 89 | CQ1358: 0 | CR1358: 0 | CS1358: 0 | CT1358: 0 | CU1358: 0 | CV1358: 0 | CW1358: 0 | CX1358: 0 | CY1358: 0 | CZ1358: 0 | DA1358: 0 | DB1358: 0 | DC1358: 0 | DD1358: 0 | DE1358: 0 | DF1358: 0 | DG1358: 0 | DH1358: 0 | DI1358: 0 | DJ1358: 0 | DK1358: 0 | DL1358: 0 | DM1358: 0 | DN1358: 0 | DO1358: 0 | DP1358: 0 | DQ1358: 0 | DR1358: 0 | DS1358: 0 | DT1358: 0
A1359: 90 | B1359: 0 | C1359: 0 | D1359: 0 | E1359: 0 | F1359: 0 | G1359: 0 | H1359: 0 | I1359: 0 | J1359: 0 | K1359: 0 | L1359: 0 | M1359: 0 | N1359: 0 | O1359: 0 | P1359: 0 | Q1359: 0 | R1359: 0 | S1359: 0 | T1359: 0 | U1359: 0 | V1359: 0 | W1359: 0 | X1359: 0 | Y1359: 0 | Z1359: 0 | AA1359: 0 | AB1359: 0 | AC1359: 0 | AD1359: 0 | AE1359: 0 | AF1359: 90 | AG1359: 0 | AH1359: 0 | AI1359: 0 | AJ1359: 0 | AK1359: 0 | AL1359: 0 | AM1359: 0 | AN1359: 0 | AO1359: 0 | AP1359: 0 | AQ1359: 0 | AR1359: 0 | AS1359: 0 | AT1359: 0 | AU1359: 0 | AV1359: 0 | AW1359: 0 | AX1359: 0 | AY1359: 0 | AZ1359: 0 | BA1359: 0 | BB1359: 0 | BC1359: 0 | BD1359: 0 | BE1359: 0 | BF1359: 0 | BG1359: 0 | BH1359: 0 | BI1359: 0 | BJ1359: 0 | BK1359: 90 | BL1359: 0 | BM1359: 0 | BN1359: 0 | BO1359: 0 | BP1359: 0 | BQ1359: 0 | BR1359: 0 | BS1359: 0 | BT1359: 0 | BU1359: 0 | BV1359: 0 | BW1359: 0 | BX1359: 0 | BY1359: 0 | BZ1359: 0 | CA1359: 0 | CB1359: 0 | CC1359: 0 | CD1359: 0 | CE1359: 0 | CF1359: 0 | CG1359: 0 | CH1359: 0 | CI1359: 0 | CJ1359: 0 | CK1359: 0 | CL1359: 0 | CM1359: 0 | CN1359: 0 | CO1359: 0 | CP1359: 90 | CQ1359: 0 | CR1359: 0 | CS1359: 0 | CT1359: 0 | CU1359: 0 | CV1359: 0 | CW1359: 0 | CX1359: 0 | CY1359: 0 | CZ1359: 0 | DA1359: 0 | DB1359: 0 | DC1359: 0 | DD1359: 0 | DE1359: 0 | DF1359: 0 | DG1359: 0 | DH1359: 0 | DI1359: 0 | DJ1359: 0 | DK1359: 0 | DL1359: 0 | DM1359: 0 | DN1359: 0 | DO1359: 0 | DP1359: 0 | DQ1359: 0 | DR1359: 0 | DS1359: 0 | DT1359: 0
A1360: 91 | B1360: 0 | C1360: 0 | D1360: 0 | E1360: 0 | F1360: 0 | G1360: 0 | H1360: 0 | I1360: 0 | J1360: 0 | K1360: 0 | L1360: 0 | M1360: 0 | N1360: 0 | O1360: 0 | P1360: 0 | Q1360: 0 | R1360: 0 | S1360: 0 | T1360: 0 | U1360: 0 | V1360: 0 | W1360: 0 | X1360: 0 | Y1360: 0 | Z1360: 0 | AA1360: 0 | AB1360: 0 | AC1360: 0 | AD1360: 0 | AE1360: 0 | AF1360: 91 | AG1360: 0 | AH1360: 0 | AI1360: 0 | AJ1360: 0 | AK1360: 0 | AL1360: 0 | AM1360: 0 | AN1360: 0 | AO1360: 0 | AP1360: 0 | AQ1360: 0 | AR1360: 0 | AS1360: 0 | AT1360: 0 | AU1360: 0 | AV1360: 0 | AW1360: 0 | AX1360: 0 | AY1360: 0 | AZ1360: 0 | BA1360: 0 | BB1360: 0 | BC1360: 0 | BD1360: 0 | BE1360: 0 | BF1360: 0 | BG1360: 0 | BH1360: 0 | BI1360: 0 | BJ1360: 0 | BK1360: 91 | BL1360: 0 | BM1360: 0 | BN1360: 0 | BO1360: 0 | BP1360: 0 | BQ1360: 0 | BR1360: 0 | BS1360: 0 | BT1360: 0 | BU1360: 0 | BV1360: 0 | BW1360: 0 | BX1360: 0 | BY1360: 0 | BZ1360: 0 | CA1360: 0 | CB1360: 0 | CC1360: 0 | CD1360: 0 | CE1360: 0 | CF1360: 0 | CG1360: 0 | CH1360: 0 | CI1360: 0 | CJ1360: 0 | CK1360: 0 | CL1360: 0 | CM1360: 0 | CN1360: 0 | CO1360: 0 | CP1360: 91 | CQ1360: 0 | CR1360: 0 | CS1360: 0 | CT1360: 0 | CU1360: 0 | CV1360: 0 | CW1360: 0 | CX1360: 0 | CY1360: 0 | CZ1360: 0 | DA1360: 0 | DB1360: 0 | DC1360: 0 | DD1360: 0 | DE1360: 0 | DF1360: 0 | DG1360: 0 | DH1360: 0 | DI1360: 0 | DJ1360: 0 | DK1360: 0 | DL1360: 0 | DM1360: 0 | DN1360: 0 | DO1360: 0 | DP1360: 0 | DQ1360: 0 | DR1360: 0 | DS1360: 0 | DT1360: 0
A1361: 92 | B1361: 0 | C1361: 0 | D1361: 0 | E1361: 0 | F1361: 0 | G1361: 0 | H1361: 0 | I1361: 0 | J1361: 0 | K1361: 0 | L1361: 0 | M1361: 0 | N1361: 0 | O1361: 0 | P1361: 0 | Q1361: 0 | R1361: 0 | S1361: 0 | T1361: 0 | U1361: 0 | V1361: 0 | W1361: 0 | X1361: 0 | Y1361: 0 | Z1361: 0 | AA1361: 0 | AB1361: 0 | AC1361: 0 | AD1361: 0 | AE1361: 0 | AF1361: 92 | AG1361: 0 | AH1361: 0 | AI1361: 0 | AJ1361: 0 | AK1361: 0 | AL1361: 0 | AM1361: 0 | AN1361: 0 | AO1361: 0 | AP1361: 0 | AQ1361: 0 | AR1361: 0 | AS1361: 0 | AT1361: 0 | AU1361: 0 | AV1361: 0 | AW1361: 0 | AX1361: 0 | AY1361: 0 | AZ1361: 0 | BA1361: 0 | BB1361: 0 | BC1361: 0 | BD1361: 0 | BE1361: 0 | BF1361: 0 | BG1361: 0 | BH1361: 0 | BI1361: 0 | BJ1361: 0 | BK1361: 92 | BL1361: 1 | BM1361: 0 | BN1361: 0 | BO1361: 0 | BP1361: 0 | BQ1361: 0 | BR1361: 0 | BS1361: 0 | BT1361: 0 | BU1361: 0 | BV1361: 0 | BW1361: 0 | BX1361: 0 | BY1361: 0 | BZ1361: 0 | CA1361: 0 | CB1361: 0 | CC1361: 0 | CD1361: 0 | CE1361: 0 | CF1361: 1 | CG1361: 0 | CH1361: 0 | CI1361: 0 | CJ1361: 0 | CK1361: 0 | CL1361: 0 | CM1361: 0 | CN1361: 0 | CO1361: 0 | CP1361: 92 | CQ1361: 0 | CR1361: 0 | CS1361: 0 | CT1361: 0 | CU1361: 0 | CV1361: 0 | CW1361: 0 | CX1361: 0 | CY1361: 0 | CZ1361: 0 | DA1361: 0 | DB1361: 0 | DC1361: 0 | DD1361: 0 | DE1361: 0 | DF1361: 0 | DG1361: 0 | DH1361: 0 | DI1361: 0 | DJ1361: 0 | DK1361: 0 | DL1361: 0 | DM1361: 0 | DN1361: 0 | DO1361: 0 | DP1361: 0 | DQ1361: 0 | DR1361: 0 | DS1361: 0 | DT1361: 0
A1362: 93 | B1362: 0 | C1362: 0 | D1362: 0 | E1362: 0 | F1362: 0 | G1362: 0 | H1362: 0 | I1362: 0 | J1362: 0 | K1362: 0 | L1362: 0 | M1362: 0 | N1362: 0 | O1362: 0 | P1362: 0 | Q1362: 0 | R1362: 0 | S1362: 0 | T1362: 0 | U1362: 0 | V1362: 0 | W1362: 0 | X1362: 0 | Y1362: 0 | Z1362: 0 | AA1362: 0 | AB1362: 0 | AC1362: 0 | AD1362: 0 | AE1362: 0 | AF1362: 93 | AG1362: 1 | AH1362: 0 | AI1362: 0 | AJ1362: 0 | AK1362: 1 | AL1362: 0 | AM1362: 0 | AN1362: 0 | AO1362: 0 | AP1362: 0 | AQ1362: 0 | AR1362: 0 | AS1362: 0 | AT1362: 0 | AU1362: 0 | AV1362: 0 | AW1362: 0 | AX1362: 0 | AY1362: 0 | AZ1362: 0 | BA1362: 0 | BB1362: 0 | BC1362: 0 | BD1362: 0 | BE1362: 0 | BF1362: 0 | BG1362: 0 | BH1362: 0 | BI1362: 0 | BJ1362: 0 | BK1362: 93 | BL1362: 0 | BM1362: 0 | BN1362: 0 | BO1362: 0 | BP1362: 0 | BQ1362: 0 | BR1362: 0 | BS1362: 0 | BT1362: 0 | BU1362: 0 | BV1362: 0 | BW1362: 0 | BX1362: 0 | BY1362: 0 | BZ1362: 0 | CA1362: 0 | CB1362: 0 | CC1362: 0 | CD1362: 0 | CE1362: 0 | CF1362: 0 | CG1362: 0 | CH1362: 0 | CI1362: 0 | CJ1362: 0 | CK1362: 0 | CL1362: 0 | CM1362: 0 | CN1362: 0 | CO1362: 0 | CP1362: 93 | CQ1362: 0 | CR1362: 0 | CS1362: 0 | CT1362: 0 | CU1362: 0 | CV1362: 0 | CW1362: 0 | CX1362: 0 | CY1362: 0 | CZ1362: 0 | DA1362: 0 | DB1362: 0 | DC1362: 0 | DD1362: 0 | DE1362: 0 | DF1362: 0 | DG1362: 0 | DH1362: 0 | DI1362: 0 | DJ1362: 0 | DK1362: 0 | DL1362: 0 | DM1362: 0 | DN1362: 0 | DO1362: 0 | DP1362: 0 | DQ1362: 0 | DR1362: 0 | DS1362: 0 | DT1362: 0
A1363: 94 | B1363: 0 | C1363: 0 | D1363: 0 | E1363: 0 | F1363: 0 | G1363: 0 | H1363: 0 | I1363: 0 | J1363: 0 | K1363: 0 | L1363: 0 | M1363: 0 | N1363: 0 | O1363: 0 | P1363: 0 | Q1363: 0 | R1363: 0 | S1363: 0 | T1363: 0 | U1363: 0 | V1363: 0 | W1363: 0 | X1363: 0 | Y1363: 0 | Z1363: 0 | AA1363: 0 | AB1363: 0 | AC1363: 0 | AD1363: 0 | AE1363: 0 | AF1363: 94 | AG1363: 0 | AH1363: 0 | AI1363: 0 | AJ1363: 0 | AK1363: 0 | AL1363: 0 | AM1363: 0 | AN1363: 0 | AO1363: 0 | AP1363: 0 | AQ1363: 0 | AR1363: 0 | AS1363: 0 | AT1363: 0 | AU1363: 0 | AV1363: 0 | AW1363: 0 | AX1363: 0 | AY1363: 0 | AZ1363: 0 | BA1363: 0 | BB1363: 0 | BC1363: 0 | BD1363: 0 | BE1363: 0 | BF1363: 0 | BG1363: 0 | BH1363: 0 | BI1363: 0 | BJ1363: 0 | BK1363: 94 | BL1363: 0 | BM1363: 0 | BN1363: 0 | BO1363: 0 | BP1363: 0 | BQ1363: 0 | BR1363: 0 | BS1363: 0 | BT1363: 0 | BU1363: 0 | BV1363: 0 | BW1363: 0 | BX1363: 0 | BY1363: 0 | BZ1363: 0 | CA1363: 0 | CB1363: 0 | CC1363: 0 | CD1363: 0 | CE1363: 0 | CF1363: 0 | CG1363: 0 | CH1363: 0 | CI1363: 0 | CJ1363: 0 | CK1363: 0 | CL1363: 0 | CM1363: 0 | CN1363: 0 | CO1363: 0 | CP1363: 94 | CQ1363: 0 | CR1363: 0 | CS1363: 0 | CT1363: 0 | CU1363: 0 | CV1363: 0 | CW1363: 0 | CX1363: 0 | CY1363: 0 | CZ1363: 0 | DA1363: 0 | DB1363: 0 | DC1363: 0 | DD1363: 0 | DE1363: 0 | DF1363: 0 | DG1363: 0 | DH1363: 0 | DI1363: 0 | DJ1363: 0 | DK1363: 0 | DL1363: 0 | DM1363: 0 | DN1363: 0 | DO1363: 0 | DP1363: 0 | DQ1363: 0 | DR1363: 0 | DS1363: 0 | DT1363: 0
A1366: Prognóza vývoje obyvatelstva (počáteční stavy)
A1367: Česká republika | B1367: VPL | C1367: VPL | D1367: VPL | E1367: PLDD | F1367: PLDD | G1367: PLDD | H1367: GYN | I1367: ZUB | J1367: ZUB | K1367: ZUB | M1367: Hl. m. Praha | N1367: VPL | O1367: VPL | P1367: VPL | Q1367: PLDD | R1367: PLDD | S1367: PLDD | T1367: GYN | U1367: ZUB | V1367: ZUB | W1367: ZUB | Y1367: Středočeský kraj | Z1367: VPL | AA1367: VPL | AB1367: VPL | AC1367: PLDD | AD1367: PLDD | AE1367: PLDD | AF1367: GYN | AG1367: ZUB | AH1367: ZUB | AI1367: ZUB | AK1367: Jihočeský kraj | AL1367: VPL | AM1367: VPL | AN1367: VPL | AO1367: PLDD | AP1367: PLDD | AQ1367: PLDD | AR1367: GYN | AS1367: ZUB | AT1367: ZUB | AU1367: ZUB | AW1367: Plzeňský kraj | AX1367: VPL | AY1367: VPL | AZ1367: VPL | BA1367: PLDD | BB1367: PLDD | BC1367: PLDD | BD1367: GYN | BE1367: ZUB | BF1367: ZUB | BG1367: ZUB | BI1367: Karlovarský kraj | BJ1367: VPL | BK1367: VPL | BL1367: VPL | BM1367: PLDD | BN1367: PLDD | BO1367: PLDD | BP1367: GYN | BQ1367: ZUB | BR1367: ZUB | BS1367: ZUB | BU1367: Ústecký kraj | BV1367: VPL | BW1367: VPL | BX1367: VPL | BY1367: PLDD | BZ1367: PLDD | CA1367: PLDD | CB1367: GYN | CC1367: ZUB | CD1367: ZUB | CE1367: ZUB | CG1367: Liberecký kraj | CH1367: VPL | CI1367: VPL | CJ1367: VPL | CK1367: PLDD | CL1367: PLDD | CM1367: PLDD | CN1367: GYN | CO1367: ZUB | CP1367: ZUB | CQ1367: ZUB | CS1367: Královéhradecký kraj | CT1367: VPL | CU1367: VPL | CV1367: VPL | CW1367: PLDD | CX1367: PLDD | CY1367: PLDD | CZ1367: GYN | DA1367: ZUB | DB1367: ZUB | DC1367: ZUB | DE1367: Pardubický kraj | DF1367: VPL | DG1367: VPL | DH1367: VPL | DI1367: PLDD | DJ1367: PLDD | DK1367: PLDD | DL1367: GYN | DM1367: ZUB | DN1367: ZUB | DO1367: ZUB | DQ1367: Kraj Vysočina | DR1367: VPL | DS1367: VPL | DT1367: VPL | DU1367: PLDD | DV1367: PLDD | DW1367: PLDD | DX1367: GYN | DY1367: ZUB | DZ1367: ZUB | EA1367: ZUB | EC1367: Jihomoravský kraj | ED1367: VPL | EE1367: VPL | EF1367: VPL | EG1367: PLDD | EH1367: PLDD | EI1367: PLDD | EJ1367: GYN | EK1367: ZUB | EL1367: ZUB | EM1367: ZUB | EO1367: Olomoucký kraj | EP1367: VPL | EQ1367: VPL | ER1367: VPL | ES1367: PLDD | ET1367: PLDD | EU1367: PLDD | EV1367: GYN | EW1367: ZUB | EX1367: ZUB | EY1367: ZUB | FA1367: Zlínský kraj | FB1367: VPL | FC1367: VPL | FD1367: VPL | FE1367: PLDD | FF1367: PLDD | FG1367: PLDD | FH1367: GYN | FI1367: ZUB | FJ1367: ZUB | FK1367: ZUB | FM1367: Moravskoslezský kraj | FN1367: VPL | FO1367: VPL | FP1367: VPL | FQ1367: PLDD | FR1367: PLDD | FS1367: PLDD | FT1367: GYN | FU1367: ZUB | FV1367: ZUB | FW1367: ZUB
B1368: Počet obyvatel 15+ | E1368: Počet obyvatel 0–19 | H1368: Počet obyvatel 15+ | I1368: Počet obyvatel celkem | N1368: Počet obyvatel 15+ | Q1368: Počet obyvatel 0–19 | T1368: Počet obyvatel 15+ | U1368: Počet obyvatel celkem | Z1368: Počet obyvatel 15+ | AC1368: Počet obyvatel 0–19 | AF1368: Počet obyvatel 15+ | AG1368: Počet obyvatel celkem | AL1368: Počet obyvatel 15+ | AO1368: Počet obyvatel 0–19 | AR1368: Počet obyvatel 15+ | AS1368: Počet obyvatel celkem | AX1368: Počet obyvatel 15+ | BA1368: Počet obyvatel 0–19 | BD1368: Počet obyvatel 15+ | BE1368: Počet obyvatel celkem | BJ1368: Počet obyvatel 15+ | BM1368: Počet obyvatel 0–19 | BP1368: Počet obyvatel 15+ | BQ1368: Počet obyvatel celkem | BV1368: Počet obyvatel 15+ | BY1368: Počet obyvatel 0–19 | CB1368: Počet obyvatel 15+ | CC1368: Počet obyvatel celkem | CH1368: Počet obyvatel 15+ | CK1368: Počet obyvatel 0–19 | CN1368: Počet obyvatel 15+ | CO1368: Počet obyvatel celkem | CT1368: Počet obyvatel 15+ | CW1368: Počet obyvatel 0–19 | CZ1368: Počet obyvatel 15+ | DA1368: Počet obyvatel celkem | DF1368: Počet obyvatel 15+ | DI1368: Počet obyvatel 0–19 | DL1368: Počet obyvatel 15+ | DM1368: Počet obyvatel celkem | DR1368: Počet obyvatel 15+ | DU1368: Počet obyvatel 0–19 | DX1368: Počet obyvatel 15+ | DY1368: Počet obyvatel celkem | ED1368: Počet obyvatel 15+ | EG1368: Počet obyvatel 0–19 | EJ1368: Počet obyvatel 15+ | EK1368: Počet obyvatel celkem | EP1368: Počet obyvatel 15+ | ES1368: Počet obyvatel 0–19 | EV1368: Počet obyvatel 15+ | EW1368: Počet obyvatel celkem | FB1368: Počet obyvatel 15+ | FE1368: Počet obyvatel 0–19 | FH1368: Počet obyvatel 15+ | FI1368: Počet obyvatel celkem | FN1368: Počet obyvatel 15+ | FQ1368: Počet obyvatel 0–19 | FT1368: Počet obyvatel 15+ | FU1368: Počet obyvatel celkem
B1369: Muži | C1369: Ženy | D1369: Celkem | E1369: Muži | F1369: Ženy | G1369: Celkem | H1369: Ženy | I1369: Muži | J1369: Ženy | K1369: Celkem | N1369: Muži | O1369: Ženy | P1369: Celkem | Q1369: Muži | R1369: Ženy | S1369: Celkem | T1369: Ženy | U1369: Muži | V1369: Ženy | W1369: Celkem | Z1369: Muži | AA1369: Ženy | AB1369: Celkem | AC1369: Muži | AD1369: Ženy | AE1369: Celkem | AF1369: Ženy | AG1369: Muži | AH1369: Ženy | AI1369: Celkem | AL1369: Muži | AM1369: Ženy | AN1369: Celkem | AO1369: Muži | AP1369: Ženy | AQ1369: Celkem | AR1369: Ženy | AS1369: Muži | AT1369: Ženy | AU1369: Celkem | AX1369: Muži | AY1369: Ženy | AZ1369: Celkem | BA1369: Muži | BB1369: Ženy | BC1369: Celkem | BD1369: Ženy | BE1369: Muži | BF1369: Ženy | BG1369: Celkem | BJ1369: Muži | BK1369: Ženy | BL1369: Celkem | BM1369: Muži | BN1369: Ženy | BO1369: Celkem | BP1369: Ženy | BQ1369: Muži | BR1369: Ženy | BS1369: Celkem | BV1369: Muži | BW1369: Ženy | BX1369: Celkem | BY1369: Muži | BZ1369: Ženy | CA1369: Celkem | CB1369: Ženy | CC1369: Muži | CD1369: Ženy | CE1369: Celkem | CH1369: Muži | CI1369: Ženy | CJ1369: Celkem | CK1369: Muži | CL1369: Ženy | CM1369: Celkem | CN1369: Ženy | CO1369: Muži | CP1369: Ženy | CQ1369: Celkem | CT1369: Muži | CU1369: Ženy | CV1369: Celkem | CW1369: Muži | CX1369: Ženy | CY1369: Celkem | CZ1369: Ženy | DA1369: Muži | DB1369: Ženy | DC1369: Celkem | DF1369: Muži | DG1369: Ženy | DH1369: Celkem | DI1369: Muži | DJ1369: Ženy | DK1369: Celkem | DL1369: Ženy | DM1369: Muži | DN1369: Ženy | DO1369: Celkem | DR1369: Muži | DS1369: Ženy | DT1369: Celkem | DU1369: Muži | DV1369: Ženy | DW1369: Celkem | DX1369: Ženy | DY1369: Muži | DZ1369: Ženy | EA1369: Celkem | ED1369: Muži | EE1369: Ženy | EF1369: Celkem | EG1369: Muži | EH1369: Ženy | EI1369: Celkem | EJ1369: Ženy | EK1369: Muži | EL1369: Ženy | EM1369: Celkem | EP1369: Muži | EQ1369: Ženy | ER1369: Celkem | ES1369: Muži | ET1369: Ženy | EU1369: Celkem | EV1369: Ženy | EW1369: Muži | EX1369: Ženy | EY1369: Celkem | FB1369: Muži | FC1369: Ženy | FD1369: Celkem | FE1369: Muži | FF1369: Ženy | FG1369: Celkem | FH1369: Ženy | FI1369: Muži | FJ1369: Ženy | FK1369: Celkem | FN1369: Muži | FO1369: Ženy | FP1369: Celkem | FQ1369: Muži | FR1369: Ženy | FS1369: Celkem | FT1369: Ženy | FU1369: Muži | FV1369: Ženy | FW1369: Celkem
A1370: 2017 | B1370: 4347866.316 | C1370: 4572408.997 | D1370: 8920275.313 | E1370: 1071339.758 | F1370: 1015971.403 | G1370: 2087311.161 | H1370: 4572408.997 | I1370: 5183669.205 | J1370: 5365343.874 | K1370: 10549013.08 | M1370: 2017 | N1370: 518567.3326 | O1370: 559237.7276 | P1370: 1077805.06 | Q1370: 120535.5159 | R1370: 114104.4322 | S1370: 234639.9481 | T1370: 559237.7276 | U1370: 616423.8508 | V1370: 651703.2818 | W1370: 1268127.133 | Y1370: 2017 | Z1370: 541958.3993 | AA1370: 566803.7509 | AB1370: 1108762.15 | AC1370: 148273.8902 | AD1370: 140392.618 | AE1370: 288666.5082 | AF1370: 566803.7509 | AG1370: 660191.8667 | AH1370: 678747.9155 | AI1370: 1338939.782 | AK1370: 2017 | AL1370: 263750.1416 | AM1370: 275613.2487 | AN1370: 539363.3903 | AO1370: 65208.67208 | AP1370: 61685.06952 | AQ1370: 126893.7416 | AR1370: 275613.2487 | AS1370: 314269.1535 | AT1370: 323416.7788 | AU1370: 637685.9323 | AW1370: 2017 | AX1370: 241153.0907 | AY1370: 248916.8162 | AZ1370: 490069.9069 | BA1370: 56830.34279 | BB1370: 54542.66583 | BC1370: 111373.0086 | BD1370: 248916.8162 | BE1370: 285492.7242 | BF1370: 291493.6009 | BG1370: 576986.3251 | BI1370: 2017 | BJ1370: 123461.3742 | BK1370: 128564.9546 | BL1370: 252026.3287 | BM1370: 29594.27963 | BN1370: 28043.29987 | BO1370: 57637.57949 | BP1370: 128564.9546 | BQ1370: 146219.1612 | BR1370: 150019.4501 | BS1370: 296238.6114 | BU1370: 2017 | BV1370: 340313.8424 | BW1370: 350813.6116 | BX1370: 691127.4541 | BY1370: 86300.59018 | BZ1370: 82009.54855 | CA1370: 168310.1387 | CB1370: 350813.6116 | CC1370: 406918.271 | CD1370: 414052.7459 | CE1370: 820971.017 | CG1370: 2017 | CH1370: 179835.6487 | CI1370: 189349.1111 | CJ1370: 369184.7598 | CK1370: 46091.98692 | CL1370: 43744.10572 | CM1370: 89836.09264 | CN1370: 189349.1111 | CO1370: 215551.4541 | CP1370: 223236.1946 | CQ1370: 438787.6487 | CS1370: 2017 | CT1370: 227160.6112 | CU1370: 238861.3968 | CV1370: 466022.008 | CW1370: 55899.19291 | CX1370: 52419.37301 | CY1370: 108318.5659 | CZ1370: 238861.3968 | DA1370: 270071.275 | DB1370: 279328.1324 | DC1370: 549399.4074 | DE1370: 2017 | DF1370: 213801.726 | DG1370: 222116.0103 | DH1370: 435917.7364 | DI1370: 53138.22014 | DJ1370: 50225.3754 | DK1370: 103363.5955 | DL1370: 222116.0103 | DM1370: 254704.4923 | DN1370: 260744.8925 | DO1370: 515449.3847 | DQ1370: 2017 | DR1370: 213095.9571 | DS1370: 218413.8745 | DT1370: 431509.8316 | DU1370: 51363.28748 | DV1370: 48682.78277 | DW1370: 100046.0702 | DX1370: 218413.8745 | DY1370: 252214.4149 | DZ1370: 255648.0902 | EA1370: 507862.5051 | EC1370: 2017 | ED1370: 483865.1675 | EE1370: 511967.4228 | EF1370: 995832.5903 | EG1370: 117538.1457 | EH1370: 111632.3184 | EI1370: 229170.4641 | EJ1370: 511967.4228 | EK1370: 576244.0818 | EL1370: 599844.9393 | EM1370: 1176089.021 | EO1370: 2017 | EP1370: 260559.7043 | EQ1370: 276610.0842 | ER1370: 537169.7885 | ES1370: 63185.01742 | ET1370: 60293.16971 | EU1370: 123478.1871 | EV1370: 276610.0842 | EW1370: 309295.9494 | EX1370: 323286.893 | EY1370: 632582.8425 | FA1370: 2017 | FB1370: 240918.4219 | FC1370: 256258.6207 | FD1370: 497177.0426 | FE1370: 57313.36275 | FF1370: 53969.02757 | FG1370: 111282.3903 | FH1370: 256258.6207 | FI1370: 284813.0482 | FJ1370: 297566.1306 | FK1370: 582379.1788 | FM1370: 2017 | FN1370: 499424.8984 | FO1370: 528882.3668 | FP1370: 1028307.265 | FQ1370: 120067.2537 | FR1370: 114227.6164 | FS1370: 234294.87 | FT1370: 528882.3668 | FU1370: 591259.4614 | FV1370: 616254.8286 | FW1370: 1207514.29
A1371: 2018 | B1371: 4348971.76 | C1371: 4572504.351 | D1371: 8921476.111 | E1371: 1079149.079 | F1371: 1022832.991 | G1371: 2101982.069 | H1371: 4572504.351 | I1371: 5190882.666 | J1371: 5370899.068 | K1371: 10561781.73 | M1371: 2018 | N1371: 521498.3983 | O1371: 561590.9977 | P1371: 1083089.396 | Q1371: 123421.7687 | R1371: 116661.4266 | S1371: 240083.1953 | T1371: 561590.9977 | U1371: 621809.6353 | V1371: 656252.1272 | W1371: 1278061.763 | Y1371: 2018 | Z1371: 545932.2889 | AA1371: 571510.8686 | AB1371: 1117443.157 | AC1371: 151111.3777 | AD1371: 143002.7336 | AE1371: 294114.1113 | AF1371: 571510.8686 | AG1371: 666219.0678 | AH1371: 685394.3368 | AI1371: 1351613.405 | AK1371: 2018 | AL1371: 263601.8706 | AM1371: 275542.2962 | AN1371: 539144.1668 | AO1371: 65544.8689 | AP1371: 61919.27599 | AQ1371: 127464.1449 | AR1371: 275542.2962 | AS1371: 314327.1437 | AT1371: 323543.1743 | AU1371: 637870.3179 | AW1371: 2018 | AX1371: 241403.0435 | AY1371: 249148.3561 | AZ1371: 490551.3996 | BA1371: 57362.27926 | BB1371: 55036.10852 | BC1371: 112398.3878 | BD1371: 249148.3561 | BE1371: 286061.0652 | BF1371: 292024.9928 | BG1371: 578086.058 | BI1371: 2018 | BJ1371: 122964.2553 | BK1371: 127997.7349 | BL1371: 250961.9902 | BM1371: 29496.96399 | BN1371: 27957.40011 | BO1371: 57454.3641 | BP1371: 127997.7349 | BQ1371: 145578.98 | BR1371: 149323.2797 | BS1371: 294902.2597 | BU1371: 2018 | BV1371: 339818.0773 | BW1371: 349835.8654 | BX1371: 689653.9426 | BY1371: 86382.79868 | BZ1371: 82057.4811 | CA1371: 168440.2798 | CB1371: 349835.8654 | CC1371: 406286.7467 | CD1371: 412999.1885 | CE1371: 819285.9353 | CG1371: 2018 | CH1371: 179765.1267 | CI1371: 189158.7683 | CJ1371: 368923.895 | CK1371: 46344.63077 | CL1371: 43887.71916 | CM1371: 90232.34994 | CN1371: 189158.7683 | CO1371: 215605.3149 | CP1371: 223126.1683 | CQ1371: 438731.4832 | CS1371: 2018 | CT1371: 226610.86 | CU1371: 238279.5987 | CV1371: 464890.4588 | CW1371: 55943.5998 | CX1371: 52474.86812 | CY1371: 108418.4679 | CZ1371: 238279.5987 | DA1371: 269645.6588 | DB1371: 278846.9474 | DC1371: 548492.6062 | DE1371: 2018 | DF1371: 213643.2541 | DG1371: 221683.8928 | DH1371: 435327.1469 | DI1371: 53252.44099 | DJ1371: 50311.85427 | DK1371: 103564.2953 | DL1371: 221683.8928 | DM1371: 254617.4873 | DN1371: 260547.7827 | DO1371: 515165.27 | DQ1371: 2018 | DR1371: 212635.2539 | DS1371: 217926.6909 | DT1371: 430561.9448 | DU1371: 51243.42455 | DV1371: 48657.01871 | DW1371: 99900.44326 | DX1371: 217926.6909 | DY1371: 251799.1438 | DZ1371: 255163.0698 | EA1371: 506962.2136 | EC1371: 2018 | ED1371: 484107.7106 | EE1371: 511879.5774 | EF1371: 995987.288 | EG1371: 118627.3888 | EH1371: 112544.4003 | EI1371: 231171.7891 | EJ1371: 511879.5774 | EK1371: 577325.6189 | EL1371: 600476.2576 | EM1371: 1177801.877 | EO1371: 2018 | EP1371: 259841.6389 | EQ1371: 275788.9297 | ER1371: 535630.5686 | ES1371: 63266.29347 | ET1371: 60360.86671 | EU1371: 123627.1602 | EV1371: 275788.9297 | EW1371: 308667.8843 | EX1371: 322553.4373 | EY1371: 631221.3215 | FA1371: 2018 | FB1371: 240193.3229 | FC1371: 255529.8942 | FD1371: 495723.2171 | FE1371: 57360.00808 | FF1371: 54046.98047 | FG1371: 111406.9885 | FH1371: 255529.8942 | FI1371: 284107.2032 | FJ1371: 296843.6377 | FK1371: 580950.8409 | FM1371: 2018 | FN1371: 496956.6594 | FO1371: 526630.88 | FP1371: 1023587.539 | FQ1371: 119791.2351 | FR1371: 113914.8571 | FS1371: 233706.0922 | FT1371: 526630.88 | FU1371: 588831.7159 | FV1371: 613804.6685 | FW1371: 1202636.384
A1372: 2019 | B1372: 4351185.866 | C1372: 4573925.088 | D1372: 8925110.954 | E1372: 1086500.192 | F1372: 1029419.376 | G1372: 2115919.568 | H1372: 4573925.088 | I1372: 5198231.281 | J1372: 5376806.99 | K1372: 10575038.27 | M1372: 2019 | N1372: 524994.4986 | O1372: 564479.1871 | P1372: 1089473.686 | Q1372: 126283.9146 | R1372: 119335.9316 | S1372: 245619.8462 | T1372: 564479.1871 | U1372: 627604.9639 | V1372: 661243.8365 | W1372: 1288848.8 | Y1372: 2019 | Z1372: 550169.6103 | AA1372: 576454.6452 | AB1372: 1126624.255 | AC1372: 153891.3864 | AD1372: 145722.9319 | AE1372: 299614.3183 | AF1372: 576454.6452 | AG1372: 672370.2492 | AH1372: 692193.5194 | AI1372: 1364563.769 | AK1372: 2019 | AL1372: 263368.7336 | AM1372: 275496.594 | AN1372: 538865.3275 | AO1372: 65912.97162 | AP1372: 62178.59497 | AQ1372: 128091.5666 | AR1372: 275496.594 | AS1372: 314348.3707 | AT1372: 323646.8014 | AU1372: 637995.1721 | AW1372: 2019 | AX1372: 241654.7469 | AY1372: 249411.0816 | AZ1372: 491065.8284 | BA1372: 57779.97712 | BB1372: 55466.68123 | BC1372: 113246.6584 | BD1372: 249411.0816 | BE1372: 286607.5669 | BF1372: 292547.989 | BG1372: 579155.5559 | BI1372: 2019 | BJ1372: 122494.6771 | BK1372: 127383.7387 | BL1372: 249878.4158 | BM1372: 29293.25427 | BN1372: 27868.24529 | BO1372: 57161.49957 | BP1372: 127383.7387 | BQ1372: 144947.1602 | BR1372: 148641.8919 | BS1372: 293589.0521 | BU1372: 2019 | BV1372: 339427.5618 | BW1372: 348983.0112 | BX1372: 688410.573 | BY1372: 86369.29065 | BZ1372: 81996.22055 | CA1372: 168365.5112 | CB1372: 348983.0112 | CC1372: 405576.3879 | CD1372: 411893.7666 | CE1372: 817470.1544 | CG1372: 2019 | CH1372: 179672.1132 | CI1372: 188931.76 | CJ1372: 368603.8732 | CK1372: 46516.74748 | CL1372: 43948.55556 | CM1372: 90465.30304 | CN1372: 188931.76 | CO1372: 215627.9872 | CP1372: 222998.509 | CQ1372: 438626.4963 | CS1372: 2019 | CT1372: 226144.2891 | CU1372: 237818.3612 | CV1372: 463962.6503 | CW1372: 55933.45256 | CX1372: 52587.22564 | CY1372: 108520.6782 | CZ1372: 237818.3612 | DA1372: 269206.6117 | DB1372: 278359.7285 | DC1372: 547566.3402 | DE1372: 2019 | DF1372: 213442.2245 | DG1372: 221324.5952 | DH1372: 434766.8197 | DI1372: 53362.61067 | DJ1372: 50404.33655 | DK1372: 103766.9472 | DL1372: 221324.5952 | DM1372: 254505.6197 | DN1372: 260330.0404 | DO1372: 514835.6601 | DQ1372: 2019 | DR1372: 212173.0287 | DS1372: 217533.3492 | DT1372: 429706.3779 | DU1372: 51170.46503 | DV1372: 48566.5226 | DW1372: 99736.98763 | DX1372: 217533.3492 | DY1372: 251355.3648 | DZ1372: 254658.3016 | EA1372: 506013.6664 | EC1372: 2019 | ED1372: 484314.1563 | EE1372: 511756.7391 | EF1372: 996070.8954 | EG1372: 119626.6167 | EH1372: 113400.1192 | EI1372: 233026.7359 | EJ1372: 511756.7391 | EK1372: 578330.8992 | EL1372: 601051.6509 | EM1372: 1179382.55 | EO1372: 2019 | EP1372: 259215.4818 | EQ1372: 275081.1812 | ER1372: 534296.663 | ES1372: 63268.35078 | ET1372: 60426.81042 | EU1372: 123695.1612 | EV1372: 275081.1812 | EW1372: 308009.6768 | EX1372: 321800.3127 | EY1372: 629809.9895 | FA1372: 2019 | FB1372: 239510.0971 | FC1372: 254780.6918 | FD1372: 494290.7889 | FE1372: 57384.15519 | FF1372: 54005.14564 | FG1372: 111389.3008 | FH1372: 254780.6918 | FI1372: 283373.9258 | FJ1372: 296088.9885 | FK1372: 579462.9143 | FM1372: 2019 | FN1372: 494604.6471 | FO1372: 524490.1529 | FP1372: 1019094.8 | FQ1372: 119706.9985 | FR1372: 113512.0549 | FS1372: 233219.0535 | FT1372: 524490.1529 | FU1372: 586366.4965 | FV1372: 611351.6531 | FW1372: 1197718.15
A1373: 2020 | B1373: 4356126.099 | C1373: 4577829.278 | D1373: 8933955.377 | E1373: 1093794.124 | F1373: 1035717.739 | G1373: 2129511.863 | H1373: 4577829.278 | I1373: 5205696.515 | J1373: 5382978.489 | K1373: 10588675 | M1373: 2020 | N1373: 529251.1621 | O1373: 568186.1956 | P1373: 1097437.358 | Q1373: 129175.8488 | R1373: 121895.3219 | S1373: 251071.1707 | T1373: 568186.1956 | U1373: 633819.0062 | V1373: 666677.5644 | W1373: 1300496.571 | Y1373: 2020 | Z1373: 554971.934 | AA1373: 582071.6263 | AB1373: 1137043.56 | AC1373: 156840.8565 | AD1373: 148305.9405 | AE1373: 305146.7969 | AF1373: 582071.6263 | AG1373: 678646.982 | AH1373: 699143.1728 | AI1373: 1377790.155 | AK1373: 2020 | AL1373: 263315.9525 | AM1373: 275562.518 | AN1373: 538878.4706 | AO1373: 66124.36655 | AP1373: 62449.97559 | AQ1373: 128574.3421 | AR1373: 275562.518 | AS1373: 314329.2435 | AT1373: 323724.0907 | AU1373: 638053.3342 | AW1373: 2020 | AX1373: 241985.7401 | AY1373: 249731.0637 | AZ1373: 491716.8038 | BA1373: 58202.39542 | BB1373: 55885.93185 | BC1373: 114088.3273 | BD1373: 249731.0637 | BE1373: 287132.8226 | BF1373: 293058.002 | BG1373: 580190.8246 | BI1373: 2020 | BJ1373: 122040.3971 | BK1373: 126811.7324 | BL1373: 248852.1295 | BM1373: 29187.70712 | BN1373: 27737.3339 | BO1373: 56925.04102 | BP1373: 126811.7324 | BQ1373: 144324.1267 | BR1373: 147975.682 | BS1373: 292299.8088 | BU1373: 2020 | BV1373: 339026.7851 | BW1373: 348272.7334 | BX1373: 687299.5185 | BY1373: 86362.09381 | BZ1373: 81928.79104 | CA1373: 168290.8849 | CB1373: 348272.7334 | CC1373: 404786.7624 | CD1373: 410728.371 | CE1373: 815515.1334 | CG1373: 2020 | CH1373: 179705.3237 | CI1373: 188872.5784 | CJ1373: 368577.9021 | CK1373: 46650.46157 | CL1373: 44016.30851 | CM1373: 90666.77007 | CN1373: 188872.5784 | CO1373: 215616.1572 | CP1373: 222849.6156 | CQ1373: 438465.7729 | CS1373: 2020 | CT1373: 225755.964 | CU1373: 237405.6987 | CV1373: 463161.6627 | CW1373: 55973.85418 | CX1373: 52602.24222 | CY1373: 108576.0964 | CZ1373: 237405.6987 | DA1373: 268753.1756 | DB1373: 277862.7248 | DC1373: 546615.9004 | DE1373: 2020 | DF1373: 213303.9434 | DG1373: 221101.9795 | DH1373: 434405.9229 | DI1373: 53421.98729 | DJ1373: 50450.63058 | DK1373: 103872.6179 | DL1373: 221101.9795 | DM1373: 254364.8804 | DN1373: 260086.1383 | DO1373: 514451.0187 | DQ1373: 2020 | DR1373: 211850.1466 | DS1373: 217057.2117 | DT1373: 428907.3583 | DU1373: 51144.29856 | DV1373: 48595.96868 | DW1373: 99740.26724 | DX1373: 217057.2117 | DY1373: 250879.1042 | DZ1373: 254127.702 | EA1373: 505006.8063 | EC1373: 2020 | ED1373: 484887.8153 | EE1373: 511903.4275 | EF1373: 996791.2428 | EG1373: 120491.3037 | EH1373: 114310.3657 | EI1373: 234801.6694 | EJ1373: 511903.4275 | EK1373: 579253.4567 | EL1373: 601562.0359 | EM1373: 1180815.493 | EO1373: 2020 | EP1373: 258545.531 | EQ1373: 274464.7546 | ER1373: 533010.2857 | ES1373: 63335.60141 | ET1373: 60434.8464 | EU1373: 123770.4478 | EV1373: 274464.7546 | EW1373: 307318.6694 | EX1373: 321017.6731 | EY1373: 628336.3425 | FA1373: 2020 | FB1373: 238861.6947 | FC1373: 254067.3666 | FD1373: 492929.0612 | FE1373: 57348.9658 | FF1373: 53940.90179 | FG1373: 111289.8676 | FH1373: 254067.3666 | FI1373: 282612.3209 | FJ1373: 295297.7301 | FK1373: 577910.051 | FM1373: 2020 | FN1373: 492623.7093 | FO1373: 522320.392 | FP1373: 1014944.101 | FQ1373: 119534.383 | FR1373: 113163.1807 | FS1373: 232697.5637 | FT1373: 522320.392 | FU1373: 583859.8068 | FV1373: 608867.9866 | FW1373: 1192727.793
A1374: 2021 | B1374: 4363799.905 | C1374: 4584897.208 | D1374: 8948697.113 | E1374: 1099332.301 | F1374: 1041291.249 | G1374: 2140623.55 | H1374: 4584897.208 | I1374: 5213314.616 | J1374: 5389428.745 | K1374: 10602743.36 | M1374: 2021 | N1374: 534083.2788 | O1374: 572723.5374 | P1374: 1106806.816 | Q1374: 131977.2315 | R1374: 124366.7356 | S1374: 256343.9671 | T1374: 572723.5374 | U1374: 640463.1794 | V1374: 672562.1526 | W1374: 1313025.332 | Y1374: 2021 | Z1374: 560431.7505 | AA1374: 588201.8713 | AB1374: 1148633.622 | AC1374: 159352.6446 | AD1374: 150713.3669 | AE1374: 310066.0115 | AF1374: 588201.8713 | AG1374: 685065.1225 | AH1374: 706257.2663 | AI1374: 1391322.389 | AK1374: 2021 | AL1374: 263333.3737 | AM1374: 275735.9218 | AN1374: 539069.2955 | AO1374: 66312.2799 | AP1374: 62615.26139 | AQ1374: 128927.5413 | AR1374: 275735.9218 | AS1374: 314269.8345 | AT1374: 323770.8016 | AU1374: 638040.6361 | AW1374: 2021 | AX1374: 242566.1031 | AY1374: 250226.0153 | AZ1374: 492792.1184 | BA1374: 58469.91568 | BB1374: 56129.40508 | BC1374: 114599.3208 | BD1374: 250226.0153 | BE1374: 287640.5535 | BF1374: 293555.5948 | BG1374: 581196.1483 | BI1374: 2021 | BJ1374: 121653.6942 | BK1374: 126361.3025 | BL1374: 248014.9966 | BM1374: 29019.37021 | BN1374: 27571.57025 | BO1374: 56590.94046 | BP1374: 126361.3025 | BQ1374: 143711.3627 | BR1374: 147324.3937 | BS1374: 291035.7564 | BU1374: 2021 | BV1374: 338753.0072 | BW1374: 347612.8401 | BX1374: 686365.8473 | BY1374: 86112.54513 | BZ1374: 81724.0616 | CA1374: 167836.6067 | CB1374: 347612.8401 | CC1374: 403930.9706 | CD1374: 409509.4118 | CE1374: 813440.3824 | CG1374: 2021 | CH1374: 179669.8321 | CI1374: 188791.9761 | CJ1374: 368461.8082 | CK1374: 46661.99728 | CL1374: 44042.8349 | CM1374: 90704.83218 | CN1374: 188791.9761 | CO1374: 215573.0667 | CP1374: 222678.3911 | CQ1374: 438251.4578 | CS1374: 2021 | CT1374: 225566.3952 | CU1374: 237114.1648 | CV1374: 462680.56 | CW1374: 55946.58736 | CX1374: 52612.77494 | CY1374: 108559.3623 | CZ1374: 237114.1648 | DA1374: 268286.8005 | DB1374: 277358.3749 | DC1374: 545645.1754 | DE1374: 2021 | DF1374: 213249.376 | DG1374: 220928.376 | DH1374: 434177.752 | DI1374: 53469.80352 | DJ1374: 50546.27889 | DK1374: 104016.0824 | DL1374: 220928.376 | DM1374: 254196.0051 | DN1374: 259817.6393 | DO1374: 514013.6444 | DQ1374: 2021 | DR1374: 211651.1698 | DS1374: 216746.4619 | DT1374: 428397.6317 | DU1374: 51031.50321 | DV1374: 48561.73234 | DW1374: 99593.23554 | DX1374: 216746.4619 | DY1374: 250372.0278 | DZ1374: 253572.1924 | EA1374: 503944.2201 | EC1374: 2021 | ED1374: 485567.9301 | EE1374: 512376.034 | EF1374: 997943.9641 | EG1374: 121354.9439 | EH1374: 115114.0795 | EI1374: 236469.0234 | EJ1374: 512376.034 | EK1374: 580094.3734 | EL1374: 602005.9424 | EM1374: 1182100.316 | EO1374: 2021 | EP1374: 258108.0858 | EQ1374: 273949.1453 | ER1374: 532057.231 | ES1374: 63312.68738 | ET1374: 60498.71641 | EU1374: 123811.4038 | EV1374: 273949.1453 | EW1374: 306593.9189 | EX1374: 320205.1649 | EY1374: 626799.0838 | FA1374: 2021 | FB1374: 238387.776 | FC1374: 253599.4859 | FD1374: 491987.2619 | FE1374: 57151.32571 | FF1374: 53904.50536 | FG1374: 111055.8311 | FH1374: 253599.4859 | FI1374: 281816.7436 | FJ1374: 294467.7832 | FK1374: 576284.5268 | FM1374: 2021 | FN1374: 490778.1325 | FO1374: 520530.076 | FP1374: 1011308.208 | FQ1374: 119159.4652 | FR1374: 112889.9258 | FS1374: 232049.391 | FT1374: 520530.076 | FU1374: 581300.6569 | FV1374: 606343.6356 | FW1374: 1187644.292
A1375: 2022 | B1375: 4374205.697 | C1375: 4594241.08 | D1375: 8968446.778 | E1375: 1104098.285 | F1375: 1045399.66 | G1375: 2149497.945 | H1375: 4594241.08 | I1375: 5219927.024 | J1375: 5395103.511 | K1375: 10615030.53 | M1375: 2022 | N1375: 539357.4648 | O1375: 577479.2818 | P1375: 1116836.747 | Q1375: 134498.3158 | R1375: 126730.3675 | S1375: 261228.6834 | T1375: 577479.2818 | U1375: 646801.6237 | V1375: 678200.077 | W1375: 1325001.701 | Y1375: 2022 | Z1375: 566165.0767 | AA1375: 594640.9652 | AB1375: 1160806.042 | AC1375: 161516.1264 | AD1375: 152921.492 | AE1375: 314437.6184 | AF1375: 594640.9652 | AG1375: 691361.3041 | AH1375: 713298.7189 | AI1375: 1404660.023 | AK1375: 2022 | AL1375: 263542.615 | AM1375: 276065.9581 | AN1375: 539608.5731 | AO1375: 66502.67857 | AP1375: 62695.86475 | AQ1375: 129198.5433 | AR1375: 276065.9581 | AS1375: 314163.8269 | AT1375: 323783.944 | AU1375: 637947.7709 | AW1375: 2022 | AX1375: 243376.1437 | AY1375: 250970.3437 | AZ1375: 494346.4874 | BA1375: 58799.83231 | BB1375: 56273.63284 | BC1375: 115073.4651 | BD1375: 250970.3437 | BE1375: 288134.1714 | BF1375: 294049.7766 | BG1375: 582183.948 | BI1375: 2022 | BJ1375: 121475.0097 | BK1375: 126011.8675 | BL1375: 247486.8772 | BM1375: 28841.96674 | BN1375: 27374.71535 | BO1375: 56216.68209 | BP1375: 126011.8675 | BQ1375: 143087.0354 | BR1375: 146665.2689 | BS1375: 289752.3043 | BU1375: 2022 | BV1375: 338641.3864 | BW1375: 347192.9533 | BX1375: 685834.3397 | BY1375: 85777.17347 | BZ1375: 81417.61835 | CA1375: 167194.7918 | CB1375: 347192.9533 | CC1375: 403016.0769 | CD1375: 408238.6373 | CE1375: 811254.7142 | CG1375: 2022 | CH1375: 179799.2132 | CI1375: 188916.2523 | CJ1375: 368715.4654 | CK1375: 46710.86258 | CL1375: 44066.87865 | CM1375: 90777.74123 | CN1375: 188916.2523 | CO1375: 215508.0142 | CP1375: 222498.4971 | CQ1375: 438006.5113 | CS1375: 2022 | CT1375: 225395.8397 | CU1375: 237018.1722 | CV1375: 462414.0119 | CW1375: 55945.27182 | CX1375: 52587.53948 | CY1375: 108532.8113 | CZ1375: 237018.1722 | DA1375: 267793.2062 | DB1375: 276836.0129 | DC1375: 544629.2192 | DE1375: 2022 | DF1375: 213376.8891 | DG1375: 220906.1674 | DH1375: 434283.0565 | DI1375: 53588.30063 | DJ1375: 50580.40112 | DK1375: 104168.7018 | DL1375: 220906.1674 | DM1375: 253990.4804 | DN1375: 259519.3155 | DO1375: 513509.796 | DQ1375: 2022 | DR1375: 211482.1362 | DS1375: 216406.5702 | DT1375: 427888.7065 | DU1375: 50934.8419 | DV1375: 48551.84849 | DW1375: 99486.69039 | DX1375: 216406.5702 | DY1375: 249806.2221 | DZ1375: 252967.0687 | EA1375: 502773.2908 | EC1375: 2022 | ED1375: 486613.4415 | EE1375: 512975.1545 | EF1375: 999588.596 | EG1375: 122055.5956 | EH1375: 115681.1554 | EI1375: 237736.7509 | EJ1375: 512975.1545 | EK1375: 580836.8004 | EL1375: 602375.1565 | EM1375: 1183211.957 | EO1375: 2022 | EP1375: 257812.1295 | EQ1375: 273575.4268 | ER1375: 531387.5563 | ES1375: 63188.78015 | ET1375: 60342.43615 | EU1375: 123531.2163 | EV1375: 273575.4268 | EW1375: 305809.7684 | EX1375: 319341.8566 | EY1375: 625151.625 | FA1375: 2022 | FB1375: 237907.8389 | FC1375: 253115.4711 | FD1375: 491023.31 | FE1375: 57039.00235 | FF1375: 53724.60843 | FG1375: 110763.6108 | FH1375: 253115.4711 | FI1375: 280967.4836 | FJ1375: 293585.5444 | FK1375: 574553.0281 | FM1375: 2022 | FN1375: 489260.513 | FO1375: 518966.4961 | FP1375: 1008227.009 | FQ1375: 118699.5371 | FR1375: 112451.1014 | FS1375: 231150.6384 | FT1375: 518966.4961 | FU1375: 578651.0099 | FV1375: 603743.6362 | FW1375: 1182394.646
A1376: 2023 | B1376: 4388347.686 | C1376: 4608323.01 | D1376: 8996670.695 | E1376: 1107105.67 | F1376: 1047862.526 | G1376: 2154968.196 | H1376: 4608323.01 | I1376: 5225483.815 | J1376: 5399942.18 | K1376: 10625426 | M1376: 2023 | N1376: 544837.5526 | O1376: 582368.9326 | P1376: 1127206.485 | Q1376: 136928.5323 | R1376: 128884.8202 | S1376: 265813.3526 | T1376: 582368.9326 | U1376: 652831.6281 | V1376: 683580.8438 | W1376: 1336412.472 | Y1376: 2023 | Z1376: 572557.6854 | AA1376: 601842.805 | AB1376: 1174400.49 | AC1376: 163476.7123 | AD1376: 154776.5867 | AE1376: 318253.299 | AF1376: 601842.805 | AG1376: 697533.1534 | AH1376: 720264.3554 | AI1376: 1417797.509 | AK1376: 2023 | AL1376: 263948.1905 | AM1376: 276712.4137 | AN1376: 540660.6041 | AO1376: 66488.27648 | AP1376: 62678.09197 | AQ1376: 129166.3684 | AR1376: 276712.4137 | AS1376: 314007.4005 | AT1376: 323758.2583 | AU1376: 637765.6588 | AW1376: 2023 | AX1376: 244289.4372 | AY1376: 252000.2496 | AZ1376: 496289.6868 | BA1376: 58961.4931 | BB1376: 56428.54547 | BC1376: 115390.0386 | BD1376: 252000.2496 | BE1376: 288611.7637 | BF1376: 294537.0351 | BG1376: 583148.7989 | BI1376: 2023 | BJ1376: 121287.191 | BK1376: 125876.0586 | BL1376: 247163.2495 | BM1376: 28594.81529 | BN1376: 27149.53269 | BO1376: 55744.34799 | BP1376: 125876.0586 | BQ1376: 142451.7934 | BR1376: 145997.1888 | BS1376: 288448.9822 | BU1376: 2023 | BV1376: 338965.7302 | BW1376: 347162.5256 | BX1376: 686128.2558 | BY1376: 85317.46579 | BZ1376: 81024.57814 | CA1376: 166342.0439 | CB1376: 347162.5256 | CC1376: 402038.8555 | CD1376: 406925.4171 | CE1376: 808964.2726 | CG1376: 2023 | CH1376: 180230.5982 | CI1376: 189249.2673 | CJ1376: 369479.8656 | CK1376: 46676.34324 | CL1376: 43990.83291 | CM1376: 90667.17615 | CN1376: 189249.2673 | CO1376: 215421.1131 | CP1376: 222306.3313 | CQ1376: 437727.4444 | CS1376: 2023 | CT1376: 225558.5853 | CU1376: 237169.2145 | CV1376: 462727.7997 | CW1376: 55893.14414 | CX1376: 52520.53103 | CY1376: 108413.6752 | CZ1376: 237169.2145 | DA1376: 267267.2477 | DB1376: 276290.4048 | DC1376: 543557.6525 | DE1376: 2023 | DF1376: 213680.9415 | DG1376: 221156.1112 | DH1376: 434837.0527 | DI1376: 53460.12915 | DJ1376: 50617.16503 | DK1376: 104077.2942 | DL1376: 221156.1112 | DM1376: 253745.6392 | DN1376: 259188.9567 | DO1376: 512934.5959 | DQ1376: 2023 | DR1376: 211358.9737 | DS1376: 216331.079 | DT1376: 427690.0527 | DU1376: 50772.31679 | DV1376: 48357.26489 | DW1376: 99129.58169 | DX1376: 216331.079 | DY1376: 249178.2868 | DZ1376: 252309.9272 | EA1376: 501488.2139 | EC1376: 2023 | ED1376: 488004.557 | EE1376: 514078.3484 | EF1376: 1002082.905 | EG1376: 122441.4885 | EH1376: 115969.582 | EI1376: 238411.0705 | EJ1376: 514078.3484 | EK1376: 581474.3559 | EL1376: 602659.531 | EM1376: 1184133.887 | EO1376: 2023 | EP1376: 257752.5832 | EQ1376: 273496.2965 | ER1376: 531248.8797 | ES1376: 63008.38092 | ET1376: 60169.84919 | EU1376: 123178.2301 | EV1376: 273496.2965 | EW1376: 304962.2411 | EX1376: 318424.4152 | EY1376: 623386.6562 | FA1376: 2023 | FB1376: 237797.2567 | FC1376: 252813.6208 | FD1376: 490610.8775 | FE1376: 56823.34695 | FF1376: 53503.06728 | FG1376: 110326.4142 | FH1376: 252813.6208 | FI1376: 280057.451 | FJ1376: 292644.3689 | FK1376: 572701.8199 | FM1376: 2023 | FN1376: 488078.4032 | FO1376: 518066.0869 | FP1376: 1006144.49 | FQ1376: 118263.2252 | FR1376: 111792.0785 | FS1376: 230055.3037 | FT1376: 518066.0869 | FU1376: 575902.8859 | FV1376: 601055.1468 | FW1376: 1176958.033
A1377: 2024 | B1377: 4404454.759 | C1377: 4623804.707 | D1377: 9028259.466 | E1377: 1108909.414 | F1377: 1049146.236 | G1377: 2158055.65 | H1377: 4623804.707 | I1377: 5229938.501 | J1377: 5403815.647 | K1377: 10633754.15 | M1377: 2024 | N1377: 550481.9205 | O1377: 587460.292 | P1377: 1137942.213 | Q1377: 139084.2422 | R1377: 130836.6457 | S1377: 269920.888 | T1377: 587460.292 | U1377: 658539.7585 | V1377: 688682.9542 | W1377: 1347222.713 | Y1377: 2024 | Z1377: 579233.662 | AA1377: 609460.9509 | AB1377: 1188694.613 | AC1377: 165279.0806 | AD1377: 156532.9547 | AE1377: 321812.0352 | AF1377: 609460.9509 | AG1377: 703577.918 | AH1377: 727141.7301 | AI1377: 1430719.648 | AK1377: 2024 | AL1377: 264543.6303 | AM1377: 277409.5877 | AN1377: 541953.218 | AO1377: 66513.00384 | AP1377: 62604.9339 | AQ1377: 129117.9377 | AR1377: 277409.5877 | AS1377: 313797.2406 | AT1377: 323687.3986 | AU1377: 637484.6392 | AW1377: 2024 | AX1377: 245399.9689 | AY1377: 253115.0212 | AZ1377: 498514.99 | BA1377: 59102.86073 | BB1377: 56547.19983 | BC1377: 115650.0606 | BD1377: 253115.0212 | BE1377: 289075.0557 | BF1377: 295014.7411 | BG1377: 584089.7967 | BI1377: 2024 | BJ1377: 121220.633 | BK1377: 125736.4595 | BL1377: 246957.0925 | BM1377: 28330.13087 | BN1377: 26985.60279 | BO1377: 55315.73366 | BP1377: 125736.4595 | BQ1377: 141805.4732 | BR1377: 145317.2526 | BS1377: 287122.7258 | BU1377: 2024 | BV1377: 339411.2134 | BW1377: 347268.928 | BX1377: 686680.1413 | BY1377: 84691.24966 | BZ1377: 80475.53376 | CA1377: 165166.7834 | CB1377: 347268.928 | CC1377: 400998.4202 | CD1377: 405557.8285 | CE1377: 806556.2487 | CG1377: 2024 | CH1377: 180726.068 | CI1377: 189742.6165 | CJ1377: 370468.6845 | CK1377: 46642.26404 | CL1377: 43942.96085 | CM1377: 90585.2249 | CN1377: 189742.6165 | CO1377: 215312.2047 | CP1377: 222098.6992 | CQ1377: 437410.904 | CS1377: 2024 | CT1377: 225783.2443 | CU1377: 237349.6363 | CV1377: 463132.8805 | CW1377: 55741.78816 | CX1377: 52324.30204 | CY1377: 108066.0902 | CZ1377: 237349.6363 | DA1377: 266711.3331 | DB1377: 275719.0462 | DC1377: 542430.3793 | DE1377: 2024 | DF1377: 214082.0898 | DG1377: 221363.9994 | DH1377: 435446.0893 | DI1377: 53343.96379 | DJ1377: 50556.42946 | DK1377: 103900.3933 | DL1377: 221363.9994 | DM1377: 253460.8539 | DN1377: 258820.7576 | DO1377: 512281.6115 | DQ1377: 2024 | DR1377: 211376.0388 | DS1377: 216270.625 | DT1377: 427646.6638 | DU1377: 50565.84301 | DV1377: 48033.73244 | DW1377: 98599.57545 | DX1377: 216270.625 | DY1377: 248485.4768 | DZ1377: 251596.745 | EA1377: 500082.2218 | EC1377: 2024 | ED1377: 489729.0091 | EE1377: 515530.4709 | EF1377: 1005259.48 | EG1377: 122768.6732 | EH1377: 116219.5615 | EI1377: 238988.2348 | EJ1377: 515530.4709 | EK1377: 581997.9371 | EL1377: 602844.9915 | EM1377: 1184842.929 | EO1377: 2024 | EP1377: 257777.2129 | EQ1377: 273486.4011 | ER1377: 531263.614 | ES1377: 62690.58353 | ET1377: 59851.17733 | EU1377: 122541.7609 | EV1377: 273486.4011 | EW1377: 304048.2721 | EX1377: 317442.8979 | EY1377: 621491.17 | FA1377: 2024 | FB1377: 237686.0576 | FC1377: 252618.5988 | FD1377: 490304.6565 | FE1377: 56518.8011 | FF1377: 53250.68442 | FG1377: 109769.4855 | FH1377: 252618.5988 | FI1377: 279082.6556 | FJ1377: 291638.3018 | FK1377: 570720.9574 | FM1377: 2024 | FN1377: 487004.0106 | FO1377: 516991.1199 | FP1377: 1003995.13 | FQ1377: 117636.9297 | FR1377: 110984.517 | FS1377: 228621.4467 | FT1377: 516991.1199 | FU1377: 573045.9012 | FV1377: 598252.3026 | FW1377: 1171298.204
A1378: 2025 | B1378: 4418975.17 | C1378: 4638326.942 | D1378: 9057302.111 | E1378: 1107985.338 | F1378: 1048119.832 | G1378: 2156105.17 | H1378: 4638326.942 | I1378: 5233341.858 | J1378: 5406674.596 | K1378: 10640016.45 | M1378: 2025 | N1378: 555897.8497 | O1378: 592446.5531 | P1378: 1148344.403 | Q1378: 140785.5727 | R1378: 132313.9647 | S1378: 273099.5374 | T1378: 592446.5531 | U1378: 663933.9006 | V1378: 693501.8177 | W1378: 1357435.718 | Y1378: 2025 | Z1378: 585719.4723 | AA1378: 616927.599 | AB1378: 1202647.071 | AC1378: 166637.2584 | AD1378: 157765.7367 | AE1378: 324402.9951 | AF1378: 616927.599 | AG1378: 709506.3398 | AH1378: 733934.6732 | AI1378: 1443441.013 | AK1378: 2025 | AL1378: 265040.9548 | AM1378: 278051.1324 | AN1378: 543092.0872 | AO1378: 66316.26 | AP1378: 62394.18098 | AQ1378: 128710.441 | AR1378: 278051.1324 | AS1378: 313537.8763 | AT1378: 323570.1434 | AU1378: 637108.0197 | AW1378: 2025 | AX1378: 246556.0336 | AY1378: 254198.2523 | AZ1378: 500754.286 | BA1378: 59154.7633 | BB1378: 56605.81681 | BC1378: 115760.5801 | BD1378: 254198.2523 | BE1378: 289529.7998 | BF1378: 295481.0309 | BG1378: 585010.8307 | BI1378: 2025 | BJ1378: 121114.5145 | BK1378: 125510.6999 | BL1378: 246625.2144 | BM1378: 28063.14586 | BN1378: 26798.41881 | BO1378: 54861.56468 | BP1378: 125510.6999 | BQ1378: 141151.327 | BR1378: 144623.4787 | BS1378: 285774.8057 | BU1378: 2025 | BV1378: 339653.9599 | BW1378: 347137.9806 | BX1378: 686791.9404 | BY1378: 84022.89058 | BZ1378: 79753.62851 | CA1378: 163776.5191 | CB1378: 347137.9806 | CC1378: 399903.1119 | CD1378: 404127.0505 | CE1378: 804030.1624 | CG1378: 2025 | CH1378: 181193.1853 | CI1378: 190147.5989 | CJ1378: 371340.7841 | CK1378: 46461.05127 | CL1378: 43720.5528 | CM1378: 90181.60407 | CN1378: 190147.5989 | CO1378: 215183.9284 | CP1378: 221871.8807 | CQ1378: 437055.8091 | CS1378: 2025 | CT1378: 225937.7925 | CU1378: 237602.0555 | CV1378: 463539.848 | CW1378: 55499.67354 | CX1378: 52070.52331 | CY1378: 107570.1969 | CZ1378: 237602.0555 | DA1378: 266123.6917 | DB1378: 275117.1721 | DC1378: 541240.8637 | DE1378: 2025 | DF1378: 214295.2214 | DG1378: 221638.6564 | DH1378: 435933.8779 | DI1378: 53136.80306 | DJ1378: 50336.47409 | DK1378: 103473.2771 | DL1378: 221638.6564 | DM1378: 253137.0969 | DN1378: 258415.7249 | DO1378: 511552.8218 | DQ1378: 2025 | DR1378: 211261.6313 | DS1378: 216098.726 | DT1378: 427360.3573 | DU1378: 50177.72922 | DV1378: 47756.37974 | DW1378: 97934.10896 | DX1378: 216098.726 | DY1378: 247729.739 | DZ1378: 250823.9171 | EA1378: 498553.656 | EC1378: 2025 | ED1378: 491352.0015 | EE1378: 516959.6506 | EF1378: 1008311.652 | EG1378: 122638.6698 | EH1378: 116128.6953 | EI1378: 238767.3651 | EJ1378: 516959.6506 | EK1378: 582407.1415 | EL1378: 602924.9752 | EM1378: 1185332.117 | EO1378: 2025 | EP1378: 257726.2335 | EQ1378: 273463.7475 | ER1378: 531189.981 | ES1378: 62374.82891 | ET1378: 59406.47452 | EU1378: 121781.3034 | EV1378: 273463.7475 | EW1378: 303067.3132 | EX1378: 316392.3701 | EY1378: 619459.6833 | FA1378: 2025 | FB1378: 237434.9768 | FC1378: 252290.1476 | FD1378: 489725.1245 | FE1378: 56137.04685 | FF1378: 52913.51551 | FG1378: 109050.5624 | FH1378: 252290.1476 | FI1378: 278044.6254 | FJ1378: 290565.5722 | FK1378: 568610.1976 | FM1378: 2025 | FN1378: 485791.3425 | FO1378: 515854.1418 | FP1378: 1001645.484 | FQ1378: 116579.6444 | FR1378: 110155.4704 | FS1378: 226735.1148 | FT1378: 515854.1418 | FU1378: 570085.9663 | FV1378: 595324.7895 | FW1378: 1165410.756
A1379: 2026 | B1379: 4432692.696 | C1379: 4651156.803 | D1379: 9083849.499 | E1379: 1104392.765 | F1379: 1044152.247 | G1379: 2148545.012 | H1379: 4651156.803 | I1379: 5235699.645 | J1379: 5408444.764 | K1379: 10644144.41 | M1379: 2026 | N1379: 561132.4705 | O1379: 597084.0644 | P1379: 1158216.535 | Q1379: 142218.8832 | R1379: 133307.0484 | S1379: 275525.9316 | T1379: 597084.0644 | U1379: 669001.6542 | V1379: 698014.5732 | W1379: 1367016.227 | Y1379: 2026 | Z1379: 592223.4729 | AA1379: 624283.9767 | AB1379: 1216507.45 | AC1379: 167473.2591 | AD1379: 158645.8606 | AE1379: 326119.1198 | AF1379: 624283.9767 | AG1379: 715320.3429 | AH1379: 740633.6669 | AI1379: 1455954.01 | AK1379: 2026 | AL1379: 265458.9142 | AM1379: 278636.383 | AN1379: 544095.2972 | AO1379: 66012.96243 | AP1379: 62051.13035 | AQ1379: 128064.0928 | AR1379: 278636.383 | AS1379: 313232.8721 | AT1379: 323401.9364 | AU1379: 636634.8085 | AW1379: 2026 | AX1379: 247597.9062 | AY1379: 255258.3553 | AZ1379: 502856.2616 | BA1379: 58955.14736 | BB1379: 56490.58111 | BC1379: 115445.7285 | BD1379: 255258.3553 | BE1379: 289978.1912 | BF1379: 295934.8156 | BG1379: 585913.0068 | BI1379: 2026 | BJ1379: 120923.1257 | BK1379: 125250.6463 | BL1379: 246173.7719 | BM1379: 27747.2349 | BN1379: 26512.57369 | BO1379: 54259.80859 | BP1379: 125250.6463 | BQ1379: 140490.8075 | BR1379: 143916.0987 | BS1379: 284406.9062 | BU1379: 2026 | BV1379: 339748.4701 | BW1379: 346772.1897 | BX1379: 686520.6598 | BY1379: 83189.79217 | BZ1379: 78956.09379 | CA1379: 162145.886 | CB1379: 346772.1897 | CC1379: 398755.1789 | CD1379: 402626.024 | CE1379: 801381.2029 | CG1379: 2026 | CH1379: 181662.4751 | CI1379: 190467.9099 | CJ1379: 372130.385 | CK1379: 46331.4136 | CL1379: 43512.3557 | CM1379: 89843.7693 | CN1379: 190467.9099 | CO1379: 215037.2745 | CP1379: 221624.9517 | CQ1379: 436662.2262 | CS1379: 2026 | CT1379: 226056.0503 | CU1379: 237612.413 | CV1379: 463668.4632 | CW1379: 55048.70005 | CX1379: 51691.20309 | CY1379: 106739.9031 | CZ1379: 237612.413 | DA1379: 265506.6815 | DB1379: 274481.7767 | DC1379: 539988.4582 | DE1379: 2026 | DF1379: 214664.7325 | DG1379: 221812.3252 | DH1379: 436477.0577 | DI1379: 52822.1377 | DJ1379: 50048.61061 | DK1379: 102870.7483 | DL1379: 221812.3252 | DM1379: 252776.6485 | DN1379: 257970.2401 | DO1379: 510746.8886 | DQ1379: 2026 | DR1379: 211079.8397 | DS1379: 215904.1403 | DT1379: 426983.9799 | DU1379: 49626.57649 | DV1379: 47280.52302 | DW1379: 96907.0995 | DX1379: 215904.1403 | DY1379: 246910.5955 | DZ1379: 249989.2291 | EA1379: 496899.8246 | EC1379: 2026 | ED1379: 492950.262 | EE1379: 518237.3316 | EF1379: 1011187.594 | EG1379: 122315.7881 | EH1379: 115642.8088 | EI1379: 237958.5969 | EJ1379: 518237.3316 | EK1379: 582703.7166 | EL1379: 602890.2158 | EM1379: 1185593.932 | EO1379: 2026 | EP1379: 257576.4133 | EQ1379: 273272.8106 | ER1379: 530849.2239 | ES1379: 61790.45911 | ET1379: 58829.88084 | EU1379: 120620.34 | EV1379: 273272.8106 | EW1379: 302021.3235 | EX1379: 315271.6032 | EY1379: 617292.9267 | FA1379: 2026 | FB1379: 237188.3471 | FC1379: 251964.5654 | FD1379: 489152.9124 | FE1379: 55536.73126 | FF1379: 52284.87661 | FG1379: 107821.6079 | FH1379: 251964.5654 | FI1379: 276942.9788 | FJ1379: 289424.0349 | FK1379: 566367.0137 | FM1379: 2026 | FN1379: 484430.2168 | FO1379: 514599.6913 | FP1379: 999029.908 | FQ1379: 115323.6795 | FR1379: 108898.6999 | FS1379: 224222.3794 | FT1379: 514599.6913 | FU1379: 567021.38 | FV1379: 592265.5977 | FW1379: 1159286.978
A1380: 2027 | B1380: 4440419.034 | C1380: 4658276.391 | D1380: 9098695.425 | E1380: 1097190.935 | F1380: 1037276.152 | G1380: 2134467.086 | H1380: 4658276.391 | I1380: 5236396.947 | J1380: 5408572.066 | K1380: 10644969.01 | M1380: 2027 | N1380: 565744.4872 | O1380: 601237.8744 | P1380: 1166982.362 | Q1380: 142981.1151 | R1380: 133904.2703 | S1380: 276885.3855 | T1380: 601237.8744 | U1380: 673844.8327 | V1380: 702316.4128 | W1380: 1376161.245 | Y1380: 2027 | Z1380: 597876.5763 | AA1380: 630920.4406 | AB1380: 1228797.017 | AC1380: 167892.1973 | AD1380: 159125.467 | AE1380: 327017.6643 | AF1380: 630920.4406 | AG1380: 720716.538 | AH1380: 746948.3406 | AI1380: 1467664.879 | AK1380: 2027 | AL1380: 265517.159 | AM1380: 278769.4692 | AN1380: 544286.6282 | AO1380: 65467.46297 | AP1380: 61517.52445 | AQ1380: 126984.9874 | AR1380: 278769.4692 | AS1380: 312810.9155 | AT1380: 323117.8491 | AU1380: 635928.7646 | AW1380: 2027 | AX1380: 248179.9692 | AY1380: 255927.1213 | AZ1380: 504107.0906 | BA1380: 58506.54929 | BB1380: 56117.54638 | BC1380: 114624.0957 | BD1380: 255927.1213 | BE1380: 290296.8987 | BF1380: 296264.8442 | BG1380: 586561.7429 | BI1380: 2027 | BJ1380: 120571.6389 | BK1380: 124819.9086 | BL1380: 245391.5475 | BM1380: 27227.13399 | BN1380: 26131.82281 | BO1380: 53358.9568 | BP1380: 124819.9086 | BQ1380: 139814.2412 | BR1380: 143186.6774 | BS1380: 283000.9186 | BU1380: 2027 | BV1380: 339429.1979 | BW1380: 346001.9282 | BX1380: 685431.1261 | BY1380: 82166.58718 | BZ1380: 77899.34487 | CA1380: 160065.9321 | CB1380: 346001.9282 | CC1380: 397543.7214 | CD1380: 401048.9588 | CE1380: 798592.6802 | CG1380: 2027 | CH1380: 181759.7829 | CI1380: 190589.06 | CJ1380: 372348.8429 | CK1380: 46022.44452 | CL1380: 43099.34749 | CM1380: 89121.79201 | CN1380: 190589.06 | CO1380: 214833.6167 | CP1380: 221319.1759 | CQ1380: 436152.7926 | CS1380: 2027 | CT1380: 225825.3211 | CU1380: 237302.214 | CV1380: 463127.535 | CW1380: 54554.22676 | CX1380: 51103.63702 | CY1380: 105657.8638 | CZ1380: 237302.214 | DA1380: 264821.8402 | DB1380: 273778.5226 | DC1380: 538600.3629 | DE1380: 2027 | DF1380: 214695.0432 | DG1380: 221798.1007 | DH1380: 436493.1439 | DI1380: 52294.4794 | DJ1380: 49587.40589 | DK1380: 101881.8853 | DL1380: 221798.1007 | DM1380: 252348.5112 | DN1380: 257459.55 | DO1380: 509808.0612 | DQ1380: 2027 | DR1380: 210725.4961 | DS1380: 215500.5717 | DT1380: 426226.0678 | DU1380: 48989.54637 | DV1380: 46788.8882 | DW1380: 95778.43457 | DX1380: 215500.5717 | DY1380: 246030.2821 | DZ1380: 249098.8812 | EA1380: 495129.1632 | EC1380: 2027 | ED1380: 494030.0013 | EE1380: 518996.1204 | EF1380: 1013026.122 | EG1380: 121524.6314 | EH1380: 114950.9419 | EI1380: 236475.5733 | EJ1380: 518996.1204 | EK1380: 582806.5464 | EL1380: 602670.8337 | EM1380: 1185477.38 | EO1380: 2027 | EP1380: 257067.1337 | EQ1380: 272677.7261 | ER1380: 529744.8598 | ES1380: 61016.5247 | ET1380: 58073.40731 | EU1380: 119089.932 | EV1380: 272677.7261 | EW1380: 300909.4659 | EX1380: 314080.8655 | EY1380: 614990.3315 | FA1380: 2027 | FB1380: 236590.417 | FC1380: 251322.3149 | FD1380: 487912.7319 | FE1380: 54891.55622 | FF1380: 51624.40383 | FG1380: 106515.96 | FH1380: 251322.3149 | FI1380: 275777.4975 | FJ1380: 288217.7223 | FK1380: 563995.2198 | FM1380: 2027 | FN1380: 482406.8108 | FO1380: 512413.5409 | FP1380: 994820.3517 | FQ1380: 113656.4795 | FR1380: 107352.1442 | FS1380: 221008.6237 | FT1380: 512413.5409 | FU1380: 563842.0393 | FV1380: 589063.4315 | FW1380: 1152905.471
A1381: 2028 | B1381: 4447190.938 | C1381: 4664718.475 | D1381: 9111909.414 | E1381: 1085487.179 | F1381: 1025142.199 | G1381: 2110629.378 | H1381: 4664718.475 | I1381: 5235550.944 | J1381: 5407117.79 | K1381: 10642668.73 | M1381: 2028 | N1381: 570298.3517 | O1381: 605436.3129 | P1381: 1175734.665 | Q1381: 143314.488 | R1381: 134188.0948 | S1381: 277502.5828 | T1381: 605436.3129 | U1381: 678466.6633 | V1381: 706401.1468 | W1381: 1384867.81 | Y1381: 2028 | Z1381: 603088.8734 | AA1381: 637167.5038 | AB1381: 1240256.377 | AC1381: 167525.7996 | AD1381: 158771.6227 | AE1381: 326297.4223 | AF1381: 637167.5038 | AG1381: 725709.4445 | AH1381: 752888.3865 | AI1381: 1478597.831 | AK1381: 2028 | AL1381: 265679.0035 | AM1381: 278970.1405 | AN1381: 544649.144 | AO1381: 64681.87098 | AP1381: 60639.21089 | AQ1381: 125321.0819 | AR1381: 278970.1405 | AS1381: 312279.3787 | AT1381: 322720.9235 | AU1381: 635000.3022 | AW1381: 2028 | AX1381: 248727.9085 | AY1381: 256649.2841 | AZ1381: 505377.1926 | BA1381: 57939.72284 | BB1381: 55454.21567 | BC1381: 113393.9385 | BD1381: 256649.2841 | BE1381: 290490.543 | BF1381: 296476.2259 | BG1381: 586966.7689 | BI1381: 2028 | BJ1381: 120130.2798 | BK1381: 124319.2334 | BL1381: 244449.5132 | BM1381: 26719.60605 | BN1381: 25546.46221 | BO1381: 52266.06827 | BP1381: 124319.2334 | BQ1381: 139124.3954 | BR1381: 142435.5658 | BS1381: 281559.9612 | BU1381: 2028 | BV1381: 338842.7008 | BW1381: 345112.0051 | BX1381: 683954.7059 | BY1381: 80684.58658 | BZ1381: 76452.83298 | CA1381: 157137.4196 | CB1381: 345112.0051 | CC1381: 396276.7785 | CD1381: 399398.4266 | CE1381: 795675.2051 | CG1381: 2028 | CH1381: 181894.3697 | CI1381: 190537.8886 | CJ1381: 372432.2583 | CK1381: 45404.18842 | CL1381: 42480.83165 | CM1381: 87885.02007 | CN1381: 190537.8886 | CO1381: 214578.1883 | CP1381: 220957.3325 | CQ1381: 435535.5208 | CS1381: 2028 | CT1381: 225518.0467 | CU1381: 237043.7979 | CV1381: 462561.8446 | CW1381: 53706.70948 | CX1381: 50259.79119 | CY1381: 103966.5007 | CZ1381: 237043.7979 | DA1381: 264072.7118 | DB1381: 273009.8296 | DC1381: 537082.5414 | DE1381: 2028 | DF1381: 214737.7548 | DG1381: 221776.5356 | DH1381: 436514.2905 | DI1381: 51564.81571 | DJ1381: 48838.4595 | DK1381: 100403.2752 | DL1381: 221776.5356 | DM1381: 251860.9277 | DN1381: 256886.7519 | DO1381: 508747.6795 | DQ1381: 2028 | DR1381: 210390.3512 | DS1381: 215120.4764 | DT1381: 425510.8275 | DU1381: 48259.80159 | DV1381: 45998.64032 | DW1381: 94258.44191 | DX1381: 215120.4764 | DY1381: 245097.4024 | DZ1381: 248157.4756 | EA1381: 493254.878 | EC1381: 2028 | ED1381: 494992.9013 | EE1381: 519639.8605 | EF1381: 1014632.762 | EG1381: 120301.7394 | EH1381: 113689.8095 | EI1381: 233991.5489 | EJ1381: 519639.8605 | EK1381: 582731.2467 | EL1381: 602272.8019 | EM1381: 1185004.049 | EO1381: 2028 | EP1381: 256556.5204 | EQ1381: 272087.8746 | ER1381: 528644.395 | ES1381: 59966.43416 | ET1381: 56994.96521 | EU1381: 116961.3994 | EV1381: 272087.8746 | EW1381: 299740.8739 | EX1381: 312829.8637 | EY1381: 612570.7376 | FA1381: 2028 | FB1381: 235997.1706 | FC1381: 250596.3332 | FD1381: 486593.5038 | FE1381: 53833.98455 | FF1381: 50739.99314 | FG1381: 104573.9777 | FH1381: 250596.3332 | FI1381: 274558.6058 | FJ1381: 286954.1795 | FK1381: 561512.7853 | FM1381: 2028 | FN1381: 480336.7061 | FO1381: 510261.2287 | FP1381: 990597.9348 | FQ1381: 111583.4318 | FR1381: 105087.2696 | FS1381: 216670.7014 | FT1381: 510261.2287 | FU1381: 560563.784 | FV1381: 585728.8801 | FW1381: 1146292.664
A1382: 2029 | B1382: 4452095.264 | C1382: 4669071.284 | D1382: 9121166.548 | E1382: 1071104.023 | F1382: 1011057.892 | G1382: 2082161.916 | H1382: 4669071.284 | I1382: 5233225.25 | J1382: 5404170.754 | K1382: 10637396 | M1382: 2029 | N1382: 574541.1383 | O1382: 609101.9632 | P1382: 1183643.102 | Q1382: 143245.1678 | R1382: 134080.7038 | S1382: 277325.8716 | T1382: 609101.9632 | U1382: 682865.3676 | V1382: 710270.9499 | W1382: 1393136.318 | Y1382: 2029 | Z1382: 607935.7415 | AA1382: 642961.7028 | AB1382: 1250897.444 | AC1382: 166755.6477 | AD1382: 157927.6407 | AE1382: 324683.2884 | AF1382: 642961.7028 | AG1382: 730305.7547 | AH1382: 758465.7339 | AI1382: 1488771.489 | AK1382: 2029 | AL1382: 265630.6649 | AM1382: 278993.5989 | AN1382: 544624.2639 | AO1382: 63669.33393 | AP1382: 59682.46176 | AQ1382: 123351.7957 | AR1382: 278993.5989 | AS1382: 311645.2828 | AT1382: 322218.6257 | AU1382: 633863.9085 | AW1382: 2029 | AX1382: 249087.9734 | AY1382: 257109.2772 | AZ1382: 506197.2505 | BA1382: 57168.7298 | BB1382: 54702.74584 | BC1382: 111871.4756 | BD1382: 257109.2772 | BE1382: 290564.7802 | BF1382: 296572.6317 | BG1382: 587137.4119 | BI1382: 2029 | BJ1382: 119698.7179 | BK1382: 123811.9499 | BL1382: 243510.6678 | BM1382: 26094.63881 | BN1382: 24967.81943 | BO1382: 51062.45823 | BP1382: 123811.9499 | BQ1382: 138422.4478 | BR1382: 141665.2419 | BS1382: 280087.6897 | BU1382: 2029 | BV1382: 338180.1631 | BW1382: 344052.67 | BX1382: 682232.8331 | BY1382: 79055.30718 | BZ1382: 74854.17934 | CA1382: 153909.4865 | CB1382: 344052.67 | CC1382: 394959.4513 | CD1382: 397675.0027 | CE1382: 792634.454 | CG1382: 2029 | CH1382: 181955.4087 | CI1382: 190486.1781 | CJ1382: 372441.5869 | CK1382: 44715.71197 | CL1382: 41704.2648 | CM1382: 86419.97677 | CN1382: 190486.1781 | CO1382: 214273.6092 | CP1382: 220541.2737 | CQ1382: 434814.8829 | CS1382: 2029 | CT1382: 225169.9328 | CU1382: 236722.0901 | CV1382: 461892.0229 | CW1382: 52784.6262 | CX1382: 49380.50447 | CY1382: 102165.1307 | CZ1382: 236722.0901 | DA1382: 263265.1981 | DB1382: 272179.7524 | DC1382: 535444.9506 | DE1382: 2029 | DF1382: 214592.4024 | DG1382: 221584.3067 | DH1382: 436176.709 | DI1382: 50716.86251 | DJ1382: 48113.79777 | DK1382: 98830.66028 | DL1382: 221584.3067 | DM1382: 251314.3406 | DN1382: 256255.2597 | DO1382: 507569.6003 | DQ1382: 2029 | DR1382: 209897.0979 | DS1382: 214644.585 | DT1382: 424541.6829 | DU1382: 47350.28106 | DV1382: 45162.64531 | DW1382: 92512.92636 | DX1382: 214644.585 | DY1382: 244116.5995 | DZ1382: 247173.8668 | EA1382: 491290.4663 | EC1382: 2029 | ED1382: 495818.1837 | EE1382: 520258.4753 | EF1382: 1016076.659 | EG1382: 118670.8794 | EH1382: 112021.5757 | EI1382: 230692.4551 | EJ1382: 520258.4753 | EK1382: 582485.8506 | EL1382: 601715.1175 | EM1382: 1184200.968 | EO1382: 2029 | EP1382: 256072.8626 | EQ1382: 271462.6496 | ER1382: 527535.5123 | ES1382: 58798.89318 | ET1382: 55818.7656 | EU1382: 114617.6588 | EV1382: 271462.6496 | EW1382: 298523.2114 | EX1382: 311524.0153 | EY1382: 610047.2267 | FA1382: 2029 | FB1382: 235407.1998 | FC1382: 249894.4185 | FD1382: 485301.6184 | FE1382: 52739.8357 | FF1382: 49712.37975 | FG1382: 102452.2155 | FH1382: 249894.4185 | FI1382: 273289.0007 | FJ1382: 285639.6708 | FK1382: 558928.6714 | FM1382: 2029 | FN1382: 478107.7771 | FO1382: 507987.4188 | FP1382: 986095.1959 | FQ1382: 109338.108 | FR1382: 102928.4082 | FS1382: 212266.5162 | FT1382: 507987.4188 | FU1382: 557194.3552 | FV1382: 582273.6116 | FW1382: 1139467.967
A1383: 2030 | B1383: 4457322.718 | C1383: 4672997.81 | D1383: 9130320.528 | E1383: 1057641.548 | F1383: 997317.6312 | G1383: 2054959.179 | H1383: 4672997.81 | I1383: 5229545.275 | J1383: 5399745.284 | K1383: 10629290.56 | M1383: 2030 | N1383: 578764.7922 | O1383: 612796.2636 | P1383: 1191561.056 | Q1383: 143160.4135 | R1383: 133870.8393 | S1383: 277031.2528 | T1383: 612796.2636 | U1383: 687046.5623 | V1383: 713917.6029 | W1383: 1400964.165 | Y1383: 2030 | Z1383: 612597.5672 | AA1383: 648567.7145 | AB1383: 1261165.282 | AC1383: 166060.0698 | AD1383: 157155.2152 | AE1383: 323215.285 | AF1383: 648567.7145 | AG1383: 734519.1837 | AH1383: 763678.1931 | AI1383: 1498197.377 | AK1383: 2030 | AL1383: 265557.9391 | AM1383: 279007.3227 | AN1383: 544565.2618 | AO1383: 62724.01189 | AP1383: 58753.55498 | AQ1383: 121477.5669 | AR1383: 279007.3227 | AS1383: 310914.481 | AT1383: 321613.8058 | AU1383: 632528.2868 | AW1383: 2030 | AX1383: 249503.852 | AY1383: 257513.2953 | AZ1383: 507017.1473 | BA1383: 56351.49053 | BB1383: 53978.00529 | BC1383: 110329.4958 | BD1383: 257513.2953 | BE1383: 290526.8889 | BF1383: 296555.9136 | BG1383: 587082.8025 | BI1383: 2030 | BJ1383: 119286.9218 | BK1383: 123302.0854 | BL1383: 242589.0072 | BM1383: 25512.99809 | BN1383: 24470.38542 | BO1383: 49983.38351 | BP1383: 123302.0854 | BQ1383: 137712.3685 | BR1383: 140877.0199 | BS1383: 278589.3883 | BU1383: 2030 | BV1383: 337629.4556 | BW1383: 343014.7973 | BX1383: 680644.2528 | BY1383: 77600.07622 | BZ1383: 73456.30397 | CA1383: 151056.3802 | CB1383: 343014.7973 | CC1383: 393597.6636 | CD1383: 395877.1008 | CE1383: 789474.7644 | CG1383: 2030 | CH1383: 182017.7669 | CI1383: 190406.1854 | CJ1383: 372423.9523 | CK1383: 44049.22711 | CL1383: 41010.59935 | CM1383: 85059.82646 | CN1383: 190406.1854 | CO1383: 213926.6086 | CP1383: 220071.691 | CQ1383: 433998.2996 | CS1383: 2030 | CT1383: 224833.1891 | CU1383: 236322.8753 | CV1383: 461156.0645 | CW1383: 51919.89571 | CX1383: 48419.92159 | CY1383: 100339.8173 | CZ1383: 236322.8753 | DA1383: 262405.3899 | DB1383: 271290.5045 | DC1383: 533695.8944 | DE1383: 2030 | DF1383: 214552.8227 | DG1383: 221422.4857 | DH1383: 435975.3084 | DI1383: 50038.12255 | DJ1383: 47307.53291 | DK1383: 97345.65546 | DL1383: 221422.4857 | DM1383: 250716.8019 | DN1383: 255568.755 | DO1383: 506285.5568 | DQ1383: 2030 | DR1383: 209486.9517 | DS1383: 214191.7901 | DT1383: 423678.7418 | DU1383: 46537.68973 | DV1383: 44406.46017 | DW1383: 90944.1499 | DX1383: 214191.7901 | DY1383: 243094.0541 | DZ1383: 246149.0937 | EA1383: 489243.1479 | EC1383: 2030 | ED1383: 496698.801 | EE1383: 520743.0951 | EF1383: 1017441.896 | EG1383: 117077.3175 | EH1383: 110321.4261 | EI1383: 227398.7437 | EJ1383: 520743.0951 | EK1383: 582091.2214 | EL1383: 601001.4104 | EM1383: 1183092.632 | EO1383: 2030 | EP1383: 255554.9498 | EQ1383: 270802.0694 | ER1383: 526357.0192 | ES1383: 57677.27997 | ET1383: 54624.46692 | EU1383: 112301.7469 | EV1383: 270802.0694 | EW1383: 297262.6197 | EX1383: 310167.144 | EY1383: 607429.7636 | FA1383: 2030 | FB1383: 234789.6611 | FC1383: 249188.4473 | FD1383: 483978.1084 | FE1383: 51754.7624 | FF1383: 48784.66467 | FG1383: 100539.4271 | FH1383: 249188.4473 | FI1383: 271979.0737 | FJ1383: 284279.1794 | FK1383: 556258.2531 | FM1383: 2030 | FN1383: 476048.0475 | FO1383: 505719.3829 | FP1383: 981767.4304 | FQ1383: 107178.1926 | FR1383: 100758.2553 | FS1383: 207936.4479 | FT1383: 505719.3829 | FU1383: 553752.3577 | FV1383: 578697.8703 | FW1383: 1132450.228
A1384: 2031 | B1384: 4460598.003 | C1384: 4674888.892 | D1384: 9135486.895 | E1384: 1044355.857 | F1384: 984586.2376 | G1384: 2028942.094 | H1384: 4674888.892 | I1384: 5224604.114 | J1384: 5393956.815 | K1384: 10618560.93 | M1384: 2031 | N1384: 582725.4551 | O1384: 616215.7276 | P1384: 1198941.183 | Q1384: 142994.2541 | R1384: 133765.9536 | S1384: 276760.2077 | T1384: 616215.7276 | U1384: 691017.6879 | V1384: 717353.8909 | W1384: 1408371.579 | Y1384: 2031 | Z1384: 616799.1464 | AA1384: 653731.4203 | AB1384: 1270530.567 | AC1384: 165236.2376 | AD1384: 156402.6651 | AE1384: 321638.9026 | AF1384: 653731.4203 | AG1384: 738366.1482 | AH1384: 768540.4631 | AI1384: 1506906.611 | AK1384: 2031 | AL1384: 265357.6111 | AM1384: 278887.3131 | AN1384: 544244.9242 | AO1384: 61832.18347 | AP1384: 57849.2985 | AQ1384: 119681.482 | AR1384: 278887.3131 | AS1384: 310094.5502 | AT1384: 320913.9464 | AU1384: 631008.4967 | AW1384: 2031 | AX1384: 249773.8807 | AY1384: 257778.4386 | AZ1384: 507552.3193 | BA1384: 55648.75866 | BB1384: 53270.83357 | BC1384: 108919.5922 | BD1384: 257778.4386 | BE1384: 290380.3604 | BF1384: 296432.4958 | BG1384: 586812.8562 | BI1384: 2031 | BJ1384: 118838.1038 | BK1384: 122749.1036 | BL1384: 241587.2074 | BM1384: 25016.55716 | BN1384: 23999.7259 | BO1384: 49016.28306 | BP1384: 122749.1036 | BQ1384: 136994.0536 | BR1384: 140072.6017 | BS1384: 277066.6553 | BU1384: 2031 | BV1384: 336951.2423 | BW1384: 341826.8195 | BX1384: 678778.0618 | BY1384: 76264.34683 | BZ1384: 72244.83483 | CA1384: 148509.1817 | CB1384: 341826.8195 | CC1384: 392193.1859 | CD1384: 394008.989 | CE1384: 786202.1749 | CG1384: 2031 | CH1384: 182000.8692 | CI1384: 190237.9161 | CJ1384: 372238.7853 | CK1384: 43373.7201 | CL1384: 40393.75096 | CM1384: 83767.47106 | CN1384: 190237.9161 | CO1384: 213539.9971 | CP1384: 219552.9138 | CQ1384: 433092.9109 | CS1384: 2031 | CT1384: 224407.5878 | CU1384: 235832.2397 | CV1384: 460239.8275 | CW1384: 51083.49077 | CX1384: 47686.26996 | CY1384: 98769.76072 | CZ1384: 235832.2397 | DA1384: 261499.1507 | DB1384: 270348.0336 | DC1384: 531847.1843 | DE1384: 2031 | DF1384: 214427.2858 | DG1384: 221172.9891 | DH1384: 435600.275 | DI1384: 49191.24356 | DJ1384: 46585.221 | DK1384: 95776.46456 | DL1384: 221172.9891 | DM1384: 250072.6965 | DN1384: 254831.4872 | DO1384: 504904.1837 | DQ1384: 2031 | DR1384: 209006.2032 | DS1384: 213674.315 | DT1384: 422680.5183 | DU1384: 45762.39384 | DV1384: 43643.94653 | DW1384: 89406.34037 | DX1384: 213674.315 | DY1384: 242034.195 | DZ1384: 245090.5766 | EA1384: 487124.7716 | EC1384: 2031 | ED1384: 497373.021 | EE1384: 521017.091 | EF1384: 1018390.112 | EG1384: 115460.1715 | EH1384: 108720.4716 | EI1384: 224180.6431 | EJ1384: 521017.091 | EK1384: 581566.4184 | EL1384: 600146.1009 | EM1384: 1181712.519 | EO1384: 2031 | EP1384: 254956.872 | EQ1384: 270050.8435 | ER1384: 525007.7154 | ES1384: 56631.23163 | ET1384: 53567.63472 | EU1384: 110198.8663 | EV1384: 270050.8435 | EW1384: 295967.6453 | EX1384: 308765.6524 | EY1384: 604733.2977 | FA1384: 2031 | FB1384: 234105.2764 | FC1384: 248412.3135 | FD1384: 482517.5899 | FE1384: 50739.46531 | FF1384: 47823.02395 | FG1384: 98562.48926 | FH1384: 248412.3135 | FI1384: 270633.6665 | FJ1384: 282881.0079 | FK1384: 553514.6744 | FM1384: 2031 | FN1384: 473875.448 | FO1384: 503302.3618 | FP1384: 977177.8098 | FQ1384: 105121.8022 | FR1384: 98632.60741 | FS1384: 203754.4096 | FT1384: 503302.3618 | FU1384: 550244.358 | FV1384: 575018.6557 | FW1384: 1125263.014
A1385: 2032 | B1385: 4462694.848 | C1385: 4675417.617 | D1385: 9138112.465 | E1385: 1036030.001 | F1385: 976525.4528 | G1385: 2012555.454 | H1385: 4675417.617 | I1385: 5219199.908 | J1385: 5387508.379 | K1385: 10606708.29 | M1385: 2032 | N1385: 586637.0893 | O1385: 619565.5404 | P1385: 1206202.63 | Q1385: 143284.5293 | R1385: 133995.39 | S1385: 277279.9193 | T1385: 619565.5404 | U1385: 694997.6725 | V1385: 720779.4242 | W1385: 1415777.097 | Y1385: 2032 | Z1385: 620716.441 | AA1385: 658592.675 | AB1385: 1279309.116 | AC1385: 164935.7197 | AD1385: 156070.7973 | AE1385: 321006.5171 | AF1385: 658592.675 | AG1385: 742029.3055 | AH1385: 773195.7401 | AI1385: 1515225.046 | AK1385: 2032 | AL1385: 265071.9958 | AM1385: 278674.2383 | AN1385: 543746.2342 | AO1385: 61227.91532 | AP1385: 57321.22367 | AQ1385: 118549.139 | AR1385: 278674.2383 | AS1385: 309233.4081 | AT1385: 320163.4676 | AU1385: 629396.8757 | AW1385: 2032 | AX1385: 249973.4524 | AY1385: 257967.5178 | AZ1385: 507940.9702 | BA1385: 55315.71042 | BB1385: 52870.55863 | BC1385: 108186.269 | BD1385: 257967.5178 | BE1385: 290208.0927 | BF1385: 296275.5041 | BG1385: 586483.5968 | BI1385: 2032 | BJ1385: 118353.2218 | BK1385: 122151.8371 | BL1385: 240505.0589 | BM1385: 24665.59421 | BN1385: 23679.40042 | BO1385: 48344.99464 | BP1385: 122151.8371 | BQ1385: 136262.0988 | BR1385: 139245.4171 | BS1385: 275507.5158 | BU1385: 2032 | BV1385: 336160.4316 | BW1385: 340501.9972 | BX1385: 676662.4288 | BY1385: 75298.96664 | BZ1385: 71380.32055 | CA1385: 146679.2872 | CB1385: 340501.9972 | CC1385: 390746.8702 | CD1385: 392072.3395 | CE1385: 782819.2097 | CG1385: 2032 | CH1385: 181919.434 | CI1385: 189992.7308 | CJ1385: 371912.1648 | CK1385: 43030.8838 | CL1385: 39935.10012 | CM1385: 82965.98392 | CN1385: 189992.7308 | CO1385: 213124.533 | CP1385: 218992.8697 | CQ1385: 432117.4027 | CS1385: 2032 | CT1385: 223912.6531 | CU1385: 235262.7449 | CV1385: 459175.398 | CW1385: 50556.83042 | CX1385: 47231.48778 | CY1385: 97788.3182 | CZ1385: 235262.7449 | DA1385: 260563.4843 | DB1385: 269366.0523 | DC1385: 529929.5366 | DE1385: 2032 | DF1385: 214235.6159 | DG1385: 220853.242 | DH1385: 435088.8579 | DI1385: 48646.86591 | DJ1385: 46015.20063 | DK1385: 94662.06654 | DL1385: 220853.242 | DM1385: 249398.4039 | DN1385: 254059.7057 | DO1385: 503458.1095 | DQ1385: 2032 | DR1385: 208461.1096 | DS1385: 213092.1226 | DT1385: 421553.2322 | DU1385: 45130.53369 | DV1385: 43065.08742 | DW1385: 88195.62111 | DX1385: 213092.1226 | DY1385: 240938.4465 | DZ1385: 243995.545 | EA1385: 484933.9914 | EC1385: 2032 | ED1385: 498021.6275 | EE1385: 521251.8353 | EF1385: 1019273.463 | EG1385: 114299.6339 | EH1385: 107582.5232 | EI1385: 221882.1571 | EJ1385: 521251.8353 | EK1385: 581133.7289 | EL1385: 599367.6092 | EM1385: 1180501.338 | EO1385: 2032 | EP1385: 254282.1239 | EQ1385: 269210.7272 | ER1385: 523492.8511 | ES1385: 55917.78046 | ET1385: 52879.71419 | EU1385: 108797.4946 | EV1385: 269210.7272 | EW1385: 294639.6615 | EX1385: 307318.0897 | EY1385: 601957.7512 | FA1385: 2032 | FB1385: 233354.6544 | FC1385: 247562.8862 | FD1385: 480917.5406 | FE1385: 50047.14373 | FF1385: 47147.93029 | FG1385: 97195.07402 | FH1385: 247562.8862 | FI1385: 269253.5872 | FJ1385: 281441.2017 | FK1385: 550694.7889 | FM1385: 2032 | FN1385: 471594.9979 | FO1385: 500737.5221 | FP1385: 972332.52 | FQ1385: 103671.8935 | FR1385: 97350.71855 | FS1385: 201022.612 | FT1385: 500737.5221 | FU1385: 546670.6148 | FV1385: 571235.4132 | FW1385: 1117906.028
A1386: 2033 | B1386: 4463703.161 | C1386: 4674643.886 | D1386: 9138347.048 | E1386: 1027795.001 | F1386: 968208.6868 | G1386: 1996003.688 | H1386: 4674643.886 | I1386: 5213497.9 | J1386: 5380526.319 | K1386: 10594024.22 | M1386: 2033 | N1386: 590498.499 | O1386: 622857.1512 | P1386: 1213355.65 | Q1386: 143486.9719 | R1386: 134037.3474 | S1386: 277524.3192 | T1386: 622857.1512 | U1386: 698996.0572 | V1386: 724214.4694 | W1386: 1423210.527 | Y1386: 2033 | Z1386: 624372.8157 | AA1386: 663158.6583 | AB1386: 1287531.474 | AC1386: 164761.7288 | AD1386: 155836.1618 | AE1386: 320597.8906 | AF1386: 663158.6583 | AG1386: 745534.9347 | AH1386: 777652.6662 | AI1386: 1523187.601 | AK1386: 2033 | AL1386: 264708.6913 | AM1386: 278373.301 | AN1386: 543081.9923 | AO1386: 60459.58829 | AP1386: 56658.15211 | AQ1386: 117117.7404 | AR1386: 278373.301 | AS1386: 308343.1302 | AT1386: 319371.9028 | AU1386: 627715.033 | AW1386: 2033 | AX1386: 250106.5654 | AY1386: 258082.3131 | AZ1386: 508188.8785 | BA1386: 54934.22965 | BB1386: 52339.45073 | BC1386: 107273.6804 | BD1386: 258082.3131 | BE1386: 290017.2354 | BF1386: 296089.7493 | BG1386: 586106.9847 | BI1386: 2033 | BJ1386: 117833.6321 | BK1386: 121512.986 | BL1386: 239346.6181 | BM1386: 24394.94812 | BN1386: 23410.44194 | BO1386: 47805.39006 | BP1386: 121512.986 | BQ1386: 135517.6501 | BR1386: 138397.8042 | BS1386: 273915.4543 | BU1386: 2033 | BV1386: 335269.5789 | BW1386: 339052.9727 | BX1386: 674322.5517 | BY1386: 74566.97859 | BZ1386: 70582.69704 | CA1386: 145149.6756 | CB1386: 339052.9727 | CC1386: 389271.1476 | CD1386: 390079.0128 | CE1386: 779350.1605 | CG1386: 2033 | CH1386: 181777.0863 | CI1386: 189675.4456 | CJ1386: 371452.5319 | CK1386: 42620.11868 | CL1386: 39611.01568 | CM1386: 82231.13435 | CN1386: 189675.4456 | CO1386: 212685.4735 | CP1386: 218397.5562 | CQ1386: 431083.0297 | CS1386: 2033 | CT1386: 223356.1175 | CU1386: 234620.7298 | CV1386: 457976.8473 | CW1386: 50073.33994 | CX1386: 46691.29638 | CY1386: 96764.63632 | CZ1386: 234620.7298 | DA1386: 259607.6973 | DB1386: 268352.3429 | DC1386: 527960.0403 | DE1386: 2033 | DF1386: 213983.2037 | DG1386: 220467.1156 | DH1386: 434450.3194 | DI1386: 48062.59432 | DJ1386: 45421.28663 | DK1386: 93483.88095 | DL1386: 220467.1156 | DM1386: 248702.808 | DN1386: 253260.2899 | DO1386: 501963.0979 | DQ1386: 2033 | DR1386: 207850.4892 | DS1386: 212445.84 | DT1386: 420296.3292 | DU1386: 44459.19791 | DV1386: 42441.77678 | DW1386: 86900.97469 | DX1386: 212445.84 | DY1386: 239811.3388 | DZ1386: 242869.5506 | EA1386: 482680.8894 | EC1386: 2033 | ED1386: 498660.1856 | EE1386: 521445.2095 | EF1386: 1020105.395 | EG1386: 113216.8676 | EH1386: 106516.1792 | EI1386: 219733.0468 | EJ1386: 521445.2095 | EK1386: 580824.4079 | EL1386: 598678.4408 | EM1386: 1179502.849 | EO1386: 2033 | EP1386: 253533.589 | EQ1386: 268285.5049 | ER1386: 521819.0939 | ES1386: 55190.91948 | ET1386: 52164.29133 | EU1386: 107355.2108 | EV1386: 268285.5049 | EW1386: 293287.3319 | EX1386: 305833.3965 | EY1386: 599120.7284 | FA1386: 2033 | FB1386: 232539.5745 | FC1386: 246641.0743 | FD1386: 479180.6488 | FE1386: 49334.67901 | FF1386: 46534.68816 | FG1386: 95869.36717 | FH1386: 246641.0743 | FI1386: 267846.5393 | FJ1386: 279966.059 | FK1386: 547812.5983 | FM1386: 2033 | FN1386: 469213.1333 | FO1386: 498025.5841 | FP1386: 967238.7174 | FQ1386: 102232.8385 | FR1386: 95963.90171 | FS1386: 198196.7402 | FT1386: 498025.5841 | FU1386: 543052.1475 | FV1386: 567363.0785 | FW1386: 1110415.226
A1387: 2034 | B1387: 4463711.842 | C1387: 4672592.919 | D1387: 9136304.761 | E1387: 1020651.77 | F1387: 961140.9881 | G1387: 1981792.758 | H1387: 4672592.919 | I1387: 5207650.111 | J1387: 5373089.821 | K1387: 10580739.93 | M1387: 2034 | N1387: 594322.0615 | O1387: 626084.8428 | P1387: 1220406.904 | Q1387: 143863.4351 | R1387: 134469.3745 | S1387: 278332.8095 | T1387: 626084.8428 | U1387: 703034.2746 | V1387: 727660.5758 | W1387: 1430694.85 | Y1387: 2034 | Z1387: 627779.772 | AA1387: 667437.7751 | AB1387: 1295217.547 | AC1387: 164648.9881 | AD1387: 155773.3535 | AE1387: 320422.3416 | AF1387: 667437.7751 | AG1387: 748897.0875 | AH1387: 781921.6085 | AI1387: 1530818.696 | AK1387: 2034 | AL1387: 264272.554 | AM1387: 277984.9625 | AN1387: 542257.5165 | AO1387: 59845.54 | AP1387: 56112.3563 | AQ1387: 115957.8963 | AR1387: 277984.9625 | AS1387: 307432.0444 | AT1387: 318543.3458 | AU1387: 625975.3902 | AW1387: 2034 | AX1387: 250179.0593 | AY1387: 258122.8217 | AZ1387: 508301.881 | BA1387: 54663.24937 | BB1387: 51995.21822 | BC1387: 106658.4676 | BD1387: 258122.8217 | BE1387: 289816.9008 | BF1387: 295878.3713 | BG1387: 585695.2722 | BI1387: 2034 | BJ1387: 117283.4994 | BK1387: 120834.8173 | BL1387: 238118.3167 | BM1387: 24110.3417 | BN1387: 23135.16009 | BO1387: 47245.50179 | BP1387: 120834.8173 | BQ1387: 134764.6212 | BR1387: 137531.2782 | BS1387: 272295.8994 | BU1387: 2034 | BV1387: 334289.0386 | BW1387: 337486.1216 | BX1387: 671775.1602 | BY1387: 73887.15016 | BZ1387: 69904.28503 | CA1387: 143791.4352 | CB1387: 337486.1216 | CC1387: 387774.8321 | CD1387: 388033.3689 | CE1387: 775808.2009 | CG1387: 2034 | CH1387: 181580.5635 | CI1387: 189289.392 | CJ1387: 370869.9555 | CK1387: 42255.79885 | CL1387: 39253.96722 | CM1387: 81509.76607 | CN1387: 189289.392 | CO1387: 212229.7769 | CP1387: 217770.2572 | CQ1387: 430000.034 | CS1387: 2034 | CT1387: 222742.2455 | CU1387: 233907.7214 | CV1387: 456649.9669 | CW1387: 49604.94007 | CX1387: 46183.85541 | CY1387: 95788.79547 | CZ1387: 233907.7214 | DA1387: 258638.471 | DB1387: 267310.1294 | DC1387: 525948.6004 | DE1387: 2034 | DF1387: 213674.7682 | DG1387: 220014.2641 | DH1387: 433689.0323 | DI1387: 47639.71223 | DJ1387: 44969.50011 | DK1387: 92609.21234 | DL1387: 220014.2641 | DM1387: 247994.5539 | DN1387: 252436.4241 | DO1387: 500430.978 | DQ1387: 2034 | DR1387: 207181.2769 | DS1387: 211734.7898 | DT1387: 418916.0667 | DU1387: 43927.59631 | DV1387: 41900.19903 | DW1387: 85827.79534 | DX1387: 211734.7898 | DY1387: 238663.0982 | DZ1387: 241714.9842 | EA1387: 480378.0824 | EC1387: 2034 | ED1387: 499295.8344 | EE1387: 521608.1996 | EF1387: 1020904.034 | EG1387: 112244.0161 | EH1387: 105452.7616 | EI1387: 217696.7777 | EJ1387: 521608.1996 | EK1387: 580658.5215 | EL1387: 598100.896 | EM1387: 1178759.417 | EO1387: 2034 | EP1387: 252716.5733 | EQ1387: 267275.0904 | ER1387: 519991.6637 | ES1387: 54429.85377 | ET1387: 51467.91471 | EU1387: 105897.7685 | EV1387: 267275.0904 | EW1387: 291920.894 | EX1387: 304316.0127 | EY1387: 596236.9067 | FA1387: 2034 | FB1387: 231663.948 | FC1387: 245647.7085 | FD1387: 477311.6566 | FE1387: 48605.0442 | FF1387: 45881.67093 | FG1387: 94486.71513 | FH1387: 245647.7085 | FI1387: 266421.3915 | FJ1387: 278460.9627 | FK1387: 544882.3542 | FM1387: 2034 | FN1387: 466730.6474 | FO1387: 495164.4128 | FP1387: 961895.0601 | FQ1387: 100926.1039 | FR1387: 94641.37142 | FS1387: 195567.4753 | FT1387: 495164.4128 | FU1387: 539403.6434 | FV1387: 563411.6066 | FW1387: 1102815.25
A1388: 2035 | B1388: 4462687.556 | C1388: 4669287.68 | D1388: 9131975.237 | E1388: 1012500.49 | F1388: 953631.764 | G1388: 1966132.254 | H1388: 4669287.68 | I1388: 5201735.53 | J1388: 5365321.639 | K1388: 10567057.17 | M1388: 2035 | N1388: 598104.222 | O1388: 629260.7119 | P1388: 1227364.934 | Q1388: 144130.3348 | R1388: 134727.9339 | S1388: 278858.2686 | T1388: 629260.7119 | U1388: 707121.1963 | V1388: 731140.8456 | W1388: 1438262.042 | Y1388: 2035 | Z1388: 630936.2225 | AA1388: 671433.2421 | AB1388: 1302369.465 | AC1388: 164424.2777 | AD1388: 155610.0029 | AE1388: 320034.2806 | AF1388: 671433.2421 | AG1388: 752121.5059 | AH1388: 786012.3853 | AI1388: 1538133.891 | AK1388: 2035 | AL1388: 263762.5819 | AM1388: 277510.7071 | AN1388: 541273.289 | AO1388: 59201.99171 | AP1388: 55515.02755 | AQ1388: 114717.0193 | AR1388: 277510.7071 | AS1388: 306506.938 | AT1388: 317686.3653 | AU1388: 624193.3033 | AW1388: 2035 | AX1388: 250187.9427 | AY1388: 258091.8293 | AZ1388: 508279.772 | BA1388: 54265.01946 | BB1388: 51630.93312 | BC1388: 105895.9526 | BD1388: 258091.8293 | BE1388: 289610.0559 | BF1388: 295649.4676 | BG1388: 585259.5235 | BI1388: 2035 | BJ1388: 116703.9553 | BK1388: 120120.0947 | BL1388: 236824.0501 | BM1388: 23805.73216 | BN1388: 22851.1167 | BO1388: 46656.84887 | BP1388: 120120.0947 | BQ1388: 134005.839 | BR1388: 136650.2479 | BS1388: 270656.0869 | BU1388: 2035 | BV1388: 333223.3526 | BW1388: 335808.6015 | BX1388: 669031.9541 | BY1388: 73078.43971 | BZ1388: 69151.97459 | CA1388: 142230.4143 | CB1388: 335808.6015 | CC1388: 386265.5046 | CD1388: 385944.4777 | CE1388: 772209.9824 | CG1388: 2035 | CH1388: 181331.8448 | CI1388: 188836.7993 | CJ1388: 370168.6441 | CK1388: 41866.57283 | CL1388: 38889.63656 | CM1388: 80756.20939 | CN1388: 188836.7993 | CO1388: 211761.4238 | CP1388: 217114.7244 | CQ1388: 428876.1482 | CS1388: 2035 | CT1388: 222071.7463 | CU1388: 233124.5236 | CV1388: 455196.27 | CW1388: 49102.61288 | CX1388: 45720.9958 | CY1388: 94823.60869 | CZ1388: 233124.5236 | DA1388: 257661.4089 | DB1388: 266244.5881 | DC1388: 523905.997 | DE1388: 2035 | DF1388: 213306.2743 | DG1388: 219495.1294 | DH1388: 432801.4037 | DI1388: 47092.04442 | DJ1388: 44461.45229 | DK1388: 91553.49671 | DL1388: 219495.1294 | DM1388: 247276.8541 | DN1388: 251595.1 | DO1388: 498871.9542 | DQ1388: 2035 | DR1388: 206445.4278 | DS1388: 210957.7948 | DT1388: 417403.2226 | DU1388: 43297.88793 | DV1388: 41318.78224 | DW1388: 84616.67016 | DX1388: 210957.7948 | DY1388: 237492.6912 | DZ1388: 240537.2447 | EA1388: 478029.9358 | EC1388: 2035 | ED1388: 499921.6285 | EE1388: 521734.4591 | EF1388: 1021656.088 | EG1388: 111205.1421 | EH1388: 104497.5925 | EI1388: 215702.7347 | EJ1388: 521734.4591 | EK1388: 580648.4081 | EL1388: 597645.4304 | EM1388: 1178293.839 | EO1388: 2035 | EP1388: 251826.8658 | EQ1388: 266181.8786 | ER1388: 518008.7444 | ES1388: 53696.21295 | ET1388: 50788.43644 | EU1388: 104484.6494 | EV1388: 266181.8786 | EW1388: 290543.7604 | EX1388: 302775.0935 | EY1388: 593318.8539 | FA1388: 2035 | FB1388: 230723.9793 | FC1388: 244579.8979 | FD1388: 475303.8772 | FE1388: 47894.91542 | FF1388: 45217.68838 | FG1388: 93112.6038 | FH1388: 244579.8979 | FI1388: 264983.1884 | FJ1388: 276930.9949 | FK1388: 541914.1833 | FM1388: 2035 | FN1388: 464141.5123 | FO1388: 492152.0109 | FP1388: 956293.5232 | FQ1388: 99439.3064 | FR1388: 93250.19102 | FS1388: 192689.4974 | FT1388: 492152.0109 | FU1388: 535736.7557 | FV1388: 559394.6738 | FW1388: 1095131.43
A1389: 2036 | B1389: 4460706.843 | C1389: 4664846.685 | D1389: 9125553.529 | E1389: 1005611.148 | F1389: 947315.4486 | G1389: 1952926.597 | H1389: 4664846.685 | I1389: 5195860.948 | J1389: 5357360.631 | K1389: 10553221.58 | M1389: 2036 | N1389: 601852.4038 | O1389: 632394.3765 | P1389: 1234246.78 | Q1389: 144532.0173 | R1389: 135125.8556 | S1389: 279657.8729 | T1389: 632394.3765 | U1389: 711267.6715 | V1389: 734667.1158 | W1389: 1445934.787 | Y1389: 2036 | Z1389: 633860.6458 | AA1389: 675162.7092 | AB1389: 1309023.355 | AC1389: 164360.0704 | AD1389: 155597.9516 | AE1389: 319958.022 | AF1389: 675162.7092 | AG1389: 755221.5319 | AH1389: 789937.3959 | AI1389: 1545158.928 | AK1389: 2036 | AL1389: 263180.4698 | AM1389: 276952.5777 | AN1389: 540133.0475 | AO1389: 58635.49286 | AP1389: 54992.54161 | AQ1389: 113628.0345 | AR1389: 276952.5777 | AS1389: 305573.1549 | AT1389: 316805.8353 | AU1389: 622378.9902 | AW1389: 2036 | AX1389: 250139.8189 | AY1389: 257996.1775 | AZ1389: 508135.9963 | BA1389: 53940.37569 | BB1389: 51332.98116 | BC1389: 105273.3569 | BD1389: 257996.1775 | BE1389: 289404.3163 | BF1389: 295410.5803 | BG1389: 584814.8966 | BI1389: 2036 | BJ1389: 116098.5697 | BK1389: 119372.6966 | BL1389: 235471.2663 | BM1389: 23534.99263 | BN1389: 22598.91597 | BO1389: 46133.90859 | BP1389: 119372.6966 | BQ1389: 133243.498 | BR1389: 135757.5249 | BS1389: 269001.0229 | BU1389: 2036 | BV1389: 332082.947 | BW1389: 334040.3928 | BX1389: 666123.3398 | BY1389: 72374.07568 | BZ1389: 68494.98663 | CA1389: 140869.0623 | CB1389: 334040.3928 | CC1389: 384749.0759 | CD1389: 383827.2161 | CE1389: 768576.292 | CG1389: 2036 | CH1389: 181034.3446 | CI1389: 188322.0671 | CJ1389: 369356.4116 | CK1389: 41532.64771 | CL1389: 38577.51828 | CM1389: 80110.16599 | CN1389: 188322.0671 | CO1389: 211284.4385 | CP1389: 216435.1575 | CQ1389: 427719.596 | CS1389: 2036 | CT1389: 221348.429 | CU1389: 232280.5611 | CV1389: 453628.9901 | CW1389: 48666.67845 | CX1389: 45318.12337 | CY1389: 93984.80182 | CZ1389: 232280.5611 | DA1389: 256680.1808 | DB1389: 265164.7852 | DC1389: 521844.966 | DE1389: 2036 | DF1389: 212879.8819 | DG1389: 218912.0541 | DH1389: 431791.936 | DI1389: 46610.43624 | DJ1389: 44014.94773 | DK1389: 90625.38398 | DL1389: 218912.0541 | DM1389: 246553.766 | DN1389: 250740.0517 | DO1389: 497293.8178 | DQ1389: 2036 | DR1389: 205648.8888 | DS1389: 210118.4185 | DT1389: 415767.3073 | DU1389: 42722.79366 | DV1389: 40787.24918 | DW1389: 83510.04284 | DX1389: 210118.4185 | DY1389: 236308.3726 | DZ1389: 239341.5829 | EA1389: 475649.9554 | EC1389: 2036 | ED1389: 500547.0801 | EE1389: 521839.8793 | EF1389: 1022386.959 | EG1389: 110369.9443 | EH1389: 103730.815 | EI1389: 214100.7593 | EJ1389: 521839.8793 | EK1389: 580813.8197 | EL1389: 597336.6475 | EM1389: 1178150.467 | EO1389: 2036 | EP1389: 250868.7993 | EQ1389: 265008.5667 | ER1389: 515877.3661 | ES1389: 53037.5461 | ET1389: 50180.71869 | EU1389: 103218.2648 | EV1389: 265008.5667 | EW1389: 289164.0472 | EX1389: 301216.0425 | EY1389: 590380.0897 | FA1389: 2036 | FB1389: 229720.2246 | FC1389: 243443.7378 | FD1389: 473163.9624 | FE1389: 47243.32971 | FF1389: 44611.13198 | FG1389: 91854.46169 | FH1389: 243443.7378 | FI1389: 263536.6528 | FJ1389: 275385.5856 | FK1389: 538922.2384 | FM1389: 2036 | FN1389: 461444.3398 | FO1389: 489002.4707 | FP1389: 950446.8105 | FQ1389: 98050.74759 | FR1389: 91951.71172 | FS1389: 190002.4593 | FT1389: 489002.4707 | FU1389: 532060.4224 | FV1389: 555335.11 | FW1389: 1087395.532
A1390: 2037 | B1390: 4457791.732 | C1390: 4659329.41 | D1390: 9117121.142 | E1390: 999775.0948 | F1390: 941998.0385 | G1390: 1941773.133 | H1390: 4659329.41 | I1390: 5190063.252 | J1390: 5349272.194 | K1390: 10539335.45 | M1390: 2037 | N1390: 605571.3418 | O1390: 635494.1787 | P1390: 1241065.52 | Q1390: 145031.459 | R1390: 135616.4191 | S1390: 280647.8781 | T1390: 635494.1787 | U1390: 715481.6022 | V1390: 738249.5186 | W1390: 1453731.121 | Y1390: 2037 | Z1390: 636560.9133 | AA1390: 678635.155 | AB1390: 1315196.068 | AC1390: 164419.9264 | AD1390: 155701.598 | AE1390: 320121.5243 | AF1390: 678635.155 | AG1390: 758200.7515 | AH1390: 793700.9694 | AI1390: 1551901.721 | AK1390: 2037 | AL1390: 262527.7833 | AM1390: 276315.8741 | AN1390: 538843.6574 | AO1390: 58135.93842 | AP1390: 54533.08754 | AQ1390: 112669.026 | AR1390: 276315.8741 | AS1390: 304633.6421 | AT1390: 315907.5632 | AU1390: 620541.2052 | AW1390: 2037 | AX1390: 250036.5294 | AY1390: 257838.475 | AZ1390: 507875.0044 | BA1390: 53678.84378 | BB1390: 51095.2792 | BC1390: 104774.123 | BD1390: 257838.475 | BE1390: 289202.7521 | BF1390: 295165.4631 | BG1390: 584368.2152 | BI1390: 2037 | BJ1390: 115470.4304 | BK1390: 118597.9484 | BL1390: 234068.3787 | BM1390: 23291.1142 | BN1390: 22372.2512 | BO1390: 45663.3654 | BP1390: 118597.9484 | BQ1390: 132478.8898 | BR1390: 134856.5677 | BS1390: 267335.4575 | BU1390: 2037 | BV1390: 330873.5592 | BW1390: 332190.0429 | BX1390: 663063.6021 | BY1390: 71752.12293 | BZ1390: 67914.79825 | CA1390: 139666.9212 | CB1390: 332190.0429 | CC1390: 383225.4302 | CD1390: 381684.7091 | CE1390: 764910.1393 | CG1390: 2037 | CH1390: 180689.7542 | CI1390: 187752.1219 | CJ1390: 368441.8761 | CK1390: 41245.22456 | CL1390: 38309.16174 | CM1390: 79554.38631 | CN1390: 187752.1219 | CO1390: 210799.7376 | CP1390: 215736.9497 | CQ1390: 426536.6873 | CS1390: 2037 | CT1390: 220573.2541 | CU1390: 231375.7126 | CV1390: 451948.9667 | CW1390: 48286.86246 | CX1390: 44968.24904 | CY1390: 93255.1115 | CZ1390: 231375.7126 | DA1390: 255696.7215 | DB1390: 264070.7469 | DC1390: 519767.4684 | DE1390: 2037 | DF1390: 212397.5301 | DG1390: 218269.7258 | DH1390: 430667.256 | DI1390: 46182.9258 | DJ1390: 43620.76342 | DK1390: 89803.68922 | DL1390: 218269.7258 | DM1390: 245827.9429 | DN1390: 249876.2277 | DO1390: 495704.1706 | DQ1390: 2037 | DR1390: 204789.3012 | DS1390: 209217.006 | DT1390: 414006.3072 | DU1390: 42192.04471 | DV1390: 40297.95222 | DW1390: 82489.99692 | DX1390: 209217.006 | DY1390: 235108.962 | DZ1390: 238129.1252 | EA1390: 473238.0872 | EC1390: 2037 | ED1390: 501174.6222 | EE1390: 521928.7359 | EF1390: 1023103.358 | EG1390: 109723.656 | EH1390: 103144.1717 | EI1390: 212867.8277 | EJ1390: 521928.7359 | EK1390: 581164.1816 | EL1390: 597184.289 | EM1390: 1178348.471 | EO1390: 2037 | EP1390: 249842.937 | EQ1390: 263760.0494 | ER1390: 513602.9864 | ES1390: 52444.97475 | ET1390: 49635.06174 | EU1390: 102080.0365 | EV1390: 263760.0494 | EW1390: 287784.3081 | EX1390: 299644.8513 | EY1390: 587429.1595 | FA1390: 2037 | FB1390: 228651.8534 | FC1390: 242235.8394 | FD1390: 470887.6929 | FE1390: 46644.94491 | FF1390: 44055.30627 | FG1390: 90700.25118 | FH1390: 242235.8394 | FI1390: 262083.9474 | FJ1390: 273823.7413 | FK1390: 535907.6887 | FM1390: 2037 | FN1390: 458631.9222 | FO1390: 485718.5451 | FP1390: 944350.4673 | FQ1390: 96745.0569 | FR1390: 90733.93907 | FS1390: 187478.996 | FT1390: 485718.5451 | FU1390: 528374.383 | FV1390: 551241.4722 | FW1390: 1079615.855
A1391: 2038 | B1391: 4453978.251 | C1391: 4652816.537 | D1391: 9106794.789 | E1391: 994918.1715 | F1391: 937604.0938 | G1391: 1932522.265 | H1391: 4652816.537 | I1391: 5184374.325 | J1391: 5341128.9 | K1391: 10525503.23 | M1391: 2038 | N1391: 609267.2761 | O1391: 638580.8427 | P1391: 1247848.119 | Q1391: 145626.7925 | R1391: 136197.3127 | S1391: 281824.1052 | T1391: 638580.8427 | U1391: 719766.8335 | V1391: 741906.0217 | W1391: 1461672.855 | Y1391: 2038 | Z1391: 639042.5365 | AA1391: 681863.3607 | AB1391: 1320905.897 | AC1391: 164587.4476 | AD1391: 155904.1913 | AE1391: 320491.6389 | AF1391: 681863.3607 | AG1391: 761057.4441 | AH1391: 797309.2963 | AI1391: 1558366.74 | AK1391: 2038 | AL1391: 261807.5897 | AM1391: 275601.4444 | AN1391: 537409.0341 | AO1391: 57697.68561 | AP1391: 54130.78066 | AQ1391: 111828.4663 | AR1391: 275601.4444 | AS1391: 303692.5427 | AT1391: 314992.7832 | AU1391: 618685.3259 | AW1391: 2038 | AX1391: 249878.3594 | AY1391: 257623.293 | AZ1391: 507501.6525 | BA1391: 53475.89261 | BB1391: 50913.04191 | BC1391: 104388.9345 | BD1391: 257623.293 | BE1391: 289005.6986 | BF1391: 294918.277 | BG1391: 583923.9756 | BI1391: 2038 | BJ1391: 114820.5026 | BK1391: 117798.4984 | BL1391: 232619.001 | BM1391: 23071.6414 | BN1391: 22168.23589 | BO1391: 45239.8773 | BP1391: 117798.4984 | BQ1391: 131712.1093 | BR1391: 133948.8509 | BS1391: 265660.9602 | BU1391: 2038 | BV1391: 329605.2557 | BW1391: 330270.7653 | BX1391: 659876.021 | BY1391: 71202.46435 | BZ1391: 67401.887 | CA1391: 138604.3514 | CB1391: 330270.7653 | CC1391: 381699.1068 | CD1391: 379525.2626 | CE1391: 761224.3694 | CG1391: 2038 | CH1391: 180305.1856 | CI1391: 187132.8903 | CJ1391: 367438.0759 | CK1391: 40999.9449 | CL1391: 38080.6555 | CM1391: 79080.6004 | CN1391: 187132.8903 | CO1391: 210312.4461 | CP1391: 215024.2523 | CQ1391: 425336.6985 | CS1391: 2038 | CT1391: 219749.8506 | CU1391: 230417.8489 | CV1391: 450167.6995 | CW1391: 47955.75146 | CX1391: 44663.9568 | CY1391: 92619.70826 | CZ1391: 230417.8489 | DA1391: 254713.5876 | DB1391: 262968.8727 | DC1391: 517682.4603 | DE1391: 2038 | DF1391: 211862.8001 | DG1391: 217569.9009 | DH1391: 429432.701 | DI1391: 45805.17296 | DJ1391: 43274.40164 | DK1391: 89079.57461 | DL1391: 217569.9009 | DM1391: 245102.5558 | DN1391: 249004.7603 | DO1391: 494107.3161 | DQ1391: 2038 | DR1391: 203864.4679 | DS1391: 208254.1473 | DT1391: 412118.6151 | DU1391: 41703.5889 | DV1391: 39848.76755 | DW1391: 81552.35644 | DX1391: 208254.1473 | DY1391: 233894.9716 | DZ1391: 236902.8566 | EA1391: 470797.8281 | EC1391: 2038 | ED1391: 501801.8872 | EE1391: 522001.2167 | EF1391: 1023803.104 | EG1391: 109263.3687 | EH1391: 102734.2988 | EI1391: 211997.6675 | EJ1391: 522001.2167 | EK1391: 581703.5861 | EL1391: 597193.7982 | EM1391: 1178897.384 | EO1391: 2038 | EP1391: 248749.027 | EQ1391: 262440.3625 | ER1391: 511189.3895 | ES1391: 51913.05566 | ET1391: 49146.17775 | EU1391: 101059.2334 | EV1391: 262440.3625 | EW1391: 286404.3086 | EX1391: 298065.2861 | EY1391: 584469.5948 | FA1391: 2038 | FB1391: 227516.6746 | FC1391: 240960.3052 | FD1391: 468476.9798 | FE1391: 46096.1062 | FF1391: 43546.41519 | FG1391: 89642.5214 | FH1391: 240960.3052 | FI1391: 260625.005 | FJ1391: 272251.1131 | FK1391: 532876.1181 | FM1391: 2038 | FN1391: 455706.8383 | FO1391: 482301.661 | FP1391: 938008.4992 | FQ1391: 95519.2587 | FR1391: 89593.97104 | FS1391: 185113.2297 | FT1391: 482301.661 | FU1391: 524684.1293 | FV1391: 547117.4692 | FW1391: 1071801.599
A1392: 2039 | B1392: 4449319.197 | C1392: 4645401.461 | D1392: 9094720.658 | E1392: 990935.7266 | F1392: 934032.0655 | G1392: 1924967.792 | H1392: 4645401.461 | I1392: 5178803.616 | J1392: 5332980.579 | K1392: 10511784.2 | M1392: 2039 | N1392: 612948.3822 | O1392: 641659.4959 | P1392: 1254607.878 | Q1392: 146310.5153 | R1392: 136860.2863 | S1392: 283170.8017 | T1392: 641659.4959 | U1392: 724127.0244 | V1392: 745636.8347 | W1392: 1469763.859 | Y1392: 2039 | Z1392: 641308.3806 | AA1392: 684858.8843 | AB1392: 1326167.265 | AC1392: 164842.5192 | AD1392: 156186.2824 | AE1392: 321028.8016 | AF1392: 684858.8843 | AG1392: 763784.3807 | AH1392: 800764.1483 | AI1392: 1564548.529 | AK1392: 2039 | AL1392: 261020.2726 | AM1392: 274816.0928 | AN1392: 535836.3654 | AO1392: 57313.30986 | AP1392: 53779.23629 | AQ1392: 111092.5462 | AR1392: 274816.0928 | AS1392: 302748.6963 | AT1392: 314067.0959 | AU1392: 616815.7922 | AW1392: 2039 | AX1392: 249669.9763 | AY1392: 257356.1127 | AZ1392: 507026.089 | BA1392: 53325.84933 | BB1392: 50780.82653 | BC1392: 104106.6759 | BD1392: 257356.1127 | BE1392: 288814.5105 | BF1392: 294671.511 | BG1392: 583486.0214 | BI1392: 2039 | BJ1392: 114153.5701 | BK1392: 116979.733 | BL1392: 231133.3031 | BM1392: 22872.93408 | BN1392: 21983.24695 | BO1392: 44856.18103 | BP1392: 116979.733 | BQ1392: 130945.8318 | BR1392: 133037.6099 | BS1392: 263983.4417 | BU1392: 2039 | BV1392: 328288.2753 | BW1392: 328296.9653 | BX1392: 656585.2406 | BY1392: 70713.34554 | BZ1392: 66944.62994 | CA1392: 137657.9755 | CB1392: 328296.9653 | CC1392: 380172.4163 | CD1392: 377355.342 | CE1392: 757527.7583 | CG1392: 2039 | CH1392: 179880.6002 | CI1392: 186469.834 | CJ1392: 366350.4342 | CK1392: 40790.29089 | CL1392: 37885.87707 | CM1392: 78676.16796 | CN1392: 186469.834 | CO1392: 209819.7948 | CP1392: 214299.944 | CQ1392: 424119.7388 | CS1392: 2039 | CT1392: 218880.5045 | CU1392: 229410.4505 | CV1392: 448290.955 | CW1392: 47664.92364 | CX1392: 44397.87802 | CY1392: 92062.80165 | CZ1392: 229410.4505 | DA1392: 253728.936 | DB1392: 261858.9639 | DC1392: 515587.8999 | DE1392: 2039 | DF1392: 211276.942 | DG1392: 216816.9309 | DH1392: 428093.8729 | DI1392: 45471.81873 | DJ1392: 42970.85437 | DK1392: 88442.6731 | DL1392: 216816.9309 | DM1392: 244376.27 | DN1392: 248127.6063 | DO1392: 492503.8763 | DQ1392: 2039 | DR1392: 202880.0239 | DS1392: 207233.0002 | DT1392: 410113.0242 | DU1392: 41253.19183 | DV1392: 39435.60399 | DW1392: 80688.79581 | DX1392: 207233.0002 | DY1392: 232670.9185 | DZ1392: 235664.8083 | EA1392: 468335.7267 | EC1392: 2039 | ED1392: 502432.9838 | EE1392: 522070.183 | EF1392: 1024503.167 | EG1392: 108980.6286 | EH1392: 102493.2443 | EI1392: 211473.8729 | EJ1392: 522070.183 | EK1392: 582436.8513 | EL1392: 597378.1933 | EM1392: 1179815.045 | EO1392: 2039 | EP1392: 247590.2974 | EQ1392: 261051.5851 | ER1392: 508641.8824 | ES1392: 51435.13781 | ET1392: 48707.45383 | EU1392: 100142.5916 | EV1392: 261051.5851 | EW1392: 285024.6582 | EX1392: 296476.5589 | EY1392: 581501.2171 | FA1392: 2039 | FB1392: 226316.1792 | FC1392: 239616.3044 | FD1392: 465932.4835 | FE1392: 45592.5364 | FF1392: 43080.39901 | FG1392: 88672.93541 | FH1392: 239616.3044 | FI1392: 259161.0954 | FJ1392: 270666.5242 | FK1392: 529827.6196 | FM1392: 2039 | FN1392: 452672.8086 | FO1392: 478765.8887 | FP1392: 931438.6973 | FQ1392: 94368.72528 | FR1392: 88526.2466 | FS1392: 182894.9719 | FT1392: 478765.8887 | FU1392: 520992.2325 | FV1392: 542975.4386 | FW1392: 1063967.671
A1393: 2040 | B1393: 4443932.676 | C1393: 4637208.391 | D1393: 9081141.067 | E1393: 987775.1416 | F1393: 931228.2252 | G1393: 1919003.367 | H1393: 4637208.391 | I1393: 5173330.636 | J1393: 5324818.287 | K1393: 10498148.92 | M1393: 2040 | N1393: 616624.9394 | O1393: 644751.4481 | P1393: 1261376.387 | Q1393: 147077.7092 | R1393: 137599.7862 | S1393: 284677.4954 | T1393: 644751.4481 | U1393: 728557.6425 | V1393: 749448.9185 | W1393: 1478006.561 | Y1393: 2040 | Z1393: 643382.5003 | AA1393: 687634.5127 | AB1393: 1331017.013 | AC1393: 165170.0793 | AD1393: 156533.6801 | AE1393: 321703.7595 | AF1393: 687634.5127 | AG1393: 766384.0431 | AH1393: 804058.1117 | AI1393: 1570442.155 | AK1393: 2040 | AL1393: 260174.9563 | AM1393: 273962.6526 | AN1393: 534137.609 | AO1393: 56979.49395 | AP1393: 53475.75551 | AQ1393: 110455.2495 | AR1393: 273962.6526 | AS1393: 301802.4183 | AT1393: 313125.3948 | AU1393: 614927.8131 | AW1393: 2040 | AX1393: 249416.7279 | AY1393: 257043.3118 | AZ1393: 506460.0397 | BA1393: 53224.9319 | BB1393: 50694.95713 | BC1393: 103919.889 | BD1393: 257043.3118 | BE1393: 288625.6842 | BF1393: 294423.4122 | BG1393: 583049.0964 | BI1393: 2040 | BJ1393: 113472.1454 | BK1393: 116144.4676 | BL1393: 229616.613 | BM1393: 22692.5978 | BN1393: 21815.25573 | BO1393: 44507.85354 | BP1393: 116144.4676 | BQ1393: 130177.8477 | BR1393: 132121.4899 | BS1393: 262299.3376 | BU1393: 2040 | BV1393: 326933.1787 | BW1393: 326286.9713 | BX1393: 653220.15 | BY1393: 70278.302 | BZ1393: 66536.67331 | CA1393: 136814.9753 | CB1393: 326286.9713 | CC1393: 378642.4939 | CD1393: 375180.3978 | CE1393: 753822.8918 | CG1393: 2040 | CH1393: 179425.5527 | CI1393: 185770.0824 | CJ1393: 365195.6351 | CK1393: 40612.73791 | CL1393: 37721.20701 | CM1393: 78333.94492 | CN1393: 185770.0824 | CO1393: 209324.3072 | CP1393: 213564.2629 | CQ1393: 422888.5701 | CS1393: 2040 | CT1393: 217971.7505 | CU1393: 228361.9102 | CV1393: 446333.6607 | CW1393: 47410.42803 | CX1393: 44166.21843 | CY1393: 91576.64646 | CZ1393: 228361.9102 | DA1393: 252742.7334 | DB1393: 260743.0781 | DC1393: 513485.8115 | DE1393: 2040 | DF1393: 210646.5112 | DG1393: 216018.621 | DH1393: 426665.1322 | DI1393: 45182.30589 | DJ1393: 42708.77104 | DK1393: 87891.07693 | DL1393: 216018.621 | DM1393: 243649.6862 | DN1393: 247246.3275 | DO1393: 490896.0137 | DQ1393: 2040 | DR1393: 201837.7531 | DS1393: 206156.4606 | DT1393: 407994.2137 | DU1393: 40841.16972 | DV1393: 39058.79731 | DW1393: 79899.96703 | DX1393: 206156.4606 | DY1393: 231433.49 | DZ1393: 234413.0839 | EA1393: 465846.5739 | EC1393: 2040 | ED1393: 503079.8621 | EE1393: 522142.3364 | EF1393: 1025222.199 | EG1393: 108871.3269 | EH1393: 102416.788 | EI1393: 211288.1149 | EJ1393: 522142.3364 | EK1393: 583363.6666 | EL1393: 597732.4336 | EM1393: 1181096.1 | EO1393: 2040 | EP1393: 246371.9883 | EQ1393: 259603.6916 | ER1393: 505975.6799 | ES1393: 51007.39571 | ET1393: 48314.61423 | EU1393: 99322.00994 | EV1393: 259603.6916 | EW1393: 283641.1419 | EX1393: 294879.1668 | EY1393: 578520.3087 | FA1393: 2040 | FB1393: 225056.5468 | FC1393: 238207.7643 | FD1393: 463264.3111 | FE1393: 45133.32444 | FF1393: 42656.38008 | FG1393: 87789.70452 | FH1393: 238207.7643 | FI1393: 257692.1541 | FJ1393: 269067.9096 | FK1393: 526760.0637 | FM1393: 2040 | FN1393: 449538.2636 | FO1393: 475124.1603 | FP1393: 924662.4239 | FQ1393: 93293.33876 | FR1393: 87529.34119 | FS1393: 180822.6799 | FT1393: 475124.1603 | FU1393: 517293.3273 | FV1393: 538814.299 | FW1393: 1056107.626
... 91 more rows

Sheet Výpočty (hidden)
A1: Počty nově příchozích
B2: 2017 | C2: =B2+1 -> 2018 | D2: =C2+1 -> 2019 | E2: 2020 | F2: 2021 | G2: 2022 | H2: 2023 | I2: 2024 | J2: 2025 | K2: 2026 | L2: 2027 | M2: 2028 | N2: 2029 | O2: 2030 | P2: 2031 | Q2: 2032 | R2: 2033 | S2: 2034 | T2: 2035 | U2: 2036 | V2: 2037 | W2: 2038 | X2: 2039 | Y2: 2040 | Z2: 2041 | AA2: 2042 | AB2: 2043 | AC2: 2044 | AD2: 2045 | AE2: 2046 | AF2: 2047 | AG2: 2048 | AH2: 2049 | AI2: 2050
A3: Celkem | B3: =B4+B5 -> 18.4 | C3: =C4+C5 -> 18.4 | D3: 18.4 | E3: 18.4 | F3: 18.4 | G3: 18.4 | H3: 18.4 | I3: 18.4 | J3: 18.4 | K3: 18.4 | L3: 18.4 | M3: 18.4 | N3: 18.4 | O3: 18.4 | P3: 18.4 | Q3: 18.4 | R3: 18.4 | S3: 18.4 | T3: 18.4 | U3: 18.4 | V3: 18.4 | W3: 18.4 | X3: 18.4 | Y3: 18.4 | Z3: 18.4 | AA3: 18.4 | AB3: 18.4 | AC3: 18.4 | AD3: 18.4 | AE3: 18.4 | AF3: 18.4 | AG3: 18.4 | AH3: 18.4 | AI3: 18.4
A4: Muži | B4: =Vstupy!B1408 -> 5.8 | C4: =B4 -> 5.8 | D4: =C4 -> 5.8 | E4: 5.8 | F4: 5.8 | G4: 5.8 | H4: 5.8 | I4: 5.8 | J4: 5.8 | K4: 5.8 | L4: 5.8 | M4: 5.8 | N4: 5.8 | O4: 5.8 | P4: 5.8 | Q4: 5.8 | R4: 5.8 | S4: 5.8 | T4: 5.8 | U4: 5.8 | V4: 5.8 | W4: 5.8 | X4: 5.8 | Y4: 5.8 | Z4: 5.8 | AA4: 5.8 | AB4: 5.8 | AC4: 5.8 | AD4: 5.8 | AE4: 5.8 | AF4: 5.8 | AG4: 5.8 | AH4: 5.8 | AI4: 5.8
A5: Ženy | B5: =Vstupy!B1409 -> 12.6 | C5: =B5 -> 12.6 | D5: =C5 -> 12.6 | E5: 12.6 | F5: 12.6 | G5: 12.6 | H5: 12.6 | I5: 12.6 | J5: 12.6 | K5: 12.6 | L5: 12.6 | M5: 12.6 | N5: 12.6 | O5: 12.6 | P5: 12.6 | Q5: 12.6 | R5: 12.6 | S5: 12.6 | T5: 12.6 | U5: 12.6 | V5: 12.6 | W5: 12.6 | X5: 12.6 | Y5: 12.6 | Z5: 12.6 | AA5: 12.6 | AB5: 12.6 | AC5: 12.6 | AD5: 12.6 | AE5: 12.6 | AF5: 12.6 | AG5: 12.6 | AH5: 12.6 | AI5: 12.6
A7: Rozložení příchozích (v %)
A8: Věk | B8: =B2 -> 2017 | D8: =B8+1 -> 2018 | F8: =D8+1 -> 2019 | H8: =F8+1 -> 2020 | J8: =H8+1 -> 2021 | L8: =J8+1 -> 2022 | N8: =L8+1 -> 2023 | P8: =N8+1 -> 2024 | R8: =P8+1 -> 2025 | T8: =R8+1 -> 2026 | V8: =T8+1 -> 2027 | X8: =V8+1 -> 2028 | Z8: =X8+1 -> 2029 | AB8: =Z8+1 -> 2030 | AD8: =AB8+1 -> 2031 | AF8: =AD8+1 -> 2032 | AH8: =AF8+1 -> 2033 | AJ8: =AH8+1 -> 2034 | AL8: =AJ8+1 -> 2035 | AN8: =AL8+1 -> 2036 | AP8: =AN8+1 -> 2037 | AR8: =AP8+1 -> 2038 | AT8: =AR8+1 -> 2039 | AV8: =AT8+1 -> 2040 | AX8: =AV8+1 -> 2041 | AZ8: =AX8+1 -> 2042 | BB8: =AZ8+1 -> 2043 | BD8: =BB8+1 -> 2044 | BF8: =BD8+1 -> 2045 | BH8: =BF8+1 -> 2046 | BJ8: =BH8+1 -> 2047 | BL8: =BJ8+1 -> 2048 | BN8: =BL8+1 -> 2049 | BP8: =BN8+1 -> 2050
B9: Muži | C9: Ženy | D9: =B9 -> Muži | E9: =C9 -> Ženy | F9: =D9 -> Muži | G9: =E9 -> Ženy | H9: =F9 -> Muži | I9: Ženy | J9: Muži | K9: Ženy | L9: Muži | M9: Ženy | N9: Muži | O9: Ženy | P9: Muži | Q9: Ženy | R9: Muži | S9: Ženy | T9: Muži | U9: Ženy | V9: Muži | W9: Ženy | X9: Muži | Y9: Ženy | Z9: Muži | AA9: Ženy | AB9: Muži | AC9: Ženy | AD9: Muži | AE9: Ženy | AF9: Muži | AG9: Ženy | AH9: Muži | AI9: Ženy | AJ9: Muži | AK9: Ženy | AL9: Muži | AM9: Ženy | AN9: Muži | AO9: Ženy | AP9: Muži | AQ9: Ženy | AR9: Muži | AS9: Ženy | AT9: Muži | AU9: Ženy | AV9: Muži | AW9: Ženy | AX9: Muži | AY9: Ženy | AZ9: Muži | BA9: Ženy | BB9: Muži | BC9: Ženy | BD9: Muži | BE9: Ženy | BF9: Muži | BG9: Ženy | BH9: Muži | BI9: Ženy | BJ9: Muži | BK9: Ženy | BL9: Muži | BM9: Ženy | BN9: Muži | BO9: Ženy | BP9: Muži | BQ9: Ženy
A10: 23 | B10: =Vstupy!B1415 -> 0 | C10: =Vstupy!C1415 -> 0 | D10: =B10 -> 0 | E10: =C10 -> 0 | F10: =D10 -> 0 | G10: 0 | H10: =F10 -> 0 | I10: =G10 -> 0 | J10: 0 | K10: 0 | L10: =J10 -> 0 | M10: =K10 -> 0 | N10: 0 | O10: 0 | P10: =N10 -> 0 | Q10: =O10 -> 0 | R10: 0 | S10: 0 | T10: =R10 -> 0 | U10: =S10 -> 0 | V10: 0 | W10: 0 | X10: =V10 -> 0 | Y10: =W10 -> 0 | Z10: =X10 -> 0 | AA10: =Y10 -> 0 | AB10: =Z10 -> 0 | AC10: =AA10 -> 0 | AD10: =AB10 -> 0 | AE10: =AC10 -> 0 | AF10: =AD10 -> 0 | AG10: =AE10 -> 0 | AH10: =AF10 -> 0 | AI10: =AG10 -> 0 | AJ10: =AH10 -> 0 | AK10: =AI10 -> 0 | AL10: =AJ10 -> 0 | AM10: =AK10 -> 0 | AN10: =AL10 -> 0 | AO10: =AM10 -> 0 | AP10: =AN10 -> 0 | AQ10: =AO10 -> 0 | AR10: =AP10 -> 0 | AS10: =AQ10 -> 0 | AT10: 0 | AU10: 0 | AV10: =AT10 -> 0 | AW10: =AU10 -> 0 | AX10: =AV10 -> 0 | AY10: =AW10 -> 0 | AZ10: =AX10 -> 0 | BA10: 0 | BB10: =AZ10 -> 0 | BC10: =BA10 -> 0 | BD10: 0 | BE10: 0 | BF10: =BD10 -> 0 | BG10: =BE10 -> 0 | BH10: =BF10 -> 0 | BI10: =BG10 -> 0 | BJ10: =BH10 -> 0 | BK10: =BI10 -> 0 | BL10: =BJ10 -> 0 | BM10: =BK10 -> 0 | BN10: =BL10 -> 0 | BO10: =BM10 -> 0 | BP10: =BN10 -> 0 | BQ10: =BO10 -> 0
A11: 24 | B11: =Vstupy!B1416 -> 0 | C11: =Vstupy!C1416 -> 0.1184834123 | D11: =B11 -> 0 | E11: =C11 -> 0.1184834123 | F11: =D11 -> 0 | G11: =E11 -> 0.1184834123 | H11: =F11 -> 0 | I11: =G11 -> 0.1184834123 | J11: 0 | K11: 0.1184834123 | L11: =J11 -> 0 | M11: =K11 -> 0.1184834123 | N11: 0 | O11: 0.1184834123 | P11: =N11 -> 0 | Q11: =O11 -> 0.1184834123 | R11: 0 | S11: 0.1184834123 | T11: =R11 -> 0 | U11: =S11 -> 0.1184834123 | V11: 0 | W11: 0.1184834123 | X11: =V11 -> 0 | Y11: =W11 -> 0.1184834123 | Z11: 0 | AA11: 0.1184834123 | AB11: =Z11 -> 0 | AC11: =AA11 -> 0.1184834123 | AD11: 0 | AE11: 0.1184834123 | AF11: =AD11 -> 0 | AG11: =AE11 -> 0.1184834123 | AH11: 0 | AI11: 0.1184834123 | AJ11: =AH11 -> 0 | AK11: =AI11 -> 0.1184834123 | AL11: 0 | AM11: 0.1184834123 | AN11: =AL11 -> 0 | AO11: =AM11 -> 0.1184834123 | AP11: 0 | AQ11: 0.1184834123 | AR11: =AP11 -> 0 | AS11: =AQ11 -> 0.1184834123 | AT11: 0 | AU11: 0.1184834123 | AV11: =AT11 -> 0 | AW11: =AU11 -> 0.1184834123 | AX11: =AV11 -> 0 | AY11: =AW11 -> 0.1184834123 | AZ11: 0 | BA11: 0.1184834123 | BB11: =AZ11 -> 0 | BC11: =BA11 -> 0.1184834123 | BD11: 0 | BE11: 0.1184834123 | BF11: =BD11 -> 0 | BG11: =BE11 -> 0.1184834123 | BH11: 0 | BI11: 0.1184834123 | BJ11: =BH11 -> 0 | BK11: =BI11 -> 0.1184834123 | BL11: 0 | BM11: 0.1184834123 | BN11: =BL11 -> 0 | BO11: =BM11 -> 0.1184834123 | BP11: 0 | BQ11: 0.1184834123
A12: 25 | B12: =Vstupy!B1417 -> 0.9966777409 | C12: =Vstupy!C1417 -> 1.777251185 | D12: 0.9966777409 | E12: 1.777251185 | F12: 0.9966777409 | G12: 1.777251185 | H12: 0.9966777409 | I12: 1.777251185 | J12: 0.9966777409 | K12: 1.777251185 | L12: 0.9966777409 | M12: 1.777251185 | N12: 0.9966777409 | O12: 1.777251185 | P12: 0.9966777409 | Q12: 1.777251185 | R12: 0.9966777409 | S12: 1.777251185 | T12: 0.9966777409 | U12: 1.777251185 | V12: 0.9966777409 | W12: 1.777251185 | X12: 0.9966777409 | Y12: 1.777251185 | Z12: 0.9966777409 | AA12: 1.777251185 | AB12: 0.9966777409 | AC12: 1.777251185 | AD12: 0.9966777409 | AE12: 1.777251185 | AF12: 0.9966777409 | AG12: 1.777251185 | AH12: 0.9966777409 | AI12: 1.777251185 | AJ12: 0.9966777409 | AK12: 1.777251185 | AL12: 0.9966777409 | AM12: 1.777251185 | AN12: 0.9966777409 | AO12: 1.777251185 | AP12: 0.9966777409 | AQ12: 1.777251185 | AR12: 0.9966777409 | AS12: 1.777251185 | AT12: =AR12 -> 0.9966777409 | AU12: =AS12 -> 1.777251185 | AV12: 0.9966777409 | AW12: 1.777251185 | AX12: 0.9966777409 | AY12: 1.777251185 | AZ12: 0.9966777409 | BA12: 1.777251185 | BB12: 0.9966777409 | BC12: 1.777251185 | BD12: 0.9966777409 | BE12: 1.777251185 | BF12: 0.9966777409 | BG12: 1.777251185 | BH12: 0.9966777409 | BI12: 1.777251185 | BJ12: 0.9966777409 | BK12: 1.777251185 | BL12: 0.9966777409 | BM12: 1.777251185 | BN12: 0.9966777409 | BO12: 1.777251185 | BP12: 0.9966777409 | BQ12: 1.777251185
A13: 26 | B13: =Vstupy!B1418 -> 3.65448505 | C13: =Vstupy!C1418 -> 4.146919431 | D13: 3.65448505 | E13: 4.146919431 | F13: 3.65448505 | G13: 4.146919431 | H13: 3.65448505 | I13: 4.146919431 | J13: 3.65448505 | K13: 4.146919431 | L13: 3.65448505 | M13: 4.146919431 | N13: 3.65448505 | O13: 4.146919431 | P13: 3.65448505 | Q13: 4.146919431 | R13: 3.65448505 | S13: 4.146919431 | T13: 3.65448505 | U13: 4.146919431 | V13: 3.65448505 | W13: 4.146919431 | X13: 3.65448505 | Y13: 4.146919431 | Z13: 3.65448505 | AA13: 4.146919431 | AB13: 3.65448505 | AC13: 4.146919431 | AD13: 3.65448505 | AE13: 4.146919431 | AF13: 3.65448505 | AG13: 4.146919431 | AH13: 3.65448505 | AI13: 4.146919431 | AJ13: 3.65448505 | AK13: 4.146919431 | AL13: 3.65448505 | AM13: 4.146919431 | AN13: 3.65448505 | AO13: 4.146919431 | AP13: 3.65448505 | AQ13: 4.146919431 | AR13: 3.65448505 | AS13: 4.146919431 | AT13: 3.65448505 | AU13: 4.146919431 | AV13: 3.65448505 | AW13: 4.146919431 | AX13: 3.65448505 | AY13: 4.146919431 | AZ13: 3.65448505 | BA13: 4.146919431 | BB13: 3.65448505 | BC13: 4.146919431 | BD13: 3.65448505 | BE13: 4.146919431 | BF13: 3.65448505 | BG13: 4.146919431 | BH13: 3.65448505 | BI13: 4.146919431 | BJ13: 3.65448505 | BK13: 4.146919431 | BL13: 3.65448505 | BM13: 4.146919431 | BN13: 3.65448505 | BO13: 4.146919431 | BP13: 3.65448505 | BQ13: 4.146919431
A14: 27 | B14: =Vstupy!B1419 -> 4.318936877 | C14: =Vstupy!C1419 -> 6.398104265 | D14: 4.318936877 | E14: 6.398104265 | F14: 4.318936877 | G14: 6.398104265 | H14: 4.318936877 | I14: 6.398104265 | J14: 4.318936877 | K14: 6.398104265 | L14: 4.318936877 | M14: 6.398104265 | N14: 4.318936877 | O14: 6.398104265 | P14: 4.318936877 | Q14: 6.398104265 | R14: 4.318936877 | S14: 6.398104265 | T14: 4.318936877 | U14: 6.398104265 | V14: 4.318936877 | W14: 6.398104265 | X14: 4.318936877 | Y14: 6.398104265 | Z14: 4.318936877 | AA14: 6.398104265 | AB14: 4.318936877 | AC14: 6.398104265 | AD14: 4.318936877 | AE14: 6.398104265 | AF14: 4.318936877 | AG14: 6.398104265 | AH14: 4.318936877 | AI14: 6.398104265 | AJ14: 4.318936877 | AK14: 6.398104265 | AL14: 4.318936877 | AM14: 6.398104265 | AN14: 4.318936877 | AO14: 6.398104265 | AP14: 4.318936877 | AQ14: 6.398104265 | AR14: 4.318936877 | AS14: 6.398104265 | AT14: 4.318936877 | AU14: 6.398104265 | AV14: 4.318936877 | AW14: 6.398104265 | AX14: 4.318936877 | AY14: 6.398104265 | AZ14: 4.318936877 | BA14: 6.398104265 | BB14: 4.318936877 | BC14: 6.398104265 | BD14: 4.318936877 | BE14: 6.398104265 | BF14: 4.318936877 | BG14: 6.398104265 | BH14: 4.318936877 | BI14: 6.398104265 | BJ14: 4.318936877 | BK14: 6.398104265 | BL14: 4.318936877 | BM14: 6.398104265 | BN14: 4.318936877 | BO14: 6.398104265 | BP14: 4.318936877 | BQ14: 6.398104265
A15: 28 | B15: =Vstupy!B1420 -> 2.990033223 | C15: =Vstupy!C1420 -> 4.857819905 | D15: 2.990033223 | E15: 4.857819905 | F15: 2.990033223 | G15: 4.857819905 | H15: 2.990033223 | I15: 4.857819905 | J15: 2.990033223 | K15: 4.857819905 | L15: 2.990033223 | M15: 4.857819905 | N15: 2.990033223 | O15: 4.857819905 | P15: 2.990033223 | Q15: 4.857819905 | R15: 2.990033223 | S15: 4.857819905 | T15: 2.990033223 | U15: 4.857819905 | V15: 2.990033223 | W15: 4.857819905 | X15: 2.990033223 | Y15: 4.857819905 | Z15: 2.990033223 | AA15: 4.857819905 | AB15: 2.990033223 | AC15: 4.857819905 | AD15: 2.990033223 | AE15: 4.857819905 | AF15: 2.990033223 | AG15: 4.857819905 | AH15: 2.990033223 | AI15: 4.857819905 | AJ15: 2.990033223 | AK15: 4.857819905 | AL15: 2.990033223 | AM15: 4.857819905 | AN15: 2.990033223 | AO15: 4.857819905 | AP15: 2.990033223 | AQ15: 4.857819905 | AR15: 2.990033223 | AS15: 4.857819905 | AT15: 2.990033223 | AU15: 4.857819905 | AV15: 2.990033223 | AW15: 4.857819905 | AX15: 2.990033223 | AY15: 4.857819905 | AZ15: 2.990033223 | BA15: 4.857819905 | BB15: 2.990033223 | BC15: 4.857819905 | BD15: 2.990033223 | BE15: 4.857819905 | BF15: 2.990033223 | BG15: 4.857819905 | BH15: 2.990033223 | BI15: 4.857819905 | BJ15: 2.990033223 | BK15: 4.857819905 | BL15: 2.990033223 | BM15: 4.857819905 | BN15: 2.990033223 | BO15: 4.857819905 | BP15: 2.990033223 | BQ15: 4.857819905
A16: 29 | B16: =Vstupy!B1421 -> 5.980066445 | C16: =Vstupy!C1421 -> 4.620853081 | D16: 5.980066445 | E16: 4.620853081 | F16: 5.980066445 | G16: 4.620853081 | H16: 5.980066445 | I16: 4.620853081 | J16: 5.980066445 | K16: 4.620853081 | L16: 5.980066445 | M16: 4.620853081 | N16: 5.980066445 | O16: 4.620853081 | P16: 5.980066445 | Q16: 4.620853081 | R16: 5.980066445 | S16: 4.620853081 | T16: 5.980066445 | U16: 4.620853081 | V16: 5.980066445 | W16: 4.620853081 | X16: 5.980066445 | Y16: 4.620853081 | Z16: 5.980066445 | AA16: 4.620853081 | AB16: 5.980066445 | AC16: 4.620853081 | AD16: 5.980066445 | AE16: 4.620853081 | AF16: 5.980066445 | AG16: 4.620853081 | AH16: 5.980066445 | AI16: 4.620853081 | AJ16: 5.980066445 | AK16: 4.620853081 | AL16: 5.980066445 | AM16: 4.620853081 | AN16: 5.980066445 | AO16: 4.620853081 | AP16: 5.980066445 | AQ16: 4.620853081 | AR16: 5.980066445 | AS16: 4.620853081 | AT16: 5.980066445 | AU16: 4.620853081 | AV16: 5.980066445 | AW16: 4.620853081 | AX16: 5.980066445 | AY16: 4.620853081 | AZ16: 5.980066445 | BA16: 4.620853081 | BB16: 5.980066445 | BC16: 4.620853081 | BD16: 5.980066445 | BE16: 4.620853081 | BF16: 5.980066445 | BG16: 4.620853081 | BH16: 5.980066445 | BI16: 4.620853081 | BJ16: 5.980066445 | BK16: 4.620853081 | BL16: 5.980066445 | BM16: 4.620853081 | BN16: 5.980066445 | BO16: 4.620853081 | BP16: 5.980066445 | BQ16: 4.620853081
A17: 30 | B17: =Vstupy!B1422 -> 8.970099668 | C17: =Vstupy!C1422 -> 6.279620853 | D17: 8.970099668 | E17: 6.279620853 | F17: 8.970099668 | G17: 6.279620853 | H17: 8.970099668 | I17: 6.279620853 | J17: 8.970099668 | K17: 6.279620853 | L17: 8.970099668 | M17: 6.279620853 | N17: 8.970099668 | O17: 6.279620853 | P17: 8.970099668 | Q17: 6.279620853 | R17: 8.970099668 | S17: 6.279620853 | T17: 8.970099668 | U17: 6.279620853 | V17: 8.970099668 | W17: 6.279620853 | X17: 8.970099668 | Y17: 6.279620853 | Z17: 8.970099668 | AA17: 6.279620853 | AB17: 8.970099668 | AC17: 6.279620853 | AD17: 8.970099668 | AE17: 6.279620853 | AF17: 8.970099668 | AG17: 6.279620853 | AH17: 8.970099668 | AI17: 6.279620853 | AJ17: 8.970099668 | AK17: 6.279620853 | AL17: 8.970099668 | AM17: 6.279620853 | AN17: 8.970099668 | AO17: 6.279620853 | AP17: 8.970099668 | AQ17: 6.279620853 | AR17: 8.970099668 | AS17: 6.279620853 | AT17: 8.970099668 | AU17: 6.279620853 | AV17: 8.970099668 | AW17: 6.279620853 | AX17: 8.970099668 | AY17: 6.279620853 | AZ17: 8.970099668 | BA17: 6.279620853 | BB17: 8.970099668 | BC17: 6.279620853 | BD17: 8.970099668 | BE17: 6.279620853 | BF17: 8.970099668 | BG17: 6.279620853 | BH17: 8.970099668 | BI17: 6.279620853 | BJ17: 8.970099668 | BK17: 6.279620853 | BL17: 8.970099668 | BM17: 6.279620853 | BN17: 8.970099668 | BO17: 6.279620853 | BP17: 8.970099668 | BQ17: 6.279620853
A18: 31 | B18: =Vstupy!B1423 -> 6.976744186 | C18: =Vstupy!C1423 -> 5.213270142 | D18: 6.976744186 | E18: 5.213270142 | F18: 6.976744186 | G18: 5.213270142 | H18: 6.976744186 | I18: 5.213270142 | J18: 6.976744186 | K18: 5.213270142 | L18: 6.976744186 | M18: 5.213270142 | N18: 6.976744186 | O18: 5.213270142 | P18: 6.976744186 | Q18: 5.213270142 | R18: 6.976744186 | S18: 5.213270142 | T18: 6.976744186 | U18: 5.213270142 | V18: 6.976744186 | W18: 5.213270142 | X18: 6.976744186 | Y18: 5.213270142 | Z18: 6.976744186 | AA18: 5.213270142 | AB18: 6.976744186 | AC18: 5.213270142 | AD18: 6.976744186 | AE18: 5.213270142 | AF18: 6.976744186 | AG18: 5.213270142 | AH18: 6.976744186 | AI18: 5.213270142 | AJ18: 6.976744186 | AK18: 5.213270142 | AL18: 6.976744186 | AM18: 5.213270142 | AN18: 6.976744186 | AO18: 5.213270142 | AP18: 6.976744186 | AQ18: 5.213270142 | AR18: 6.976744186 | AS18: 5.213270142 | AT18: 6.976744186 | AU18: 5.213270142 | AV18: 6.976744186 | AW18: 5.213270142 | AX18: 6.976744186 | AY18: 5.213270142 | AZ18: 6.976744186 | BA18: 5.213270142 | BB18: 6.976744186 | BC18: 5.213270142 | BD18: 6.976744186 | BE18: 5.213270142 | BF18: 6.976744186 | BG18: 5.213270142 | BH18: 6.976744186 | BI18: 5.213270142 | BJ18: 6.976744186 | BK18: 5.213270142 | BL18: 6.976744186 | BM18: 5.213270142 | BN18: 6.976744186 | BO18: 5.213270142 | BP18: 6.976744186 | BQ18: 5.213270142
A19: 32 | B19: =Vstupy!B1424 -> 5.980066445 | C19: =Vstupy!C1424 -> 5.568720379 | D19: 5.980066445 | E19: 5.568720379 | F19: 5.980066445 | G19: 5.568720379 | H19: 5.980066445 | I19: 5.568720379 | J19: 5.980066445 | K19: 5.568720379 | L19: 5.980066445 | M19: 5.568720379 | N19: 5.980066445 | O19: 5.568720379 | P19: 5.980066445 | Q19: 5.568720379 | R19: 5.980066445 | S19: 5.568720379 | T19: 5.980066445 | U19: 5.568720379 | V19: 5.980066445 | W19: 5.568720379 | X19: 5.980066445 | Y19: 5.568720379 | Z19: 5.980066445 | AA19: 5.568720379 | AB19: 5.980066445 | AC19: 5.568720379 | AD19: 5.980066445 | AE19: 5.568720379 | AF19: 5.980066445 | AG19: 5.568720379 | AH19: 5.980066445 | AI19: 5.568720379 | AJ19: 5.980066445 | AK19: 5.568720379 | AL19: 5.980066445 | AM19: 5.568720379 | AN19: 5.980066445 | AO19: 5.568720379 | AP19: 5.980066445 | AQ19: 5.568720379 | AR19: 5.980066445 | AS19: 5.568720379 | AT19: 5.980066445 | AU19: 5.568720379 | AV19: 5.980066445 | AW19: 5.568720379 | AX19: 5.980066445 | AY19: 5.568720379 | AZ19: 5.980066445 | BA19: 5.568720379 | BB19: 5.980066445 | BC19: 5.568720379 | BD19: 5.980066445 | BE19: 5.568720379 | BF19: 5.980066445 | BG19: 5.568720379 | BH19: 5.980066445 | BI19: 5.568720379 | BJ19: 5.980066445 | BK19: 5.568720379 | BL19: 5.980066445 | BM19: 5.568720379 | BN19: 5.980066445 | BO19: 5.568720379 | BP19: 5.980066445 | BQ19: 5.568720379
A20: 33 | B20: =Vstupy!B1425 -> 7.641196013 | C20: =Vstupy!C1425 -> 5.213270142 | D20: 7.641196013 | E20: 5.213270142 | F20: 7.641196013 | G20: 5.213270142 | H20: 7.641196013 | I20: 5.213270142 | J20: 7.641196013 | K20: 5.213270142 | L20: 7.641196013 | M20: 5.213270142 | N20: 7.641196013 | O20: 5.213270142 | P20: 7.641196013 | Q20: 5.213270142 | R20: 7.641196013 | S20: 5.213270142 | T20: 7.641196013 | U20: 5.213270142 | V20: 7.641196013 | W20: 5.213270142 | X20: 7.641196013 | Y20: 5.213270142 | Z20: 7.641196013 | AA20: 5.213270142 | AB20: 7.641196013 | AC20: 5.213270142 | AD20: 7.641196013 | AE20: 5.213270142 | AF20: 7.641196013 | AG20: 5.213270142 | AH20: 7.641196013 | AI20: 5.213270142 | AJ20: 7.641196013 | AK20: 5.213270142 | AL20: 7.641196013 | AM20: 5.213270142 | AN20: 7.641196013 | AO20: 5.213270142 | AP20: 7.641196013 | AQ20: 5.213270142 | AR20: 7.641196013 | AS20: 5.213270142 | AT20: 7.641196013 | AU20: 5.213270142 | AV20: 7.641196013 | AW20: 5.213270142 | AX20: 7.641196013 | AY20: 5.213270142 | AZ20: 7.641196013 | BA20: 5.213270142 | BB20: 7.641196013 | BC20: 5.213270142 | BD20: 7.641196013 | BE20: 5.213270142 | BF20: 7.641196013 | BG20: 5.213270142 | BH20: 7.641196013 | BI20: 5.213270142 | BJ20: 7.641196013 | BK20: 5.213270142 | BL20: 7.641196013 | BM20: 5.213270142 | BN20: 7.641196013 | BO20: 5.213270142 | BP20: 7.641196013 | BQ20: 5.213270142
A21: 34 | B21: =Vstupy!B1426 -> 5.315614618 | C21: =Vstupy!C1426 -> 5.450236967 | D21: 5.315614618 | E21: 5.450236967 | F21: 5.315614618 | G21: 5.450236967 | H21: 5.315614618 | I21: 5.450236967 | J21: 5.315614618 | K21: 5.450236967 | L21: 5.315614618 | M21: 5.450236967 | N21: 5.315614618 | O21: 5.450236967 | P21: 5.315614618 | Q21: 5.450236967 | R21: 5.315614618 | S21: 5.450236967 | T21: 5.315614618 | U21: 5.450236967 | V21: 5.315614618 | W21: 5.450236967 | X21: 5.315614618 | Y21: 5.450236967 | Z21: 5.315614618 | AA21: 5.450236967 | AB21: 5.315614618 | AC21: 5.450236967 | AD21: 5.315614618 | AE21: 5.450236967 | AF21: 5.315614618 | AG21: 5.450236967 | AH21: 5.315614618 | AI21: 5.450236967 | AJ21: 5.315614618 | AK21: 5.450236967 | AL21: 5.315614618 | AM21: 5.450236967 | AN21: 5.315614618 | AO21: 5.450236967 | AP21: 5.315614618 | AQ21: 5.450236967 | AR21: 5.315614618 | AS21: 5.450236967 | AT21: 5.315614618 | AU21: 5.450236967 | AV21: 5.315614618 | AW21: 5.450236967 | AX21: 5.315614618 | AY21: 5.450236967 | AZ21: 5.315614618 | BA21: 5.450236967 | BB21: 5.315614618 | BC21: 5.450236967 | BD21: 5.315614618 | BE21: 5.450236967 | BF21: 5.315614618 | BG21: 5.450236967 | BH21: 5.315614618 | BI21: 5.450236967 | BJ21: 5.315614618 | BK21: 5.450236967 | BL21: 5.315614618 | BM21: 5.450236967 | BN21: 5.315614618 | BO21: 5.450236967 | BP21: 5.315614618 | BQ21: 5.450236967
A22: 35 | B22: =Vstupy!B1427 -> 2.325581395 | C22: =Vstupy!C1427 -> 5.687203791 | D22: 2.325581395 | E22: 5.687203791 | F22: 2.325581395 | G22: 5.687203791 | H22: 2.325581395 | I22: 5.687203791 | J22: 2.325581395 | K22: 5.687203791 | L22: 2.325581395 | M22: 5.687203791 | N22: 2.325581395 | O22: 5.687203791 | P22: 2.325581395 | Q22: 5.687203791 | R22: 2.325581395 | S22: 5.687203791 | T22: 2.325581395 | U22: 5.687203791 | V22: 2.325581395 | W22: 5.687203791 | X22: 2.325581395 | Y22: 5.687203791 | Z22: 2.325581395 | AA22: 5.687203791 | AB22: 2.325581395 | AC22: 5.687203791 | AD22: 2.325581395 | AE22: 5.687203791 | AF22: 2.325581395 | AG22: 5.687203791 | AH22: 2.325581395 | AI22: 5.687203791 | AJ22: 2.325581395 | AK22: 5.687203791 | AL22: 2.325581395 | AM22: 5.687203791 | AN22: 2.325581395 | AO22: 5.687203791 | AP22: 2.325581395 | AQ22: 5.687203791 | AR22: 2.325581395 | AS22: 5.687203791 | AT22: 2.325581395 | AU22: 5.687203791 | AV22: 2.325581395 | AW22: 5.687203791 | AX22: 2.325581395 | AY22: 5.687203791 | AZ22: 2.325581395 | BA22: 5.687203791 | BB22: 2.325581395 | BC22: 5.687203791 | BD22: 2.325581395 | BE22: 5.687203791 | BF22: 2.325581395 | BG22: 5.687203791 | BH22: 2.325581395 | BI22: 5.687203791 | BJ22: 2.325581395 | BK22: 5.687203791 | BL22: 2.325581395 | BM22: 5.687203791 | BN22: 2.325581395 | BO22: 5.687203791 | BP22: 2.325581395 | BQ22: 5.687203791
A23: 36 | B23: =Vstupy!B1428 -> 4.318936877 | C23: =Vstupy!C1428 -> 7.582938389 | D23: 4.318936877 | E23: 7.582938389 | F23: 4.318936877 | G23: 7.582938389 | H23: 4.318936877 | I23: 7.582938389 | J23: 4.318936877 | K23: 7.582938389 | L23: 4.318936877 | M23: 7.582938389 | N23: 4.318936877 | O23: 7.582938389 | P23: 4.318936877 | Q23: 7.582938389 | R23: 4.318936877 | S23: 7.582938389 | T23: 4.318936877 | U23: 7.582938389 | V23: 4.318936877 | W23: 7.582938389 | X23: 4.318936877 | Y23: 7.582938389 | Z23: 4.318936877 | AA23: 7.582938389 | AB23: 4.318936877 | AC23: 7.582938389 | AD23: 4.318936877 | AE23: 7.582938389 | AF23: 4.318936877 | AG23: 7.582938389 | AH23: 4.318936877 | AI23: 7.582938389 | AJ23: 4.318936877 | AK23: 7.582938389 | AL23: 4.318936877 | AM23: 7.582938389 | AN23: 4.318936877 | AO23: 7.582938389 | AP23: 4.318936877 | AQ23: 7.582938389 | AR23: 4.318936877 | AS23: 7.582938389 | AT23: 4.318936877 | AU23: 7.582938389 | AV23: 4.318936877 | AW23: 7.582938389 | AX23: 4.318936877 | AY23: 7.582938389 | AZ23: 4.318936877 | BA23: 7.582938389 | BB23: 4.318936877 | BC23: 7.582938389 | BD23: 4.318936877 | BE23: 7.582938389 | BF23: 4.318936877 | BG23: 7.582938389 | BH23: 4.318936877 | BI23: 7.582938389 | BJ23: 4.318936877 | BK23: 7.582938389 | BL23: 4.318936877 | BM23: 7.582938389 | BN23: 4.318936877 | BO23: 7.582938389 | BP23: 4.318936877 | BQ23: 7.582938389
A24: 37 | B24: =Vstupy!B1429 -> 3.65448505 | C24: =Vstupy!C1429 -> 3.436018957 | D24: 3.65448505 | E24: 3.436018957 | F24: 3.65448505 | G24: 3.436018957 | H24: 3.65448505 | I24: 3.436018957 | J24: 3.65448505 | K24: 3.436018957 | L24: 3.65448505 | M24: 3.436018957 | N24: 3.65448505 | O24: 3.436018957 | P24: 3.65448505 | Q24: 3.436018957 | R24: 3.65448505 | S24: 3.436018957 | T24: 3.65448505 | U24: 3.436018957 | V24: 3.65448505 | W24: 3.436018957 | X24: 3.65448505 | Y24: 3.436018957 | Z24: 3.65448505 | AA24: 3.436018957 | AB24: 3.65448505 | AC24: 3.436018957 | AD24: 3.65448505 | AE24: 3.436018957 | AF24: 3.65448505 | AG24: 3.436018957 | AH24: 3.65448505 | AI24: 3.436018957 | AJ24: 3.65448505 | AK24: 3.436018957 | AL24: 3.65448505 | AM24: 3.436018957 | AN24: 3.65448505 | AO24: 3.436018957 | AP24: 3.65448505 | AQ24: 3.436018957 | AR24: 3.65448505 | AS24: 3.436018957 | AT24: 3.65448505 | AU24: 3.436018957 | AV24: 3.65448505 | AW24: 3.436018957 | AX24: 3.65448505 | AY24: 3.436018957 | AZ24: 3.65448505 | BA24: 3.436018957 | BB24: 3.65448505 | BC24: 3.436018957 | BD24: 3.65448505 | BE24: 3.436018957 | BF24: 3.65448505 | BG24: 3.436018957 | BH24: 3.65448505 | BI24: 3.436018957 | BJ24: 3.65448505 | BK24: 3.436018957 | BL24: 3.65448505 | BM24: 3.436018957 | BN24: 3.65448505 | BO24: 3.436018957 | BP24: 3.65448505 | BQ24: 3.436018957
A25: 38 | B25: =Vstupy!B1430 -> 3.322259136 | C25: =Vstupy!C1430 -> 5.924170616 | D25: 3.322259136 | E25: 5.924170616 | F25: 3.322259136 | G25: 5.924170616 | H25: 3.322259136 | I25: 5.924170616 | J25: =H25 -> 3.322259136 | K25: =I25 -> 5.924170616 | L25: 3.322259136 | M25: 5.924170616 | N25: =L25 -> 3.322259136 | O25: =M25 -> 5.924170616 | P25: 3.322259136 | Q25: 5.924170616 | R25: =P25 -> 3.322259136 | S25: =Q25 -> 5.924170616 | T25: 3.322259136 | U25: 5.924170616 | V25: =T25 -> 3.322259136 | W25: =U25 -> 5.924170616 | X25: 3.322259136 | Y25: 5.924170616 | Z25: 3.322259136 | AA25: 5.924170616 | AB25: 3.322259136 | AC25: 5.924170616 | AD25: 3.322259136 | AE25: 5.924170616 | AF25: 3.322259136 | AG25: 5.924170616 | AH25: 3.322259136 | AI25: 5.924170616 | AJ25: 3.322259136 | AK25: 5.924170616 | AL25: 3.322259136 | AM25: 5.924170616 | AN25: 3.322259136 | AO25: 5.924170616 | AP25: 3.322259136 | AQ25: 5.924170616 | AR25: 3.322259136 | AS25: 5.924170616 | AT25: 3.322259136 | AU25: 5.924170616 | AV25: 3.322259136 | AW25: 5.924170616 | AX25: 3.322259136 | AY25: 5.924170616 | AZ25: 3.322259136 | BA25: 5.924170616 | BB25: 3.322259136 | BC25: 5.924170616 | BD25: 3.322259136 | BE25: 5.924170616 | BF25: 3.322259136 | BG25: 5.924170616 | BH25: 3.322259136 | BI25: 5.924170616 | BJ25: 3.322259136 | BK25: 5.924170616 | BL25: 3.322259136 | BM25: 5.924170616 | BN25: 3.322259136 | BO25: 5.924170616 | BP25: 3.322259136 | BQ25: 5.924170616
A26: 39 | B26: =Vstupy!B1431 -> 3.322259136 | C26: =Vstupy!C1431 -> 4.857819905 | D26: 3.322259136 | E26: 4.857819905 | F26: 3.322259136 | G26: 4.857819905 | H26: 3.322259136 | I26: 4.857819905 | J26: 3.322259136 | K26: 4.857819905 | L26: 3.322259136 | M26: 4.857819905 | N26: 3.322259136 | O26: 4.857819905 | P26: 3.322259136 | Q26: 4.857819905 | R26: 3.322259136 | S26: 4.857819905 | T26: 3.322259136 | U26: 4.857819905 | V26: 3.322259136 | W26: 4.857819905 | X26: 3.322259136 | Y26: 4.857819905 | Z26: 3.322259136 | AA26: 4.857819905 | AB26: 3.322259136 | AC26: 4.857819905 | AD26: 3.322259136 | AE26: 4.857819905 | AF26: 3.322259136 | AG26: 4.857819905 | AH26: 3.322259136 | AI26: 4.857819905 | AJ26: 3.322259136 | AK26: 4.857819905 | AL26: =AJ26 -> 3.322259136 | AM26: =AK26 -> 4.857819905 | AN26: 3.322259136 | AO26: 4.857819905 | AP26: =AN26 -> 3.322259136 | AQ26: =AO26 -> 4.857819905 | AR26: 3.322259136 | AS26: 4.857819905 | AT26: 3.322259136 | AU26: 4.857819905 | AV26: 3.322259136 | AW26: 4.857819905 | AX26: 3.322259136 | AY26: 4.857819905 | AZ26: =AX26 -> 3.322259136 | BA26: =AY26 -> 4.857819905 | BB26: 3.322259136 | BC26: 4.857819905 | BD26: =BB26 -> 3.322259136 | BE26: =BC26 -> 4.857819905 | BF26: 3.322259136 | BG26: 4.857819905 | BH26: 3.322259136 | BI26: 4.857819905 | BJ26: 3.322259136 | BK26: 4.857819905 | BL26: 3.322259136 | BM26: 4.857819905 | BN26: 3.322259136 | BO26: 4.857819905 | BP26: 3.322259136 | BQ26: 4.857819905
A27: 40 | B27: =Vstupy!B1432 -> 5.647840532 | C27: =Vstupy!C1432 -> 3.317535545 | D27: 5.647840532 | E27: 3.317535545 | F27: 5.647840532 | G27: 3.317535545 | H27: 5.647840532 | I27: 3.317535545 | J27: 5.647840532 | K27: 3.317535545 | L27: 5.647840532 | M27: 3.317535545 | N27: 5.647840532 | O27: 3.317535545 | P27: 5.647840532 | Q27: 3.317535545 | R27: 5.647840532 | S27: 3.317535545 | T27: 5.647840532 | U27: 3.317535545 | V27: 5.647840532 | W27: 3.317535545 | X27: 5.647840532 | Y27: 3.317535545 | Z27: 5.647840532 | AA27: 3.317535545 | AB27: 5.647840532 | AC27: 3.317535545 | AD27: 5.647840532 | AE27: 3.317535545 | AF27: 5.647840532 | AG27: 3.317535545 | AH27: 5.647840532 | AI27: 3.317535545 | AJ27: 5.647840532 | AK27: 3.317535545 | AL27: 5.647840532 | AM27: 3.317535545 | AN27: 5.647840532 | AO27: 3.317535545 | AP27: 5.647840532 | AQ27: 3.317535545 | AR27: 5.647840532 | AS27: 3.317535545 | AT27: 5.647840532 | AU27: 3.317535545 | AV27: 5.647840532 | AW27: 3.317535545 | AX27: 5.647840532 | AY27: 3.317535545 | AZ27: 5.647840532 | BA27: 3.317535545 | BB27: 5.647840532 | BC27: 3.317535545 | BD27: 5.647840532 | BE27: 3.317535545 | BF27: 5.647840532 | BG27: 3.317535545 | BH27: 5.647840532 | BI27: 3.317535545 | BJ27: 5.647840532 | BK27: 3.317535545 | BL27: 5.647840532 | BM27: 3.317535545 | BN27: 5.647840532 | BO27: 3.317535545 | BP27: 5.647840532 | BQ27: 3.317535545
A28: 41 | B28: =Vstupy!B1433 -> 2.657807309 | C28: =Vstupy!C1433 -> 4.028436019 | D28: 2.657807309 | E28: 4.028436019 | F28: 2.657807309 | G28: 4.028436019 | H28: 2.657807309 | I28: 4.028436019 | J28: 2.657807309 | K28: 4.028436019 | L28: 2.657807309 | M28: 4.028436019 | N28: 2.657807309 | O28: 4.028436019 | P28: 2.657807309 | Q28: 4.028436019 | R28: 2.657807309 | S28: 4.028436019 | T28: 2.657807309 | U28: 4.028436019 | V28: 2.657807309 | W28: 4.028436019 | X28: 2.657807309 | Y28: 4.028436019 | Z28: 2.657807309 | AA28: 4.028436019 | AB28: 2.657807309 | AC28: 4.028436019 | AD28: 2.657807309 | AE28: 4.028436019 | AF28: 2.657807309 | AG28: 4.028436019 | AH28: 2.657807309 | AI28: 4.028436019 | AJ28: 2.657807309 | AK28: 4.028436019 | AL28: 2.657807309 | AM28: 4.028436019 | AN28: 2.657807309 | AO28: 4.028436019 | AP28: 2.657807309 | AQ28: 4.028436019 | AR28: 2.657807309 | AS28: 4.028436019 | AT28: 2.657807309 | AU28: 4.028436019 | AV28: 2.657807309 | AW28: 4.028436019 | AX28: 2.657807309 | AY28: 4.028436019 | AZ28: 2.657807309 | BA28: 4.028436019 | BB28: 2.657807309 | BC28: 4.028436019 | BD28: 2.657807309 | BE28: 4.028436019 | BF28: 2.657807309 | BG28: 4.028436019 | BH28: 2.657807309 | BI28: 4.028436019 | BJ28: 2.657807309 | BK28: 4.028436019 | BL28: 2.657807309 | BM28: 4.028436019 | BN28: 2.657807309 | BO28: 4.028436019 | BP28: 2.657807309 | BQ28: 4.028436019
A29: 42 | B29: =Vstupy!B1434 -> 3.322259136 | C29: =Vstupy!C1434 -> 3.791469194 | D29: 3.322259136 | E29: 3.791469194 | F29: 3.322259136 | G29: 3.791469194 | H29: 3.322259136 | I29: 3.791469194 | J29: 3.322259136 | K29: 3.791469194 | L29: 3.322259136 | M29: 3.791469194 | N29: 3.322259136 | O29: 3.791469194 | P29: 3.322259136 | Q29: 3.791469194 | R29: 3.322259136 | S29: 3.791469194 | T29: 3.322259136 | U29: 3.791469194 | V29: 3.322259136 | W29: 3.791469194 | X29: 3.322259136 | Y29: 3.791469194 | Z29: 3.322259136 | AA29: 3.791469194 | AB29: 3.322259136 | AC29: 3.791469194 | AD29: 3.322259136 | AE29: 3.791469194 | AF29: 3.322259136 | AG29: 3.791469194 | AH29: 3.322259136 | AI29: 3.791469194 | AJ29: 3.322259136 | AK29: 3.791469194 | AL29: 3.322259136 | AM29: 3.791469194 | AN29: 3.322259136 | AO29: 3.791469194 | AP29: 3.322259136 | AQ29: 3.791469194 | AR29: 3.322259136 | AS29: 3.791469194 | AT29: 3.322259136 | AU29: 3.791469194 | AV29: 3.322259136 | AW29: 3.791469194 | AX29: 3.322259136 | AY29: 3.791469194 | AZ29: 3.322259136 | BA29: 3.791469194 | BB29: 3.322259136 | BC29: 3.791469194 | BD29: 3.322259136 | BE29: 3.791469194 | BF29: 3.322259136 | BG29: 3.791469194 | BH29: 3.322259136 | BI29: 3.791469194 | BJ29: 3.322259136 | BK29: 3.791469194 | BL29: 3.322259136 | BM29: 3.791469194 | BN29: 3.322259136 | BO29: 3.791469194 | BP29: 3.322259136 | BQ29: 3.791469194
A30: 43 | B30: =Vstupy!B1435 -> 1.328903654 | C30: =Vstupy!C1435 -> 2.488151659 | D30: 1.328903654 | E30: 2.488151659 | F30: 1.328903654 | G30: 2.488151659 | H30: 1.328903654 | I30: 2.488151659 | J30: 1.328903654 | K30: 2.488151659 | L30: 1.328903654 | M30: 2.488151659 | N30: 1.328903654 | O30: 2.488151659 | P30: 1.328903654 | Q30: 2.488151659 | R30: 1.328903654 | S30: 2.488151659 | T30: 1.328903654 | U30: 2.488151659 | V30: 1.328903654 | W30: 2.488151659 | X30: 1.328903654 | Y30: 2.488151659 | Z30: 1.328903654 | AA30: 2.488151659 | AB30: 1.328903654 | AC30: 2.488151659 | AD30: 1.328903654 | AE30: 2.488151659 | AF30: 1.328903654 | AG30: 2.488151659 | AH30: 1.328903654 | AI30: 2.488151659 | AJ30: 1.328903654 | AK30: 2.488151659 | AL30: 1.328903654 | AM30: 2.488151659 | AN30: 1.328903654 | AO30: 2.488151659 | AP30: 1.328903654 | AQ30: 2.488151659 | AR30: 1.328903654 | AS30: 2.488151659 | AT30: 1.328903654 | AU30: 2.488151659 | AV30: 1.328903654 | AW30: 2.488151659 | AX30: 1.328903654 | AY30: 2.488151659 | AZ30: 1.328903654 | BA30: 2.488151659 | BB30: 1.328903654 | BC30: 2.488151659 | BD30: 1.328903654 | BE30: 2.488151659 | BF30: 1.328903654 | BG30: 2.488151659 | BH30: 1.328903654 | BI30: 2.488151659 | BJ30: 1.328903654 | BK30: 2.488151659 | BL30: 1.328903654 | BM30: 2.488151659 | BN30: 1.328903654 | BO30: 2.488151659 | BP30: 1.328903654 | BQ30: 2.488151659
A31: 44 | B31: =Vstupy!B1436 -> 3.322259136 | C31: =Vstupy!C1436 -> 1.895734597 | D31: 3.322259136 | E31: 1.895734597 | F31: 3.322259136 | G31: 1.895734597 | H31: 3.322259136 | I31: 1.895734597 | J31: 3.322259136 | K31: 1.895734597 | L31: 3.322259136 | M31: 1.895734597 | N31: 3.322259136 | O31: 1.895734597 | P31: 3.322259136 | Q31: 1.895734597 | R31: 3.322259136 | S31: 1.895734597 | T31: 3.322259136 | U31: 1.895734597 | V31: 3.322259136 | W31: 1.895734597 | X31: 3.322259136 | Y31: 1.895734597 | Z31: 3.322259136 | AA31: 1.895734597 | AB31: 3.322259136 | AC31: 1.895734597 | AD31: 3.322259136 | AE31: 1.895734597 | AF31: 3.322259136 | AG31: 1.895734597 | AH31: 3.322259136 | AI31: 1.895734597 | AJ31: 3.322259136 | AK31: 1.895734597 | AL31: 3.322259136 | AM31: 1.895734597 | AN31: 3.322259136 | AO31: 1.895734597 | AP31: 3.322259136 | AQ31: 1.895734597 | AR31: 3.322259136 | AS31: 1.895734597 | AT31: 3.322259136 | AU31: 1.895734597 | AV31: 3.322259136 | AW31: 1.895734597 | AX31: 3.322259136 | AY31: 1.895734597 | AZ31: 3.322259136 | BA31: 1.895734597 | BB31: 3.322259136 | BC31: 1.895734597 | BD31: 3.322259136 | BE31: 1.895734597 | BF31: 3.322259136 | BG31: 1.895734597 | BH31: 3.322259136 | BI31: 1.895734597 | BJ31: 3.322259136 | BK31: 1.895734597 | BL31: 3.322259136 | BM31: 1.895734597 | BN31: 3.322259136 | BO31: 1.895734597 | BP31: 3.322259136 | BQ31: 1.895734597
A32: 45 | B32: =Vstupy!B1437 -> 0.9966777409 | C32: =Vstupy!C1437 -> 2.369668246 | D32: 0.9966777409 | E32: 2.369668246 | F32: 0.9966777409 | G32: 2.369668246 | H32: 0.9966777409 | I32: 2.369668246 | J32: 0.9966777409 | K32: 2.369668246 | L32: 0.9966777409 | M32: 2.369668246 | N32: 0.9966777409 | O32: 2.369668246 | P32: 0.9966777409 | Q32: 2.369668246 | R32: 0.9966777409 | S32: 2.369668246 | T32: 0.9966777409 | U32: 2.369668246 | V32: 0.9966777409 | W32: 2.369668246 | X32: 0.9966777409 | Y32: 2.369668246 | Z32: 0.9966777409 | AA32: 2.369668246 | AB32: 0.9966777409 | AC32: 2.369668246 | AD32: 0.9966777409 | AE32: 2.369668246 | AF32: 0.9966777409 | AG32: 2.369668246 | AH32: 0.9966777409 | AI32: 2.369668246 | AJ32: 0.9966777409 | AK32: 2.369668246 | AL32: 0.9966777409 | AM32: 2.369668246 | AN32: 0.9966777409 | AO32: 2.369668246 | AP32: 0.9966777409 | AQ32: 2.369668246 | AR32: 0.9966777409 | AS32: 2.369668246 | AT32: 0.9966777409 | AU32: 2.369668246 | AV32: 0.9966777409 | AW32: 2.369668246 | AX32: 0.9966777409 | AY32: 2.369668246 | AZ32: 0.9966777409 | BA32: 2.369668246 | BB32: 0.9966777409 | BC32: 2.369668246 | BD32: 0.9966777409 | BE32: 2.369668246 | BF32: 0.9966777409 | BG32: 2.369668246 | BH32: 0.9966777409 | BI32: 2.369668246 | BJ32: 0.9966777409 | BK32: 2.369668246 | BL32: 0.9966777409 | BM32: 2.369668246 | BN32: 0.9966777409 | BO32: 2.369668246 | BP32: 0.9966777409 | BQ32: 2.369668246
A33: 46 | B33: =Vstupy!B1438 -> 1.993355482 | C33: =Vstupy!C1438 -> 0.9478672986 | D33: 1.993355482 | E33: 0.9478672986 | F33: 1.993355482 | G33: 0.9478672986 | H33: 1.993355482 | I33: 0.9478672986 | J33: 1.993355482 | K33: 0.9478672986 | L33: 1.993355482 | M33: 0.9478672986 | N33: 1.993355482 | O33: 0.9478672986 | P33: 1.993355482 | Q33: 0.9478672986 | R33: 1.993355482 | S33: 0.9478672986 | T33: 1.993355482 | U33: 0.9478672986 | V33: 1.993355482 | W33: 0.9478672986 | X33: 1.993355482 | Y33: 0.9478672986 | Z33: 1.993355482 | AA33: 0.9478672986 | AB33: 1.993355482 | AC33: 0.9478672986 | AD33: 1.993355482 | AE33: 0.9478672986 | AF33: 1.993355482 | AG33: 0.9478672986 | AH33: 1.993355482 | AI33: 0.9478672986 | AJ33: 1.993355482 | AK33: 0.9478672986 | AL33: 1.993355482 | AM33: 0.9478672986 | AN33: 1.993355482 | AO33: 0.9478672986 | AP33: 1.993355482 | AQ33: 0.9478672986 | AR33: 1.993355482 | AS33: 0.9478672986 | AT33: 1.993355482 | AU33: 0.9478672986 | AV33: 1.993355482 | AW33: 0.9478672986 | AX33: 1.993355482 | AY33: 0.9478672986 | AZ33: 1.993355482 | BA33: 0.9478672986 | BB33: 1.993355482 | BC33: 0.9478672986 | BD33: 1.993355482 | BE33: 0.9478672986 | BF33: 1.993355482 | BG33: 0.9478672986 | BH33: 1.993355482 | BI33: 0.9478672986 | BJ33: 1.993355482 | BK33: 0.9478672986 | BL33: 1.993355482 | BM33: 0.9478672986 | BN33: 1.993355482 | BO33: 0.9478672986 | BP33: 1.993355482 | BQ33: 0.9478672986
A34: 47 | B34: =Vstupy!B1439 -> 3.986710963 | C34: =Vstupy!C1439 -> 1.658767773 | D34: 3.986710963 | E34: 1.658767773 | F34: 3.986710963 | G34: 1.658767773 | H34: 3.986710963 | I34: 1.658767773 | J34: 3.986710963 | K34: 1.658767773 | L34: 3.986710963 | M34: 1.658767773 | N34: 3.986710963 | O34: 1.658767773 | P34: 3.986710963 | Q34: 1.658767773 | R34: 3.986710963 | S34: 1.658767773 | T34: 3.986710963 | U34: 1.658767773 | V34: 3.986710963 | W34: 1.658767773 | X34: 3.986710963 | Y34: 1.658767773 | Z34: 3.986710963 | AA34: 1.658767773 | AB34: 3.986710963 | AC34: 1.658767773 | AD34: 3.986710963 | AE34: 1.658767773 | AF34: 3.986710963 | AG34: 1.658767773 | AH34: 3.986710963 | AI34: 1.658767773 | AJ34: 3.986710963 | AK34: 1.658767773 | AL34: 3.986710963 | AM34: 1.658767773 | AN34: 3.986710963 | AO34: 1.658767773 | AP34: 3.986710963 | AQ34: 1.658767773 | AR34: 3.986710963 | AS34: 1.658767773 | AT34: 3.986710963 | AU34: 1.658767773 | AV34: 3.986710963 | AW34: 1.658767773 | AX34: 3.986710963 | AY34: 1.658767773 | AZ34: 3.986710963 | BA34: 1.658767773 | BB34: 3.986710963 | BC34: 1.658767773 | BD34: 3.986710963 | BE34: 1.658767773 | BF34: 3.986710963 | BG34: 1.658767773 | BH34: 3.986710963 | BI34: 1.658767773 | BJ34: 3.986710963 | BK34: 1.658767773 | BL34: 3.986710963 | BM34: 1.658767773 | BN34: 3.986710963 | BO34: 1.658767773 | BP34: 3.986710963 | BQ34: 1.658767773
A35: 48 | B35: =Vstupy!B1440 -> 2.657807309 | C35: =Vstupy!C1440 -> 0.355450237 | D35: 2.657807309 | E35: 0.355450237 | F35: 2.657807309 | G35: 0.355450237 | H35: 2.657807309 | I35: 0.355450237 | J35: 2.657807309 | K35: 0.355450237 | L35: 2.657807309 | M35: 0.355450237 | N35: 2.657807309 | O35: 0.355450237 | P35: 2.657807309 | Q35: 0.355450237 | R35: 2.657807309 | S35: 0.355450237 | T35: 2.657807309 | U35: 0.355450237 | V35: 2.657807309 | W35: 0.355450237 | X35: 2.657807309 | Y35: 0.355450237 | Z35: 2.657807309 | AA35: 0.355450237 | AB35: 2.657807309 | AC35: 0.355450237 | AD35: 2.657807309 | AE35: 0.355450237 | AF35: 2.657807309 | AG35: 0.355450237 | AH35: 2.657807309 | AI35: 0.355450237 | AJ35: 2.657807309 | AK35: 0.355450237 | AL35: 2.657807309 | AM35: 0.355450237 | AN35: 2.657807309 | AO35: 0.355450237 | AP35: 2.657807309 | AQ35: 0.355450237 | AR35: 2.657807309 | AS35: 0.355450237 | AT35: 2.657807309 | AU35: 0.355450237 | AV35: 2.657807309 | AW35: 0.355450237 | AX35: 2.657807309 | AY35: 0.355450237 | AZ35: 2.657807309 | BA35: 0.355450237 | BB35: 2.657807309 | BC35: 0.355450237 | BD35: 2.657807309 | BE35: 0.355450237 | BF35: 2.657807309 | BG35: 0.355450237 | BH35: 2.657807309 | BI35: 0.355450237 | BJ35: 2.657807309 | BK35: 0.355450237 | BL35: 2.657807309 | BM35: 0.355450237 | BN35: 2.657807309 | BO35: 0.355450237 | BP35: 2.657807309 | BQ35: 0.355450237
A36: 49 | B36: =Vstupy!B1441 -> 1.328903654 | C36: =Vstupy!C1441 -> 0.355450237 | D36: 1.328903654 | E36: 0.355450237 | F36: 1.328903654 | G36: 0.355450237 | H36: 1.328903654 | I36: 0.355450237 | J36: 1.328903654 | K36: 0.355450237 | L36: 1.328903654 | M36: 0.355450237 | N36: 1.328903654 | O36: 0.355450237 | P36: 1.328903654 | Q36: 0.355450237 | R36: 1.328903654 | S36: 0.355450237 | T36: 1.328903654 | U36: 0.355450237 | V36: 1.328903654 | W36: 0.355450237 | X36: 1.328903654 | Y36: 0.355450237 | Z36: 1.328903654 | AA36: 0.355450237 | AB36: 1.328903654 | AC36: 0.355450237 | AD36: 1.328903654 | AE36: 0.355450237 | AF36: 1.328903654 | AG36: 0.355450237 | AH36: 1.328903654 | AI36: 0.355450237 | AJ36: 1.328903654 | AK36: 0.355450237 | AL36: 1.328903654 | AM36: 0.355450237 | AN36: 1.328903654 | AO36: 0.355450237 | AP36: 1.328903654 | AQ36: 0.355450237 | AR36: 1.328903654 | AS36: 0.355450237 | AT36: 1.328903654 | AU36: 0.355450237 | AV36: 1.328903654 | AW36: 0.355450237 | AX36: 1.328903654 | AY36: 0.355450237 | AZ36: 1.328903654 | BA36: 0.355450237 | BB36: 1.328903654 | BC36: 0.355450237 | BD36: 1.328903654 | BE36: 0.355450237 | BF36: 1.328903654 | BG36: 0.355450237 | BH36: 1.328903654 | BI36: 0.355450237 | BJ36: 1.328903654 | BK36: 0.355450237 | BL36: 1.328903654 | BM36: 0.355450237 | BN36: 1.328903654 | BO36: 0.355450237 | BP36: 1.328903654 | BQ36: 0.355450237
A37: 50 | B37: =Vstupy!B1442 -> 2.325581395 | C37: =Vstupy!C1442 -> 0.355450237 | D37: 2.325581395 | E37: 0.355450237 | F37: 2.325581395 | G37: 0.355450237 | H37: 2.325581395 | I37: 0.355450237 | J37: 2.325581395 | K37: 0.355450237 | L37: 2.325581395 | M37: 0.355450237 | N37: 2.325581395 | O37: 0.355450237 | P37: 2.325581395 | Q37: 0.355450237 | R37: 2.325581395 | S37: 0.355450237 | T37: 2.325581395 | U37: 0.355450237 | V37: 2.325581395 | W37: 0.355450237 | X37: 2.325581395 | Y37: 0.355450237 | Z37: 2.325581395 | AA37: 0.355450237 | AB37: 2.325581395 | AC37: 0.355450237 | AD37: 2.325581395 | AE37: 0.355450237 | AF37: 2.325581395 | AG37: 0.355450237 | AH37: 2.325581395 | AI37: 0.355450237 | AJ37: 2.325581395 | AK37: 0.355450237 | AL37: 2.325581395 | AM37: 0.355450237 | AN37: 2.325581395 | AO37: 0.355450237 | AP37: 2.325581395 | AQ37: 0.355450237 | AR37: 2.325581395 | AS37: 0.355450237 | AT37: 2.325581395 | AU37: 0.355450237 | AV37: 2.325581395 | AW37: 0.355450237 | AX37: 2.325581395 | AY37: 0.355450237 | AZ37: 2.325581395 | BA37: 0.355450237 | BB37: 2.325581395 | BC37: 0.355450237 | BD37: 2.325581395 | BE37: 0.355450237 | BF37: 2.325581395 | BG37: 0.355450237 | BH37: 2.325581395 | BI37: 0.355450237 | BJ37: 2.325581395 | BK37: 0.355450237 | BL37: 2.325581395 | BM37: 0.355450237 | BN37: 2.325581395 | BO37: 0.355450237 | BP37: 2.325581395 | BQ37: 0.355450237
A38: 51 | B38: =Vstupy!B1443 -> 0.3322259136 | C38: =Vstupy!C1443 -> -0.1184834123 | D38: 0.3322259136 | E38: -0.1184834123 | F38: 0.3322259136 | G38: -0.1184834123 | H38: 0.3322259136 | I38: -0.1184834123 | J38: 0.3322259136 | K38: -0.1184834123 | L38: 0.3322259136 | M38: -0.1184834123 | N38: 0.3322259136 | O38: -0.1184834123 | P38: 0.3322259136 | Q38: -0.1184834123 | R38: 0.3322259136 | S38: -0.1184834123 | T38: 0.3322259136 | U38: -0.1184834123 | V38: 0.3322259136 | W38: -0.1184834123 | X38: 0.3322259136 | Y38: -0.1184834123 | Z38: 0.3322259136 | AA38: -0.1184834123 | AB38: 0.3322259136 | AC38: -0.1184834123 | AD38: 0.3322259136 | AE38: -0.1184834123 | AF38: 0.3322259136 | AG38: -0.1184834123 | AH38: 0.3322259136 | AI38: -0.1184834123 | AJ38: 0.3322259136 | AK38: -0.1184834123 | AL38: 0.3322259136 | AM38: -0.1184834123 | AN38: 0.3322259136 | AO38: -0.1184834123 | AP38: 0.3322259136 | AQ38: -0.1184834123 | AR38: 0.3322259136 | AS38: -0.1184834123 | AT38: 0.3322259136 | AU38: -0.1184834123 | AV38: 0.3322259136 | AW38: -0.1184834123 | AX38: 0.3322259136 | AY38: -0.1184834123 | AZ38: 0.3322259136 | BA38: -0.1184834123 | BB38: 0.3322259136 | BC38: -0.1184834123 | BD38: 0.3322259136 | BE38: -0.1184834123 | BF38: 0.3322259136 | BG38: -0.1184834123 | BH38: 0.3322259136 | BI38: -0.1184834123 | BJ38: 0.3322259136 | BK38: -0.1184834123 | BL38: 0.3322259136 | BM38: -0.1184834123 | BN38: 0.3322259136 | BO38: -0.1184834123 | BP38: 0.3322259136 | BQ38: -0.1184834123
A39: 52 | B39: =Vstupy!B1444 -> -1.328903654 | C39: =Vstupy!C1444 -> 0.2369668246 | D39: -1.328903654 | E39: 0.2369668246 | F39: -1.328903654 | G39: 0.2369668246 | H39: -1.328903654 | I39: 0.2369668246 | J39: -1.328903654 | K39: 0.2369668246 | L39: -1.328903654 | M39: 0.2369668246 | N39: -1.328903654 | O39: 0.2369668246 | P39: -1.328903654 | Q39: 0.2369668246 | R39: -1.328903654 | S39: 0.2369668246 | T39: -1.328903654 | U39: 0.2369668246 | V39: -1.328903654 | W39: 0.2369668246 | X39: -1.328903654 | Y39: 0.2369668246 | Z39: -1.328903654 | AA39: 0.2369668246 | AB39: -1.328903654 | AC39: 0.2369668246 | AD39: -1.328903654 | AE39: 0.2369668246 | AF39: -1.328903654 | AG39: 0.2369668246 | AH39: -1.328903654 | AI39: 0.2369668246 | AJ39: -1.328903654 | AK39: 0.2369668246 | AL39: -1.328903654 | AM39: 0.2369668246 | AN39: -1.328903654 | AO39: 0.2369668246 | AP39: -1.328903654 | AQ39: 0.2369668246 | AR39: -1.328903654 | AS39: 0.2369668246 | AT39: -1.328903654 | AU39: 0.2369668246 | AV39: -1.328903654 | AW39: 0.2369668246 | AX39: -1.328903654 | AY39: 0.2369668246 | AZ39: -1.328903654 | BA39: 0.2369668246 | BB39: -1.328903654 | BC39: 0.2369668246 | BD39: -1.328903654 | BE39: 0.2369668246 | BF39: -1.328903654 | BG39: 0.2369668246 | BH39: -1.328903654 | BI39: 0.2369668246 | BJ39: -1.328903654 | BK39: 0.2369668246 | BL39: -1.328903654 | BM39: 0.2369668246 | BN39: -1.328903654 | BO39: 0.2369668246 | BP39: -1.328903654 | BQ39: 0.2369668246
A40: 53 | B40: =Vstupy!B1445 -> 0.3322259136 | C40: =Vstupy!C1445 -> 1.184834123 | D40: 0.3322259136 | E40: 1.184834123 | F40: 0.3322259136 | G40: 1.184834123 | H40: 0.3322259136 | I40: 1.184834123 | J40: 0.3322259136 | K40: 1.184834123 | L40: 0.3322259136 | M40: 1.184834123 | N40: 0.3322259136 | O40: 1.184834123 | P40: 0.3322259136 | Q40: 1.184834123 | R40: 0.3322259136 | S40: 1.184834123 | T40: 0.3322259136 | U40: 1.184834123 | V40: 0.3322259136 | W40: 1.184834123 | X40: 0.3322259136 | Y40: 1.184834123 | Z40: 0.3322259136 | AA40: 1.184834123 | AB40: 0.3322259136 | AC40: 1.184834123 | AD40: 0.3322259136 | AE40: 1.184834123 | AF40: 0.3322259136 | AG40: 1.184834123 | AH40: 0.3322259136 | AI40: 1.184834123 | AJ40: 0.3322259136 | AK40: 1.184834123 | AL40: 0.3322259136 | AM40: 1.184834123 | AN40: 0.3322259136 | AO40: 1.184834123 | AP40: 0.3322259136 | AQ40: 1.184834123 | AR40: 0.3322259136 | AS40: 1.184834123 | AT40: 0.3322259136 | AU40: 1.184834123 | AV40: 0.3322259136 | AW40: 1.184834123 | AX40: 0.3322259136 | AY40: 1.184834123 | AZ40: 0.3322259136 | BA40: 1.184834123 | BB40: 0.3322259136 | BC40: 1.184834123 | BD40: 0.3322259136 | BE40: 1.184834123 | BF40: 0.3322259136 | BG40: 1.184834123 | BH40: 0.3322259136 | BI40: 1.184834123 | BJ40: 0.3322259136 | BK40: 1.184834123 | BL40: 0.3322259136 | BM40: 1.184834123 | BN40: 0.3322259136 | BO40: 1.184834123 | BP40: 0.3322259136 | BQ40: 1.184834123
A41: 54 | B41: =Vstupy!B1446 -> 2.657807309 | C41: =Vstupy!C1446 -> 0 | D41: 2.657807309 | E41: 0 | F41: 2.657807309 | G41: 0 | H41: 2.657807309 | I41: 0 | J41: 2.657807309 | K41: 0 | L41: 2.657807309 | M41: 0 | N41: 2.657807309 | O41: 0 | P41: 2.657807309 | Q41: 0 | R41: 2.657807309 | S41: 0 | T41: 2.657807309 | U41: 0 | V41: 2.657807309 | W41: 0 | X41: 2.657807309 | Y41: 0 | Z41: 2.657807309 | AA41: 0 | AB41: 2.657807309 | AC41: 0 | AD41: 2.657807309 | AE41: 0 | AF41: 2.657807309 | AG41: 0 | AH41: 2.657807309 | AI41: 0 | AJ41: 2.657807309 | AK41: 0 | AL41: 2.657807309 | AM41: 0 | AN41: 2.657807309 | AO41: 0 | AP41: 2.657807309 | AQ41: 0 | AR41: 2.657807309 | AS41: 0 | AT41: 2.657807309 | AU41: 0 | AV41: 2.657807309 | AW41: 0 | AX41: 2.657807309 | AY41: 0 | AZ41: 2.657807309 | BA41: 0 | BB41: 2.657807309 | BC41: 0 | BD41: 2.657807309 | BE41: 0 | BF41: 2.657807309 | BG41: 0 | BH41: 2.657807309 | BI41: 0 | BJ41: 2.657807309 | BK41: 0 | BL41: 2.657807309 | BM41: 0 | BN41: 2.657807309 | BO41: 0 | BP41: 2.657807309 | BQ41: 0
A42: 55 | B42: =Vstupy!B1447 -> -0.9966777409 | C42: =Vstupy!C1447 -> 0 | D42: -0.9966777409 | E42: 0 | F42: -0.9966777409 | G42: 0 | H42: -0.9966777409 | I42: 0 | J42: -0.9966777409 | K42: 0 | L42: -0.9966777409 | M42: 0 | N42: -0.9966777409 | O42: 0 | P42: -0.9966777409 | Q42: 0 | R42: -0.9966777409 | S42: 0 | T42: -0.9966777409 | U42: 0 | V42: -0.9966777409 | W42: 0 | X42: -0.9966777409 | Y42: 0 | Z42: -0.9966777409 | AA42: 0 | AB42: -0.9966777409 | AC42: 0 | AD42: -0.9966777409 | AE42: 0 | AF42: -0.9966777409 | AG42: 0 | AH42: -0.9966777409 | AI42: 0 | AJ42: -0.9966777409 | AK42: 0 | AL42: -0.9966777409 | AM42: 0 | AN42: -0.9966777409 | AO42: 0 | AP42: -0.9966777409 | AQ42: 0 | AR42: -0.9966777409 | AS42: 0 | AT42: -0.9966777409 | AU42: 0 | AV42: -0.9966777409 | AW42: 0 | AX42: -0.9966777409 | AY42: 0 | AZ42: -0.9966777409 | BA42: 0 | BB42: -0.9966777409 | BC42: 0 | BD42: -0.9966777409 | BE42: 0 | BF42: -0.9966777409 | BG42: 0 | BH42: -0.9966777409 | BI42: 0 | BJ42: -0.9966777409 | BK42: 0 | BL42: -0.9966777409 | BM42: 0 | BN42: -0.9966777409 | BO42: 0 | BP42: -0.9966777409 | BQ42: 0
A43: 56 | B43: =Vstupy!B1448 -> -0.3322259136 | C43: =Vstupy!C1448 -> 0 | D43: -0.3322259136 | E43: 0 | F43: -0.3322259136 | G43: 0 | H43: -0.3322259136 | I43: 0 | J43: -0.3322259136 | K43: 0 | L43: -0.3322259136 | M43: 0 | N43: -0.3322259136 | O43: 0 | P43: -0.3322259136 | Q43: 0 | R43: -0.3322259136 | S43: 0 | T43: -0.3322259136 | U43: 0 | V43: -0.3322259136 | W43: 0 | X43: -0.3322259136 | Y43: 0 | Z43: -0.3322259136 | AA43: 0 | AB43: -0.3322259136 | AC43: 0 | AD43: -0.3322259136 | AE43: 0 | AF43: -0.3322259136 | AG43: 0 | AH43: -0.3322259136 | AI43: 0 | AJ43: -0.3322259136 | AK43: 0 | AL43: -0.3322259136 | AM43: 0 | AN43: -0.3322259136 | AO43: 0 | AP43: -0.3322259136 | AQ43: 0 | AR43: -0.3322259136 | AS43: 0 | AT43: -0.3322259136 | AU43: 0 | AV43: -0.3322259136 | AW43: 0 | AX43: -0.3322259136 | AY43: 0 | AZ43: -0.3322259136 | BA43: 0 | BB43: -0.3322259136 | BC43: 0 | BD43: -0.3322259136 | BE43: 0 | BF43: -0.3322259136 | BG43: 0 | BH43: -0.3322259136 | BI43: 0 | BJ43: -0.3322259136 | BK43: 0 | BL43: -0.3322259136 | BM43: 0 | BN43: -0.3322259136 | BO43: 0 | BP43: -0.3322259136 | BQ43: 0
A44: 57 | B44: =Vstupy!B1449 -> 0 | C44: =Vstupy!C1449 -> 0 | D44: 0 | E44: 0 | F44: 0 | G44: 0 | H44: 0 | I44: 0 | J44: 0 | K44: 0 | L44: 0 | M44: 0 | N44: 0 | O44: 0 | P44: 0 | Q44: 0 | R44: 0 | S44: 0 | T44: 0 | U44: 0 | V44: 0 | W44: 0 | X44: 0 | Y44: 0 | Z44: 0 | AA44: 0 | AB44: 0 | AC44: 0 | AD44: 0 | AE44: 0 | AF44: 0 | AG44: 0 | AH44: 0 | AI44: 0 | AJ44: 0 | AK44: 0 | AL44: 0 | AM44: 0 | AN44: 0 | AO44: 0 | AP44: 0 | AQ44: 0 | AR44: 0 | AS44: 0 | AT44: 0 | AU44: 0 | AV44: 0 | AW44: 0 | AX44: 0 | AY44: 0 | AZ44: 0 | BA44: 0 | BB44: 0 | BC44: 0 | BD44: 0 | BE44: 0 | BF44: 0 | BG44: 0 | BH44: 0 | BI44: 0 | BJ44: 0 | BK44: 0 | BL44: 0 | BM44: 0 | BN44: 0 | BO44: 0 | BP44: 0 | BQ44: 0
A45: 58 | B45: =Vstupy!B1450 -> 0 | C45: =Vstupy!C1450 -> 0 | D45: 0 | E45: 0 | F45: 0 | G45: 0 | H45: 0 | I45: 0 | J45: 0 | K45: 0 | L45: 0 | M45: 0 | N45: 0 | O45: 0 | P45: 0 | Q45: 0 | R45: 0 | S45: 0 | T45: 0 | U45: 0 | V45: 0 | W45: 0 | X45: 0 | Y45: 0 | Z45: 0 | AA45: 0 | AB45: 0 | AC45: 0 | AD45: 0 | AE45: 0 | AF45: 0 | AG45: 0 | AH45: 0 | AI45: 0 | AJ45: 0 | AK45: 0 | AL45: 0 | AM45: 0 | AN45: 0 | AO45: 0 | AP45: 0 | AQ45: 0 | AR45: 0 | AS45: 0 | AT45: 0 | AU45: 0 | AV45: 0 | AW45: 0 | AX45: 0 | AY45: 0 | AZ45: 0 | BA45: 0 | BB45: 0 | BC45: 0 | BD45: 0 | BE45: 0 | BF45: 0 | BG45: 0 | BH45: 0 | BI45: 0 | BJ45: 0 | BK45: 0 | BL45: 0 | BM45: 0 | BN45: 0 | BO45: 0 | BP45: 0 | BQ45: 0
A46: 59 | B46: =Vstupy!B1451 -> 0 | C46: =Vstupy!C1451 -> 0 | D46: 0 | E46: 0 | F46: 0 | G46: 0 | H46: 0 | I46: 0 | J46: 0 | K46: 0 | L46: 0 | M46: 0 | N46: 0 | O46: 0 | P46: 0 | Q46: 0 | R46: 0 | S46: 0 | T46: 0 | U46: 0 | V46: 0 | W46: 0 | X46: 0 | Y46: 0 | Z46: 0 | AA46: 0 | AB46: 0 | AC46: 0 | AD46: 0 | AE46: 0 | AF46: 0 | AG46: 0 | AH46: 0 | AI46: 0 | AJ46: 0 | AK46: 0 | AL46: 0 | AM46: 0 | AN46: 0 | AO46: 0 | AP46: 0 | AQ46: 0 | AR46: 0 | AS46: 0 | AT46: 0 | AU46: 0 | AV46: 0 | AW46: 0 | AX46: 0 | AY46: 0 | AZ46: 0 | BA46: 0 | BB46: 0 | BC46: 0 | BD46: 0 | BE46: 0 | BF46: 0 | BG46: 0 | BH46: 0 | BI46: 0 | BJ46: 0 | BK46: 0 | BL46: 0 | BM46: 0 | BN46: 0 | BO46: 0 | BP46: 0 | BQ46: 0
A47: 60 | B47: =Vstupy!B1452 -> 0 | C47: =Vstupy!C1452 -> 0 | D47: 0 | E47: 0 | F47: 0 | G47: 0 | H47: 0 | I47: 0 | J47: 0 | K47: 0 | L47: 0 | M47: 0 | N47: 0 | O47: 0 | P47: 0 | Q47: 0 | R47: 0 | S47: 0 | T47: 0 | U47: 0 | V47: 0 | W47: 0 | X47: 0 | Y47: 0 | Z47: 0 | AA47: 0 | AB47: 0 | AC47: 0 | AD47: 0 | AE47: 0 | AF47: 0 | AG47: 0 | AH47: 0 | AI47: 0 | AJ47: 0 | AK47: 0 | AL47: 0 | AM47: 0 | AN47: 0 | AO47: 0 | AP47: 0 | AQ47: 0 | AR47: 0 | AS47: 0 | AT47: 0 | AU47: 0 | AV47: 0 | AW47: 0 | AX47: 0 | AY47: 0 | AZ47: 0 | BA47: 0 | BB47: 0 | BC47: 0 | BD47: 0 | BE47: 0 | BF47: 0 | BG47: 0 | BH47: 0 | BI47: 0 | BJ47: 0 | BK47: 0 | BL47: 0 | BM47: 0 | BN47: 0 | BO47: 0 | BP47: 0 | BQ47: 0
A48: 61 | B48: =Vstupy!B1453 -> 0 | C48: =Vstupy!C1453 -> 0 | D48: 0 | E48: 0 | F48: 0 | G48: 0 | H48: 0 | I48: 0 | J48: 0 | K48: 0 | L48: 0 | M48: 0 | N48: 0 | O48: 0 | P48: 0 | Q48: 0 | R48: 0 | S48: 0 | T48: 0 | U48: 0 | V48: 0 | W48: 0 | X48: 0 | Y48: 0 | Z48: 0 | AA48: 0 | AB48: 0 | AC48: 0 | AD48: 0 | AE48: 0 | AF48: 0 | AG48: 0 | AH48: 0 | AI48: 0 | AJ48: 0 | AK48: 0 | AL48: 0 | AM48: 0 | AN48: 0 | AO48: 0 | AP48: 0 | AQ48: 0 | AR48: 0 | AS48: 0 | AT48: 0 | AU48: 0 | AV48: 0 | AW48: 0 | AX48: 0 | AY48: 0 | AZ48: 0 | BA48: 0 | BB48: 0 | BC48: 0 | BD48: 0 | BE48: 0 | BF48: 0 | BG48: 0 | BH48: 0 | BI48: 0 | BJ48: 0 | BK48: 0 | BL48: 0 | BM48: 0 | BN48: 0 | BO48: 0 | BP48: 0 | BQ48: 0
A49: 62 | B49: =Vstupy!B1454 -> 0 | C49: =Vstupy!C1454 -> 0 | D49: 0 | E49: 0 | F49: 0 | G49: 0 | H49: 0 | I49: 0 | J49: 0 | K49: 0 | L49: 0 | M49: 0 | N49: 0 | O49: 0 | P49: 0 | Q49: 0 | R49: 0 | S49: 0 | T49: 0 | U49: 0 | V49: 0 | W49: 0 | X49: 0 | Y49: 0 | Z49: 0 | AA49: 0 | AB49: 0 | AC49: 0 | AD49: 0 | AE49: 0 | AF49: 0 | AG49: 0 | AH49: 0 | AI49: 0 | AJ49: 0 | AK49: 0 | AL49: 0 | AM49: 0 | AN49: 0 | AO49: 0 | AP49: 0 | AQ49: 0 | AR49: 0 | AS49: 0 | AT49: 0 | AU49: 0 | AV49: 0 | AW49: 0 | AX49: 0 | AY49: 0 | AZ49: 0 | BA49: 0 | BB49: 0 | BC49: 0 | BD49: 0 | BE49: 0 | BF49: 0 | BG49: 0 | BH49: 0 | BI49: 0 | BJ49: 0 | BK49: 0 | BL49: 0 | BM49: 0 | BN49: 0 | BO49: 0 | BP49: 0 | BQ49: 0
A50: 63 | B50: =Vstupy!B1455 -> 0 | C50: =Vstupy!C1455 -> 0 | D50: 0 | E50: 0 | F50: 0 | G50: 0 | H50: 0 | I50: 0 | J50: 0 | K50: 0 | L50: 0 | M50: 0 | N50: 0 | O50: 0 | P50: 0 | Q50: 0 | R50: 0 | S50: 0 | T50: 0 | U50: 0 | V50: 0 | W50: 0 | X50: 0 | Y50: 0 | Z50: 0 | AA50: 0 | AB50: 0 | AC50: 0 | AD50: 0 | AE50: 0 | AF50: 0 | AG50: 0 | AH50: 0 | AI50: 0 | AJ50: 0 | AK50: 0 | AL50: 0 | AM50: 0 | AN50: 0 | AO50: 0 | AP50: 0 | AQ50: 0 | AR50: 0 | AS50: 0 | AT50: 0 | AU50: 0 | AV50: 0 | AW50: 0 | AX50: 0 | AY50: 0 | AZ50: 0 | BA50: 0 | BB50: 0 | BC50: 0 | BD50: 0 | BE50: 0 | BF50: 0 | BG50: 0 | BH50: 0 | BI50: 0 | BJ50: 0 | BK50: 0 | BL50: 0 | BM50: 0 | BN50: 0 | BO50: 0 | BP50: 0 | BQ50: 0
A51: 64 | B51: =Vstupy!B1456 -> 0 | C51: =Vstupy!C1456 -> 0 | D51: 0 | E51: 0 | F51: 0 | G51: 0 | H51: 0 | I51: 0 | J51: 0 | K51: 0 | L51: 0 | M51: 0 | N51: 0 | O51: 0 | P51: 0 | Q51: 0 | R51: 0 | S51: 0 | T51: 0 | U51: 0 | V51: 0 | W51: 0 | X51: 0 | Y51: 0 | Z51: 0 | AA51: 0 | AB51: 0 | AC51: 0 | AD51: 0 | AE51: 0 | AF51: 0 | AG51: 0 | AH51: 0 | AI51: 0 | AJ51: 0 | AK51: 0 | AL51: 0 | AM51: 0 | AN51: 0 | AO51: 0 | AP51: 0 | AQ51: 0 | AR51: 0 | AS51: 0 | AT51: 0 | AU51: 0 | AV51: 0 | AW51: 0 | AX51: 0 | AY51: 0 | AZ51: 0 | BA51: 0 | BB51: 0 | BC51: 0 | BD51: 0 | BE51: 0 | BF51: 0 | BG51: 0 | BH51: 0 | BI51: 0 | BJ51: 0 | BK51: 0 | BL51: 0 | BM51: 0 | BN51: 0 | BO51: 0 | BP51: 0 | BQ51: 0
A52: 65 | B52: =Vstupy!B1457 -> 0 | C52: =Vstupy!C1457 -> 0 | D52: 0 | E52: 0 | F52: 0 | G52: 0 | H52: 0 | I52: 0 | J52: 0 | K52: 0 | L52: 0 | M52: 0 | N52: 0 | O52: 0 | P52: 0 | Q52: 0 | R52: 0 | S52: 0 | T52: 0 | U52: 0 | V52: 0 | W52: 0 | X52: 0 | Y52: 0 | Z52: 0 | AA52: 0 | AB52: 0 | AC52: 0 | AD52: 0 | AE52: 0 | AF52: 0 | AG52: 0 | AH52: 0 | AI52: 0 | AJ52: 0 | AK52: 0 | AL52: 0 | AM52: 0 | AN52: 0 | AO52: 0 | AP52: 0 | AQ52: 0 | AR52: 0 | AS52: 0 | AT52: 0 | AU52: 0 | AV52: 0 | AW52: 0 | AX52: 0 | AY52: 0 | AZ52: 0 | BA52: 0 | BB52: 0 | BC52: 0 | BD52: 0 | BE52: 0 | BF52: 0 | BG52: 0 | BH52: 0 | BI52: 0 | BJ52: 0 | BK52: 0 | BL52: 0 | BM52: 0 | BN52: 0 | BO52: 0 | BP52: 0 | BQ52: 0
